Workbook

Sheet Instructions
A1: Iowa NRCS Native Seed Calculator Instructions
A2: Current Version 09/09/22
A4: 1. Conservation Planners are required to complete Supplement to Seed Plan form and attach it to the IA CPA 4 Seeding Plan. Begin by selecting the Supplement to Seed Plan worksheet. Instructions for completing this worksheet are located there.
A6: 2. Select site conditions appropriate for the seed mix being developed:
A8: A. | B8: Select a county to filter the list to species native to that region of the state.1,5,6,7 (see state region map below)
A10: B. | B10: Select a soil moisture category for the area to be seeded. Soil moisture choices are Xeric (Dry), Mesic (Medium), or Hydric (Wet). This process will filter the list of species to those adapted to the selected soil moisture regime.1,2,3,4,5,6
A12: C. | B12: Select the habitat type being restored. This will filter the species list to only those species adapted to the chosen habitat type.1,2,3,4,5,6
A14: 3. Choose a seeding rate option (lbs/acre PLS or seeds/ft2 PLS). The calculator will determine the equivalent rates and place them in the appropriate column.
A16: 4. Select species based on the requirements of the appropriate standards and guidance. Species can be selected by clicking on the drop down menu under the "Common Name:" header. All species in the calculator have been reported as commercially available by vendors in Iowa or adjacent states at some point in time. Species availability may vary and can only be confirmed through a seed vendor(s).
A18: 5. In the Forb/Legumes section, high-value forb species (Common Name) for Monarchs will show highlighted in yellow after they are selected.
A20: 6. As the seed mix is developed, the data is automatically transferred to a IA CPA 4 Seeding Plan. Click on the Seeding Plan tab at the bottom of the page to view the IA CPA 4. Complete the appropriate site description, acres to be seeded, fertilizer requirements, seeding dates, and additional seeding information. To hide blank rows in the seeding plan, click the hide extra rows button. To hide estimated costs, click the hide cost information button.
A22: 7. The 327 Conservation Cover Check Sheet will aid the user in ensuring that mixes meet applicable NRCS Standards and program requirements.
A24: 8. The Revisons tab contains detailed information on updates made to the Native Seeding Calculator. They are listed in chronological order.
A26: References used in the development of site selection criteria:
A27: 1 | B27: Eilers and Roosa. 2004. The Vascular Plants of Iowa. University of Iowa Press, Iowa City. 304 pp.
A28: 2 | B28: The University of Texas at Austin Native Plant Database http://www.wildflower.org/plants/
A29: 3 | B29: Flora of North America: http://www.efloras.org/flora_page.aspx?flora_id=1
A30: 4 | B30: Illinois Wildflowers: http://www.illinoiswildflowers.info/index.htm
A31: 5 | B31: Pohl, Richard. 1966. The Grasses (Gramineae) of Iowa. Iowa State Journal of Science 40: 341-566.
A32: 6 | B32: Pammel, L. H., C.R. Ball, F. Lamson-Scribner. 1903. The Grasses of Iowa Part II. Iowa Geologic Survey Supplementary Report 436 pp.
A33: 7 | B33: Rosburg, T. R. 2002. Development of a floristic database for Iowa’s State Preserves and Parks. Final Report to the Iowa State Preserves Board. Iowa Department of Natural Resources, Des Moines, IA.

Sheet Supplement to Seed Plan
A2: Iowa NRCS
A3: Supplement to Seeding Plan (IA-CPA-4)
A4: Conservation Cover (327) Native Plant Seeding
B7: Name: | O7: County:
B10: Field Number(s): | O10: Acres: | T10: Tract:
B13: The client is responsible to ensure the seeding mix meets the conservation practice standard and conservation program requirements (if applicable). If the seeding mix is changed in any way, the client is responsible to ensure the updated seeding mix is approved by an NRCS Planner. Seeding mixes can be emailed to the conservation planner listed below. Clients are encouraged to work with their seed dealer to use the Iowa Native Seeding Calculator to make the approval process more efficient. The Iowa Native Seeding Calculator can be found at https://bit.ly/IANRCSNativeSeedingCalculator. Seeding a mixture that is not approved and does not meet conservation and/or program requirements could be denied financial assistance (cost share) and may result in a conservation program violation.
B15: By signing, you are acknowledging: a. I received a seeding plan from NRCS. b. I understand if changes to the plan are made, the changes need to be approved by an NRCS planner prior to purchase. c. Updated seeding mixes can be sent by you or your seed dealer to the NRCS planner below. d. If an unapproved seeding mix is planted, eligible cost share assistance may be denied.
C17: Client Signature | P17: Date
B19: Conservation Program (if applicable):
K20: Contract # (if applicable):
B22: CRP Practice (if applicable):
B24: Seeding Purpose(s):
B26: Moisture Regime: | O26: Local Ecotype Required*:
O27: *As defined by Iowa Agronomy Technical Note #28
B28: Nurse Crop Required: | O28: Full Seeding or Interseeding:
B30: Seeding Rate (seeds/sq. ft.): | O30: Grass to Forb Ratio (seeds/sq. ft.):
B32: Minimum Number of Forb Species: | O32: Non-Native Forbs Allowed:
B34: Minimum Number of Grass Species: | O34: Preferred Growth Form:
Q36: Seeding Dates for Native Species
B37: Planned Seeding Date: | Q37: Spring | R37: April 1 - July 1 | Y37: Spring (April 1 - July 1)
Q38: Dormant | R38: November 15 - March 31 | Y38: Dormant (November 15 - March 31)
Q39: Frost* | R39: February 1 - March 31 | Y39: Frost* (February 1 - March 31)
Q40: *Debearded or smooth seed required for frost seeding. | Y40: Other:
Z42: Diverse Prairie Restoration
B43: Requirements for all seedings: | Z43: Pollinator Seedings
B44: l | C44: Minimum full seeding rate for native plants is 40 seeds/sq. ft. | Z44: Prairie Strips
B45: l | C45: Minimum of 10 seeds/sq. ft. of the mixture must be grass. | Z45: Monarch Habitat
B46: l | C46: Maximum of 4 switchgrass and 8 canada wildrye seeds/sq. ft. unless otherwise specified.
B47: l | C47: When allowed, mixtures may include up to 20% introduced forbs, which no one species | Z47: Requirements for Prairie Strips:
C48: will comprise more that 10% of the total mix. | Z48: -Must have 20 seeds/sq. ft. of grass and 20 seeds/sq. ft. of forbs.
B49: l | C49: Introduced forbs are not recommended for prairie restoration efforts. | Z49: -Native forb and grass species only (no introduced species allowed).
B50: l | C50: Maximum of 20% of the forb component may be annual/biennial forbs. | Z50: -A minimum of 2 forb species will be included for each blooming period (Spring, Summer, Fall).
Z51: -A minimum of 10 flowering forb species.
A52: Select Additional Requirement(s) (if applicable):
B54: =IF(B53="Diverse Prairie Restoration",$Z$55,IF(B53="Pollinator Seedings",$Z$63,IF(B53="Prairie Strips",$Z$47,IF(B53="Monarch Habitat",$Z$71,"")))) -> 
C55: =IF(B53="Diverse Prairie Restoration",$Z$56,IF(B53="Pollinator Seedings",$Z$64,IF(B53="Prairie Strips",$Z$48,IF(B53="Monarch Habitat",$Z$72,"")))) ->  | Z55: Requirements for mixtures that include 10 or more species (diverse prairie restoration):
C56: =IF(B53="Diverse Prairie Restoration",$Z$57,IF(B53="Pollinator Seedings",$Z$65,IF(B53="Prairie Strips",$Z$49,IF(B53="Monarch Habitat",$Z$73,"")))) ->  | Z56: -Individual species of grass may not exceed 20%, and individual species of forb 10% of the total mix.
C57: =IF(B53="Diverse Prairie Restoration",$Z$58,IF(B53="Pollinator Seedings",$Z$66,IF(B53="Prairie Strips",$Z$50,IF(B53="Monarch Habitat",$Z$74,"")))) ->  | Z57: -Maximum of 33% of the mix may include species with a coefficient of conservatism <=3.
C58: =IF(B53="Diverse Prairie Restoration",$Z$59,IF(B53="Pollinator Seedings",$Z$67,IF(B53="Prairie Strips",$Z$51,IF(B53="Monarch Habitat",$Z$75,"")))) -> 
C59: =IF(B53="Diverse Prairie Restoration",$Z$60,IF(B53="Pollinator Seedings",$Z$68,IF(B53="Prairie Strips",$Z$52,IF(B53="Monarch Habitat",$Z$76,"")))) -> 
C60: =IF(B53="Diverse Prairie Restoration",$Z$61,IF(B53="Pollinator Seedings",$Z$69,IF(B53="Prairie Strips",$Z$53,IF(B53="Monarch Habitat",$Z$77,"")))) -> 
B63: =IF(B62="Diverse Prairie Restoration",$Z$55,IF(B62="Pollinator Seedings",$Z$63,IF(B62="Prairie Strips",$Z$47,IF(B62="Monarch Habitat",$Z$71,"")))) ->  | Z63: Requirements for Pollinator Seedings:
C64: =IF(B62="Diverse Prairie Restoration",$Z$56,IF(B62="Pollinator Seedings",$Z$64,IF(B62="Prairie Strips",$Z$48,IF(B62="Monarch Habitat",$Z$72,"")))) ->  | Z64: -Minimum of 10 species in the mix (diverse prairie restoration requirements apply).
C65: =IF(B62="Diverse Prairie Restoration",$Z$57,IF(B62="Pollinator Seedings",$Z$65,IF(B62="Prairie Strips",$Z$49,IF(B62="Monarch Habitat",$Z$73,"")))) ->  | Z65: -Maximum of 20 grass seeds/sq. ft.
C66: =IF(B62="Diverse Prairie Restoration",$Z$58,IF(B62="Pollinator Seedings",$Z$66,IF(B62="Prairie Strips",$Z$50,IF(B62="Monarch Habitat",$Z$74,"")))) ->  | Z66: -Minimum of 1 bunch grass or 1 clump forming sedge and 1 legume will be included.
C67: =IF(B62="Diverse Prairie Restoration",$Z$59,IF(B62="Pollinator Seedings",$Z$67,IF(B62="Prairie Strips",$Z$51,IF(B62="Monarch Habitat",$Z$75,"")))) ->  | Z67: -A minimum of 3 forb species will be included for each blooming period (Spring, Summer, Fall).
C68: =IF(B62="Diverse Prairie Restoration",$Z$60,IF(B62="Pollinator Seedings",$Z$68,IF(B62="Prairie Strips",$Z$52,IF(B62="Monarch Habitat",$Z$76,"")))) -> 
C69: =IF(B62="Diverse Prairie Restoration",$Z$61,IF(B62="Pollinator Seedings",$Z$69,IF(B62="Prairie Strips",$Z$53,IF(B62="Monarch Habitat",$Z$77,"")))) -> 
Z71: Requirements for Monarch Habitat:
B72: =IF(B71="Diverse Prairie Restoration",$Z$55,IF(B71="Pollinator Seedings",$Z$63,IF(B71="Prairie Strips",$Z$47,IF(B71="Monarch Habitat",$Z$71,"")))) ->  | Z72: -Follow the pollinator seeding requirements.
C73: =IF(B71="Diverse Prairie Restoration",$Z$56,IF(B71="Pollinator Seedings",$Z$64,IF(B71="Prairie Strips",$Z$48,IF(B71="Monarch Habitat",$Z$72,"")))) ->  | Z73: -A minimum of 1.5% of the mix shall be priority milkweed species.
C74: =IF(B71="Diverse Prairie Restoration",$Z$57,IF(B71="Pollinator Seedings",$Z$65,IF(B71="Prairie Strips",$Z$49,IF(B71="Monarch Habitat",$Z$73,"")))) ->  | Z74: -60% of the forbs shall be high value forbs (including priority milkweed species).
C75: =IF(B71="Diverse Prairie Restoration",$Z$58,IF(B71="Pollinator Seedings",$Z$66,IF(B71="Prairie Strips",$Z$50,IF(B71="Monarch Habitat",$Z$74,"")))) ->  | Z75: -Introduced forbs are not allowed.
C76: =IF(B71="Diverse Prairie Restoration",$Z$59,IF(B71="Pollinator Seedings",$Z$67,IF(B71="Prairie Strips",$Z$51,IF(B71="Monarch Habitat",$Z$75,"")))) ->  | Z76: -Maximum of 1 seed/sq. ft. for big bluestem and switchgrass.
C77: =IF(B71="Diverse Prairie Restoration",$Z$60,IF(B71="Pollinator Seedings",$Z$68,IF(B71="Prairie Strips",$Z$52,IF(B71="Monarch Habitat",$Z$76,"")))) ->  | Z77: -Maximum of 1.3 seeds/sq. ft. for Indiangrass.
C78: =IF(B71="Diverse Prairie Restoration",$Z$61,IF(B71="Pollinator Seedings",$Z$69,IF(B71="Prairie Strips",$Z$53,IF(B71="Monarch Habitat",$Z$77,"")))) -> 
B82: Additional Seeding Plan Information:
B86: Conservation Planner: | T86: Date: | V86: =TODAY() -> 2022-09-26
B89: Phone Number: | O89: email:
AH94: Seeding Purpose
Y95: Program
AH96: Air Quality
Y97: Agricultural Conservation Easement Program | AH97: Beneficial Insect Habitat
Y98: Conservation Reserve Program | AH98: Brood Rearing Cover
Y99: Conservation Stewardship Program | AH99: Deer Habitat
Y100: Environmental Quality Incentives Program | AH100: Diverse Prairie Restoration
Y101: Iowa Financial Incentive Program | AH101: Filtering
Y102: Iowa Water Quality Initiative | AH102: Greater Prairie Chicken Habitat
Y103: Regional Conservation Partnership Program | AH103: Monarch Habitat
Y104: Resource Enhancement and Protection Program | AH104: Nesting Cover
AH105: Pollinator Habitat
Z106: CRP Practice | AH106: Savanna Restoration
AH107: Soil Erosion Control
Z108: CP2 Establishment of Native Grasses | AH108: Soil Health
Z109: CP4B Wildlife Habitat Corridors | AH109: Upland Bird Habitat
Z110: CP4D Wildlife Habitat | AH110: Water Quality Protection
Z111: CP9 Shallow Water Area for Wildlife | AH111: Wetland Restoration
Z112: CP15A Contour Grass Strip | AH112: Wildlife Habitat
Z113: CP15B Establishment of Vegetative Cover on Terraces | AH113: Winter Cover
Z114: CP17A Living Snow Fence
Z115: CP21 Filter Strips | AI115: Site Hydrology Condition
Z116: CP21B Denitrifying Bioreactor on Filter Strips
Z117: CP21S Saturated Filter Strips | AI117: Dry
Z118: CP23 Wetland Restoration | AI118: Mesic
Z119: CP23A Wetland Restoration, Non-Floodplain | AI119: Wet
Z120: CP25 Rare and Declining Habitat | AI120: Dry/Mesic
Z121: CP27 Farmable Wetlands | AI121: Wet/Mesic
Z122: CP28 Farmable Wetland Buffer
Z123: CP29 Marginal Pastureland Wildlife Habitat Buffer | AI123: Nurse Crop Required or
Z124: CP30 Marginal Pastureland Wetland Buffer | AI124: Local Ecotype Required or Non-Native Forbs Allowed
Z125: CP33 Habitat Buffers for Upland Birds
Z126: CP37 Duck Nesting Habitat | AI126: Yes
Z127: CP38B (CP9) SAFE Gaining Ground for Wildlife - Shallow Water Areas for Wildlife | AI127: No
Z128: CP38B (CP23/CP23A) SAFE Gaining Ground for Wildlife - Wetland Restoration
Z129: CP38B (CP37) SAFE Gaining Ground for Wildlife - Duck Nesting Habitat | AI129: Full Seeding
Z130: CP38E (CP2) SAFE Gaining Ground for Wildlife - Permanent Native Grasses | AI130: Interseeding
Z131: CP38E (CP2) SAFE Grand River Grassland - Permanent Native Grasses
Z132: CP38E (CP4B/CP4D) SAFE Gaining Ground for Wildlife - Permanent Wildlife Habitat | AI132: Grass to Forb Ratio
Z133: CP38E (CP4D) SAFE Iowa Pheasant Recovery - Permanent Wildlife Habitat
Z134: CP38E (CP4D) SAFE Early Successional Quail Habitat - Permanent Wildlife Habitat | AI134: 10:30
Z135: CP38E (CP25) SAFE Grand River Grassland - Rare and Declining Habitat | AI135: 20:20
Z136: CP38E (CP25) SAFE SAFE Gaining Ground for Wildlife - Rare and Declining Habitat | AI136: 30:10
Z137: CP38E (CP33) SAFE Gaining Ground for Wildlife - Habitat Buffers for Upland Birds | AI137: 40:0
Z138: CP38E-4D Habitat for Neotropical Forest Birds
Z139: CP39 Constructed Wetland
Z140: CP41 Flooded Prairie Wetland | AH140: Preferred Growth Form
Z141: CP42 Pollinator Habitat
Z142: CP43 Prairie Strips | AH142: Tall
Z143: CP88 Permanent Native Grasses and Legumes | AH143: Short
AH144: Mix (Tall and Short)
A148: Instructions - Supplement to Seeding Plan (IA-CPA-4) | Q148: Return to Form
A150: The Iowa NRCS Seeding Plan Supplement (supplement) is used by a conservation planner to communicate the details of a native plant seeding to the client and seed dealer. Conservation Cover (327) is the NRCS practice standard that the supplement supports. A client and seed dealer will use the supplement to ensure the native seed mix purchased will meet the objective and requirements of the seeding. The supplement is part of the Iowa NRCS Native Prairie Seeding Calculator. Follow the steps below to complete the Seeding Plan Supplement:
B152: 1. | C152: Fill in the name and location information at the top of the supplement.
B154: 2. | C154: Enter details about the seeding in all portions of the supplement that apply. (Either type information into the cells or use the drop-down menus.)
C155: Note: Use the “Seeding Purpose” section to describe the seeding purpose and goals (up to 2 purposes can be selected). Examples are included in the drop-down menu. This section is designed to assist the seed dealer by communicating the conservation program purpose (if applicable) and goal of the client. For example, a client participating in CRP CP21 filter strip would also like to include forbs that provide habitat for pollinators in their seed. This section allows the conservation planner to communicate that specific goal to the seed dealer.
B157: 3. | C157: Portions from the Conservation Cover (327) practice standard are included in the supplement. Choose additional seeding requirements, diverse prairie restoration, pollinator or monarch if they apply. Only seeding requirements selected will be displayed in the printed document.
B159: 4. | C159: If necessary, include further details in the “Additional Seeding Plan Information” section.
B161: 5. | C161: The conservation planner will include their name, date and contact information at the end of the document.
B163: 6. | C163: Use the Iowa NRCS Native Prairie Seeding Calculator to develop a list of species and rates that comply with conservation program requirements and the conservation cover practice standard.
B165: 7. | C165: The conservation planner will provide the client the Conservation Cover (327) job sheet, seeding plan (IA-CPA-4) and supplement.
B167: 8. | C167: The client and seed dealer will use the seeding plan and supplement as a guide when purchasing the seed mix. If a seed mix is selected that is different from the seeding plan, then the client and/or seed dealer will contact the conservation planner listed on the supplement. Preferably, a copy of the Iowa NRCS Native Prairie Seeding Calculator will be emailed to the conservation planner containing information about the proposed seed mix. The conservation planner will review information provided and reply to let the client and/or seed dealer know if requirements and goals of the seeding are met with the proposed mix.
B169: 9. | C169: After the conservation planner reviews and approves the proposed seed mix, they will replace the original seeding plan with a seeding plan that accurately reflects the species and rates that will be seeded.

Sheet Calculator
B1: Customize Options to Suit Site Conditions | E1: lbs / acre PLS
A2: 1 | C2: =VLOOKUP(A2,County_Lookup,3,FALSE) -> 0 | E2: seeds / ft2 PLS | P2: WARNING: Only use this Import button
A4: 0 | H4: To override default cost, enter your cost in the applicable cell. | P4: for seed mixes developed with
A6: 0 | P6: previous 90 Forb calculator versions.
A8: 0 | E8: CHOOSE A RATE SPECIFICATION:
B10: =Instructions!A2 -> Current Version 09/09/22 | D10: 1
B12: CHOOSE YOUR GRASSES | D12: 1
B13: Common Name | C13: Scientific Name | E13: Lbs / acre PLS | F13: Seeds / ft2 PLS | G13: Coefficient of Conservatism | H13: Esimated Cost ($/lb) | I13: # Seeds / ft2 | J13: Pure Stand PLS Rate lbs / ac | K13: % of Mix | L13: Esimated Cost ($/ac) | Z13: DATE REVISED 11/08
C14: Growth Form | D14: Equivalent rate below | I14: @ 1 lb. / ac | M14: Functional Group
A15: 1 | C15: =IF(ISERROR(VLOOKUP(B15,Grass_Table,2,FALSE)),"",VLOOKUP(B15,Grass_Table,2,FALSE)) ->  | G15: =IF(ISNA(VLOOKUP(B15,Grass_Table,31,FALSE)),"",VLOOKUP(B15,Grass_Table,31,FALSE)) ->  | H15: =IF(ISNA(VLOOKUP(B15,Grass_Table,25,FALSE)),"",VLOOKUP(B15,Grass_Table,25,FALSE)) ->  | I15: =IF(ISNA(VLOOKUP(B15,Grass_Table,28,FALSE)),"",VLOOKUP(B15,Grass_Table,28,FALSE)) ->  | J15: =IF(ISNA(VLOOKUP(B15,Grass_Table,21,FALSE)),"",VLOOKUP(B15,Grass_Table,21,FALSE)) ->  | K15: =IF(D16>0,D16,0) ->  | L15: =IF(D15="",IF(E15="",IF(F15="",0,F15/I15*H15),E15*H15),E16*H15) -> 0 | M15: =IF(ISERROR(VLOOKUP(B15,Grass_Table,32,FALSE)),"",VLOOKUP(B15,Grass_Table,32,FALSE)) ->  | X15: 1 | Z15: American Beakgrain
B16: =B15 -> 0 | C16: =IF(ISNA(VLOOKUP(B15,Grass_Table,30,FALSE)),"",VLOOKUP(B15,Grass_Table,30,FALSE)) ->  | D16: =IF(E15="",IF(F15="","",F15/$F$285),F16/$F$285) ->  | E16: =IF(D15="",IF(F15="","",F15/I15),J15*D15) ->  | F16: =IF(D15="",IF(E15="","",E15*I15),E16*I15) ->  | G16: =G15 ->  | I16: =IF(J15="Plugs Only","CANNOT USE CALCULATOR FOR SEEDING RATE -- USE PLUGS ONLY","") ->  | M16: =M15 -> 
A17: 2 | C17: =IF(ISERROR(VLOOKUP(B17,Grass_Table,2,FALSE)),"",VLOOKUP(B17,Grass_Table,2,FALSE)) ->  | G17: =IF(ISNA(VLOOKUP(B17,Grass_Table,31,FALSE)),"",VLOOKUP(B17,Grass_Table,31,FALSE)) ->  | H17: =IF(ISNA(VLOOKUP(B17,Grass_Table,25,FALSE)),"",VLOOKUP(B17,Grass_Table,25,FALSE)) ->  | I17: =IF(ISNA(VLOOKUP(B17,Grass_Table,28,FALSE)),"",VLOOKUP(B17,Grass_Table,28,FALSE)) ->  | J17: =IF(ISNA(VLOOKUP(B17,Grass_Table,21,FALSE)),"",VLOOKUP(B17,Grass_Table,21,FALSE)) ->  | K17: =IF(D18>0,D18,0) ->  | L17: =IF(D17="",IF(E17="",IF(F17="",0,F17/I17*H17),E17*H17),E18*H17) -> 0 | M17: =IF(ISERROR(VLOOKUP(B17,Grass_Table,32,FALSE)),"",VLOOKUP(B17,Grass_Table,32,FALSE)) ->  | X17: 1 | Z17: Blue Grama
B18: =B17 -> 0 | C18: =IF(ISERROR(VLOOKUP(B17,Grass_Table,30,FALSE)),"",VLOOKUP(B17,Grass_Table,30,FALSE)) ->  | D18: =IF(E17="",IF(F17="","",F17/$F$285),F18/$F$285) ->  | E18: =IF(D17="",IF(F17="","",F17/I17),J17*D17) ->  | F18: =IF(D17="",IF(E17="","",E17*I17),E18*I17) ->  | G18: =G17 ->  | I18: =IF(J17="Plugs Only","CANNOT USE CALCULATOR FOR SEEDING RATE -- USE PLUGS ONLY","") ->  | M18: =M17 -> 
A19: 3 | C19: =IF(ISERROR(VLOOKUP(B19,Grass_Table,2,FALSE)),"",VLOOKUP(B19,Grass_Table,2,FALSE)) ->  | G19: =IF(ISNA(VLOOKUP(B19,Grass_Table,31,FALSE)),"",VLOOKUP(B19,Grass_Table,31,FALSE)) ->  | H19: =IF(ISNA(VLOOKUP(B19,Grass_Table,25,FALSE)),"",VLOOKUP(B19,Grass_Table,25,FALSE)) ->  | I19: =IF(ISNA(VLOOKUP(B19,Grass_Table,28,FALSE)),"",VLOOKUP(B19,Grass_Table,28,FALSE)) ->  | J19: =IF(ISNA(VLOOKUP(B19,Grass_Table,21,FALSE)),"",VLOOKUP(B19,Grass_Table,21,FALSE)) ->  | K19: =IF(D20>0,D20,0) ->  | L19: =IF(D19="",IF(E19="",IF(F19="",0,F19/I19*H19),E19*H19),E20*H19) -> 0 | M19: =IF(ISERROR(VLOOKUP(B19,Grass_Table,32,FALSE)),"",VLOOKUP(B19,Grass_Table,32,FALSE)) ->  | X19: 1
B20: =B19 -> 0 | C20: =IF(ISERROR(VLOOKUP(B19,Grass_Table,30,FALSE)),"",VLOOKUP(B19,Grass_Table,30,FALSE)) ->  | D20: =IF(E19="",IF(F19="","",F19/$F$285),F20/$F$285) ->  | E20: =IF(D19="",IF(F19="","",F19/I19),J19*D19) ->  | F20: =IF(D19="",IF(E19="","",E19*I19),E20*I19) ->  | G20: =G19 ->  | I20: =IF(J19="Plugs Only","CANNOT USE CALCULATOR FOR SEEDING RATE -- USE PLUGS ONLY","") ->  | M20: =M19 -> 
A21: 4 | C21: =IF(ISERROR(VLOOKUP(B21,Grass_Table,2,FALSE)),"",VLOOKUP(B21,Grass_Table,2,FALSE)) ->  | G21: =IF(ISNA(VLOOKUP(B21,Grass_Table,31,FALSE)),"",VLOOKUP(B21,Grass_Table,31,FALSE)) ->  | H21: =IF(ISNA(VLOOKUP(B21,Grass_Table,25,FALSE)),"",VLOOKUP(B21,Grass_Table,25,FALSE)) ->  | I21: =IF(ISNA(VLOOKUP(B21,Grass_Table,28,FALSE)),"",VLOOKUP(B21,Grass_Table,28,FALSE)) ->  | J21: =IF(ISNA(VLOOKUP(B21,Grass_Table,21,FALSE)),"",VLOOKUP(B21,Grass_Table,21,FALSE)) ->  | K21: =IF(D22>0,D22,0) ->  | L21: =IF(D21="",IF(E21="",IF(F21="",0,F21/I21*H21),E21*H21),E22*H21) -> 0 | M21: =IF(ISERROR(VLOOKUP(B21,Grass_Table,32,FALSE)),"",VLOOKUP(B21,Grass_Table,32,FALSE)) ->  | X21: 1
B22: =B21 -> 0 | C22: =IF(ISERROR(VLOOKUP(B21,Grass_Table,30,FALSE)),"",VLOOKUP(B21,Grass_Table,30,FALSE)) ->  | D22: =IF(E21="",IF(F21="","",F21/$F$285),F22/$F$285) ->  | E22: =IF(D21="",IF(F21="","",F21/I21),J21*D21) ->  | F22: =IF(D21="",IF(E21="","",E21*I21),E22*I21) ->  | G22: =G21 ->  | I22: =IF(J21="Plugs Only","CANNOT USE CALCULATOR FOR SEEDING RATE -- USE PLUGS ONLY","") ->  | M22: =M21 -> 
A23: 5 | C23: =IF(ISERROR(VLOOKUP(B23,Grass_Table,2,FALSE)),"",VLOOKUP(B23,Grass_Table,2,FALSE)) ->  | G23: =IF(ISNA(VLOOKUP(B23,Grass_Table,31,FALSE)),"",VLOOKUP(B23,Grass_Table,31,FALSE)) ->  | H23: =IF(ISNA(VLOOKUP(B23,Grass_Table,25,FALSE)),"",VLOOKUP(B23,Grass_Table,25,FALSE)) ->  | I23: =IF(ISNA(VLOOKUP(B23,Grass_Table,28,FALSE)),"",VLOOKUP(B23,Grass_Table,28,FALSE)) ->  | J23: =IF(ISNA(VLOOKUP(B23,Grass_Table,21,FALSE)),"",VLOOKUP(B23,Grass_Table,21,FALSE)) ->  | K23: =IF(D24>0,D24,0) ->  | L23: =IF(D23="",IF(E23="",IF(F23="",0,F23/I23*H23),E23*H23),E24*H23) -> 0 | M23: =IF(ISERROR(VLOOKUP(B23,Grass_Table,32,FALSE)),"",VLOOKUP(B23,Grass_Table,32,FALSE)) ->  | X23: 1
B24: =B23 -> 0 | C24: =IF(ISERROR(VLOOKUP(B23,Grass_Table,30,FALSE)),"",VLOOKUP(B23,Grass_Table,30,FALSE)) ->  | D24: =IF(E23="",IF(F23="","",F23/$F$285),F24/$F$285) ->  | E24: =IF(D23="",IF(F23="","",F23/I23),J23*D23) ->  | F24: =IF(D23="",IF(E23="","",E23*I23),E24*I23) ->  | G24: =G23 ->  | I24: =IF(J23="Plugs Only","CANNOT USE CALCULATOR FOR SEEDING RATE -- USE PLUGS ONLY","") ->  | M24: =M23 -> 
A25: 6 | C25: =IF(ISERROR(VLOOKUP(B25,Grass_Table,2,FALSE)),"",VLOOKUP(B25,Grass_Table,2,FALSE)) ->  | G25: =IF(ISNA(VLOOKUP(B25,Grass_Table,31,FALSE)),"",VLOOKUP(B25,Grass_Table,31,FALSE)) ->  | H25: =IF(ISNA(VLOOKUP(B25,Grass_Table,25,FALSE)),"",VLOOKUP(B25,Grass_Table,25,FALSE)) ->  | I25: =IF(ISNA(VLOOKUP(B25,Grass_Table,28,FALSE)),"",VLOOKUP(B25,Grass_Table,28,FALSE)) ->  | J25: =IF(ISNA(VLOOKUP(B25,Grass_Table,21,FALSE)),"",VLOOKUP(B25,Grass_Table,21,FALSE)) ->  | K25: =IF(D26>0,D26,0) ->  | L25: =IF(D25="",IF(E25="",IF(F25="",0,F25/I25*H25),E25*H25),E26*H25) -> 0 | M25: =IF(ISERROR(VLOOKUP(B25,Grass_Table,32,FALSE)),"",VLOOKUP(B25,Grass_Table,32,FALSE)) ->  | X25: 1
B26: =B25 -> 0 | C26: =IF(ISERROR(VLOOKUP(B25,Grass_Table,30,FALSE)),"",VLOOKUP(B25,Grass_Table,30,FALSE)) ->  | D26: =IF(E25="",IF(F25="","",F25/$F$285),F26/$F$285) ->  | E26: =IF(D25="",IF(F25="","",F25/I25),J25*D25) ->  | F26: =IF(D25="",IF(E25="","",E25*I25),E26*I25) ->  | G26: =G25 ->  | I26: =IF(J25="Plugs Only","CANNOT USE CALCULATOR FOR SEEDING RATE -- USE PLUGS ONLY","") ->  | M26: =M25 -> 
A27: 7 | C27: =IF(ISERROR(VLOOKUP(B27,Grass_Table,2,FALSE)),"",VLOOKUP(B27,Grass_Table,2,FALSE)) ->  | G27: =IF(ISNA(VLOOKUP(B27,Grass_Table,31,FALSE)),"",VLOOKUP(B27,Grass_Table,31,FALSE)) ->  | H27: =IF(ISNA(VLOOKUP(B27,Grass_Table,25,FALSE)),"",VLOOKUP(B27,Grass_Table,25,FALSE)) ->  | I27: =IF(ISNA(VLOOKUP(B27,Grass_Table,28,FALSE)),"",VLOOKUP(B27,Grass_Table,28,FALSE)) ->  | J27: =IF(ISNA(VLOOKUP(B27,Grass_Table,21,FALSE)),"",VLOOKUP(B27,Grass_Table,21,FALSE)) ->  | K27: =IF(D28>0,D28,0) ->  | L27: =IF(D27="",IF(E27="",IF(F27="",0,F27/I27*H27),E27*H27),E28*H27) -> 0 | M27: =IF(ISERROR(VLOOKUP(B27,Grass_Table,32,FALSE)),"",VLOOKUP(B27,Grass_Table,32,FALSE)) ->  | X27: 1
B28: =B27 -> 0 | C28: =IF(ISERROR(VLOOKUP(B27,Grass_Table,30,FALSE)),"",VLOOKUP(B27,Grass_Table,30,FALSE)) ->  | D28: =IF(E27="",IF(F27="","",F27/$F$285),F28/$F$285) ->  | E28: =IF(D27="",IF(F27="","",F27/I27),J27*D27) ->  | F28: =IF(D27="",IF(E27="","",E27*I27),E28*I27) ->  | G28: =G27 ->  | I28: =IF(J27="Plugs Only","CANNOT USE CALCULATOR FOR SEEDING RATE -- USE PLUGS ONLY","") ->  | M28: =M27 -> 
A29: 8 | C29: =IF(ISERROR(VLOOKUP(B29,Grass_Table,2,FALSE)),"",VLOOKUP(B29,Grass_Table,2,FALSE)) ->  | G29: =IF(ISNA(VLOOKUP(B29,Grass_Table,31,FALSE)),"",VLOOKUP(B29,Grass_Table,31,FALSE)) ->  | H29: =IF(ISNA(VLOOKUP(B29,Grass_Table,25,FALSE)),"",VLOOKUP(B29,Grass_Table,25,FALSE)) ->  | I29: =IF(ISNA(VLOOKUP(B29,Grass_Table,28,FALSE)),"",VLOOKUP(B29,Grass_Table,28,FALSE)) ->  | J29: =IF(ISNA(VLOOKUP(B29,Grass_Table,21,FALSE)),"",VLOOKUP(B29,Grass_Table,21,FALSE)) ->  | K29: =IF(D30>0,D30,0) ->  | L29: =IF(D29="",IF(E29="",IF(F29="",0,F29/I29*H29),E29*H29),E30*H29) -> 0 | M29: =IF(ISERROR(VLOOKUP(B29,Grass_Table,32,FALSE)),"",VLOOKUP(B29,Grass_Table,32,FALSE)) ->  | X29: 1
B30: =B29 -> 0 | C30: =IF(ISERROR(VLOOKUP(B29,Grass_Table,30,FALSE)),"",VLOOKUP(B29,Grass_Table,30,FALSE)) ->  | D30: =IF(E29="",IF(F29="","",F29/$F$285),F30/$F$285) ->  | E30: =IF(D29="",IF(F29="","",F29/I29),J29*D29) ->  | F30: =IF(D29="",IF(E29="","",E29*I29),E30*I29) ->  | G30: =G29 ->  | I30: =IF(J29="Plugs Only","CANNOT USE CALCULATOR FOR SEEDING RATE -- USE PLUGS ONLY","") ->  | M30: =M29 -> 
A31: 9 | C31: =IF(ISERROR(VLOOKUP(B31,Grass_Table,2,FALSE)),"",VLOOKUP(B31,Grass_Table,2,FALSE)) ->  | G31: =IF(ISNA(VLOOKUP(B31,Grass_Table,31,FALSE)),"",VLOOKUP(B31,Grass_Table,31,FALSE)) ->  | H31: =IF(ISNA(VLOOKUP(B31,Grass_Table,25,FALSE)),"",VLOOKUP(B31,Grass_Table,25,FALSE)) ->  | I31: =IF(ISNA(VLOOKUP(B31,Grass_Table,28,FALSE)),"",VLOOKUP(B31,Grass_Table,28,FALSE)) ->  | J31: =IF(ISNA(VLOOKUP(B31,Grass_Table,21,FALSE)),"",VLOOKUP(B31,Grass_Table,21,FALSE)) ->  | K31: =IF(D32>0,D32,0) ->  | L31: =IF(D31="",IF(E31="",IF(F31="",0,F31/I31*H31),E31*H31),E32*H31) -> 0 | M31: =IF(ISERROR(VLOOKUP(B31,Grass_Table,32,FALSE)),"",VLOOKUP(B31,Grass_Table,32,FALSE)) ->  | X31: 1
B32: =B31 -> 0 | C32: =IF(ISERROR(VLOOKUP(B31,Grass_Table,30,FALSE)),"",VLOOKUP(B31,Grass_Table,30,FALSE)) ->  | D32: =IF(E31="",IF(F31="","",F31/$F$285),F32/$F$285) ->  | E32: =IF(D31="",IF(F31="","",F31/I31),J31*D31) ->  | F32: =IF(D31="",IF(E31="","",E31*I31),E32*I31) ->  | G32: =G31 ->  | I32: =IF(J31="Plugs Only","CANNOT USE CALCULATOR FOR SEEDING RATE -- USE PLUGS ONLY","") ->  | M32: =M31 -> 
A33: 10 | C33: =IF(ISERROR(VLOOKUP(B33,Grass_Table,2,FALSE)),"",VLOOKUP(B33,Grass_Table,2,FALSE)) ->  | G33: =IF(ISNA(VLOOKUP(B33,Grass_Table,31,FALSE)),"",VLOOKUP(B33,Grass_Table,31,FALSE)) ->  | H33: =IF(ISNA(VLOOKUP(B33,Grass_Table,25,FALSE)),"",VLOOKUP(B33,Grass_Table,25,FALSE)) ->  | I33: =IF(ISNA(VLOOKUP(B33,Grass_Table,28,FALSE)),"",VLOOKUP(B33,Grass_Table,28,FALSE)) ->  | J33: =IF(ISNA(VLOOKUP(B33,Grass_Table,21,FALSE)),"",VLOOKUP(B33,Grass_Table,21,FALSE)) ->  | K33: =IF(D34>0,D34,0) ->  | L33: =IF(D33="",IF(E33="",IF(F33="",0,F33/I33*H33),E33*H33),E34*H33) -> 0 | M33: =IF(ISERROR(VLOOKUP(B33,Grass_Table,32,FALSE)),"",VLOOKUP(B33,Grass_Table,32,FALSE)) ->  | X33: 1
B34: =B33 -> 0 | C34: =IF(ISERROR(VLOOKUP(B33,Grass_Table,30,FALSE)),"",VLOOKUP(B33,Grass_Table,30,FALSE)) ->  | D34: =IF(E33="",IF(F33="","",F33/$F$285),F34/$F$285) ->  | E34: =IF(D33="",IF(F33="","",F33/I33),J33*D33) ->  | F34: =IF(D33="",IF(E33="","",E33*I33),E34*I33) ->  | G34: =G33 ->  | I34: =IF(J33="Plugs Only","CANNOT USE CALCULATOR FOR SEEDING RATE -- USE PLUGS ONLY","") ->  | M34: =M33 -> 
A35: 11 | C35: =IF(ISERROR(VLOOKUP(B35,Grass_Table,2,FALSE)),"",VLOOKUP(B35,Grass_Table,2,FALSE)) ->  | G35: =IF(ISNA(VLOOKUP(B35,Grass_Table,31,FALSE)),"",VLOOKUP(B35,Grass_Table,31,FALSE)) ->  | H35: =IF(ISNA(VLOOKUP(B35,Grass_Table,25,FALSE)),"",VLOOKUP(B35,Grass_Table,25,FALSE)) ->  | I35: =IF(ISNA(VLOOKUP(B35,Grass_Table,28,FALSE)),"",VLOOKUP(B35,Grass_Table,28,FALSE)) ->  | J35: =IF(ISNA(VLOOKUP(B35,Grass_Table,21,FALSE)),"",VLOOKUP(B35,Grass_Table,21,FALSE)) ->  | K35: =IF(D36>0,D36,0) ->  | L35: =IF(D35="",IF(E35="",IF(F35="",0,F35/I35*H35),E35*H35),E36*H35) -> 0 | M35: =IF(ISERROR(VLOOKUP(B35,Grass_Table,32,FALSE)),"",VLOOKUP(B35,Grass_Table,32,FALSE)) ->  | X35: 1
B36: =B35 -> 0 | C36: =IF(ISERROR(VLOOKUP(B35,Grass_Table,30,FALSE)),"",VLOOKUP(B35,Grass_Table,30,FALSE)) ->  | D36: =IF(E35="",IF(F35="","",F35/$F$285),F36/$F$285) ->  | E36: =IF(D35="",IF(F35="","",F35/I35),J35*D35) ->  | F36: =IF(D35="",IF(E35="","",E35*I35),E36*I35) ->  | G36: =G35 ->  | I36: =IF(J35="Plugs Only","CANNOT USE CALCULATOR FOR SEEDING RATE -- USE PLUGS ONLY","") ->  | M36: =M35 -> 
A37: 12 | C37: =IF(ISERROR(VLOOKUP(B37,Grass_Table,2,FALSE)),"",VLOOKUP(B37,Grass_Table,2,FALSE)) ->  | G37: =IF(ISNA(VLOOKUP(B37,Grass_Table,31,FALSE)),"",VLOOKUP(B37,Grass_Table,31,FALSE)) ->  | H37: =IF(ISNA(VLOOKUP(B37,Grass_Table,25,FALSE)),"",VLOOKUP(B37,Grass_Table,25,FALSE)) ->  | I37: =IF(ISNA(VLOOKUP(B37,Grass_Table,28,FALSE)),"",VLOOKUP(B37,Grass_Table,28,FALSE)) ->  | J37: =IF(ISNA(VLOOKUP(B37,Grass_Table,21,FALSE)),"",VLOOKUP(B37,Grass_Table,21,FALSE)) ->  | K37: =IF(D38>0,D38,0) ->  | L37: =IF(D37="",IF(E37="",IF(F37="",0,F37/I37*H37),E37*H37),E38*H37) -> 0 | M37: =IF(ISERROR(VLOOKUP(B37,Grass_Table,32,FALSE)),"",VLOOKUP(B37,Grass_Table,32,FALSE)) ->  | X37: 1
B38: =B37 -> 0 | C38: =IF(ISERROR(VLOOKUP(B37,Grass_Table,30,FALSE)),"",VLOOKUP(B37,Grass_Table,30,FALSE)) ->  | D38: =IF(E37="",IF(F37="","",F37/$F$285),F38/$F$285) ->  | E38: =IF(D37="",IF(F37="","",F37/I37),J37*D37) ->  | F38: =IF(D37="",IF(E37="","",E37*I37),E38*I37) ->  | G38: =G37 ->  | I38: =IF(J37="Plugs Only","CANNOT USE CALCULATOR FOR SEEDING RATE -- USE PLUGS ONLY","") ->  | M38: =M37 -> 
A39: 13 | C39: =IF(ISERROR(VLOOKUP(B39,Grass_Table,2,FALSE)),"",VLOOKUP(B39,Grass_Table,2,FALSE)) ->  | G39: =IF(ISNA(VLOOKUP(B39,Grass_Table,31,FALSE)),"",VLOOKUP(B39,Grass_Table,31,FALSE)) ->  | H39: =IF(ISNA(VLOOKUP(B39,Grass_Table,25,FALSE)),"",VLOOKUP(B39,Grass_Table,25,FALSE)) ->  | I39: =IF(ISNA(VLOOKUP(B39,Grass_Table,28,FALSE)),"",VLOOKUP(B39,Grass_Table,28,FALSE)) ->  | J39: =IF(ISNA(VLOOKUP(B39,Grass_Table,21,FALSE)),"",VLOOKUP(B39,Grass_Table,21,FALSE)) ->  | K39: =IF(D40>0,D40,0) ->  | L39: =IF(D39="",IF(E39="",IF(F39="",0,F39/I39*H39),E39*H39),E40*H39) -> 0 | M39: =IF(ISERROR(VLOOKUP(B39,Grass_Table,32,FALSE)),"",VLOOKUP(B39,Grass_Table,32,FALSE)) ->  | X39: 1
B40: =B39 -> 0 | C40: =IF(ISERROR(VLOOKUP(B39,Grass_Table,30,FALSE)),"",VLOOKUP(B39,Grass_Table,30,FALSE)) ->  | D40: =IF(E39="",IF(F39="","",F39/$F$285),F40/$F$285) ->  | E40: =IF(D39="",IF(F39="","",F39/I39),J39*D39) ->  | F40: =IF(D39="",IF(E39="","",E39*I39),E40*I39) ->  | G40: =G39 ->  | I40: =IF(J39="Plugs Only","CANNOT USE CALCULATOR FOR SEEDING RATE -- USE PLUGS ONLY","") ->  | M40: =M39 -> 
A41: 14 | C41: =IF(ISERROR(VLOOKUP(B41,Grass_Table,2,FALSE)),"",VLOOKUP(B41,Grass_Table,2,FALSE)) ->  | G41: =IF(ISNA(VLOOKUP(B41,Grass_Table,31,FALSE)),"",VLOOKUP(B41,Grass_Table,31,FALSE)) ->  | H41: =IF(ISNA(VLOOKUP(B41,Grass_Table,25,FALSE)),"",VLOOKUP(B41,Grass_Table,25,FALSE)) ->  | I41: =IF(ISNA(VLOOKUP(B41,Grass_Table,28,FALSE)),"",VLOOKUP(B41,Grass_Table,28,FALSE)) ->  | J41: =IF(ISNA(VLOOKUP(B41,Grass_Table,21,FALSE)),"",VLOOKUP(B41,Grass_Table,21,FALSE)) ->  | K41: =IF(D42>0,D42,0) ->  | L41: =IF(D41="",IF(E41="",IF(F41="",0,F41/I41*H41),E41*H41),E42*H41) -> 0 | M41: =IF(ISERROR(VLOOKUP(B41,Grass_Table,32,FALSE)),"",VLOOKUP(B41,Grass_Table,32,FALSE)) ->  | X41: 1
B42: =B41 -> 0 | C42: =IF(ISERROR(VLOOKUP(B41,Grass_Table,30,FALSE)),"",VLOOKUP(B41,Grass_Table,30,FALSE)) ->  | D42: =IF(E41="",IF(F41="","",F41/$F$285),F42/$F$285) ->  | E42: =IF(D41="",IF(F41="","",F41/I41),J41*D41) ->  | F42: =IF(D41="",IF(E41="","",E41*I41),E42*I41) ->  | G42: =G41 ->  | I42: =IF(J41="Plugs Only","CANNOT USE CALCULATOR FOR SEEDING RATE -- USE PLUGS ONLY","") ->  | M42: =M41 -> 
A43: 15 | C43: =IF(ISERROR(VLOOKUP(B43,Grass_Table,2,FALSE)),"",VLOOKUP(B43,Grass_Table,2,FALSE)) ->  | G43: =IF(ISNA(VLOOKUP(B43,Grass_Table,31,FALSE)),"",VLOOKUP(B43,Grass_Table,31,FALSE)) ->  | H43: =IF(ISNA(VLOOKUP(B43,Grass_Table,25,FALSE)),"",VLOOKUP(B43,Grass_Table,25,FALSE)) ->  | I43: =IF(ISNA(VLOOKUP(B43,Grass_Table,28,FALSE)),"",VLOOKUP(B43,Grass_Table,28,FALSE)) ->  | J43: =IF(ISNA(VLOOKUP(B43,Grass_Table,21,FALSE)),"",VLOOKUP(B43,Grass_Table,21,FALSE)) ->  | K43: =IF(D44>0,D44,0) ->  | L43: =IF(D43="",IF(E43="",IF(F43="",0,F43/I43*H43),E43*H43),E44*H43) -> 0 | M43: =IF(ISERROR(VLOOKUP(B43,Grass_Table,32,FALSE)),"",VLOOKUP(B43,Grass_Table,32,FALSE)) ->  | X43: 1
B44: =B43 -> 0 | C44: =IF(ISERROR(VLOOKUP(B43,Grass_Table,30,FALSE)),"",VLOOKUP(B43,Grass_Table,30,FALSE)) ->  | D44: =IF(E43="",IF(F43="","",F43/$F$285),F44/$F$285) ->  | E44: =IF(D43="",IF(F43="","",F43/I43),J43*D43) ->  | F44: =IF(D43="",IF(E43="","",E43*I43),E44*I43) ->  | G44: =G43 ->  | I44: =IF(J43="Plugs Only","CANNOT USE CALCULATOR FOR SEEDING RATE -- USE PLUGS ONLY","") ->  | M44: =M43 -> 
A45: 16 | C45: =IF(ISERROR(VLOOKUP(B45,Grass_Table,2,FALSE)),"",VLOOKUP(B45,Grass_Table,2,FALSE)) ->  | G45: =IF(ISNA(VLOOKUP(B45,Grass_Table,31,FALSE)),"",VLOOKUP(B45,Grass_Table,31,FALSE)) ->  | H45: =IF(ISNA(VLOOKUP(B45,Grass_Table,25,FALSE)),"",VLOOKUP(B45,Grass_Table,25,FALSE)) ->  | I45: =IF(ISNA(VLOOKUP(B45,Grass_Table,28,FALSE)),"",VLOOKUP(B45,Grass_Table,28,FALSE)) ->  | J45: =IF(ISNA(VLOOKUP(B45,Grass_Table,21,FALSE)),"",VLOOKUP(B45,Grass_Table,21,FALSE)) ->  | K45: =IF(D46>0,D46,0) ->  | L45: =IF(D45="",IF(E45="",IF(F45="",0,F45/I45*H45),E45*H45),E46*H45) -> 0 | M45: =IF(ISERROR(VLOOKUP(B45,Grass_Table,32,FALSE)),"",VLOOKUP(B45,Grass_Table,32,FALSE)) ->  | X45: 1
B46: =B45 -> 0 | C46: =IF(ISERROR(VLOOKUP(B45,Grass_Table,30,FALSE)),"",VLOOKUP(B45,Grass_Table,30,FALSE)) ->  | D46: =IF(E45="",IF(F45="","",F45/$F$285),F46/$F$285) ->  | E46: =IF(D45="",IF(F45="","",F45/I45),J45*D45) ->  | F46: =IF(D45="",IF(E45="","",E45*I45),E46*I45) ->  | G46: =G45 ->  | I46: =IF(J45="Plugs Only","CANNOT USE CALCULATOR FOR SEEDING RATE -- USE PLUGS ONLY","") ->  | M46: =M45 -> 
A47: 17 | C47: =IF(ISERROR(VLOOKUP(B47,Grass_Table,2,FALSE)),"",VLOOKUP(B47,Grass_Table,2,FALSE)) ->  | G47: =IF(ISNA(VLOOKUP(B47,Grass_Table,31,FALSE)),"",VLOOKUP(B47,Grass_Table,31,FALSE)) ->  | H47: =IF(ISNA(VLOOKUP(B47,Grass_Table,25,FALSE)),"",VLOOKUP(B47,Grass_Table,25,FALSE)) ->  | I47: =IF(ISNA(VLOOKUP(B47,Grass_Table,28,FALSE)),"",VLOOKUP(B47,Grass_Table,28,FALSE)) ->  | J47: =IF(ISNA(VLOOKUP(B47,Grass_Table,21,FALSE)),"",VLOOKUP(B47,Grass_Table,21,FALSE)) ->  | K47: =IF(D48>0,D48,0) ->  | L47: =IF(D47="",IF(E47="",IF(F47="",0,F47/I47*H47),E47*H47),E48*H47) -> 0 | M47: =IF(ISERROR(VLOOKUP(B47,Grass_Table,32,FALSE)),"",VLOOKUP(B47,Grass_Table,32,FALSE)) ->  | X47: 1
B48: =B47 -> 0 | C48: =IF(ISERROR(VLOOKUP(B47,Grass_Table,30,FALSE)),"",VLOOKUP(B47,Grass_Table,30,FALSE)) ->  | D48: =IF(E47="",IF(F47="","",F47/$F$285),F48/$F$285) ->  | E48: =IF(D47="",IF(F47="","",F47/I47),J47*D47) ->  | F48: =IF(D47="",IF(E47="","",E47*I47),E48*I47) ->  | G48: =G47 ->  | I48: =IF(J47="Plugs Only","CANNOT USE CALCULATOR FOR SEEDING RATE -- USE PLUGS ONLY","") ->  | M48: =M47 -> 
A49: 18 | C49: =IF(ISERROR(VLOOKUP(B49,Grass_Table,2,FALSE)),"",VLOOKUP(B49,Grass_Table,2,FALSE)) ->  | G49: =IF(ISNA(VLOOKUP(B49,Grass_Table,31,FALSE)),"",VLOOKUP(B49,Grass_Table,31,FALSE)) ->  | H49: =IF(ISNA(VLOOKUP(B49,Grass_Table,25,FALSE)),"",VLOOKUP(B49,Grass_Table,25,FALSE)) ->  | I49: =IF(ISNA(VLOOKUP(B49,Grass_Table,28,FALSE)),"",VLOOKUP(B49,Grass_Table,28,FALSE)) ->  | J49: =IF(ISNA(VLOOKUP(B49,Grass_Table,21,FALSE)),"",VLOOKUP(B49,Grass_Table,21,FALSE)) ->  | K49: =IF(D50>0,D50,0) ->  | L49: =IF(D49="",IF(E49="",IF(F49="",0,F49/I49*H49),E49*H49),E50*H49) -> 0 | M49: =IF(ISERROR(VLOOKUP(B49,Grass_Table,32,FALSE)),"",VLOOKUP(B49,Grass_Table,32,FALSE)) ->  | X49: 1
B50: =B49 -> 0 | C50: =IF(ISERROR(VLOOKUP(B49,Grass_Table,30,FALSE)),"",VLOOKUP(B49,Grass_Table,30,FALSE)) ->  | D50: =IF(E49="",IF(F49="","",F49/$F$285),F50/$F$285) ->  | E50: =IF(D49="",IF(F49="","",F49/I49),J49*D49) ->  | F50: =IF(D49="",IF(E49="","",E49*I49),E50*I49) ->  | G50: =G49 ->  | I50: =IF(J49="Plugs Only","CANNOT USE CALCULATOR FOR SEEDING RATE -- USE PLUGS ONLY","") ->  | M50: =M49 -> 
A51: 19 | C51: =IF(ISERROR(VLOOKUP(B51,Grass_Table,2,FALSE)),"",VLOOKUP(B51,Grass_Table,2,FALSE)) ->  | G51: =IF(ISNA(VLOOKUP(B51,Grass_Table,31,FALSE)),"",VLOOKUP(B51,Grass_Table,31,FALSE)) ->  | H51: =IF(ISNA(VLOOKUP(B51,Grass_Table,25,FALSE)),"",VLOOKUP(B51,Grass_Table,25,FALSE)) ->  | I51: =IF(ISNA(VLOOKUP(B51,Grass_Table,28,FALSE)),"",VLOOKUP(B51,Grass_Table,28,FALSE)) ->  | J51: =IF(ISNA(VLOOKUP(B51,Grass_Table,21,FALSE)),"",VLOOKUP(B51,Grass_Table,21,FALSE)) ->  | K51: =IF(D52>0,D52,0) ->  | L51: =IF(D51="",IF(E51="",IF(F51="",0,F51/I51*H51),E51*H51),E52*H51) -> 0 | M51: =IF(ISERROR(VLOOKUP(B51,Grass_Table,32,FALSE)),"",VLOOKUP(B51,Grass_Table,32,FALSE)) ->  | X51: 1
B52: =B51 -> 0 | C52: =IF(ISERROR(VLOOKUP(B51,Grass_Table,30,FALSE)),"",VLOOKUP(B51,Grass_Table,30,FALSE)) ->  | D52: =IF(E51="",IF(F51="","",F51/$F$285),F52/$F$285) ->  | E52: =IF(D51="",IF(F51="","",F51/I51),J51*D51) ->  | F52: =IF(D51="",IF(E51="","",E51*I51),E52*I51) ->  | G52: =G51 ->  | I52: =IF(J51="Plugs Only","CANNOT USE CALCULATOR FOR SEEDING RATE -- USE PLUGS ONLY","") ->  | M52: =M51 -> 
A53: 20 | C53: =IF(ISERROR(VLOOKUP(B53,Grass_Table,2,FALSE)),"",VLOOKUP(B53,Grass_Table,2,FALSE)) ->  | G53: =IF(ISNA(VLOOKUP(B53,Grass_Table,31,FALSE)),"",VLOOKUP(B53,Grass_Table,31,FALSE)) ->  | H53: =IF(ISNA(VLOOKUP(B53,Grass_Table,25,FALSE)),"",VLOOKUP(B53,Grass_Table,25,FALSE)) ->  | I53: =IF(ISNA(VLOOKUP(B53,Grass_Table,28,FALSE)),"",VLOOKUP(B53,Grass_Table,28,FALSE)) ->  | J53: =IF(ISNA(VLOOKUP(B53,Grass_Table,21,FALSE)),"",VLOOKUP(B53,Grass_Table,21,FALSE)) ->  | K53: =IF(D54>0,D54,0) ->  | L53: =IF(D53="",IF(E53="",IF(F53="",0,F53/I53*H53),E53*H53),E54*H53) -> 0 | M53: =IF(ISERROR(VLOOKUP(B53,Grass_Table,32,FALSE)),"",VLOOKUP(B53,Grass_Table,32,FALSE)) ->  | X53: 1
B54: =B53 -> 0 | C54: =IF(ISERROR(VLOOKUP(B53,Grass_Table,30,FALSE)),"",VLOOKUP(B53,Grass_Table,30,FALSE)) ->  | D54: =IF(E53="",IF(F53="","",F53/$F$285),F54/$F$285) ->  | E54: =IF(D53="",IF(F53="","",F53/I53),J53*D53) ->  | F54: =IF(D53="",IF(E53="","",E53*I53),E54*I53) ->  | G54: =G53 ->  | I54: =IF(J53="Plugs Only","CANNOT USE CALCULATOR FOR SEEDING RATE -- USE PLUGS ONLY","") ->  | M54: =M53 -> 
A55: 21 | C55: =IF(ISERROR(VLOOKUP(B55,Grass_Table,2,FALSE)),"",VLOOKUP(B55,Grass_Table,2,FALSE)) ->  | G55: =IF(ISNA(VLOOKUP(B55,Grass_Table,31,FALSE)),"",VLOOKUP(B55,Grass_Table,31,FALSE)) ->  | H55: =IF(ISNA(VLOOKUP(B55,Grass_Table,25,FALSE)),"",VLOOKUP(B55,Grass_Table,25,FALSE)) ->  | I55: =IF(ISNA(VLOOKUP(B55,Grass_Table,28,FALSE)),"",VLOOKUP(B55,Grass_Table,28,FALSE)) ->  | J55: =IF(ISNA(VLOOKUP(B55,Grass_Table,21,FALSE)),"",VLOOKUP(B55,Grass_Table,21,FALSE)) ->  | K55: =IF(D56>0,D56,0) ->  | L55: =IF(D55="",IF(E55="",IF(F55="",0,F55/I55*H55),E55*H55),E56*H55) -> 0 | M55: =IF(ISERROR(VLOOKUP(B55,Grass_Table,32,FALSE)),"",VLOOKUP(B55,Grass_Table,32,FALSE)) -> 
B56: =B55 -> 0 | C56: =IF(ISERROR(VLOOKUP(B55,Grass_Table,30,FALSE)),"",VLOOKUP(B55,Grass_Table,30,FALSE)) ->  | D56: =IF(E55="",IF(F55="","",F55/$F$285),F56/$F$285) ->  | E56: =IF(D55="",IF(F55="","",F55/I55),J55*D55) ->  | F56: =IF(D55="",IF(E55="","",E55*I55),E56*I55) ->  | G56: =G55 ->  | I56: =IF(J55="Plugs Only","CANNOT USE CALCULATOR FOR SEEDING RATE -- USE PLUGS ONLY","") ->  | M56: =M55 -> 
A57: 22 | C57: =IF(ISERROR(VLOOKUP(B57,Grass_Table,2,FALSE)),"",VLOOKUP(B57,Grass_Table,2,FALSE)) ->  | G57: =IF(ISNA(VLOOKUP(B57,Grass_Table,31,FALSE)),"",VLOOKUP(B57,Grass_Table,31,FALSE)) ->  | H57: =IF(ISNA(VLOOKUP(B57,Grass_Table,25,FALSE)),"",VLOOKUP(B57,Grass_Table,25,FALSE)) ->  | I57: =IF(ISNA(VLOOKUP(B57,Grass_Table,28,FALSE)),"",VLOOKUP(B57,Grass_Table,28,FALSE)) ->  | J57: =IF(ISNA(VLOOKUP(B57,Grass_Table,21,FALSE)),"",VLOOKUP(B57,Grass_Table,21,FALSE)) ->  | K57: =IF(D58>0,D58,0) ->  | L57: =IF(D57="",IF(E57="",IF(F57="",0,F57/I57*H57),E57*H57),E58*H57) -> 0 | M57: =IF(ISERROR(VLOOKUP(B57,Grass_Table,32,FALSE)),"",VLOOKUP(B57,Grass_Table,32,FALSE)) -> 
B58: =B57 -> 0 | C58: =IF(ISERROR(VLOOKUP(B57,Grass_Table,30,FALSE)),"",VLOOKUP(B57,Grass_Table,30,FALSE)) ->  | D58: =IF(E57="",IF(F57="","",F57/$F$285),F58/$F$285) ->  | E58: =IF(D57="",IF(F57="","",F57/I57),J57*D57) ->  | F58: =IF(D57="",IF(E57="","",E57*I57),E58*I57) ->  | G58: =G57 ->  | I58: =IF(J57="Plugs Only","CANNOT USE CALCULATOR FOR SEEDING RATE -- USE PLUGS ONLY","") ->  | M58: =M57 -> 
A59: 23 | C59: =IF(ISERROR(VLOOKUP(B59,Grass_Table,2,FALSE)),"",VLOOKUP(B59,Grass_Table,2,FALSE)) ->  | G59: =IF(ISNA(VLOOKUP(B59,Grass_Table,31,FALSE)),"",VLOOKUP(B59,Grass_Table,31,FALSE)) ->  | H59: =IF(ISNA(VLOOKUP(B59,Grass_Table,25,FALSE)),"",VLOOKUP(B59,Grass_Table,25,FALSE)) ->  | I59: =IF(ISNA(VLOOKUP(B59,Grass_Table,28,FALSE)),"",VLOOKUP(B59,Grass_Table,28,FALSE)) ->  | J59: =IF(ISNA(VLOOKUP(B59,Grass_Table,21,FALSE)),"",VLOOKUP(B59,Grass_Table,21,FALSE)) ->  | K59: =IF(D60>0,D60,0) ->  | L59: =IF(D59="",IF(E59="",IF(F59="",0,F59/I59*H59),E59*H59),E60*H59) -> 0 | M59: =IF(ISERROR(VLOOKUP(B59,Grass_Table,32,FALSE)),"",VLOOKUP(B59,Grass_Table,32,FALSE)) -> 
B60: =B59 -> 0 | C60: =IF(ISERROR(VLOOKUP(B59,Grass_Table,30,FALSE)),"",VLOOKUP(B59,Grass_Table,30,FALSE)) ->  | D60: =IF(E59="",IF(F59="","",F59/$F$285),F60/$F$285) ->  | E60: =IF(D59="",IF(F59="","",F59/I59),J59*D59) ->  | F60: =IF(D59="",IF(E59="","",E59*I59),E60*I59) ->  | G60: =G59 ->  | I60: =IF(J59="Plugs Only","CANNOT USE CALCULATOR FOR SEEDING RATE -- USE PLUGS ONLY","") ->  | M60: =M59 -> 
A61: 24 | C61: =IF(ISERROR(VLOOKUP(B61,Grass_Table,2,FALSE)),"",VLOOKUP(B61,Grass_Table,2,FALSE)) ->  | G61: =IF(ISNA(VLOOKUP(B61,Grass_Table,31,FALSE)),"",VLOOKUP(B61,Grass_Table,31,FALSE)) ->  | H61: =IF(ISNA(VLOOKUP(B61,Grass_Table,25,FALSE)),"",VLOOKUP(B61,Grass_Table,25,FALSE)) ->  | I61: =IF(ISNA(VLOOKUP(B61,Grass_Table,28,FALSE)),"",VLOOKUP(B61,Grass_Table,28,FALSE)) ->  | J61: =IF(ISNA(VLOOKUP(B61,Grass_Table,21,FALSE)),"",VLOOKUP(B61,Grass_Table,21,FALSE)) ->  | K61: =IF(D62>0,D62,0) ->  | L61: =IF(D61="",IF(E61="",IF(F61="",0,F61/I61*H61),E61*H61),E62*H61) -> 0 | M61: =IF(ISERROR(VLOOKUP(B61,Grass_Table,32,FALSE)),"",VLOOKUP(B61,Grass_Table,32,FALSE)) -> 
B62: =B61 -> 0 | C62: =IF(ISERROR(VLOOKUP(B61,Grass_Table,30,FALSE)),"",VLOOKUP(B61,Grass_Table,30,FALSE)) ->  | D62: =IF(E61="",IF(F61="","",F61/$F$285),F62/$F$285) ->  | E62: =IF(D61="",IF(F61="","",F61/I61),J61*D61) ->  | F62: =IF(D61="",IF(E61="","",E61*I61),E62*I61) ->  | G62: =G61 ->  | I62: =IF(J61="Plugs Only","CANNOT USE CALCULATOR FOR SEEDING RATE -- USE PLUGS ONLY","") ->  | M62: =M61 -> 
A63: 25 | C63: =IF(ISERROR(VLOOKUP(B63,Grass_Table,2,FALSE)),"",VLOOKUP(B63,Grass_Table,2,FALSE)) ->  | G63: =IF(ISNA(VLOOKUP(B63,Grass_Table,31,FALSE)),"",VLOOKUP(B63,Grass_Table,31,FALSE)) ->  | H63: =IF(ISNA(VLOOKUP(B63,Grass_Table,25,FALSE)),"",VLOOKUP(B63,Grass_Table,25,FALSE)) ->  | I63: =IF(ISNA(VLOOKUP(B63,Grass_Table,28,FALSE)),"",VLOOKUP(B63,Grass_Table,28,FALSE)) ->  | J63: =IF(ISNA(VLOOKUP(B63,Grass_Table,21,FALSE)),"",VLOOKUP(B63,Grass_Table,21,FALSE)) ->  | K63: =IF(D64>0,D64,0) ->  | L63: =IF(D63="",IF(E63="",IF(F63="",0,F63/I63*H63),E63*H63),E64*H63) -> 0 | M63: =IF(ISERROR(VLOOKUP(B63,Grass_Table,32,FALSE)),"",VLOOKUP(B63,Grass_Table,32,FALSE)) -> 
B64: =B63 -> 0 | C64: =IF(ISERROR(VLOOKUP(B63,Grass_Table,30,FALSE)),"",VLOOKUP(B63,Grass_Table,30,FALSE)) ->  | D64: =IF(E63="",IF(F63="","",F63/$F$285),F64/$F$285) ->  | E64: =IF(D63="",IF(F63="","",F63/I63),J63*D63) ->  | F64: =IF(D63="",IF(E63="","",E63*I63),E64*I63) ->  | G64: =G63 ->  | I64: =IF(J63="Plugs Only","CANNOT USE CALCULATOR FOR SEEDING RATE -- USE PLUGS ONLY","") ->  | M64: =M63 -> 
A65: 26 | C65: =IF(ISERROR(VLOOKUP(B65,Grass_Table,2,FALSE)),"",VLOOKUP(B65,Grass_Table,2,FALSE)) ->  | G65: =IF(ISNA(VLOOKUP(B65,Grass_Table,31,FALSE)),"",VLOOKUP(B65,Grass_Table,31,FALSE)) ->  | H65: =IF(ISNA(VLOOKUP(B65,Grass_Table,25,FALSE)),"",VLOOKUP(B65,Grass_Table,25,FALSE)) ->  | I65: =IF(ISNA(VLOOKUP(B65,Grass_Table,28,FALSE)),"",VLOOKUP(B65,Grass_Table,28,FALSE)) ->  | J65: =IF(ISNA(VLOOKUP(B65,Grass_Table,21,FALSE)),"",VLOOKUP(B65,Grass_Table,21,FALSE)) ->  | K65: =IF(D66>0,D66,0) ->  | L65: =IF(D65="",IF(E65="",IF(F65="",0,F65/I65*H65),E65*H65),E66*H65) -> 0 | M65: =IF(ISERROR(VLOOKUP(B65,Grass_Table,32,FALSE)),"",VLOOKUP(B65,Grass_Table,32,FALSE)) -> 
B66: =B65 -> 0 | C66: =IF(ISERROR(VLOOKUP(B65,Grass_Table,30,FALSE)),"",VLOOKUP(B65,Grass_Table,30,FALSE)) ->  | D66: =IF(E65="",IF(F65="","",F65/$F$285),F66/$F$285) ->  | E66: =IF(D65="",IF(F65="","",F65/I65),J65*D65) ->  | F66: =IF(D65="",IF(E65="","",E65*I65),E66*I65) ->  | G66: =G65 ->  | I66: =IF(J65="Plugs Only","CANNOT USE CALCULATOR FOR SEEDING RATE -- USE PLUGS ONLY","") ->  | M66: =M65 -> 
A67: 27 | C67: =IF(ISERROR(VLOOKUP(B67,Grass_Table,2,FALSE)),"",VLOOKUP(B67,Grass_Table,2,FALSE)) ->  | G67: =IF(ISNA(VLOOKUP(B67,Grass_Table,31,FALSE)),"",VLOOKUP(B67,Grass_Table,31,FALSE)) ->  | H67: =IF(ISNA(VLOOKUP(B67,Grass_Table,25,FALSE)),"",VLOOKUP(B67,Grass_Table,25,FALSE)) ->  | I67: =IF(ISNA(VLOOKUP(B67,Grass_Table,28,FALSE)),"",VLOOKUP(B67,Grass_Table,28,FALSE)) ->  | J67: =IF(ISNA(VLOOKUP(B67,Grass_Table,21,FALSE)),"",VLOOKUP(B67,Grass_Table,21,FALSE)) ->  | K67: =IF(D68>0,D68,0) ->  | L67: =IF(D67="",IF(E67="",IF(F67="",0,F67/I67*H67),E67*H67),E68*H67) -> 0 | M67: =IF(ISERROR(VLOOKUP(B67,Grass_Table,32,FALSE)),"",VLOOKUP(B67,Grass_Table,32,FALSE)) -> 
B68: =B67 -> 0 | C68: =IF(ISERROR(VLOOKUP(B67,Grass_Table,30,FALSE)),"",VLOOKUP(B67,Grass_Table,30,FALSE)) ->  | D68: =IF(E67="",IF(F67="","",F67/$F$285),F68/$F$285) ->  | E68: =IF(D67="",IF(F67="","",F67/I67),J67*D67) ->  | F68: =IF(D67="",IF(E67="","",E67*I67),E68*I67) ->  | G68: =G67 ->  | I68: =IF(J67="Plugs Only","CANNOT USE CALCULATOR FOR SEEDING RATE -- USE PLUGS ONLY","") ->  | M68: =M67 -> 
A69: 28 | C69: =IF(ISERROR(VLOOKUP(B69,Grass_Table,2,FALSE)),"",VLOOKUP(B69,Grass_Table,2,FALSE)) ->  | G69: =IF(ISNA(VLOOKUP(B69,Grass_Table,31,FALSE)),"",VLOOKUP(B69,Grass_Table,31,FALSE)) ->  | H69: =IF(ISNA(VLOOKUP(B69,Grass_Table,25,FALSE)),"",VLOOKUP(B69,Grass_Table,25,FALSE)) ->  | I69: =IF(ISNA(VLOOKUP(B69,Grass_Table,28,FALSE)),"",VLOOKUP(B69,Grass_Table,28,FALSE)) ->  | J69: =IF(ISNA(VLOOKUP(B69,Grass_Table,21,FALSE)),"",VLOOKUP(B69,Grass_Table,21,FALSE)) ->  | K69: =IF(D70>0,D70,0) ->  | L69: =IF(D69="",IF(E69="",IF(F69="",0,F69/I69*H69),E69*H69),E70*H69) -> 0 | M69: =IF(ISERROR(VLOOKUP(B69,Grass_Table,32,FALSE)),"",VLOOKUP(B69,Grass_Table,32,FALSE)) -> 
B70: =B69 -> 0 | C70: =IF(ISERROR(VLOOKUP(B69,Grass_Table,30,FALSE)),"",VLOOKUP(B69,Grass_Table,30,FALSE)) ->  | D70: =IF(E69="",IF(F69="","",F69/$F$285),F70/$F$285) ->  | E70: =IF(D69="",IF(F69="","",F69/I69),J69*D69) ->  | F70: =IF(D69="",IF(E69="","",E69*I69),E70*I69) ->  | G70: =G69 ->  | I70: =IF(J69="Plugs Only","CANNOT USE CALCULATOR FOR SEEDING RATE -- USE PLUGS ONLY","") ->  | M70: =M69 -> 
A71: 29 | C71: =IF(ISERROR(VLOOKUP(B71,Grass_Table,2,FALSE)),"",VLOOKUP(B71,Grass_Table,2,FALSE)) ->  | G71: =IF(ISNA(VLOOKUP(B71,Grass_Table,31,FALSE)),"",VLOOKUP(B71,Grass_Table,31,FALSE)) ->  | H71: =IF(ISNA(VLOOKUP(B71,Grass_Table,25,FALSE)),"",VLOOKUP(B71,Grass_Table,25,FALSE)) ->  | I71: =IF(ISNA(VLOOKUP(B71,Grass_Table,28,FALSE)),"",VLOOKUP(B71,Grass_Table,28,FALSE)) ->  | J71: =IF(ISNA(VLOOKUP(B71,Grass_Table,21,FALSE)),"",VLOOKUP(B71,Grass_Table,21,FALSE)) ->  | K71: =IF(D72>0,D72,0) ->  | L71: =IF(D71="",IF(E71="",IF(F71="",0,F71/I71*H71),E71*H71),E72*H71) -> 0 | M71: =IF(ISERROR(VLOOKUP(B71,Grass_Table,32,FALSE)),"",VLOOKUP(B71,Grass_Table,32,FALSE)) -> 
B72: =B71 -> 0 | C72: =IF(ISERROR(VLOOKUP(B71,Grass_Table,30,FALSE)),"",VLOOKUP(B71,Grass_Table,30,FALSE)) ->  | D72: =IF(E71="",IF(F71="","",F71/$F$285),F72/$F$285) ->  | E72: =IF(D71="",IF(F71="","",F71/I71),J71*D71) ->  | F72: =IF(D71="",IF(E71="","",E71*I71),E72*I71) ->  | G72: =G71 ->  | I72: =IF(J71="Plugs Only","CANNOT USE CALCULATOR FOR SEEDING RATE -- USE PLUGS ONLY","") ->  | M72: =M71 -> 
A73: 30 | C73: =IF(ISERROR(VLOOKUP(B73,Grass_Table,2,FALSE)),"",VLOOKUP(B73,Grass_Table,2,FALSE)) ->  | G73: =IF(ISNA(VLOOKUP(B73,Grass_Table,31,FALSE)),"",VLOOKUP(B73,Grass_Table,31,FALSE)) ->  | H73: =IF(ISNA(VLOOKUP(B73,Grass_Table,25,FALSE)),"",VLOOKUP(B73,Grass_Table,25,FALSE)) ->  | I73: =IF(ISNA(VLOOKUP(B73,Grass_Table,28,FALSE)),"",VLOOKUP(B73,Grass_Table,28,FALSE)) ->  | J73: =IF(ISNA(VLOOKUP(B73,Grass_Table,21,FALSE)),"",VLOOKUP(B73,Grass_Table,21,FALSE)) ->  | K73: =IF(D74>0,D74,0) ->  | L73: =IF(D73="",IF(E73="",IF(F73="",0,F73/I73*H73),E73*H73),E74*H73) -> 0 | M73: =IF(ISERROR(VLOOKUP(B73,Grass_Table,32,FALSE)),"",VLOOKUP(B73,Grass_Table,32,FALSE)) -> 
B74: =B73 -> 0 | C74: =IF(ISERROR(VLOOKUP(B73,Grass_Table,30,FALSE)),"",VLOOKUP(B73,Grass_Table,30,FALSE)) ->  | D74: =IF(E73="",IF(F73="","",F73/$F$285),F74/$F$285) ->  | E74: =IF(D73="",IF(F73="","",F73/I73),J73*D73) ->  | F74: =IF(D73="",IF(E73="","",E73*I73),E74*I73) ->  | G74: =G73 ->  | I74: =IF(J73="Plugs Only","CANNOT USE CALCULATOR FOR SEEDING RATE -- USE PLUGS ONLY","") ->  | M74: =M73 -> 
C75: Species Richness | E75: lbs / acre PLS | F75: seeds / ft2 PLS | G75: Average CC
D76: % of mix
B77: GRAMINOID TOTAL | C77: =COUNT(F15:F74) -> 0 | D77: =IF(SUM(D15:D74)>1,"> 100%",SUM(D15:D74)) -> 0 | E77: =SUM(E15:E74) -> 0 | F77: =SUM(F15:F74) -> 0 | G77: =IF(ISERROR(AVERAGE(G15:G74)),0,AVERAGE(G15:G74)) -> 0 | X77: Mesic (medium)
B80: CHOOSE YOUR FORBS/LEGUMES
B81: Common Name | C81: Scientific Name | E81: Lbs / acre PLS | F81: Seeds / ft2 PLS | G81: Coefficient of Conservatism | H81: Estimated Cost ($/lb) | I81: # Seeds / ft2 | J81: Pure Stand PLS Rate lbs / ac | K81: % of Mix | L81: Estimated Cost ($/ac)
C82: Flowering Period | D82: Equivalent rate below | I82: @ 1 lb. / ac | M82: Functional Group
A83: 1 | C83: =IF(ISERROR(VLOOKUP(B83,Forb_Table,2,FALSE)),"",VLOOKUP(B83,Forb_Table,2,FALSE)) ->  | G83: =IF(ISNA(VLOOKUP(B83,Forb_Table,31,FALSE)),"",VLOOKUP(B83,Forb_Table,31,FALSE)) ->  | H83: =IF(ISNA(VLOOKUP(B83,Forb_Table,25,FALSE)),"",VLOOKUP(B83,Forb_Table,25,FALSE)) ->  | I83: =IF(ISNA(VLOOKUP(B83,Forb_Table,28,FALSE)),"",VLOOKUP(B83,Forb_Table,28,FALSE)) ->  | J83: =IF(ISNA(VLOOKUP(B83,Forb_Table,21,FALSE)),"",VLOOKUP(B83,Forb_Table,21,FALSE)) ->  | K83: =IF(D84>0,D84,0) ->  | L83: =IF(D83="",IF(E83="",IF(F83="",0,F83/I83*H83),E83*H83),E84*H83) -> 0 | M83: =IF(ISNA(VLOOKUP(B83,Forb_Table,32,FALSE)),"",VLOOKUP(B83,Forb_Table,32,FALSE)) ->  | N83: =IFERROR(VLOOKUP(B83,Monarch_ForbTable,34,FALSE),"") ->  | X83: 1 | Z83: Alumroot
B84: =C83 ->  | C84: =IF(ISERROR(VLOOKUP(B83,Forb_Table,30,FALSE)),"",VLOOKUP(B83,Forb_Table,30,FALSE)) ->  | D84: =IF(E83="",IF(F83="","",F83/$F$285),F84/$F$285) ->  | E84: =IF(D83="",IF(F83="","",F83/I83),J83*D83) ->  | F84: =IF(D83="",IF(E83="","",E83*I83),E84*I83) ->  | G84: =G83 ->  | M84: =M83 ->  | N84: =IFERROR(VLOOKUP(B84,Monarch_ForbSciNameTable,33,FALSE),"") -> 
A85: 2 | C85: =IF(ISERROR(VLOOKUP(B85,Forb_Table,2,FALSE)),"",VLOOKUP(B85,Forb_Table,2,FALSE)) ->  | G85: =IF(ISNA(VLOOKUP(B85,Forb_Table,31,FALSE)),"",VLOOKUP(B85,Forb_Table,31,FALSE)) ->  | H85: =IF(ISNA(VLOOKUP(B85,Forb_Table,25,FALSE)),"",VLOOKUP(B85,Forb_Table,25,FALSE)) ->  | I85: =IF(ISNA(VLOOKUP(B85,Forb_Table,28,FALSE)),"",VLOOKUP(B85,Forb_Table,28,FALSE)) ->  | J85: =IF(ISNA(VLOOKUP(B85,Forb_Table,21,FALSE)),"",VLOOKUP(B85,Forb_Table,21,FALSE)) ->  | K85: =IF(D86>0,D86,0) ->  | L85: =IF(D85="",IF(E85="",IF(F85="",0,F85/I85*H85),E85*H85),E86*H85) -> 0 | M85: =IF(ISNA(VLOOKUP(B85,Forb_Table,32,FALSE)),"",VLOOKUP(B85,Forb_Table,32,FALSE)) ->  | N85: =IFERROR(VLOOKUP(B85,Monarch_ForbTable,34,FALSE),"") ->  | X85: 1
B86: =C85 ->  | C86: =IF(ISERROR(VLOOKUP(B85,Forb_Table,30,FALSE)),"",VLOOKUP(B85,Forb_Table,30,FALSE)) ->  | D86: =IF(E85="",IF(F85="","",F85/$F$285),F86/$F$285) ->  | E86: =IF(D85="",IF(F85="","",F85/I85),J85*D85) ->  | F86: =IF(D85="",IF(E85="","",E85*I85),E86*I85) ->  | G86: =G85 ->  | M86: =M85 ->  | N86: =IFERROR(VLOOKUP(B86,Monarch_ForbSciNameTable,33,FALSE),"") -> 
A87: 3 | C87: =IF(ISERROR(VLOOKUP(B87,Forb_Table,2,FALSE)),"",VLOOKUP(B87,Forb_Table,2,FALSE)) ->  | G87: =IF(ISNA(VLOOKUP(B87,Forb_Table,31,FALSE)),"",VLOOKUP(B87,Forb_Table,31,FALSE)) ->  | H87: =IF(ISNA(VLOOKUP(B87,Forb_Table,25,FALSE)),"",VLOOKUP(B87,Forb_Table,25,FALSE)) ->  | I87: =IF(ISNA(VLOOKUP(B87,Forb_Table,28,FALSE)),"",VLOOKUP(B87,Forb_Table,28,FALSE)) ->  | J87: =IF(ISNA(VLOOKUP(B87,Forb_Table,21,FALSE)),"",VLOOKUP(B87,Forb_Table,21,FALSE)) ->  | K87: =IF(D88>0,D88,0) ->  | L87: =IF(D87="",IF(E87="",IF(F87="",0,F87/I87*H87),E87*H87),E88*H87) -> 0 | M87: =IF(ISNA(VLOOKUP(B87,Forb_Table,32,FALSE)),"",VLOOKUP(B87,Forb_Table,32,FALSE)) ->  | N87: =IFERROR(VLOOKUP(B87,Monarch_ForbTable,34,FALSE),"") ->  | X87: 1
B88: =C87 ->  | C88: =IF(ISERROR(VLOOKUP(B87,Forb_Table,30,FALSE)),"",VLOOKUP(B87,Forb_Table,30,FALSE)) ->  | D88: =IF(E87="",IF(F87="","",F87/$F$285),F88/$F$285) ->  | E88: =IF(D87="",IF(F87="","",F87/I87),J87*D87) ->  | F88: =IF(D87="",IF(E87="","",E87*I87),E88*I87) ->  | G88: =G87 ->  | M88: =M87 ->  | N88: =IFERROR(VLOOKUP(B88,Monarch_ForbSciNameTable,33,FALSE),"") -> 
A89: 4 | C89: =IF(ISERROR(VLOOKUP(B89,Forb_Table,2,FALSE)),"",VLOOKUP(B89,Forb_Table,2,FALSE)) ->  | G89: =IF(ISNA(VLOOKUP(B89,Forb_Table,31,FALSE)),"",VLOOKUP(B89,Forb_Table,31,FALSE)) ->  | H89: =IF(ISNA(VLOOKUP(B89,Forb_Table,25,FALSE)),"",VLOOKUP(B89,Forb_Table,25,FALSE)) ->  | I89: =IF(ISNA(VLOOKUP(B89,Forb_Table,28,FALSE)),"",VLOOKUP(B89,Forb_Table,28,FALSE)) ->  | J89: =IF(ISNA(VLOOKUP(B89,Forb_Table,21,FALSE)),"",VLOOKUP(B89,Forb_Table,21,FALSE)) ->  | K89: =IF(D90>0,D90,0) ->  | L89: =IF(D89="",IF(E89="",IF(F89="",0,F89/I89*H89),E89*H89),E90*H89) -> 0 | M89: =IF(ISNA(VLOOKUP(B89,Forb_Table,32,FALSE)),"",VLOOKUP(B89,Forb_Table,32,FALSE)) ->  | N89: =IFERROR(VLOOKUP(B89,Monarch_ForbTable,34,FALSE),"") ->  | X89: 1
B90: =C89 ->  | C90: =IF(ISERROR(VLOOKUP(B89,Forb_Table,30,FALSE)),"",VLOOKUP(B89,Forb_Table,30,FALSE)) ->  | D90: =IF(E89="",IF(F89="","",F89/$F$285),F90/$F$285) ->  | E90: =IF(D89="",IF(F89="","",F89/I89),J89*D89) ->  | F90: =IF(D89="",IF(E89="","",E89*I89),E90*I89) ->  | G90: =G89 ->  | M90: =M89 ->  | N90: =IFERROR(VLOOKUP(B90,Monarch_ForbSciNameTable,33,FALSE),"") -> 
A91: 5 | C91: =IF(ISERROR(VLOOKUP(B91,Forb_Table,2,FALSE)),"",VLOOKUP(B91,Forb_Table,2,FALSE)) ->  | G91: =IF(ISNA(VLOOKUP(B91,Forb_Table,31,FALSE)),"",VLOOKUP(B91,Forb_Table,31,FALSE)) ->  | H91: =IF(ISNA(VLOOKUP(B91,Forb_Table,25,FALSE)),"",VLOOKUP(B91,Forb_Table,25,FALSE)) ->  | I91: =IF(ISNA(VLOOKUP(B91,Forb_Table,28,FALSE)),"",VLOOKUP(B91,Forb_Table,28,FALSE)) ->  | J91: =IF(ISNA(VLOOKUP(B91,Forb_Table,21,FALSE)),"",VLOOKUP(B91,Forb_Table,21,FALSE)) ->  | K91: =IF(D92>0,D92,0) ->  | L91: =IF(D91="",IF(E91="",IF(F91="",0,F91/I91*H91),E91*H91),E92*H91) -> 0 | M91: =IF(ISNA(VLOOKUP(B91,Forb_Table,32,FALSE)),"",VLOOKUP(B91,Forb_Table,32,FALSE)) ->  | N91: =IFERROR(VLOOKUP(B91,Monarch_ForbTable,34,FALSE),"") ->  | X91: 1
B92: =C91 ->  | C92: =IF(ISERROR(VLOOKUP(B91,Forb_Table,30,FALSE)),"",VLOOKUP(B91,Forb_Table,30,FALSE)) ->  | D92: =IF(E91="",IF(F91="","",F91/$F$285),F92/$F$285) ->  | E92: =IF(D91="",IF(F91="","",F91/I91),J91*D91) ->  | F92: =IF(D91="",IF(E91="","",E91*I91),E92*I91) ->  | G92: =G91 ->  | M92: =M91 ->  | N92: =IFERROR(VLOOKUP(B92,Monarch_ForbSciNameTable,33,FALSE),"") -> 
A93: 6 | C93: =IF(ISERROR(VLOOKUP(B93,Forb_Table,2,FALSE)),"",VLOOKUP(B93,Forb_Table,2,FALSE)) ->  | G93: =IF(ISNA(VLOOKUP(B93,Forb_Table,31,FALSE)),"",VLOOKUP(B93,Forb_Table,31,FALSE)) ->  | H93: =IF(ISNA(VLOOKUP(B93,Forb_Table,25,FALSE)),"",VLOOKUP(B93,Forb_Table,25,FALSE)) ->  | I93: =IF(ISNA(VLOOKUP(B93,Forb_Table,28,FALSE)),"",VLOOKUP(B93,Forb_Table,28,FALSE)) ->  | J93: =IF(ISNA(VLOOKUP(B93,Forb_Table,21,FALSE)),"",VLOOKUP(B93,Forb_Table,21,FALSE)) ->  | K93: =IF(D94>0,D94,0) ->  | L93: =IF(D93="",IF(E93="",IF(F93="",0,F93/I93*H93),E93*H93),E94*H93) -> 0 | M93: =IF(ISNA(VLOOKUP(B93,Forb_Table,32,FALSE)),"",VLOOKUP(B93,Forb_Table,32,FALSE)) ->  | N93: =IFERROR(VLOOKUP(B93,Monarch_ForbTable,34,FALSE),"") ->  | X93: 1
B94: =C93 ->  | C94: =IF(ISERROR(VLOOKUP(B93,Forb_Table,30,FALSE)),"",VLOOKUP(B93,Forb_Table,30,FALSE)) ->  | D94: =IF(E93="",IF(F93="","",F93/$F$285),F94/$F$285) ->  | E94: =IF(D93="",IF(F93="","",F93/I93),J93*D93) ->  | F94: =IF(D93="",IF(E93="","",E93*I93),E94*I93) ->  | G94: =G93 ->  | M94: =M93 ->  | N94: =IFERROR(VLOOKUP(B94,Monarch_ForbSciNameTable,33,FALSE),"") -> 
A95: 7 | C95: =IF(ISERROR(VLOOKUP(B95,Forb_Table,2,FALSE)),"",VLOOKUP(B95,Forb_Table,2,FALSE)) ->  | G95: =IF(ISNA(VLOOKUP(B95,Forb_Table,31,FALSE)),"",VLOOKUP(B95,Forb_Table,31,FALSE)) ->  | H95: =IF(ISNA(VLOOKUP(B95,Forb_Table,25,FALSE)),"",VLOOKUP(B95,Forb_Table,25,FALSE)) ->  | I95: =IF(ISNA(VLOOKUP(B95,Forb_Table,28,FALSE)),"",VLOOKUP(B95,Forb_Table,28,FALSE)) ->  | J95: =IF(ISNA(VLOOKUP(B95,Forb_Table,21,FALSE)),"",VLOOKUP(B95,Forb_Table,21,FALSE)) ->  | K95: =IF(D96>0,D96,0) ->  | L95: =IF(D95="",IF(E95="",IF(F95="",0,F95/I95*H95),E95*H95),E96*H95) -> 0 | M95: =IF(ISNA(VLOOKUP(B95,Forb_Table,32,FALSE)),"",VLOOKUP(B95,Forb_Table,32,FALSE)) ->  | N95: =IFERROR(VLOOKUP(B95,Monarch_ForbTable,34,FALSE),"") ->  | X95: 1
B96: =C95 ->  | C96: =IF(ISERROR(VLOOKUP(B95,Forb_Table,30,FALSE)),"",VLOOKUP(B95,Forb_Table,30,FALSE)) ->  | D96: =IF(E95="",IF(F95="","",F95/$F$285),F96/$F$285) ->  | E96: =IF(D95="",IF(F95="","",F95/I95),J95*D95) ->  | F96: =IF(D95="",IF(E95="","",E95*I95),E96*I95) ->  | G96: =G95 ->  | M96: =M95 ->  | N96: =IFERROR(VLOOKUP(B96,Monarch_ForbSciNameTable,33,FALSE),"") -> 
A97: 8 | C97: =IF(ISERROR(VLOOKUP(B97,Forb_Table,2,FALSE)),"",VLOOKUP(B97,Forb_Table,2,FALSE)) ->  | G97: =IF(ISNA(VLOOKUP(B97,Forb_Table,31,FALSE)),"",VLOOKUP(B97,Forb_Table,31,FALSE)) ->  | H97: =IF(ISNA(VLOOKUP(B97,Forb_Table,25,FALSE)),"",VLOOKUP(B97,Forb_Table,25,FALSE)) ->  | I97: =IF(ISNA(VLOOKUP(B97,Forb_Table,28,FALSE)),"",VLOOKUP(B97,Forb_Table,28,FALSE)) ->  | J97: =IF(ISNA(VLOOKUP(B97,Forb_Table,21,FALSE)),"",VLOOKUP(B97,Forb_Table,21,FALSE)) ->  | K97: =IF(D98>0,D98,0) ->  | L97: =IF(D97="",IF(E97="",IF(F97="",0,F97/I97*H97),E97*H97),E98*H97) -> 0 | M97: =IF(ISNA(VLOOKUP(B97,Forb_Table,32,FALSE)),"",VLOOKUP(B97,Forb_Table,32,FALSE)) ->  | N97: =IFERROR(VLOOKUP(B97,Monarch_ForbTable,34,FALSE),"") ->  | X97: 1
B98: =C97 ->  | C98: =IF(ISERROR(VLOOKUP(B97,Forb_Table,30,FALSE)),"",VLOOKUP(B97,Forb_Table,30,FALSE)) ->  | D98: =IF(E97="",IF(F97="","",F97/$F$285),F98/$F$285) ->  | E98: =IF(D97="",IF(F97="","",F97/I97),J97*D97) ->  | F98: =IF(D97="",IF(E97="","",E97*I97),E98*I97) ->  | G98: =G97 ->  | M98: =M97 ->  | N98: =IFERROR(VLOOKUP(B98,Monarch_ForbSciNameTable,33,FALSE),"") -> 
A99: 9 | C99: =IF(ISERROR(VLOOKUP(B99,Forb_Table,2,FALSE)),"",VLOOKUP(B99,Forb_Table,2,FALSE)) ->  | G99: =IF(ISNA(VLOOKUP(B99,Forb_Table,31,FALSE)),"",VLOOKUP(B99,Forb_Table,31,FALSE)) ->  | H99: =IF(ISNA(VLOOKUP(B99,Forb_Table,25,FALSE)),"",VLOOKUP(B99,Forb_Table,25,FALSE)) ->  | I99: =IF(ISNA(VLOOKUP(B99,Forb_Table,28,FALSE)),"",VLOOKUP(B99,Forb_Table,28,FALSE)) ->  | J99: =IF(ISNA(VLOOKUP(B99,Forb_Table,21,FALSE)),"",VLOOKUP(B99,Forb_Table,21,FALSE)) ->  | K99: =IF(D100>0,D100,0) ->  | L99: =IF(D99="",IF(E99="",IF(F99="",0,F99/I99*H99),E99*H99),E100*H99) -> 0 | M99: =IF(ISNA(VLOOKUP(B99,Forb_Table,32,FALSE)),"",VLOOKUP(B99,Forb_Table,32,FALSE)) ->  | N99: =IFERROR(VLOOKUP(B99,Monarch_ForbTable,34,FALSE),"") ->  | X99: 1
B100: =C99 ->  | C100: =IF(ISERROR(VLOOKUP(B99,Forb_Table,30,FALSE)),"",VLOOKUP(B99,Forb_Table,30,FALSE)) ->  | D100: =IF(E99="",IF(F99="","",F99/$F$285),F100/$F$285) ->  | E100: =IF(D99="",IF(F99="","",F99/I99),J99*D99) ->  | F100: =IF(D99="",IF(E99="","",E99*I99),E100*I99) ->  | G100: =G99 ->  | M100: =M99 ->  | N100: =IFERROR(VLOOKUP(B100,Monarch_ForbSciNameTable,33,FALSE),"") -> 
A101: 10 | C101: =IF(ISERROR(VLOOKUP(B101,Forb_Table,2,FALSE)),"",VLOOKUP(B101,Forb_Table,2,FALSE)) ->  | G101: =IF(ISNA(VLOOKUP(B101,Forb_Table,31,FALSE)),"",VLOOKUP(B101,Forb_Table,31,FALSE)) ->  | H101: =IF(ISNA(VLOOKUP(B101,Forb_Table,25,FALSE)),"",VLOOKUP(B101,Forb_Table,25,FALSE)) ->  | I101: =IF(ISNA(VLOOKUP(B101,Forb_Table,28,FALSE)),"",VLOOKUP(B101,Forb_Table,28,FALSE)) ->  | J101: =IF(ISNA(VLOOKUP(B101,Forb_Table,21,FALSE)),"",VLOOKUP(B101,Forb_Table,21,FALSE)) ->  | K101: =IF(D102>0,D102,0) ->  | L101: =IF(D101="",IF(E101="",IF(F101="",0,F101/I101*H101),E101*H101),E102*H101) -> 0 | M101: =IF(ISNA(VLOOKUP(B101,Forb_Table,32,FALSE)),"",VLOOKUP(B101,Forb_Table,32,FALSE)) ->  | N101: =IFERROR(VLOOKUP(B101,Monarch_ForbTable,34,FALSE),"") ->  | X101: 1
B102: =C101 ->  | C102: =IF(ISERROR(VLOOKUP(B101,Forb_Table,30,FALSE)),"",VLOOKUP(B101,Forb_Table,30,FALSE)) ->  | D102: =IF(E101="",IF(F101="","",F101/$F$285),F102/$F$285) ->  | E102: =IF(D101="",IF(F101="","",F101/I101),J101*D101) ->  | F102: =IF(D101="",IF(E101="","",E101*I101),E102*I101) ->  | G102: =G101 ->  | M102: =M101 ->  | N102: =IFERROR(VLOOKUP(B102,Monarch_ForbSciNameTable,33,FALSE),"") -> 
A103: 11 | C103: =IF(ISERROR(VLOOKUP(B103,Forb_Table,2,FALSE)),"",VLOOKUP(B103,Forb_Table,2,FALSE)) ->  | G103: =IF(ISNA(VLOOKUP(B103,Forb_Table,31,FALSE)),"",VLOOKUP(B103,Forb_Table,31,FALSE)) ->  | H103: =IF(ISNA(VLOOKUP(B103,Forb_Table,25,FALSE)),"",VLOOKUP(B103,Forb_Table,25,FALSE)) ->  | I103: =IF(ISNA(VLOOKUP(B103,Forb_Table,28,FALSE)),"",VLOOKUP(B103,Forb_Table,28,FALSE)) ->  | J103: =IF(ISNA(VLOOKUP(B103,Forb_Table,21,FALSE)),"",VLOOKUP(B103,Forb_Table,21,FALSE)) ->  | K103: =IF(D104>0,D104,0) ->  | L103: =IF(D103="",IF(E103="",IF(F103="",0,F103/I103*H103),E103*H103),E104*H103) -> 0 | M103: =IF(ISNA(VLOOKUP(B103,Forb_Table,32,FALSE)),"",VLOOKUP(B103,Forb_Table,32,FALSE)) ->  | N103: =IFERROR(VLOOKUP(B103,Monarch_ForbTable,34,FALSE),"") ->  | X103: 1
B104: =C103 ->  | C104: =IF(ISERROR(VLOOKUP(B103,Forb_Table,30,FALSE)),"",VLOOKUP(B103,Forb_Table,30,FALSE)) ->  | D104: =IF(E103="",IF(F103="","",F103/$F$285),F104/$F$285) ->  | E104: =IF(D103="",IF(F103="","",F103/I103),J103*D103) ->  | F104: =IF(D103="",IF(E103="","",E103*I103),E104*I103) ->  | G104: =G103 ->  | M104: =M103 ->  | N104: =IFERROR(VLOOKUP(B104,Monarch_ForbSciNameTable,33,FALSE),"") -> 
A105: 12 | C105: =IF(ISERROR(VLOOKUP(B105,Forb_Table,2,FALSE)),"",VLOOKUP(B105,Forb_Table,2,FALSE)) ->  | G105: =IF(ISNA(VLOOKUP(B105,Forb_Table,31,FALSE)),"",VLOOKUP(B105,Forb_Table,31,FALSE)) ->  | H105: =IF(ISNA(VLOOKUP(B105,Forb_Table,25,FALSE)),"",VLOOKUP(B105,Forb_Table,25,FALSE)) ->  | I105: =IF(ISNA(VLOOKUP(B105,Forb_Table,28,FALSE)),"",VLOOKUP(B105,Forb_Table,28,FALSE)) ->  | J105: =IF(ISNA(VLOOKUP(B105,Forb_Table,21,FALSE)),"",VLOOKUP(B105,Forb_Table,21,FALSE)) ->  | K105: =IF(D106>0,D106,0) ->  | L105: =IF(D105="",IF(E105="",IF(F105="",0,F105/I105*H105),E105*H105),E106*H105) -> 0 | M105: =IF(ISNA(VLOOKUP(B105,Forb_Table,32,FALSE)),"",VLOOKUP(B105,Forb_Table,32,FALSE)) ->  | N105: =IFERROR(VLOOKUP(B105,Monarch_ForbTable,34,FALSE),"") ->  | X105: 1
B106: =C105 ->  | C106: =IF(ISERROR(VLOOKUP(B105,Forb_Table,30,FALSE)),"",VLOOKUP(B105,Forb_Table,30,FALSE)) ->  | D106: =IF(E105="",IF(F105="","",F105/$F$285),F106/$F$285) ->  | E106: =IF(D105="",IF(F105="","",F105/I105),J105*D105) ->  | F106: =IF(D105="",IF(E105="","",E105*I105),E106*I105) ->  | G106: =G105 ->  | M106: =M105 ->  | N106: =IFERROR(VLOOKUP(B106,Monarch_ForbSciNameTable,33,FALSE),"") -> 
A107: 13 | C107: =IF(ISERROR(VLOOKUP(B107,Forb_Table,2,FALSE)),"",VLOOKUP(B107,Forb_Table,2,FALSE)) ->  | G107: =IF(ISNA(VLOOKUP(B107,Forb_Table,31,FALSE)),"",VLOOKUP(B107,Forb_Table,31,FALSE)) ->  | H107: =IF(ISNA(VLOOKUP(B107,Forb_Table,25,FALSE)),"",VLOOKUP(B107,Forb_Table,25,FALSE)) ->  | I107: =IF(ISNA(VLOOKUP(B107,Forb_Table,28,FALSE)),"",VLOOKUP(B107,Forb_Table,28,FALSE)) ->  | J107: =IF(ISNA(VLOOKUP(B107,Forb_Table,21,FALSE)),"",VLOOKUP(B107,Forb_Table,21,FALSE)) ->  | K107: =IF(D108>0,D108,0) ->  | L107: =IF(D107="",IF(E107="",IF(F107="",0,F107/I107*H107),E107*H107),E108*H107) -> 0 | M107: =IF(ISNA(VLOOKUP(B107,Forb_Table,32,FALSE)),"",VLOOKUP(B107,Forb_Table,32,FALSE)) ->  | N107: =IFERROR(VLOOKUP(B107,Monarch_ForbTable,34,FALSE),"") ->  | X107: 1
B108: =C107 ->  | C108: =IF(ISERROR(VLOOKUP(B107,Forb_Table,30,FALSE)),"",VLOOKUP(B107,Forb_Table,30,FALSE)) ->  | D108: =IF(E107="",IF(F107="","",F107/$F$285),F108/$F$285) ->  | E108: =IF(D107="",IF(F107="","",F107/I107),J107*D107) ->  | F108: =IF(D107="",IF(E107="","",E107*I107),E108*I107) ->  | G108: =G107 ->  | M108: =M107 ->  | N108: =IFERROR(VLOOKUP(B108,Monarch_ForbSciNameTable,33,FALSE),"") -> 
A109: 14 | C109: =IF(ISERROR(VLOOKUP(B109,Forb_Table,2,FALSE)),"",VLOOKUP(B109,Forb_Table,2,FALSE)) ->  | G109: =IF(ISNA(VLOOKUP(B109,Forb_Table,31,FALSE)),"",VLOOKUP(B109,Forb_Table,31,FALSE)) ->  | H109: =IF(ISNA(VLOOKUP(B109,Forb_Table,25,FALSE)),"",VLOOKUP(B109,Forb_Table,25,FALSE)) ->  | I109: =IF(ISNA(VLOOKUP(B109,Forb_Table,28,FALSE)),"",VLOOKUP(B109,Forb_Table,28,FALSE)) ->  | J109: =IF(ISNA(VLOOKUP(B109,Forb_Table,21,FALSE)),"",VLOOKUP(B109,Forb_Table,21,FALSE)) ->  | K109: =IF(D110>0,D110,0) ->  | L109: =IF(D109="",IF(E109="",IF(F109="",0,F109/I109*H109),E109*H109),E110*H109) -> 0 | M109: =IF(ISNA(VLOOKUP(B109,Forb_Table,32,FALSE)),"",VLOOKUP(B109,Forb_Table,32,FALSE)) ->  | N109: =IFERROR(VLOOKUP(B109,Monarch_ForbTable,34,FALSE),"") ->  | X109: 1
B110: =C109 ->  | C110: =IF(ISERROR(VLOOKUP(B109,Forb_Table,30,FALSE)),"",VLOOKUP(B109,Forb_Table,30,FALSE)) ->  | D110: =IF(E109="",IF(F109="","",F109/$F$285),F110/$F$285) ->  | E110: =IF(D109="",IF(F109="","",F109/I109),J109*D109) ->  | F110: =IF(D109="",IF(E109="","",E109*I109),E110*I109) ->  | G110: =G109 ->  | M110: =M109 ->  | N110: =IFERROR(VLOOKUP(B110,Monarch_ForbSciNameTable,33,FALSE),"") -> 
A111: 15 | C111: =IF(ISERROR(VLOOKUP(B111,Forb_Table,2,FALSE)),"",VLOOKUP(B111,Forb_Table,2,FALSE)) ->  | G111: =IF(ISNA(VLOOKUP(B111,Forb_Table,31,FALSE)),"",VLOOKUP(B111,Forb_Table,31,FALSE)) ->  | H111: =IF(ISNA(VLOOKUP(B111,Forb_Table,25,FALSE)),"",VLOOKUP(B111,Forb_Table,25,FALSE)) ->  | I111: =IF(ISNA(VLOOKUP(B111,Forb_Table,28,FALSE)),"",VLOOKUP(B111,Forb_Table,28,FALSE)) ->  | J111: =IF(ISNA(VLOOKUP(B111,Forb_Table,21,FALSE)),"",VLOOKUP(B111,Forb_Table,21,FALSE)) ->  | K111: =IF(D112>0,D112,0) ->  | L111: =IF(D111="",IF(E111="",IF(F111="",0,F111/I111*H111),E111*H111),E112*H111) -> 0 | M111: =IF(ISNA(VLOOKUP(B111,Forb_Table,32,FALSE)),"",VLOOKUP(B111,Forb_Table,32,FALSE)) ->  | N111: =IFERROR(VLOOKUP(B111,Monarch_ForbTable,34,FALSE),"") ->  | X111: 1
B112: =C111 ->  | C112: =IF(ISERROR(VLOOKUP(B111,Forb_Table,30,FALSE)),"",VLOOKUP(B111,Forb_Table,30,FALSE)) ->  | D112: =IF(E111="",IF(F111="","",F111/$F$285),F112/$F$285) ->  | E112: =IF(D111="",IF(F111="","",F111/I111),J111*D111) ->  | F112: =IF(D111="",IF(E111="","",E111*I111),E112*I111) ->  | G112: =G111 ->  | M112: =M111 ->  | N112: =IFERROR(VLOOKUP(B112,Monarch_ForbSciNameTable,33,FALSE),"") -> 
A113: 16 | C113: =IF(ISERROR(VLOOKUP(B113,Forb_Table,2,FALSE)),"",VLOOKUP(B113,Forb_Table,2,FALSE)) ->  | G113: =IF(ISNA(VLOOKUP(B113,Forb_Table,31,FALSE)),"",VLOOKUP(B113,Forb_Table,31,FALSE)) ->  | H113: =IF(ISNA(VLOOKUP(B113,Forb_Table,25,FALSE)),"",VLOOKUP(B113,Forb_Table,25,FALSE)) ->  | I113: =IF(ISNA(VLOOKUP(B113,Forb_Table,28,FALSE)),"",VLOOKUP(B113,Forb_Table,28,FALSE)) ->  | J113: =IF(ISNA(VLOOKUP(B113,Forb_Table,21,FALSE)),"",VLOOKUP(B113,Forb_Table,21,FALSE)) ->  | K113: =IF(D114>0,D114,0) ->  | L113: =IF(D113="",IF(E113="",IF(F113="",0,F113/I113*H113),E113*H113),E114*H113) -> 0 | M113: =IF(ISNA(VLOOKUP(B113,Forb_Table,32,FALSE)),"",VLOOKUP(B113,Forb_Table,32,FALSE)) ->  | N113: =IFERROR(VLOOKUP(B113,Monarch_ForbTable,34,FALSE),"") ->  | X113: 1
B114: =C113 ->  | C114: =IF(ISERROR(VLOOKUP(B113,Forb_Table,30,FALSE)),"",VLOOKUP(B113,Forb_Table,30,FALSE)) ->  | D114: =IF(E113="",IF(F113="","",F113/$F$285),F114/$F$285) ->  | E114: =IF(D113="",IF(F113="","",F113/I113),J113*D113) ->  | F114: =IF(D113="",IF(E113="","",E113*I113),E114*I113) ->  | G114: =G113 ->  | M114: =M113 ->  | N114: =IFERROR(VLOOKUP(B114,Monarch_ForbSciNameTable,33,FALSE),"") -> 
A115: 17 | C115: =IF(ISERROR(VLOOKUP(B115,Forb_Table,2,FALSE)),"",VLOOKUP(B115,Forb_Table,2,FALSE)) ->  | G115: =IF(ISNA(VLOOKUP(B115,Forb_Table,31,FALSE)),"",VLOOKUP(B115,Forb_Table,31,FALSE)) ->  | H115: =IF(ISNA(VLOOKUP(B115,Forb_Table,25,FALSE)),"",VLOOKUP(B115,Forb_Table,25,FALSE)) ->  | I115: =IF(ISNA(VLOOKUP(B115,Forb_Table,28,FALSE)),"",VLOOKUP(B115,Forb_Table,28,FALSE)) ->  | J115: =IF(ISNA(VLOOKUP(B115,Forb_Table,21,FALSE)),"",VLOOKUP(B115,Forb_Table,21,FALSE)) ->  | K115: =IF(D116>0,D116,0) ->  | L115: =IF(D115="",IF(E115="",IF(F115="",0,F115/I115*H115),E115*H115),E116*H115) -> 0 | M115: =IF(ISNA(VLOOKUP(B115,Forb_Table,32,FALSE)),"",VLOOKUP(B115,Forb_Table,32,FALSE)) ->  | N115: =IFERROR(VLOOKUP(B115,Monarch_ForbTable,34,FALSE),"") ->  | X115: 1
B116: =C115 ->  | C116: =IF(ISERROR(VLOOKUP(B115,Forb_Table,30,FALSE)),"",VLOOKUP(B115,Forb_Table,30,FALSE)) ->  | D116: =IF(E115="",IF(F115="","",F115/$F$285),F116/$F$285) ->  | E116: =IF(D115="",IF(F115="","",F115/I115),J115*D115) ->  | F116: =IF(D115="",IF(E115="","",E115*I115),E116*I115) ->  | G116: =G115 ->  | M116: =M115 ->  | N116: =IFERROR(VLOOKUP(B116,Monarch_ForbSciNameTable,33,FALSE),"") -> 
A117: 18 | C117: =IF(ISERROR(VLOOKUP(B117,Forb_Table,2,FALSE)),"",VLOOKUP(B117,Forb_Table,2,FALSE)) ->  | G117: =IF(ISNA(VLOOKUP(B117,Forb_Table,31,FALSE)),"",VLOOKUP(B117,Forb_Table,31,FALSE)) ->  | H117: =IF(ISNA(VLOOKUP(B117,Forb_Table,25,FALSE)),"",VLOOKUP(B117,Forb_Table,25,FALSE)) ->  | I117: =IF(ISNA(VLOOKUP(B117,Forb_Table,28,FALSE)),"",VLOOKUP(B117,Forb_Table,28,FALSE)) ->  | J117: =IF(ISNA(VLOOKUP(B117,Forb_Table,21,FALSE)),"",VLOOKUP(B117,Forb_Table,21,FALSE)) ->  | K117: =IF(D118>0,D118,0) ->  | L117: =IF(D117="",IF(E117="",IF(F117="",0,F117/I117*H117),E117*H117),E118*H117) -> 0 | M117: =IF(ISNA(VLOOKUP(B117,Forb_Table,32,FALSE)),"",VLOOKUP(B117,Forb_Table,32,FALSE)) ->  | N117: =IFERROR(VLOOKUP(B117,Monarch_ForbTable,34,FALSE),"") ->  | X117: 1
B118: =C117 ->  | C118: =IF(ISERROR(VLOOKUP(B117,Forb_Table,30,FALSE)),"",VLOOKUP(B117,Forb_Table,30,FALSE)) ->  | D118: =IF(E117="",IF(F117="","",F117/$F$285),F118/$F$285) ->  | E118: =IF(D117="",IF(F117="","",F117/I117),J117*D117) ->  | F118: =IF(D117="",IF(E117="","",E117*I117),E118*I117) ->  | G118: =G117 ->  | M118: =M117 ->  | N118: =IFERROR(VLOOKUP(B118,Monarch_ForbSciNameTable,33,FALSE),"") -> 
A119: 19 | C119: =IF(ISERROR(VLOOKUP(B119,Forb_Table,2,FALSE)),"",VLOOKUP(B119,Forb_Table,2,FALSE)) ->  | G119: =IF(ISNA(VLOOKUP(B119,Forb_Table,31,FALSE)),"",VLOOKUP(B119,Forb_Table,31,FALSE)) ->  | H119: =IF(ISNA(VLOOKUP(B119,Forb_Table,25,FALSE)),"",VLOOKUP(B119,Forb_Table,25,FALSE)) ->  | I119: =IF(ISNA(VLOOKUP(B119,Forb_Table,28,FALSE)),"",VLOOKUP(B119,Forb_Table,28,FALSE)) ->  | J119: =IF(ISNA(VLOOKUP(B119,Forb_Table,21,FALSE)),"",VLOOKUP(B119,Forb_Table,21,FALSE)) ->  | K119: =IF(D120>0,D120,0) ->  | L119: =IF(D119="",IF(E119="",IF(F119="",0,F119/I119*H119),E119*H119),E120*H119) -> 0 | M119: =IF(ISNA(VLOOKUP(B119,Forb_Table,32,FALSE)),"",VLOOKUP(B119,Forb_Table,32,FALSE)) ->  | N119: =IFERROR(VLOOKUP(B119,Monarch_ForbTable,34,FALSE),"") ->  | X119: 1
B120: =C119 ->  | C120: =IF(ISERROR(VLOOKUP(B119,Forb_Table,30,FALSE)),"",VLOOKUP(B119,Forb_Table,30,FALSE)) ->  | D120: =IF(E119="",IF(F119="","",F119/$F$285),F120/$F$285) ->  | E120: =IF(D119="",IF(F119="","",F119/I119),J119*D119) ->  | F120: =IF(D119="",IF(E119="","",E119*I119),E120*I119) ->  | G120: =G119 ->  | M120: =M119 ->  | N120: =IFERROR(VLOOKUP(B120,Monarch_ForbSciNameTable,33,FALSE),"") -> 
A121: 20 | C121: =IF(ISERROR(VLOOKUP(B121,Forb_Table,2,FALSE)),"",VLOOKUP(B121,Forb_Table,2,FALSE)) ->  | G121: =IF(ISNA(VLOOKUP(B121,Forb_Table,31,FALSE)),"",VLOOKUP(B121,Forb_Table,31,FALSE)) ->  | H121: =IF(ISNA(VLOOKUP(B121,Forb_Table,25,FALSE)),"",VLOOKUP(B121,Forb_Table,25,FALSE)) ->  | I121: =IF(ISNA(VLOOKUP(B121,Forb_Table,28,FALSE)),"",VLOOKUP(B121,Forb_Table,28,FALSE)) ->  | J121: =IF(ISNA(VLOOKUP(B121,Forb_Table,21,FALSE)),"",VLOOKUP(B121,Forb_Table,21,FALSE)) ->  | K121: =IF(D122>0,D122,0) ->  | L121: =IF(D121="",IF(E121="",IF(F121="",0,F121/I121*H121),E121*H121),E122*H121) -> 0 | M121: =IF(ISNA(VLOOKUP(B121,Forb_Table,32,FALSE)),"",VLOOKUP(B121,Forb_Table,32,FALSE)) ->  | N121: =IFERROR(VLOOKUP(B121,Monarch_ForbTable,34,FALSE),"") ->  | X121: 1
B122: =C121 ->  | C122: =IF(ISERROR(VLOOKUP(B121,Forb_Table,30,FALSE)),"",VLOOKUP(B121,Forb_Table,30,FALSE)) ->  | D122: =IF(E121="",IF(F121="","",F121/$F$285),F122/$F$285) ->  | E122: =IF(D121="",IF(F121="","",F121/I121),J121*D121) ->  | F122: =IF(D121="",IF(E121="","",E121*I121),E122*I121) ->  | G122: =G121 ->  | M122: =M121 ->  | N122: =IFERROR(VLOOKUP(B122,Monarch_ForbSciNameTable,33,FALSE),"") -> 
A123: 21 | C123: =IF(ISERROR(VLOOKUP(B123,Forb_Table,2,FALSE)),"",VLOOKUP(B123,Forb_Table,2,FALSE)) ->  | G123: =IF(ISNA(VLOOKUP(B123,Forb_Table,31,FALSE)),"",VLOOKUP(B123,Forb_Table,31,FALSE)) ->  | H123: =IF(ISNA(VLOOKUP(B123,Forb_Table,25,FALSE)),"",VLOOKUP(B123,Forb_Table,25,FALSE)) ->  | I123: =IF(ISNA(VLOOKUP(B123,Forb_Table,28,FALSE)),"",VLOOKUP(B123,Forb_Table,28,FALSE)) ->  | J123: =IF(ISNA(VLOOKUP(B123,Forb_Table,21,FALSE)),"",VLOOKUP(B123,Forb_Table,21,FALSE)) ->  | K123: =IF(D124>0,D124,0) ->  | L123: =IF(D123="",IF(E123="",IF(F123="",0,F123/I123*H123),E123*H123),E124*H123) -> 0 | M123: =IF(ISNA(VLOOKUP(B123,Forb_Table,32,FALSE)),"",VLOOKUP(B123,Forb_Table,32,FALSE)) ->  | N123: =IFERROR(VLOOKUP(B123,Monarch_ForbTable,34,FALSE),"") ->  | X123: 1
B124: =C123 ->  | C124: =IF(ISERROR(VLOOKUP(B123,Forb_Table,30,FALSE)),"",VLOOKUP(B123,Forb_Table,30,FALSE)) ->  | D124: =IF(E123="",IF(F123="","",F123/$F$285),F124/$F$285) ->  | E124: =IF(D123="",IF(F123="","",F123/I123),J123*D123) ->  | F124: =IF(D123="",IF(E123="","",E123*I123),E124*I123) ->  | G124: =G123 ->  | M124: =M123 ->  | N124: =IFERROR(VLOOKUP(B124,Monarch_ForbSciNameTable,33,FALSE),"") -> 
A125: 22 | C125: =IF(ISERROR(VLOOKUP(B125,Forb_Table,2,FALSE)),"",VLOOKUP(B125,Forb_Table,2,FALSE)) ->  | G125: =IF(ISNA(VLOOKUP(B125,Forb_Table,31,FALSE)),"",VLOOKUP(B125,Forb_Table,31,FALSE)) ->  | H125: =IF(ISNA(VLOOKUP(B125,Forb_Table,25,FALSE)),"",VLOOKUP(B125,Forb_Table,25,FALSE)) ->  | I125: =IF(ISNA(VLOOKUP(B125,Forb_Table,28,FALSE)),"",VLOOKUP(B125,Forb_Table,28,FALSE)) ->  | J125: =IF(ISNA(VLOOKUP(B125,Forb_Table,21,FALSE)),"",VLOOKUP(B125,Forb_Table,21,FALSE)) ->  | K125: =IF(D126>0,D126,0) ->  | L125: =IF(D125="",IF(E125="",IF(F125="",0,F125/I125*H125),E125*H125),E126*H125) -> 0 | M125: =IF(ISNA(VLOOKUP(B125,Forb_Table,32,FALSE)),"",VLOOKUP(B125,Forb_Table,32,FALSE)) ->  | N125: =IFERROR(VLOOKUP(B125,Monarch_ForbTable,34,FALSE),"") ->  | X125: 1
B126: =C125 ->  | C126: =IF(ISERROR(VLOOKUP(B125,Forb_Table,30,FALSE)),"",VLOOKUP(B125,Forb_Table,30,FALSE)) ->  | D126: =IF(E125="",IF(F125="","",F125/$F$285),F126/$F$285) ->  | E126: =IF(D125="",IF(F125="","",F125/I125),J125*D125) ->  | F126: =IF(D125="",IF(E125="","",E125*I125),E126*I125) ->  | G126: =G125 ->  | M126: =M125 ->  | N126: =IFERROR(VLOOKUP(B126,Monarch_ForbSciNameTable,33,FALSE),"") -> 
A127: 23 | C127: =IF(ISERROR(VLOOKUP(B127,Forb_Table,2,FALSE)),"",VLOOKUP(B127,Forb_Table,2,FALSE)) ->  | G127: =IF(ISNA(VLOOKUP(B127,Forb_Table,31,FALSE)),"",VLOOKUP(B127,Forb_Table,31,FALSE)) ->  | H127: =IF(ISNA(VLOOKUP(B127,Forb_Table,25,FALSE)),"",VLOOKUP(B127,Forb_Table,25,FALSE)) ->  | I127: =IF(ISNA(VLOOKUP(B127,Forb_Table,28,FALSE)),"",VLOOKUP(B127,Forb_Table,28,FALSE)) ->  | J127: =IF(ISNA(VLOOKUP(B127,Forb_Table,21,FALSE)),"",VLOOKUP(B127,Forb_Table,21,FALSE)) ->  | K127: =IF(D128>0,D128,0) ->  | L127: =IF(D127="",IF(E127="",IF(F127="",0,F127/I127*H127),E127*H127),E128*H127) -> 0 | M127: =IF(ISNA(VLOOKUP(B127,Forb_Table,32,FALSE)),"",VLOOKUP(B127,Forb_Table,32,FALSE)) ->  | N127: =IFERROR(VLOOKUP(B127,Monarch_ForbTable,34,FALSE),"") ->  | X127: 1
B128: =C127 ->  | C128: =IF(ISERROR(VLOOKUP(B127,Forb_Table,30,FALSE)),"",VLOOKUP(B127,Forb_Table,30,FALSE)) ->  | D128: =IF(E127="",IF(F127="","",F127/$F$285),F128/$F$285) ->  | E128: =IF(D127="",IF(F127="","",F127/I127),J127*D127) ->  | F128: =IF(D127="",IF(E127="","",E127*I127),E128*I127) ->  | G128: =G127 ->  | M128: =M127 ->  | N128: =IFERROR(VLOOKUP(B128,Monarch_ForbSciNameTable,33,FALSE),"") -> 
A129: 24 | C129: =IF(ISERROR(VLOOKUP(B129,Forb_Table,2,FALSE)),"",VLOOKUP(B129,Forb_Table,2,FALSE)) ->  | G129: =IF(ISNA(VLOOKUP(B129,Forb_Table,31,FALSE)),"",VLOOKUP(B129,Forb_Table,31,FALSE)) ->  | H129: =IF(ISNA(VLOOKUP(B129,Forb_Table,25,FALSE)),"",VLOOKUP(B129,Forb_Table,25,FALSE)) ->  | I129: =IF(ISNA(VLOOKUP(B129,Forb_Table,28,FALSE)),"",VLOOKUP(B129,Forb_Table,28,FALSE)) ->  | J129: =IF(ISNA(VLOOKUP(B129,Forb_Table,21,FALSE)),"",VLOOKUP(B129,Forb_Table,21,FALSE)) ->  | K129: =IF(D130>0,D130,0) ->  | L129: =IF(D129="",IF(E129="",IF(F129="",0,F129/I129*H129),E129*H129),E130*H129) -> 0 | M129: =IF(ISNA(VLOOKUP(B129,Forb_Table,32,FALSE)),"",VLOOKUP(B129,Forb_Table,32,FALSE)) ->  | N129: =IFERROR(VLOOKUP(B129,Monarch_ForbTable,34,FALSE),"") ->  | X129: 1
B130: =C129 ->  | C130: =IF(ISERROR(VLOOKUP(B129,Forb_Table,30,FALSE)),"",VLOOKUP(B129,Forb_Table,30,FALSE)) ->  | D130: =IF(E129="",IF(F129="","",F129/$F$285),F130/$F$285) ->  | E130: =IF(D129="",IF(F129="","",F129/I129),J129*D129) ->  | F130: =IF(D129="",IF(E129="","",E129*I129),E130*I129) ->  | G130: =G129 ->  | M130: =M129 ->  | N130: =IFERROR(VLOOKUP(B130,Monarch_ForbSciNameTable,33,FALSE),"") -> 
A131: 25 | C131: =IF(ISERROR(VLOOKUP(B131,Forb_Table,2,FALSE)),"",VLOOKUP(B131,Forb_Table,2,FALSE)) ->  | G131: =IF(ISNA(VLOOKUP(B131,Forb_Table,31,FALSE)),"",VLOOKUP(B131,Forb_Table,31,FALSE)) ->  | H131: =IF(ISNA(VLOOKUP(B131,Forb_Table,25,FALSE)),"",VLOOKUP(B131,Forb_Table,25,FALSE)) ->  | I131: =IF(ISNA(VLOOKUP(B131,Forb_Table,28,FALSE)),"",VLOOKUP(B131,Forb_Table,28,FALSE)) ->  | J131: =IF(ISNA(VLOOKUP(B131,Forb_Table,21,FALSE)),"",VLOOKUP(B131,Forb_Table,21,FALSE)) ->  | K131: =IF(D132>0,D132,0) ->  | L131: =IF(D131="",IF(E131="",IF(F131="",0,F131/I131*H131),E131*H131),E132*H131) -> 0 | M131: =IF(ISNA(VLOOKUP(B131,Forb_Table,32,FALSE)),"",VLOOKUP(B131,Forb_Table,32,FALSE)) ->  | N131: =IFERROR(VLOOKUP(B131,Monarch_ForbTable,34,FALSE),"") ->  | X131: 1
B132: =C131 ->  | C132: =IF(ISERROR(VLOOKUP(B131,Forb_Table,30,FALSE)),"",VLOOKUP(B131,Forb_Table,30,FALSE)) ->  | D132: =IF(E131="",IF(F131="","",F131/$F$285),F132/$F$285) ->  | E132: =IF(D131="",IF(F131="","",F131/I131),J131*D131) ->  | F132: =IF(D131="",IF(E131="","",E131*I131),E132*I131) ->  | G132: =G131 ->  | M132: =M131 ->  | N132: =IFERROR(VLOOKUP(B132,Monarch_ForbSciNameTable,33,FALSE),"") -> 
A133: 26 | C133: =IF(ISERROR(VLOOKUP(B133,Forb_Table,2,FALSE)),"",VLOOKUP(B133,Forb_Table,2,FALSE)) ->  | G133: =IF(ISNA(VLOOKUP(B133,Forb_Table,31,FALSE)),"",VLOOKUP(B133,Forb_Table,31,FALSE)) ->  | H133: =IF(ISNA(VLOOKUP(B133,Forb_Table,25,FALSE)),"",VLOOKUP(B133,Forb_Table,25,FALSE)) ->  | I133: =IF(ISNA(VLOOKUP(B133,Forb_Table,28,FALSE)),"",VLOOKUP(B133,Forb_Table,28,FALSE)) ->  | J133: =IF(ISNA(VLOOKUP(B133,Forb_Table,21,FALSE)),"",VLOOKUP(B133,Forb_Table,21,FALSE)) ->  | K133: =IF(D134>0,D134,0) ->  | L133: =IF(D133="",IF(E133="",IF(F133="",0,F133/I133*H133),E133*H133),E134*H133) -> 0 | M133: =IF(ISNA(VLOOKUP(B133,Forb_Table,32,FALSE)),"",VLOOKUP(B133,Forb_Table,32,FALSE)) ->  | N133: =IFERROR(VLOOKUP(B133,Monarch_ForbTable,34,FALSE),"") ->  | X133: 1
B134: =C133 ->  | C134: =IF(ISERROR(VLOOKUP(B133,Forb_Table,30,FALSE)),"",VLOOKUP(B133,Forb_Table,30,FALSE)) ->  | D134: =IF(E133="",IF(F133="","",F133/$F$285),F134/$F$285) ->  | E134: =IF(D133="",IF(F133="","",F133/I133),J133*D133) ->  | F134: =IF(D133="",IF(E133="","",E133*I133),E134*I133) ->  | G134: =G133 ->  | M134: =M133 ->  | N134: =IFERROR(VLOOKUP(B134,Monarch_ForbSciNameTable,33,FALSE),"") -> 
A135: 27 | C135: =IF(ISERROR(VLOOKUP(B135,Forb_Table,2,FALSE)),"",VLOOKUP(B135,Forb_Table,2,FALSE)) ->  | G135: =IF(ISNA(VLOOKUP(B135,Forb_Table,31,FALSE)),"",VLOOKUP(B135,Forb_Table,31,FALSE)) ->  | H135: =IF(ISNA(VLOOKUP(B135,Forb_Table,25,FALSE)),"",VLOOKUP(B135,Forb_Table,25,FALSE)) ->  | I135: =IF(ISNA(VLOOKUP(B135,Forb_Table,28,FALSE)),"",VLOOKUP(B135,Forb_Table,28,FALSE)) ->  | J135: =IF(ISNA(VLOOKUP(B135,Forb_Table,21,FALSE)),"",VLOOKUP(B135,Forb_Table,21,FALSE)) ->  | K135: =IF(D136>0,D136,0) ->  | L135: =IF(D135="",IF(E135="",IF(F135="",0,F135/I135*H135),E135*H135),E136*H135) -> 0 | M135: =IF(ISNA(VLOOKUP(B135,Forb_Table,32,FALSE)),"",VLOOKUP(B135,Forb_Table,32,FALSE)) ->  | N135: =IFERROR(VLOOKUP(B135,Monarch_ForbTable,34,FALSE),"") ->  | X135: 1
B136: =C135 ->  | C136: =IF(ISERROR(VLOOKUP(B135,Forb_Table,30,FALSE)),"",VLOOKUP(B135,Forb_Table,30,FALSE)) ->  | D136: =IF(E135="",IF(F135="","",F135/$F$285),F136/$F$285) ->  | E136: =IF(D135="",IF(F135="","",F135/I135),J135*D135) ->  | F136: =IF(D135="",IF(E135="","",E135*I135),E136*I135) ->  | G136: =G135 ->  | M136: =M135 ->  | N136: =IFERROR(VLOOKUP(B136,Monarch_ForbSciNameTable,33,FALSE),"") -> 
A137: 28 | C137: =IF(ISERROR(VLOOKUP(B137,Forb_Table,2,FALSE)),"",VLOOKUP(B137,Forb_Table,2,FALSE)) ->  | G137: =IF(ISNA(VLOOKUP(B137,Forb_Table,31,FALSE)),"",VLOOKUP(B137,Forb_Table,31,FALSE)) ->  | H137: =IF(ISNA(VLOOKUP(B137,Forb_Table,25,FALSE)),"",VLOOKUP(B137,Forb_Table,25,FALSE)) ->  | I137: =IF(ISNA(VLOOKUP(B137,Forb_Table,28,FALSE)),"",VLOOKUP(B137,Forb_Table,28,FALSE)) ->  | J137: =IF(ISNA(VLOOKUP(B137,Forb_Table,21,FALSE)),"",VLOOKUP(B137,Forb_Table,21,FALSE)) ->  | K137: =IF(D138>0,D138,0) ->  | L137: =IF(D137="",IF(E137="",IF(F137="",0,F137/I137*H137),E137*H137),E138*H137) -> 0 | M137: =IF(ISNA(VLOOKUP(B137,Forb_Table,32,FALSE)),"",VLOOKUP(B137,Forb_Table,32,FALSE)) ->  | N137: =IFERROR(VLOOKUP(B137,Monarch_ForbTable,34,FALSE),"") ->  | X137: 1
B138: =C137 ->  | C138: =IF(ISERROR(VLOOKUP(B137,Forb_Table,30,FALSE)),"",VLOOKUP(B137,Forb_Table,30,FALSE)) ->  | D138: =IF(E137="",IF(F137="","",F137/$F$285),F138/$F$285) ->  | E138: =IF(D137="",IF(F137="","",F137/I137),J137*D137) ->  | F138: =IF(D137="",IF(E137="","",E137*I137),E138*I137) ->  | G138: =G137 ->  | M138: =M137 ->  | N138: =IFERROR(VLOOKUP(B138,Monarch_ForbSciNameTable,33,FALSE),"") -> 
A139: 29 | C139: =IF(ISERROR(VLOOKUP(B139,Forb_Table,2,FALSE)),"",VLOOKUP(B139,Forb_Table,2,FALSE)) ->  | G139: =IF(ISNA(VLOOKUP(B139,Forb_Table,31,FALSE)),"",VLOOKUP(B139,Forb_Table,31,FALSE)) ->  | H139: =IF(ISNA(VLOOKUP(B139,Forb_Table,25,FALSE)),"",VLOOKUP(B139,Forb_Table,25,FALSE)) ->  | I139: =IF(ISNA(VLOOKUP(B139,Forb_Table,28,FALSE)),"",VLOOKUP(B139,Forb_Table,28,FALSE)) ->  | J139: =IF(ISNA(VLOOKUP(B139,Forb_Table,21,FALSE)),"",VLOOKUP(B139,Forb_Table,21,FALSE)) ->  | K139: =IF(D140>0,D140,0) ->  | L139: =IF(D139="",IF(E139="",IF(F139="",0,F139/I139*H139),E139*H139),E140*H139) -> 0 | M139: =IF(ISNA(VLOOKUP(B139,Forb_Table,32,FALSE)),"",VLOOKUP(B139,Forb_Table,32,FALSE)) ->  | N139: =IFERROR(VLOOKUP(B139,Monarch_ForbTable,34,FALSE),"") ->  | X139: 1
B140: =C139 ->  | C140: =IF(ISERROR(VLOOKUP(B139,Forb_Table,30,FALSE)),"",VLOOKUP(B139,Forb_Table,30,FALSE)) ->  | D140: =IF(E139="",IF(F139="","",F139/$F$285),F140/$F$285) ->  | E140: =IF(D139="",IF(F139="","",F139/I139),J139*D139) ->  | F140: =IF(D139="",IF(E139="","",E139*I139),E140*I139) ->  | G140: =G139 ->  | M140: =M139 ->  | N140: =IFERROR(VLOOKUP(B140,Monarch_ForbSciNameTable,33,FALSE),"") -> 
A141: 30 | C141: =IF(ISERROR(VLOOKUP(B141,Forb_Table,2,FALSE)),"",VLOOKUP(B141,Forb_Table,2,FALSE)) ->  | G141: =IF(ISNA(VLOOKUP(B141,Forb_Table,31,FALSE)),"",VLOOKUP(B141,Forb_Table,31,FALSE)) ->  | H141: =IF(ISNA(VLOOKUP(B141,Forb_Table,25,FALSE)),"",VLOOKUP(B141,Forb_Table,25,FALSE)) ->  | I141: =IF(ISNA(VLOOKUP(B141,Forb_Table,28,FALSE)),"",VLOOKUP(B141,Forb_Table,28,FALSE)) ->  | J141: =IF(ISNA(VLOOKUP(B141,Forb_Table,21,FALSE)),"",VLOOKUP(B141,Forb_Table,21,FALSE)) ->  | K141: =IF(D142>0,D142,0) ->  | L141: =IF(D141="",IF(E141="",IF(F141="",0,F141/I141*H141),E141*H141),E142*H141) -> 0 | M141: =IF(ISNA(VLOOKUP(B141,Forb_Table,32,FALSE)),"",VLOOKUP(B141,Forb_Table,32,FALSE)) ->  | N141: =IFERROR(VLOOKUP(B141,Monarch_ForbTable,34,FALSE),"") ->  | X141: 1
B142: =C141 ->  | C142: =IF(ISERROR(VLOOKUP(B141,Forb_Table,30,FALSE)),"",VLOOKUP(B141,Forb_Table,30,FALSE)) ->  | D142: =IF(E141="",IF(F141="","",F141/$F$285),F142/$F$285) ->  | E142: =IF(D141="",IF(F141="","",F141/I141),J141*D141) ->  | F142: =IF(D141="",IF(E141="","",E141*I141),E142*I141) ->  | G142: =G141 ->  | M142: =M141 ->  | N142: =IFERROR(VLOOKUP(B142,Monarch_ForbSciNameTable,33,FALSE),"") -> 
A143: 31 | C143: =IF(ISERROR(VLOOKUP(B143,Forb_Table,2,FALSE)),"",VLOOKUP(B143,Forb_Table,2,FALSE)) ->  | G143: =IF(ISNA(VLOOKUP(B143,Forb_Table,31,FALSE)),"",VLOOKUP(B143,Forb_Table,31,FALSE)) ->  | H143: =IF(ISNA(VLOOKUP(B143,Forb_Table,25,FALSE)),"",VLOOKUP(B143,Forb_Table,25,FALSE)) ->  | I143: =IF(ISNA(VLOOKUP(B143,Forb_Table,28,FALSE)),"",VLOOKUP(B143,Forb_Table,28,FALSE)) ->  | J143: =IF(ISNA(VLOOKUP(B143,Forb_Table,21,FALSE)),"",VLOOKUP(B143,Forb_Table,21,FALSE)) ->  | K143: =IF(D144>0,D144,0) ->  | L143: =IF(D143="",IF(E143="",IF(F143="",0,F143/I143*H143),E143*H143),E144*H143) -> 0 | M143: =IF(ISNA(VLOOKUP(B143,Forb_Table,32,FALSE)),"",VLOOKUP(B143,Forb_Table,32,FALSE)) ->  | N143: =IFERROR(VLOOKUP(B143,Monarch_ForbTable,34,FALSE),"") ->  | X143: 1
B144: =C143 ->  | C144: =IF(ISERROR(VLOOKUP(B143,Forb_Table,30,FALSE)),"",VLOOKUP(B143,Forb_Table,30,FALSE)) ->  | D144: =IF(E143="",IF(F143="","",F143/$F$285),F144/$F$285) ->  | E144: =IF(D143="",IF(F143="","",F143/I143),J143*D143) ->  | F144: =IF(D143="",IF(E143="","",E143*I143),E144*I143) ->  | G144: =G143 ->  | M144: =M143 ->  | N144: =IFERROR(VLOOKUP(B144,Monarch_ForbSciNameTable,33,FALSE),"") -> 
A145: 32 | C145: =IF(ISERROR(VLOOKUP(B145,Forb_Table,2,FALSE)),"",VLOOKUP(B145,Forb_Table,2,FALSE)) ->  | G145: =IF(ISNA(VLOOKUP(B145,Forb_Table,31,FALSE)),"",VLOOKUP(B145,Forb_Table,31,FALSE)) ->  | H145: =IF(ISNA(VLOOKUP(B145,Forb_Table,25,FALSE)),"",VLOOKUP(B145,Forb_Table,25,FALSE)) ->  | I145: =IF(ISNA(VLOOKUP(B145,Forb_Table,28,FALSE)),"",VLOOKUP(B145,Forb_Table,28,FALSE)) ->  | J145: =IF(ISNA(VLOOKUP(B145,Forb_Table,21,FALSE)),"",VLOOKUP(B145,Forb_Table,21,FALSE)) ->  | K145: =IF(D146>0,D146,0) ->  | L145: =IF(D145="",IF(E145="",IF(F145="",0,F145/I145*H145),E145*H145),E146*H145) -> 0 | M145: =IF(ISNA(VLOOKUP(B145,Forb_Table,32,FALSE)),"",VLOOKUP(B145,Forb_Table,32,FALSE)) ->  | N145: =IFERROR(VLOOKUP(B145,Monarch_ForbTable,34,FALSE),"") ->  | X145: 1
B146: =C145 ->  | C146: =IF(ISERROR(VLOOKUP(B145,Forb_Table,30,FALSE)),"",VLOOKUP(B145,Forb_Table,30,FALSE)) ->  | D146: =IF(E145="",IF(F145="","",F145/$F$285),F146/$F$285) ->  | E146: =IF(D145="",IF(F145="","",F145/I145),J145*D145) ->  | F146: =IF(D145="",IF(E145="","",E145*I145),E146*I145) ->  | G146: =G145 ->  | M146: =M145 ->  | N146: =IFERROR(VLOOKUP(B146,Monarch_ForbSciNameTable,33,FALSE),"") -> 
A147: 33 | C147: =IF(ISERROR(VLOOKUP(B147,Forb_Table,2,FALSE)),"",VLOOKUP(B147,Forb_Table,2,FALSE)) ->  | G147: =IF(ISNA(VLOOKUP(B147,Forb_Table,31,FALSE)),"",VLOOKUP(B147,Forb_Table,31,FALSE)) ->  | H147: =IF(ISNA(VLOOKUP(B147,Forb_Table,25,FALSE)),"",VLOOKUP(B147,Forb_Table,25,FALSE)) ->  | I147: =IF(ISNA(VLOOKUP(B147,Forb_Table,28,FALSE)),"",VLOOKUP(B147,Forb_Table,28,FALSE)) ->  | J147: =IF(ISNA(VLOOKUP(B147,Forb_Table,21,FALSE)),"",VLOOKUP(B147,Forb_Table,21,FALSE)) ->  | K147: =IF(D148>0,D148,0) ->  | L147: =IF(D147="",IF(E147="",IF(F147="",0,F147/I147*H147),E147*H147),E148*H147) -> 0 | M147: =IF(ISNA(VLOOKUP(B147,Forb_Table,32,FALSE)),"",VLOOKUP(B147,Forb_Table,32,FALSE)) ->  | N147: =IFERROR(VLOOKUP(B147,Monarch_ForbTable,34,FALSE),"") ->  | X147: 1
B148: =C147 ->  | C148: =IF(ISERROR(VLOOKUP(B147,Forb_Table,30,FALSE)),"",VLOOKUP(B147,Forb_Table,30,FALSE)) ->  | D148: =IF(E147="",IF(F147="","",F147/$F$285),F148/$F$285) ->  | E148: =IF(D147="",IF(F147="","",F147/I147),J147*D147) ->  | F148: =IF(D147="",IF(E147="","",E147*I147),E148*I147) ->  | G148: =G147 ->  | M148: =M147 ->  | N148: =IFERROR(VLOOKUP(B148,Monarch_ForbSciNameTable,33,FALSE),"") -> 
A149: 34 | C149: =IF(ISERROR(VLOOKUP(B149,Forb_Table,2,FALSE)),"",VLOOKUP(B149,Forb_Table,2,FALSE)) ->  | G149: =IF(ISNA(VLOOKUP(B149,Forb_Table,31,FALSE)),"",VLOOKUP(B149,Forb_Table,31,FALSE)) ->  | H149: =IF(ISNA(VLOOKUP(B149,Forb_Table,25,FALSE)),"",VLOOKUP(B149,Forb_Table,25,FALSE)) ->  | I149: =IF(ISNA(VLOOKUP(B149,Forb_Table,28,FALSE)),"",VLOOKUP(B149,Forb_Table,28,FALSE)) ->  | J149: =IF(ISNA(VLOOKUP(B149,Forb_Table,21,FALSE)),"",VLOOKUP(B149,Forb_Table,21,FALSE)) ->  | K149: =IF(D150>0,D150,0) ->  | L149: =IF(D149="",IF(E149="",IF(F149="",0,F149/I149*H149),E149*H149),E150*H149) -> 0 | M149: =IF(ISNA(VLOOKUP(B149,Forb_Table,32,FALSE)),"",VLOOKUP(B149,Forb_Table,32,FALSE)) ->  | N149: =IFERROR(VLOOKUP(B149,Monarch_ForbTable,34,FALSE),"") ->  | X149: 1
B150: =C149 ->  | C150: =IF(ISERROR(VLOOKUP(B149,Forb_Table,30,FALSE)),"",VLOOKUP(B149,Forb_Table,30,FALSE)) ->  | D150: =IF(E149="",IF(F149="","",F149/$F$285),F150/$F$285) ->  | E150: =IF(D149="",IF(F149="","",F149/I149),J149*D149) ->  | F150: =IF(D149="",IF(E149="","",E149*I149),E150*I149) ->  | G150: =G149 ->  | M150: =M149 ->  | N150: =IFERROR(VLOOKUP(B150,Monarch_ForbSciNameTable,33,FALSE),"") -> 
A151: 35 | C151: =IF(ISERROR(VLOOKUP(B151,Forb_Table,2,FALSE)),"",VLOOKUP(B151,Forb_Table,2,FALSE)) ->  | G151: =IF(ISNA(VLOOKUP(B151,Forb_Table,31,FALSE)),"",VLOOKUP(B151,Forb_Table,31,FALSE)) ->  | H151: =IF(ISNA(VLOOKUP(B151,Forb_Table,25,FALSE)),"",VLOOKUP(B151,Forb_Table,25,FALSE)) ->  | I151: =IF(ISNA(VLOOKUP(B151,Forb_Table,28,FALSE)),"",VLOOKUP(B151,Forb_Table,28,FALSE)) ->  | J151: =IF(ISNA(VLOOKUP(B151,Forb_Table,21,FALSE)),"",VLOOKUP(B151,Forb_Table,21,FALSE)) ->  | K151: =IF(D152>0,D152,0) ->  | L151: =IF(D151="",IF(E151="",IF(F151="",0,F151/I151*H151),E151*H151),E152*H151) -> 0 | M151: =IF(ISNA(VLOOKUP(B151,Forb_Table,32,FALSE)),"",VLOOKUP(B151,Forb_Table,32,FALSE)) ->  | N151: =IFERROR(VLOOKUP(B151,Monarch_ForbTable,34,FALSE),"") ->  | X151: 1
B152: =C151 ->  | C152: =IF(ISERROR(VLOOKUP(B151,Forb_Table,30,FALSE)),"",VLOOKUP(B151,Forb_Table,30,FALSE)) ->  | D152: =IF(E151="",IF(F151="","",F151/$F$285),F152/$F$285) ->  | E152: =IF(D151="",IF(F151="","",F151/I151),J151*D151) ->  | F152: =IF(D151="",IF(E151="","",E151*I151),E152*I151) ->  | G152: =G151 ->  | M152: =M151 ->  | N152: =IFERROR(VLOOKUP(B152,Monarch_ForbSciNameTable,33,FALSE),"") -> 
A153: 36 | C153: =IF(ISERROR(VLOOKUP(B153,Forb_Table,2,FALSE)),"",VLOOKUP(B153,Forb_Table,2,FALSE)) ->  | G153: =IF(ISNA(VLOOKUP(B153,Forb_Table,31,FALSE)),"",VLOOKUP(B153,Forb_Table,31,FALSE)) ->  | H153: =IF(ISNA(VLOOKUP(B153,Forb_Table,25,FALSE)),"",VLOOKUP(B153,Forb_Table,25,FALSE)) ->  | I153: =IF(ISNA(VLOOKUP(B153,Forb_Table,28,FALSE)),"",VLOOKUP(B153,Forb_Table,28,FALSE)) ->  | J153: =IF(ISNA(VLOOKUP(B153,Forb_Table,21,FALSE)),"",VLOOKUP(B153,Forb_Table,21,FALSE)) ->  | K153: =IF(D154>0,D154,0) ->  | L153: =IF(D153="",IF(E153="",IF(F153="",0,F153/I153*H153),E153*H153),E154*H153) -> 0 | M153: =IF(ISNA(VLOOKUP(B153,Forb_Table,32,FALSE)),"",VLOOKUP(B153,Forb_Table,32,FALSE)) ->  | N153: =IFERROR(VLOOKUP(B153,Monarch_ForbTable,34,FALSE),"") ->  | X153: 1
B154: =C153 ->  | C154: =IF(ISERROR(VLOOKUP(B153,Forb_Table,30,FALSE)),"",VLOOKUP(B153,Forb_Table,30,FALSE)) ->  | D154: =IF(E153="",IF(F153="","",F153/$F$285),F154/$F$285) ->  | E154: =IF(D153="",IF(F153="","",F153/I153),J153*D153) ->  | F154: =IF(D153="",IF(E153="","",E153*I153),E154*I153) ->  | G154: =G153 ->  | M154: =M153 ->  | N154: =IFERROR(VLOOKUP(B154,Monarch_ForbSciNameTable,33,FALSE),"") -> 
A155: 37 | C155: =IF(ISERROR(VLOOKUP(B155,Forb_Table,2,FALSE)),"",VLOOKUP(B155,Forb_Table,2,FALSE)) ->  | G155: =IF(ISNA(VLOOKUP(B155,Forb_Table,31,FALSE)),"",VLOOKUP(B155,Forb_Table,31,FALSE)) ->  | H155: =IF(ISNA(VLOOKUP(B155,Forb_Table,25,FALSE)),"",VLOOKUP(B155,Forb_Table,25,FALSE)) ->  | I155: =IF(ISNA(VLOOKUP(B155,Forb_Table,28,FALSE)),"",VLOOKUP(B155,Forb_Table,28,FALSE)) ->  | J155: =IF(ISNA(VLOOKUP(B155,Forb_Table,21,FALSE)),"",VLOOKUP(B155,Forb_Table,21,FALSE)) ->  | K155: =IF(D156>0,D156,0) ->  | L155: =IF(D155="",IF(E155="",IF(F155="",0,F155/I155*H155),E155*H155),E156*H155) -> 0 | M155: =IF(ISNA(VLOOKUP(B155,Forb_Table,32,FALSE)),"",VLOOKUP(B155,Forb_Table,32,FALSE)) ->  | N155: =IFERROR(VLOOKUP(B155,Monarch_ForbTable,34,FALSE),"") ->  | X155: 1
B156: =C155 ->  | C156: =IF(ISERROR(VLOOKUP(B155,Forb_Table,30,FALSE)),"",VLOOKUP(B155,Forb_Table,30,FALSE)) ->  | D156: =IF(E155="",IF(F155="","",F155/$F$285),F156/$F$285) ->  | E156: =IF(D155="",IF(F155="","",F155/I155),J155*D155) ->  | F156: =IF(D155="",IF(E155="","",E155*I155),E156*I155) ->  | G156: =G155 ->  | M156: =M155 ->  | N156: =IFERROR(VLOOKUP(B156,Monarch_ForbSciNameTable,33,FALSE),"") -> 
A157: 38 | C157: =IF(ISERROR(VLOOKUP(B157,Forb_Table,2,FALSE)),"",VLOOKUP(B157,Forb_Table,2,FALSE)) ->  | G157: =IF(ISNA(VLOOKUP(B157,Forb_Table,31,FALSE)),"",VLOOKUP(B157,Forb_Table,31,FALSE)) ->  | H157: =IF(ISNA(VLOOKUP(B157,Forb_Table,25,FALSE)),"",VLOOKUP(B157,Forb_Table,25,FALSE)) ->  | I157: =IF(ISNA(VLOOKUP(B157,Forb_Table,28,FALSE)),"",VLOOKUP(B157,Forb_Table,28,FALSE)) ->  | J157: =IF(ISNA(VLOOKUP(B157,Forb_Table,21,FALSE)),"",VLOOKUP(B157,Forb_Table,21,FALSE)) ->  | K157: =IF(D158>0,D158,0) ->  | L157: =IF(D157="",IF(E157="",IF(F157="",0,F157/I157*H157),E157*H157),E158*H157) -> 0 | M157: =IF(ISNA(VLOOKUP(B157,Forb_Table,32,FALSE)),"",VLOOKUP(B157,Forb_Table,32,FALSE)) ->  | N157: =IFERROR(VLOOKUP(B157,Monarch_ForbTable,34,FALSE),"") ->  | X157: 1
B158: =C157 ->  | C158: =IF(ISERROR(VLOOKUP(B157,Forb_Table,30,FALSE)),"",VLOOKUP(B157,Forb_Table,30,FALSE)) ->  | D158: =IF(E157="",IF(F157="","",F157/$F$285),F158/$F$285) ->  | E158: =IF(D157="",IF(F157="","",F157/I157),J157*D157) ->  | F158: =IF(D157="",IF(E157="","",E157*I157),E158*I157) ->  | G158: =G157 ->  | M158: =M157 ->  | N158: =IFERROR(VLOOKUP(B158,Monarch_ForbSciNameTable,33,FALSE),"") -> 
A159: 39 | C159: =IF(ISERROR(VLOOKUP(B159,Forb_Table,2,FALSE)),"",VLOOKUP(B159,Forb_Table,2,FALSE)) ->  | G159: =IF(ISNA(VLOOKUP(B159,Forb_Table,31,FALSE)),"",VLOOKUP(B159,Forb_Table,31,FALSE)) ->  | H159: =IF(ISNA(VLOOKUP(B159,Forb_Table,25,FALSE)),"",VLOOKUP(B159,Forb_Table,25,FALSE)) ->  | I159: =IF(ISNA(VLOOKUP(B159,Forb_Table,28,FALSE)),"",VLOOKUP(B159,Forb_Table,28,FALSE)) ->  | J159: =IF(ISNA(VLOOKUP(B159,Forb_Table,21,FALSE)),"",VLOOKUP(B159,Forb_Table,21,FALSE)) ->  | K159: =IF(D160>0,D160,0) ->  | L159: =IF(D159="",IF(E159="",IF(F159="",0,F159/I159*H159),E159*H159),E160*H159) -> 0 | M159: =IF(ISNA(VLOOKUP(B159,Forb_Table,32,FALSE)),"",VLOOKUP(B159,Forb_Table,32,FALSE)) ->  | N159: =IFERROR(VLOOKUP(B159,Monarch_ForbTable,34,FALSE),"") ->  | X159: 1
B160: =C159 ->  | C160: =IF(ISERROR(VLOOKUP(B159,Forb_Table,30,FALSE)),"",VLOOKUP(B159,Forb_Table,30,FALSE)) ->  | D160: =IF(E159="",IF(F159="","",F159/$F$285),F160/$F$285) ->  | E160: =IF(D159="",IF(F159="","",F159/I159),J159*D159) ->  | F160: =IF(D159="",IF(E159="","",E159*I159),E160*I159) ->  | G160: =G159 ->  | M160: =M159 ->  | N160: =IFERROR(VLOOKUP(B160,Monarch_ForbSciNameTable,33,FALSE),"") -> 
A161: 40 | C161: =IF(ISERROR(VLOOKUP(B161,Forb_Table,2,FALSE)),"",VLOOKUP(B161,Forb_Table,2,FALSE)) ->  | G161: =IF(ISNA(VLOOKUP(B161,Forb_Table,31,FALSE)),"",VLOOKUP(B161,Forb_Table,31,FALSE)) ->  | H161: =IF(ISNA(VLOOKUP(B161,Forb_Table,25,FALSE)),"",VLOOKUP(B161,Forb_Table,25,FALSE)) ->  | I161: =IF(ISNA(VLOOKUP(B161,Forb_Table,28,FALSE)),"",VLOOKUP(B161,Forb_Table,28,FALSE)) ->  | J161: =IF(ISNA(VLOOKUP(B161,Forb_Table,21,FALSE)),"",VLOOKUP(B161,Forb_Table,21,FALSE)) ->  | K161: =IF(D162>0,D162,0) ->  | L161: =IF(D161="",IF(E161="",IF(F161="",0,F161/I161*H161),E161*H161),E162*H161) -> 0 | M161: =IF(ISNA(VLOOKUP(B161,Forb_Table,32,FALSE)),"",VLOOKUP(B161,Forb_Table,32,FALSE)) ->  | N161: =IFERROR(VLOOKUP(B161,Monarch_ForbTable,34,FALSE),"") ->  | X161: 1
B162: =C161 ->  | C162: =IF(ISERROR(VLOOKUP(B161,Forb_Table,30,FALSE)),"",VLOOKUP(B161,Forb_Table,30,FALSE)) ->  | D162: =IF(E161="",IF(F161="","",F161/$F$285),F162/$F$285) ->  | F162: =IF(D161="",IF(E161="","",E161*I161),E162*I161) ->  | G162: =G161 ->  | M162: =M161 ->  | N162: =IFERROR(VLOOKUP(B162,Monarch_ForbSciNameTable,33,FALSE),"") -> 
A163: 41 | C163: =IF(ISERROR(VLOOKUP(B163,Forb_Table,2,FALSE)),"",VLOOKUP(B163,Forb_Table,2,FALSE)) ->  | G163: =IF(ISNA(VLOOKUP(B163,Forb_Table,31,FALSE)),"",VLOOKUP(B163,Forb_Table,31,FALSE)) ->  | H163: =IF(ISNA(VLOOKUP(B163,Forb_Table,25,FALSE)),"",VLOOKUP(B163,Forb_Table,25,FALSE)) ->  | I163: =IF(ISNA(VLOOKUP(B163,Forb_Table,28,FALSE)),"",VLOOKUP(B163,Forb_Table,28,FALSE)) ->  | J163: =IF(ISNA(VLOOKUP(B163,Forb_Table,21,FALSE)),"",VLOOKUP(B163,Forb_Table,21,FALSE)) ->  | K163: =IF(D164>0,D164,0) ->  | L163: =IF(D163="",IF(E163="",IF(F163="",0,F163/I163*H163),E163*H163),E164*H163) -> 0 | M163: =IF(ISNA(VLOOKUP(B163,Forb_Table,32,FALSE)),"",VLOOKUP(B163,Forb_Table,32,FALSE)) ->  | N163: =IFERROR(VLOOKUP(B163,Monarch_ForbTable,34,FALSE),"") -> 
B164: =C163 ->  | C164: =IF(ISERROR(VLOOKUP(B163,Forb_Table,30,FALSE)),"",VLOOKUP(B163,Forb_Table,30,FALSE)) ->  | D164: =IF(E163="",IF(F163="","",F163/$F$285),F164/$F$285) ->  | E164: =IF(D163="",IF(F163="","",F163/I163),J163*D163) ->  | F164: =IF(D163="",IF(E163="","",E163*I163),E164*I163) ->  | G164: =G163 ->  | M164: =M163 ->  | N164: =IFERROR(VLOOKUP(B164,Monarch_ForbSciNameTable,33,FALSE),"") -> 
A165: 42 | C165: =IF(ISERROR(VLOOKUP(B165,Forb_Table,2,FALSE)),"",VLOOKUP(B165,Forb_Table,2,FALSE)) ->  | G165: =IF(ISNA(VLOOKUP(B165,Forb_Table,31,FALSE)),"",VLOOKUP(B165,Forb_Table,31,FALSE)) ->  | H165: =IF(ISNA(VLOOKUP(B165,Forb_Table,25,FALSE)),"",VLOOKUP(B165,Forb_Table,25,FALSE)) ->  | I165: =IF(ISNA(VLOOKUP(B165,Forb_Table,28,FALSE)),"",VLOOKUP(B165,Forb_Table,28,FALSE)) ->  | J165: =IF(ISNA(VLOOKUP(B165,Forb_Table,21,FALSE)),"",VLOOKUP(B165,Forb_Table,21,FALSE)) ->  | K165: =IF(D166>0,D166,0) ->  | L165: =IF(D165="",IF(E165="",IF(F165="",0,F165/I165*H165),E165*H165),E166*H165) -> 0 | M165: =IF(ISNA(VLOOKUP(B165,Forb_Table,32,FALSE)),"",VLOOKUP(B165,Forb_Table,32,FALSE)) ->  | N165: =IFERROR(VLOOKUP(B165,Monarch_ForbTable,34,FALSE),"") -> 
B166: =C165 ->  | C166: =IF(ISERROR(VLOOKUP(B165,Forb_Table,30,FALSE)),"",VLOOKUP(B165,Forb_Table,30,FALSE)) ->  | D166: =IF(E165="",IF(F165="","",F165/$F$285),F166/$F$285) ->  | E166: =IF(D165="",IF(F165="","",F165/I165),J165*D165) ->  | F166: =IF(D165="",IF(E165="","",E165*I165),E166*I165) ->  | G166: =G165 ->  | M166: =M165 ->  | N166: =IFERROR(VLOOKUP(B166,Monarch_ForbSciNameTable,33,FALSE),"") -> 
A167: 43 | C167: =IF(ISERROR(VLOOKUP(B167,Forb_Table,2,FALSE)),"",VLOOKUP(B167,Forb_Table,2,FALSE)) ->  | G167: =IF(ISNA(VLOOKUP(B167,Forb_Table,31,FALSE)),"",VLOOKUP(B167,Forb_Table,31,FALSE)) ->  | H167: =IF(ISNA(VLOOKUP(B167,Forb_Table,25,FALSE)),"",VLOOKUP(B167,Forb_Table,25,FALSE)) ->  | I167: =IF(ISNA(VLOOKUP(B167,Forb_Table,28,FALSE)),"",VLOOKUP(B167,Forb_Table,28,FALSE)) ->  | J167: =IF(ISNA(VLOOKUP(B167,Forb_Table,21,FALSE)),"",VLOOKUP(B167,Forb_Table,21,FALSE)) ->  | K167: =IF(D168>0,D168,0) ->  | L167: =IF(D167="",IF(E167="",IF(F167="",0,F167/I167*H167),E167*H167),E168*H167) -> 0 | M167: =IF(ISNA(VLOOKUP(B167,Forb_Table,32,FALSE)),"",VLOOKUP(B167,Forb_Table,32,FALSE)) ->  | N167: =IFERROR(VLOOKUP(B167,Monarch_ForbTable,34,FALSE),"") -> 
B168: =C167 ->  | C168: =IF(ISERROR(VLOOKUP(B167,Forb_Table,30,FALSE)),"",VLOOKUP(B167,Forb_Table,30,FALSE)) ->  | D168: =IF(E167="",IF(F167="","",F167/$F$285),F168/$F$285) ->  | E168: =IF(D167="",IF(F167="","",F167/I167),J167*D167) ->  | F168: =IF(D167="",IF(E167="","",E167*I167),E168*I167) ->  | G168: =G167 ->  | M168: =M167 ->  | N168: =IFERROR(VLOOKUP(B168,Monarch_ForbSciNameTable,33,FALSE),"") -> 
A169: 44 | C169: =IF(ISERROR(VLOOKUP(B169,Forb_Table,2,FALSE)),"",VLOOKUP(B169,Forb_Table,2,FALSE)) ->  | G169: =IF(ISNA(VLOOKUP(B169,Forb_Table,31,FALSE)),"",VLOOKUP(B169,Forb_Table,31,FALSE)) ->  | H169: =IF(ISNA(VLOOKUP(B169,Forb_Table,25,FALSE)),"",VLOOKUP(B169,Forb_Table,25,FALSE)) ->  | I169: =IF(ISNA(VLOOKUP(B169,Forb_Table,28,FALSE)),"",VLOOKUP(B169,Forb_Table,28,FALSE)) ->  | J169: =IF(ISNA(VLOOKUP(B169,Forb_Table,21,FALSE)),"",VLOOKUP(B169,Forb_Table,21,FALSE)) ->  | K169: =IF(D170>0,D170,0) ->  | L169: =IF(D169="",IF(E169="",IF(F169="",0,F169/I169*H169),E169*H169),E170*H169) -> 0 | M169: =IF(ISNA(VLOOKUP(B169,Forb_Table,32,FALSE)),"",VLOOKUP(B169,Forb_Table,32,FALSE)) ->  | N169: =IFERROR(VLOOKUP(B169,Monarch_ForbTable,34,FALSE),"") -> 
B170: =C169 ->  | C170: =IF(ISERROR(VLOOKUP(B169,Forb_Table,30,FALSE)),"",VLOOKUP(B169,Forb_Table,30,FALSE)) ->  | D170: =IF(E169="",IF(F169="","",F169/$F$285),F170/$F$285) ->  | E170: =IF(D169="",IF(F169="","",F169/I169),J169*D169) ->  | F170: =IF(D169="",IF(E169="","",E169*I169),E170*I169) ->  | G170: =G169 ->  | M170: =M169 ->  | N170: =IFERROR(VLOOKUP(B170,Monarch_ForbSciNameTable,33,FALSE),"") -> 
A171: 45 | C171: =IF(ISERROR(VLOOKUP(B171,Forb_Table,2,FALSE)),"",VLOOKUP(B171,Forb_Table,2,FALSE)) ->  | G171: =IF(ISNA(VLOOKUP(B171,Forb_Table,31,FALSE)),"",VLOOKUP(B171,Forb_Table,31,FALSE)) ->  | H171: =IF(ISNA(VLOOKUP(B171,Forb_Table,25,FALSE)),"",VLOOKUP(B171,Forb_Table,25,FALSE)) ->  | I171: =IF(ISNA(VLOOKUP(B171,Forb_Table,28,FALSE)),"",VLOOKUP(B171,Forb_Table,28,FALSE)) ->  | J171: =IF(ISNA(VLOOKUP(B171,Forb_Table,21,FALSE)),"",VLOOKUP(B171,Forb_Table,21,FALSE)) ->  | K171: =IF(D172>0,D172,0) ->  | L171: =IF(D171="",IF(E171="",IF(F171="",0,F171/I171*H171),E171*H171),E172*H171) -> 0 | M171: =IF(ISNA(VLOOKUP(B171,Forb_Table,32,FALSE)),"",VLOOKUP(B171,Forb_Table,32,FALSE)) ->  | N171: =IFERROR(VLOOKUP(B171,Monarch_ForbTable,34,FALSE),"") -> 
B172: =C171 ->  | C172: =IF(ISERROR(VLOOKUP(B171,Forb_Table,30,FALSE)),"",VLOOKUP(B171,Forb_Table,30,FALSE)) ->  | D172: =IF(E171="",IF(F171="","",F171/$F$285),F172/$F$285) ->  | E172: =IF(D171="",IF(F171="","",F171/I171),J171*D171) ->  | F172: =IF(D171="",IF(E171="","",E171*I171),E172*I171) ->  | G172: =G171 ->  | M172: =M171 ->  | N172: =IFERROR(VLOOKUP(B172,Monarch_ForbSciNameTable,33,FALSE),"") -> 
A173: 46 | C173: =IF(ISERROR(VLOOKUP(B173,Forb_Table,2,FALSE)),"",VLOOKUP(B173,Forb_Table,2,FALSE)) ->  | G173: =IF(ISNA(VLOOKUP(B173,Forb_Table,31,FALSE)),"",VLOOKUP(B173,Forb_Table,31,FALSE)) ->  | H173: =IF(ISNA(VLOOKUP(B173,Forb_Table,25,FALSE)),"",VLOOKUP(B173,Forb_Table,25,FALSE)) ->  | I173: =IF(ISNA(VLOOKUP(B173,Forb_Table,28,FALSE)),"",VLOOKUP(B173,Forb_Table,28,FALSE)) ->  | J173: =IF(ISNA(VLOOKUP(B173,Forb_Table,21,FALSE)),"",VLOOKUP(B173,Forb_Table,21,FALSE)) ->  | K173: =IF(D174>0,D174,0) ->  | L173: =IF(D173="",IF(E173="",IF(F173="",0,F173/I173*H173),E173*H173),E174*H173) -> 0 | M173: =IF(ISNA(VLOOKUP(B173,Forb_Table,32,FALSE)),"",VLOOKUP(B173,Forb_Table,32,FALSE)) ->  | N173: =IFERROR(VLOOKUP(B173,Monarch_ForbTable,34,FALSE),"") -> 
B174: =C173 ->  | C174: =IF(ISERROR(VLOOKUP(B173,Forb_Table,30,FALSE)),"",VLOOKUP(B173,Forb_Table,30,FALSE)) ->  | D174: =IF(E173="",IF(F173="","",F173/$F$285),F174/$F$285) ->  | E174: =IF(D173="",IF(F173="","",F173/I173),J173*D173) ->  | F174: =IF(D173="",IF(E173="","",E173*I173),E174*I173) ->  | G174: =G173 ->  | M174: =M173 ->  | N174: =IFERROR(VLOOKUP(B174,Monarch_ForbSciNameTable,33,FALSE),"") -> 
A175: 47 | C175: =IF(ISERROR(VLOOKUP(B175,Forb_Table,2,FALSE)),"",VLOOKUP(B175,Forb_Table,2,FALSE)) ->  | G175: =IF(ISNA(VLOOKUP(B175,Forb_Table,31,FALSE)),"",VLOOKUP(B175,Forb_Table,31,FALSE)) ->  | H175: =IF(ISNA(VLOOKUP(B175,Forb_Table,25,FALSE)),"",VLOOKUP(B175,Forb_Table,25,FALSE)) ->  | I175: =IF(ISNA(VLOOKUP(B175,Forb_Table,28,FALSE)),"",VLOOKUP(B175,Forb_Table,28,FALSE)) ->  | J175: =IF(ISNA(VLOOKUP(B175,Forb_Table,21,FALSE)),"",VLOOKUP(B175,Forb_Table,21,FALSE)) ->  | K175: =IF(D176>0,D176,0) ->  | L175: =IF(D175="",IF(E175="",IF(F175="",0,F175/I175*H175),E175*H175),E176*H175) -> 0 | M175: =IF(ISNA(VLOOKUP(B175,Forb_Table,32,FALSE)),"",VLOOKUP(B175,Forb_Table,32,FALSE)) ->  | N175: =IFERROR(VLOOKUP(B175,Monarch_ForbTable,34,FALSE),"") -> 
B176: =C175 ->  | C176: =IF(ISERROR(VLOOKUP(B175,Forb_Table,30,FALSE)),"",VLOOKUP(B175,Forb_Table,30,FALSE)) ->  | D176: =IF(E175="",IF(F175="","",F175/$F$285),F176/$F$285) ->  | E176: =IF(D175="",IF(F175="","",F175/I175),J175*D175) ->  | F176: =IF(D175="",IF(E175="","",E175*I175),E176*I175) ->  | G176: =G175 ->  | M176: =M175 ->  | N176: =IFERROR(VLOOKUP(B176,Monarch_ForbSciNameTable,33,FALSE),"") -> 
A177: 48 | C177: =IF(ISERROR(VLOOKUP(B177,Forb_Table,2,FALSE)),"",VLOOKUP(B177,Forb_Table,2,FALSE)) ->  | G177: =IF(ISNA(VLOOKUP(B177,Forb_Table,31,FALSE)),"",VLOOKUP(B177,Forb_Table,31,FALSE)) ->  | H177: =IF(ISNA(VLOOKUP(B177,Forb_Table,25,FALSE)),"",VLOOKUP(B177,Forb_Table,25,FALSE)) ->  | I177: =IF(ISNA(VLOOKUP(B177,Forb_Table,28,FALSE)),"",VLOOKUP(B177,Forb_Table,28,FALSE)) ->  | J177: =IF(ISNA(VLOOKUP(B177,Forb_Table,21,FALSE)),"",VLOOKUP(B177,Forb_Table,21,FALSE)) ->  | K177: =IF(D178>0,D178,0) ->  | L177: =IF(D177="",IF(E177="",IF(F177="",0,F177/I177*H177),E177*H177),E178*H177) -> 0 | M177: =IF(ISNA(VLOOKUP(B177,Forb_Table,32,FALSE)),"",VLOOKUP(B177,Forb_Table,32,FALSE)) ->  | N177: =IFERROR(VLOOKUP(B177,Monarch_ForbTable,34,FALSE),"") -> 
B178: =C177 ->  | C178: =IF(ISERROR(VLOOKUP(B177,Forb_Table,30,FALSE)),"",VLOOKUP(B177,Forb_Table,30,FALSE)) ->  | D178: =IF(E177="",IF(F177="","",F177/$F$285),F178/$F$285) ->  | E178: =IF(D177="",IF(F177="","",F177/I177),J177*D177) ->  | F178: =IF(D177="",IF(E177="","",E177*I177),E178*I177) ->  | G178: =G177 ->  | M178: =M177 ->  | N178: =IFERROR(VLOOKUP(B178,Monarch_ForbSciNameTable,33,FALSE),"") -> 
A179: 49 | C179: =IF(ISERROR(VLOOKUP(B179,Forb_Table,2,FALSE)),"",VLOOKUP(B179,Forb_Table,2,FALSE)) ->  | G179: =IF(ISNA(VLOOKUP(B179,Forb_Table,31,FALSE)),"",VLOOKUP(B179,Forb_Table,31,FALSE)) ->  | H179: =IF(ISNA(VLOOKUP(B179,Forb_Table,25,FALSE)),"",VLOOKUP(B179,Forb_Table,25,FALSE)) ->  | I179: =IF(ISNA(VLOOKUP(B179,Forb_Table,28,FALSE)),"",VLOOKUP(B179,Forb_Table,28,FALSE)) ->  | J179: =IF(ISNA(VLOOKUP(B179,Forb_Table,21,FALSE)),"",VLOOKUP(B179,Forb_Table,21,FALSE)) ->  | K179: =IF(D180>0,D180,0) ->  | L179: =IF(D179="",IF(E179="",IF(F179="",0,F179/I179*H179),E179*H179),E180*H179) -> 0 | M179: =IF(ISNA(VLOOKUP(B179,Forb_Table,32,FALSE)),"",VLOOKUP(B179,Forb_Table,32,FALSE)) ->  | N179: =IFERROR(VLOOKUP(B179,Monarch_ForbTable,34,FALSE),"") -> 
B180: =C179 ->  | C180: =IF(ISERROR(VLOOKUP(B179,Forb_Table,30,FALSE)),"",VLOOKUP(B179,Forb_Table,30,FALSE)) ->  | D180: =IF(E179="",IF(F179="","",F179/$F$285),F180/$F$285) ->  | E180: =IF(D179="",IF(F179="","",F179/I179),J179*D179) ->  | F180: =IF(D179="",IF(E179="","",E179*I179),E180*I179) ->  | G180: =G179 ->  | M180: =M179 ->  | N180: =IFERROR(VLOOKUP(B180,Monarch_ForbSciNameTable,33,FALSE),"") -> 
A181: 50 | C181: =IF(ISERROR(VLOOKUP(B181,Forb_Table,2,FALSE)),"",VLOOKUP(B181,Forb_Table,2,FALSE)) ->  | G181: =IF(ISNA(VLOOKUP(B181,Forb_Table,31,FALSE)),"",VLOOKUP(B181,Forb_Table,31,FALSE)) ->  | H181: =IF(ISNA(VLOOKUP(B181,Forb_Table,25,FALSE)),"",VLOOKUP(B181,Forb_Table,25,FALSE)) ->  | I181: =IF(ISNA(VLOOKUP(B181,Forb_Table,28,FALSE)),"",VLOOKUP(B181,Forb_Table,28,FALSE)) ->  | J181: =IF(ISNA(VLOOKUP(B181,Forb_Table,21,FALSE)),"",VLOOKUP(B181,Forb_Table,21,FALSE)) ->  | K181: =IF(D182>0,D182,0) ->  | L181: =IF(D181="",IF(E181="",IF(F181="",0,F181/I181*H181),E181*H181),E182*H181) -> 0 | M181: =IF(ISNA(VLOOKUP(B181,Forb_Table,32,FALSE)),"",VLOOKUP(B181,Forb_Table,32,FALSE)) ->  | N181: =IFERROR(VLOOKUP(B181,Monarch_ForbTable,34,FALSE),"") -> 
B182: =C181 ->  | C182: =IF(ISERROR(VLOOKUP(B181,Forb_Table,30,FALSE)),"",VLOOKUP(B181,Forb_Table,30,FALSE)) ->  | D182: =IF(E181="",IF(F181="","",F181/$F$285),F182/$F$285) ->  | E182: =IF(D181="",IF(F181="","",F181/I181),J181*D181) ->  | F182: =IF(D181="",IF(E181="","",E181*I181),E182*I181) ->  | G182: =G181 ->  | M182: =M181 ->  | N182: =IFERROR(VLOOKUP(B182,Monarch_ForbSciNameTable,33,FALSE),"") -> 
A183: 51 | C183: =IF(ISERROR(VLOOKUP(B183,Forb_Table,2,FALSE)),"",VLOOKUP(B183,Forb_Table,2,FALSE)) ->  | G183: =IF(ISNA(VLOOKUP(B183,Forb_Table,31,FALSE)),"",VLOOKUP(B183,Forb_Table,31,FALSE)) ->  | H183: =IF(ISNA(VLOOKUP(B183,Forb_Table,25,FALSE)),"",VLOOKUP(B183,Forb_Table,25,FALSE)) ->  | I183: =IF(ISNA(VLOOKUP(B183,Forb_Table,28,FALSE)),"",VLOOKUP(B183,Forb_Table,28,FALSE)) ->  | J183: =IF(ISNA(VLOOKUP(B183,Forb_Table,21,FALSE)),"",VLOOKUP(B183,Forb_Table,21,FALSE)) ->  | K183: =IF(D184>0,D184,0) ->  | L183: =IF(D183="",IF(E183="",IF(F183="",0,F183/I183*H183),E183*H183),E184*H183) -> 0 | M183: =IF(ISNA(VLOOKUP(B183,Forb_Table,32,FALSE)),"",VLOOKUP(B183,Forb_Table,32,FALSE)) ->  | N183: =IFERROR(VLOOKUP(B183,Monarch_ForbTable,34,FALSE),"") -> 
B184: =C183 ->  | C184: =IF(ISERROR(VLOOKUP(B183,Forb_Table,30,FALSE)),"",VLOOKUP(B183,Forb_Table,30,FALSE)) ->  | D184: =IF(E183="",IF(F183="","",F183/$F$285),F184/$F$285) ->  | E184: =IF(D183="",IF(F183="","",F183/I183),J183*D183) ->  | F184: =IF(D183="",IF(E183="","",E183*I183),E184*I183) ->  | G184: =G183 ->  | M184: =M183 ->  | N184: =IFERROR(VLOOKUP(B184,Monarch_ForbSciNameTable,33,FALSE),"") -> 
A185: 52 | C185: =IF(ISERROR(VLOOKUP(B185,Forb_Table,2,FALSE)),"",VLOOKUP(B185,Forb_Table,2,FALSE)) ->  | G185: =IF(ISNA(VLOOKUP(B185,Forb_Table,31,FALSE)),"",VLOOKUP(B185,Forb_Table,31,FALSE)) ->  | H185: =IF(ISNA(VLOOKUP(B185,Forb_Table,25,FALSE)),"",VLOOKUP(B185,Forb_Table,25,FALSE)) ->  | I185: =IF(ISNA(VLOOKUP(B185,Forb_Table,28,FALSE)),"",VLOOKUP(B185,Forb_Table,28,FALSE)) ->  | J185: =IF(ISNA(VLOOKUP(B185,Forb_Table,21,FALSE)),"",VLOOKUP(B185,Forb_Table,21,FALSE)) ->  | K185: =IF(D186>0,D186,0) ->  | L185: =IF(D185="",IF(E185="",IF(F185="",0,F185/I185*H185),E185*H185),E186*H185) -> 0 | M185: =IF(ISNA(VLOOKUP(B185,Forb_Table,32,FALSE)),"",VLOOKUP(B185,Forb_Table,32,FALSE)) ->  | N185: =IFERROR(VLOOKUP(B185,Monarch_ForbTable,34,FALSE),"") -> 
B186: =C185 ->  | C186: =IF(ISERROR(VLOOKUP(B185,Forb_Table,30,FALSE)),"",VLOOKUP(B185,Forb_Table,30,FALSE)) ->  | D186: =IF(E185="",IF(F185="","",F185/$F$285),F186/$F$285) ->  | E186: =IF(D185="",IF(F185="","",F185/I185),J185*D185) ->  | F186: =IF(D185="",IF(E185="","",E185*I185),E186*I185) ->  | G186: =G185 ->  | M186: =M185 ->  | N186: =IFERROR(VLOOKUP(B186,Monarch_ForbSciNameTable,33,FALSE),"") -> 
A187: 53 | C187: =IF(ISERROR(VLOOKUP(B187,Forb_Table,2,FALSE)),"",VLOOKUP(B187,Forb_Table,2,FALSE)) ->  | G187: =IF(ISNA(VLOOKUP(B187,Forb_Table,31,FALSE)),"",VLOOKUP(B187,Forb_Table,31,FALSE)) ->  | H187: =IF(ISNA(VLOOKUP(B187,Forb_Table,25,FALSE)),"",VLOOKUP(B187,Forb_Table,25,FALSE)) ->  | I187: =IF(ISNA(VLOOKUP(B187,Forb_Table,28,FALSE)),"",VLOOKUP(B187,Forb_Table,28,FALSE)) ->  | J187: =IF(ISNA(VLOOKUP(B187,Forb_Table,21,FALSE)),"",VLOOKUP(B187,Forb_Table,21,FALSE)) ->  | K187: =IF(D188>0,D188,0) ->  | L187: =IF(D187="",IF(E187="",IF(F187="",0,F187/I187*H187),E187*H187),E188*H187) -> 0 | M187: =IF(ISNA(VLOOKUP(B187,Forb_Table,32,FALSE)),"",VLOOKUP(B187,Forb_Table,32,FALSE)) ->  | N187: =IFERROR(VLOOKUP(B187,Monarch_ForbTable,34,FALSE),"") -> 
B188: =C187 ->  | C188: =IF(ISERROR(VLOOKUP(B187,Forb_Table,30,FALSE)),"",VLOOKUP(B187,Forb_Table,30,FALSE)) ->  | D188: =IF(E187="",IF(F187="","",F187/$F$285),F188/$F$285) ->  | E188: =IF(D187="",IF(F187="","",F187/I187),J187*D187) ->  | F188: =IF(D187="",IF(E187="","",E187*I187),E188*I187) ->  | G188: =G187 ->  | M188: =M187 ->  | N188: =IFERROR(VLOOKUP(B188,Monarch_ForbSciNameTable,33,FALSE),"") -> 
A189: 54 | C189: =IF(ISERROR(VLOOKUP(B189,Forb_Table,2,FALSE)),"",VLOOKUP(B189,Forb_Table,2,FALSE)) ->  | G189: =IF(ISNA(VLOOKUP(B189,Forb_Table,31,FALSE)),"",VLOOKUP(B189,Forb_Table,31,FALSE)) ->  | H189: =IF(ISNA(VLOOKUP(B189,Forb_Table,25,FALSE)),"",VLOOKUP(B189,Forb_Table,25,FALSE)) ->  | I189: =IF(ISNA(VLOOKUP(B189,Forb_Table,28,FALSE)),"",VLOOKUP(B189,Forb_Table,28,FALSE)) ->  | J189: =IF(ISNA(VLOOKUP(B189,Forb_Table,21,FALSE)),"",VLOOKUP(B189,Forb_Table,21,FALSE)) ->  | K189: =IF(D190>0,D190,0) ->  | L189: =IF(D189="",IF(E189="",IF(F189="",0,F189/I189*H189),E189*H189),E190*H189) -> 0 | M189: =IF(ISNA(VLOOKUP(B189,Forb_Table,32,FALSE)),"",VLOOKUP(B189,Forb_Table,32,FALSE)) ->  | N189: =IFERROR(VLOOKUP(B189,Monarch_ForbTable,34,FALSE),"") -> 
B190: =C189 ->  | C190: =IF(ISERROR(VLOOKUP(B189,Forb_Table,30,FALSE)),"",VLOOKUP(B189,Forb_Table,30,FALSE)) ->  | D190: =IF(E189="",IF(F189="","",F189/$F$285),F190/$F$285) ->  | E190: =IF(D189="",IF(F189="","",F189/I189),J189*D189) ->  | F190: =IF(D189="",IF(E189="","",E189*I189),E190*I189) ->  | G190: =G189 ->  | M190: =M189 ->  | N190: =IFERROR(VLOOKUP(B190,Monarch_ForbSciNameTable,33,FALSE),"") -> 
A191: 55 | C191: =IF(ISERROR(VLOOKUP(B191,Forb_Table,2,FALSE)),"",VLOOKUP(B191,Forb_Table,2,FALSE)) ->  | G191: =IF(ISNA(VLOOKUP(B191,Forb_Table,31,FALSE)),"",VLOOKUP(B191,Forb_Table,31,FALSE)) ->  | H191: =IF(ISNA(VLOOKUP(B191,Forb_Table,25,FALSE)),"",VLOOKUP(B191,Forb_Table,25,FALSE)) ->  | I191: =IF(ISNA(VLOOKUP(B191,Forb_Table,28,FALSE)),"",VLOOKUP(B191,Forb_Table,28,FALSE)) ->  | J191: =IF(ISNA(VLOOKUP(B191,Forb_Table,21,FALSE)),"",VLOOKUP(B191,Forb_Table,21,FALSE)) ->  | K191: =IF(D192>0,D192,0) ->  | L191: =IF(D191="",IF(E191="",IF(F191="",0,F191/I191*H191),E191*H191),E192*H191) -> 0 | M191: =IF(ISNA(VLOOKUP(B191,Forb_Table,32,FALSE)),"",VLOOKUP(B191,Forb_Table,32,FALSE)) ->  | N191: =IFERROR(VLOOKUP(B191,Monarch_ForbTable,34,FALSE),"") -> 
B192: =C191 ->  | C192: =IF(ISERROR(VLOOKUP(B191,Forb_Table,30,FALSE)),"",VLOOKUP(B191,Forb_Table,30,FALSE)) ->  | D192: =IF(E191="",IF(F191="","",F191/$F$285),F192/$F$285) ->  | E192: =IF(D191="",IF(F191="","",F191/I191),J191*D191) ->  | F192: =IF(D191="",IF(E191="","",E191*I191),E192*I191) ->  | G192: =G191 ->  | M192: =M191 ->  | N192: =IFERROR(VLOOKUP(B192,Monarch_ForbSciNameTable,33,FALSE),"") -> 
A193: 56 | C193: =IF(ISERROR(VLOOKUP(B193,Forb_Table,2,FALSE)),"",VLOOKUP(B193,Forb_Table,2,FALSE)) ->  | G193: =IF(ISNA(VLOOKUP(B193,Forb_Table,31,FALSE)),"",VLOOKUP(B193,Forb_Table,31,FALSE)) ->  | H193: =IF(ISNA(VLOOKUP(B193,Forb_Table,25,FALSE)),"",VLOOKUP(B193,Forb_Table,25,FALSE)) ->  | I193: =IF(ISNA(VLOOKUP(B193,Forb_Table,28,FALSE)),"",VLOOKUP(B193,Forb_Table,28,FALSE)) ->  | J193: =IF(ISNA(VLOOKUP(B193,Forb_Table,21,FALSE)),"",VLOOKUP(B193,Forb_Table,21,FALSE)) ->  | K193: =IF(D194>0,D194,0) ->  | L193: =IF(D193="",IF(E193="",IF(F193="",0,F193/I193*H193),E193*H193),E194*H193) -> 0 | M193: =IF(ISNA(VLOOKUP(B193,Forb_Table,32,FALSE)),"",VLOOKUP(B193,Forb_Table,32,FALSE)) ->  | N193: =IFERROR(VLOOKUP(B193,Monarch_ForbTable,34,FALSE),"") -> 
B194: =C193 ->  | C194: =IF(ISERROR(VLOOKUP(B193,Forb_Table,30,FALSE)),"",VLOOKUP(B193,Forb_Table,30,FALSE)) ->  | D194: =IF(E193="",IF(F193="","",F193/$F$285),F194/$F$285) ->  | E194: =IF(D193="",IF(F193="","",F193/I193),J193*D193) ->  | F194: =IF(D193="",IF(E193="","",E193*I193),E194*I193) ->  | G194: =G193 ->  | M194: =M193 ->  | N194: =IFERROR(VLOOKUP(B194,Monarch_ForbSciNameTable,33,FALSE),"") -> 
A195: 57 | C195: =IF(ISERROR(VLOOKUP(B195,Forb_Table,2,FALSE)),"",VLOOKUP(B195,Forb_Table,2,FALSE)) ->  | G195: =IF(ISNA(VLOOKUP(B195,Forb_Table,31,FALSE)),"",VLOOKUP(B195,Forb_Table,31,FALSE)) ->  | H195: =IF(ISNA(VLOOKUP(B195,Forb_Table,25,FALSE)),"",VLOOKUP(B195,Forb_Table,25,FALSE)) ->  | I195: =IF(ISNA(VLOOKUP(B195,Forb_Table,28,FALSE)),"",VLOOKUP(B195,Forb_Table,28,FALSE)) ->  | J195: =IF(ISNA(VLOOKUP(B195,Forb_Table,21,FALSE)),"",VLOOKUP(B195,Forb_Table,21,FALSE)) ->  | K195: =IF(D196>0,D196,0) ->  | L195: =IF(D195="",IF(E195="",IF(F195="",0,F195/I195*H195),E195*H195),E196*H195) -> 0 | M195: =IF(ISNA(VLOOKUP(B195,Forb_Table,32,FALSE)),"",VLOOKUP(B195,Forb_Table,32,FALSE)) ->  | N195: =IFERROR(VLOOKUP(B195,Monarch_ForbTable,34,FALSE),"") -> 
B196: =C195 ->  | C196: =IF(ISERROR(VLOOKUP(B195,Forb_Table,30,FALSE)),"",VLOOKUP(B195,Forb_Table,30,FALSE)) ->  | D196: =IF(E195="",IF(F195="","",F195/$F$285),F196/$F$285) ->  | E196: =IF(D195="",IF(F195="","",F195/I195),J195*D195) ->  | F196: =IF(D195="",IF(E195="","",E195*I195),E196*I195) ->  | G196: =G195 ->  | M196: =M195 ->  | N196: =IFERROR(VLOOKUP(B196,Monarch_ForbSciNameTable,33,FALSE),"") -> 
A197: 58 | C197: =IF(ISERROR(VLOOKUP(B197,Forb_Table,2,FALSE)),"",VLOOKUP(B197,Forb_Table,2,FALSE)) ->  | G197: =IF(ISNA(VLOOKUP(B197,Forb_Table,31,FALSE)),"",VLOOKUP(B197,Forb_Table,31,FALSE)) ->  | H197: =IF(ISNA(VLOOKUP(B197,Forb_Table,25,FALSE)),"",VLOOKUP(B197,Forb_Table,25,FALSE)) ->  | I197: =IF(ISNA(VLOOKUP(B197,Forb_Table,28,FALSE)),"",VLOOKUP(B197,Forb_Table,28,FALSE)) ->  | J197: =IF(ISNA(VLOOKUP(B197,Forb_Table,21,FALSE)),"",VLOOKUP(B197,Forb_Table,21,FALSE)) ->  | K197: =IF(D198>0,D198,0) ->  | L197: =IF(D197="",IF(E197="",IF(F197="",0,F197/I197*H197),E197*H197),E198*H197) -> 0 | M197: =IF(ISNA(VLOOKUP(B197,Forb_Table,32,FALSE)),"",VLOOKUP(B197,Forb_Table,32,FALSE)) ->  | N197: =IFERROR(VLOOKUP(B197,Monarch_ForbTable,34,FALSE),"") -> 
B198: =C197 ->  | C198: =IF(ISERROR(VLOOKUP(B197,Forb_Table,30,FALSE)),"",VLOOKUP(B197,Forb_Table,30,FALSE)) ->  | D198: =IF(E197="",IF(F197="","",F197/$F$285),F198/$F$285) ->  | E198: =IF(D197="",IF(F197="","",F197/I197),J197*D197) ->  | F198: =IF(D197="",IF(E197="","",E197*I197),E198*I197) ->  | G198: =G197 ->  | M198: =M197 ->  | N198: =IFERROR(VLOOKUP(B198,Monarch_ForbSciNameTable,33,FALSE),"") -> 
A199: 59 | C199: =IF(ISERROR(VLOOKUP(B199,Forb_Table,2,FALSE)),"",VLOOKUP(B199,Forb_Table,2,FALSE)) ->  | G199: =IF(ISNA(VLOOKUP(B199,Forb_Table,31,FALSE)),"",VLOOKUP(B199,Forb_Table,31,FALSE)) ->  | H199: =IF(ISNA(VLOOKUP(B199,Forb_Table,25,FALSE)),"",VLOOKUP(B199,Forb_Table,25,FALSE)) ->  | I199: =IF(ISNA(VLOOKUP(B199,Forb_Table,28,FALSE)),"",VLOOKUP(B199,Forb_Table,28,FALSE)) ->  | J199: =IF(ISNA(VLOOKUP(B199,Forb_Table,21,FALSE)),"",VLOOKUP(B199,Forb_Table,21,FALSE)) ->  | K199: =IF(D200>0,D200,0) ->  | L199: =IF(D199="",IF(E199="",IF(F199="",0,F199/I199*H199),E199*H199),E200*H199) -> 0 | M199: =IF(ISNA(VLOOKUP(B199,Forb_Table,32,FALSE)),"",VLOOKUP(B199,Forb_Table,32,FALSE)) ->  | N199: =IFERROR(VLOOKUP(B199,Monarch_ForbTable,34,FALSE),"") -> 
B200: =C199 ->  | C200: =IF(ISERROR(VLOOKUP(B199,Forb_Table,30,FALSE)),"",VLOOKUP(B199,Forb_Table,30,FALSE)) ->  | D200: =IF(E199="",IF(F199="","",F199/$F$285),F200/$F$285) ->  | E200: =IF(D199="",IF(F199="","",F199/I199),J199*D199) ->  | F200: =IF(D199="",IF(E199="","",E199*I199),E200*I199) ->  | G200: =G199 ->  | M200: =M199 ->  | N200: =IFERROR(VLOOKUP(B200,Monarch_ForbSciNameTable,33,FALSE),"") -> 
A201: 60 | C201: =IF(ISERROR(VLOOKUP(B201,Forb_Table,2,FALSE)),"",VLOOKUP(B201,Forb_Table,2,FALSE)) ->  | G201: =IF(ISNA(VLOOKUP(B201,Forb_Table,31,FALSE)),"",VLOOKUP(B201,Forb_Table,31,FALSE)) ->  | H201: =IF(ISNA(VLOOKUP(B201,Forb_Table,25,FALSE)),"",VLOOKUP(B201,Forb_Table,25,FALSE)) ->  | I201: =IF(ISNA(VLOOKUP(B201,Forb_Table,28,FALSE)),"",VLOOKUP(B201,Forb_Table,28,FALSE)) ->  | J201: =IF(ISNA(VLOOKUP(B201,Forb_Table,21,FALSE)),"",VLOOKUP(B201,Forb_Table,21,FALSE)) ->  | K201: =IF(D202>0,D202,0) ->  | L201: =IF(D201="",IF(E201="",IF(F201="",0,F201/I201*H201),E201*H201),E202*H201) -> 0 | M201: =IF(ISNA(VLOOKUP(B201,Forb_Table,32,FALSE)),"",VLOOKUP(B201,Forb_Table,32,FALSE)) ->  | N201: =IFERROR(VLOOKUP(B201,Monarch_ForbTable,34,FALSE),"") -> 
B202: =C201 ->  | C202: =IF(ISERROR(VLOOKUP(B201,Forb_Table,30,FALSE)),"",VLOOKUP(B201,Forb_Table,30,FALSE)) ->  | D202: =IF(E201="",IF(F201="","",F201/$F$285),F202/$F$285) ->  | E202: =IF(D201="",IF(F201="","",F201/I201),J201*D201) ->  | F202: =IF(D201="",IF(E201="","",E201*I201),E202*I201) ->  | G202: =G201 ->  | M202: =M201 ->  | N202: =IFERROR(VLOOKUP(B202,Monarch_ForbSciNameTable,33,FALSE),"") -> 
A203: 61 | C203: =IF(ISERROR(VLOOKUP(B203,Forb_Table,2,FALSE)),"",VLOOKUP(B203,Forb_Table,2,FALSE)) ->  | G203: =IF(ISNA(VLOOKUP(B203,Forb_Table,31,FALSE)),"",VLOOKUP(B203,Forb_Table,31,FALSE)) ->  | H203: =IF(ISNA(VLOOKUP(B203,Forb_Table,25,FALSE)),"",VLOOKUP(B203,Forb_Table,25,FALSE)) ->  | I203: =IF(ISNA(VLOOKUP(B203,Forb_Table,28,FALSE)),"",VLOOKUP(B203,Forb_Table,28,FALSE)) ->  | J203: =IF(ISNA(VLOOKUP(B203,Forb_Table,21,FALSE)),"",VLOOKUP(B203,Forb_Table,21,FALSE)) ->  | K203: =IF(D204>0,D204,0) ->  | L203: =IF(D203="",IF(E203="",IF(F203="",0,F203/I203*H203),E203*H203),E204*H203) -> 0 | M203: =IF(ISNA(VLOOKUP(B203,Forb_Table,32,FALSE)),"",VLOOKUP(B203,Forb_Table,32,FALSE)) ->  | N203: =IFERROR(VLOOKUP(B203,Monarch_ForbTable,34,FALSE),"") -> 
B204: =C203 ->  | C204: =IF(ISERROR(VLOOKUP(B203,Forb_Table,30,FALSE)),"",VLOOKUP(B203,Forb_Table,30,FALSE)) ->  | D204: =IF(E203="",IF(F203="","",F203/$F$285),F204/$F$285) ->  | E204: =IF(D203="",IF(F203="","",F203/I203),J203*D203) ->  | F204: =IF(D203="",IF(E203="","",E203*I203),E204*I203) ->  | G204: =G203 ->  | M204: =M203 ->  | N204: =IFERROR(VLOOKUP(B204,Monarch_ForbSciNameTable,33,FALSE),"") -> 
A205: 62 | C205: =IF(ISERROR(VLOOKUP(B205,Forb_Table,2,FALSE)),"",VLOOKUP(B205,Forb_Table,2,FALSE)) ->  | G205: =IF(ISNA(VLOOKUP(B205,Forb_Table,31,FALSE)),"",VLOOKUP(B205,Forb_Table,31,FALSE)) ->  | H205: =IF(ISNA(VLOOKUP(B205,Forb_Table,25,FALSE)),"",VLOOKUP(B205,Forb_Table,25,FALSE)) ->  | I205: =IF(ISNA(VLOOKUP(B205,Forb_Table,28,FALSE)),"",VLOOKUP(B205,Forb_Table,28,FALSE)) ->  | J205: =IF(ISNA(VLOOKUP(B205,Forb_Table,21,FALSE)),"",VLOOKUP(B205,Forb_Table,21,FALSE)) ->  | K205: =IF(D206>0,D206,0) ->  | L205: =IF(D205="",IF(E205="",IF(F205="",0,F205/I205*H205),E205*H205),E206*H205) -> 0 | M205: =IF(ISNA(VLOOKUP(B205,Forb_Table,32,FALSE)),"",VLOOKUP(B205,Forb_Table,32,FALSE)) ->  | N205: =IFERROR(VLOOKUP(B205,Monarch_ForbTable,34,FALSE),"") -> 
B206: =C205 ->  | C206: =IF(ISERROR(VLOOKUP(B205,Forb_Table,30,FALSE)),"",VLOOKUP(B205,Forb_Table,30,FALSE)) ->  | D206: =IF(E205="",IF(F205="","",F205/$F$285),F206/$F$285) ->  | E206: =IF(D205="",IF(F205="","",F205/I205),J205*D205) ->  | F206: =IF(D205="",IF(E205="","",E205*I205),E206*I205) ->  | G206: =G205 ->  | M206: =M205 ->  | N206: =IFERROR(VLOOKUP(B206,Monarch_ForbSciNameTable,33,FALSE),"") -> 
A207: 63 | C207: =IF(ISERROR(VLOOKUP(B207,Forb_Table,2,FALSE)),"",VLOOKUP(B207,Forb_Table,2,FALSE)) ->  | G207: =IF(ISNA(VLOOKUP(B207,Forb_Table,31,FALSE)),"",VLOOKUP(B207,Forb_Table,31,FALSE)) ->  | H207: =IF(ISNA(VLOOKUP(B207,Forb_Table,25,FALSE)),"",VLOOKUP(B207,Forb_Table,25,FALSE)) ->  | I207: =IF(ISNA(VLOOKUP(B207,Forb_Table,28,FALSE)),"",VLOOKUP(B207,Forb_Table,28,FALSE)) ->  | J207: =IF(ISNA(VLOOKUP(B207,Forb_Table,21,FALSE)),"",VLOOKUP(B207,Forb_Table,21,FALSE)) ->  | K207: =IF(D208>0,D208,0) ->  | L207: =IF(D207="",IF(E207="",IF(F207="",0,F207/I207*H207),E207*H207),E208*H207) -> 0 | M207: =IF(ISNA(VLOOKUP(B207,Forb_Table,32,FALSE)),"",VLOOKUP(B207,Forb_Table,32,FALSE)) ->  | N207: =IFERROR(VLOOKUP(B207,Monarch_ForbTable,34,FALSE),"") -> 
... 75 more rows

Sheet SeedingPlan
F1: IA - CPA - 4 REV.
F2: September 2022
F3: (File Code 180-12-12)
A4: Seeding Plan
A6: Name | B6: =IF(ISBLANK('Supplement to Seed Plan'!D7)=TRUE,"",'Supplement to Seed Plan'!D7) ->  | F6: Date | G6: =TODAY() -> 2022-09-26 | I6: VISIBLE | K6: Agricultural Conservation Easement Program
A7: Prepared by | B7: =IF(ISBLANK('Supplement to Seed Plan'!H86)=TRUE,"",'Supplement to Seed Plan'!H86) ->  | F7: Tract No. | G7: =IF(ISBLANK('Supplement to Seed Plan'!V10)=TRUE,"",'Supplement to Seed Plan'!V10) ->  | I7: =COUNT(H14:H43) -> 0 | K7: Conservation Reserve Program
F8: Field No. | G8: =IF(ISBLANK('Supplement to Seed Plan'!F10)=TRUE,"",'Supplement to Seed Plan'!F10) ->  | I8: =COUNT(H47:H136) -> 0 | K8: Conservation Stewardship Program
A9: Program: | B9: =IF(ISBLANK('Supplement to Seed Plan'!M19)=TRUE,"",'Supplement to Seed Plan'!M19) ->  | D9: Acres: | E9: =IF(ISBLANK('Supplement to Seed Plan'!P10)=TRUE,"",'Supplement to Seed Plan'!P10) ->  | F9: Contract No. | G9: =IF(ISBLANK('Supplement to Seed Plan'!M20)=TRUE,"",'Supplement to Seed Plan'!M20) ->  | I9: =COUNT(H141:H145) -> 0 | K9: Environmental Quality Incentives Program
F10: Moisture Regime | G10: =IF(ISBLANK('Supplement to Seed Plan'!J26)=TRUE,"",'Supplement to Seed Plan'!J26) ->  | K10: Iowa Financial Incentive Program
A11: Seeding Mix Summary | K11: Iowa Water Quality Initiative
A13: Grasses | B13: Scientific Name | C13: Common Name | D13: Seeds/Ft2 | E13: PLS Lbs/Acre | F13: PLS Lbs Total
A14: 1 | B14: =IF(ISNA(VLOOKUP(Calculator!B15,Grass_Table,2,FALSE)),"",VLOOKUP(Calculator!B15,Grass_Table,2,FALSE)) ->  | C14: =IF(ISBLANK(Calculator!B15),"",Calculator!B15) ->  | D14: =IF(C14="","",SUM(Calculator!F15:F16)) ->  | E14: =IF(C14="","",SUM(Calculator!E15:E16)) ->  | F14: =IF(E14<>"",E14*$E$9,"") ->  | H14: =IF(LEN(B14)>1,VALUE("1"),"") -> 
A15: 2 | B15: =IF(ISNA(VLOOKUP(Calculator!B17,Grass_Table,2,FALSE)),"",VLOOKUP(Calculator!B17,Grass_Table,2,FALSE)) ->  | C15: =IF(ISBLANK(Calculator!B17),"",Calculator!B17) ->  | D15: =IF(C15="","",SUM(Calculator!F17:F18)) ->  | E15: =IF(C15="","",SUM(Calculator!E17:E18)) ->  | H15: =IF(LEN(B15)>1,VALUE("1"),"") -> 
A16: 3 | B16: =IF(ISNA(VLOOKUP(Calculator!B19,Grass_Table,2,FALSE)),"",VLOOKUP(Calculator!B19,Grass_Table,2,FALSE)) ->  | C16: =IF(ISBLANK(Calculator!B19),"",Calculator!B19) ->  | D16: =IF(C16="","",SUM(Calculator!F19:F20)) ->  | E16: =IF(C16="","",SUM(Calculator!E19:E20)) -> 
A17: 4 | B17: =IF(ISNA(VLOOKUP(Calculator!B21,Grass_Table,2,FALSE)),"",VLOOKUP(Calculator!B21,Grass_Table,2,FALSE)) ->  | C17: =IF(ISBLANK(Calculator!B21),"",Calculator!B21) ->  | D17: =IF(C17="","",SUM(Calculator!F21:F22)) ->  | E17: =IF(C17="","",SUM(Calculator!E21:E22)) -> 
A18: 5 | B18: =IF(ISNA(VLOOKUP(Calculator!B23,Grass_Table,2,FALSE)),"",VLOOKUP(Calculator!B23,Grass_Table,2,FALSE)) ->  | C18: =IF(ISBLANK(Calculator!B23),"",Calculator!B23) ->  | D18: =IF(C18="","",SUM(Calculator!F23:F24)) ->  | E18: =IF(C18="","",SUM(Calculator!E23:E24)) -> 
A19: 6 | B19: =IF(ISNA(VLOOKUP(Calculator!B25,Grass_Table,2,FALSE)),"",VLOOKUP(Calculator!B25,Grass_Table,2,FALSE)) ->  | C19: =IF(ISBLANK(Calculator!B25),"",Calculator!B25) ->  | D19: =IF(C19="","",SUM(Calculator!F25:F26)) ->  | E19: =IF(C19="","",SUM(Calculator!E25:E26)) -> 
A20: 7 | B20: =IF(ISNA(VLOOKUP(Calculator!B27,Grass_Table,2,FALSE)),"",VLOOKUP(Calculator!B27,Grass_Table,2,FALSE)) ->  | C20: =IF(ISBLANK(Calculator!B27),"",Calculator!B27) ->  | D20: =IF(C20="","",SUM(Calculator!F27:F28)) ->  | E20: =IF(C20="","",SUM(Calculator!E27:E28)) -> 
A21: 8 | B21: =IF(ISNA(VLOOKUP(Calculator!B29,Grass_Table,2,FALSE)),"",VLOOKUP(Calculator!B29,Grass_Table,2,FALSE)) ->  | C21: =IF(ISBLANK(Calculator!B29),"",Calculator!B29) ->  | D21: =IF(C21="","",SUM(Calculator!F29:F30)) ->  | E21: =IF(C21="","",SUM(Calculator!E29:E30)) -> 
A22: 9 | B22: =IF(ISNA(VLOOKUP(Calculator!B31,Grass_Table,2,FALSE)),"",VLOOKUP(Calculator!B31,Grass_Table,2,FALSE)) ->  | C22: =IF(ISBLANK(Calculator!B31),"",Calculator!B31) ->  | D22: =IF(C22="","",SUM(Calculator!F31:F32)) ->  | E22: =IF(C22="","",SUM(Calculator!E31:E32)) -> 
A23: 10 | B23: =IF(ISNA(VLOOKUP(Calculator!B33,Grass_Table,2,FALSE)),"",VLOOKUP(Calculator!B33,Grass_Table,2,FALSE)) ->  | C23: =IF(ISBLANK(Calculator!B33),"",Calculator!B33) ->  | D23: =IF(C23="","",SUM(Calculator!F33:F34)) ->  | E23: =IF(C23="","",SUM(Calculator!E33:E34)) -> 
A24: 11 | B24: =IF(ISNA(VLOOKUP(Calculator!B35,Grass_Table,2,FALSE)),"",VLOOKUP(Calculator!B35,Grass_Table,2,FALSE)) ->  | C24: =IF(ISBLANK(Calculator!B35),"",Calculator!B35) ->  | D24: =IF(C24="","",SUM(Calculator!F35:F36)) ->  | E24: =IF(C24="","",SUM(Calculator!E35:E36)) -> 
A25: 12 | B25: =IF(ISNA(VLOOKUP(Calculator!B37,Grass_Table,2,FALSE)),"",VLOOKUP(Calculator!B37,Grass_Table,2,FALSE)) ->  | C25: =IF(ISBLANK(Calculator!B37),"",Calculator!B37) ->  | D25: =IF(C25="","",SUM(Calculator!F37:F38)) ->  | E25: =IF(C25="","",SUM(Calculator!E37:E38)) -> 
A26: 13 | B26: =IF(ISNA(VLOOKUP(Calculator!B39,Grass_Table,2,FALSE)),"",VLOOKUP(Calculator!B39,Grass_Table,2,FALSE)) ->  | C26: =IF(ISBLANK(Calculator!B39),"",Calculator!B39) ->  | D26: =IF(C26="","",SUM(Calculator!F39:F40)) ->  | E26: =IF(C26="","",SUM(Calculator!E39:E40)) -> 
A27: 14 | B27: =IF(ISNA(VLOOKUP(Calculator!B41,Grass_Table,2,FALSE)),"",VLOOKUP(Calculator!B41,Grass_Table,2,FALSE)) ->  | C27: =IF(ISBLANK(Calculator!B41),"",Calculator!B41) ->  | D27: =IF(C27="","",SUM(Calculator!F41:F42)) ->  | E27: =IF(C27="","",SUM(Calculator!E41:E42)) -> 
A28: 15 | B28: =IF(ISNA(VLOOKUP(Calculator!B43,Grass_Table,2,FALSE)),"",VLOOKUP(Calculator!B43,Grass_Table,2,FALSE)) ->  | C28: =IF(ISBLANK(Calculator!B43),"",Calculator!B43) ->  | D28: =IF(C28="","",SUM(Calculator!F43:F44)) ->  | E28: =IF(C28="","",SUM(Calculator!E43:E44)) -> 
A29: 16 | B29: =IF(ISNA(VLOOKUP(Calculator!B45,Grass_Table,2,FALSE)),"",VLOOKUP(Calculator!B45,Grass_Table,2,FALSE)) ->  | C29: =IF(ISBLANK(Calculator!B45),"",Calculator!B45) ->  | D29: =IF(C29="","",SUM(Calculator!F45:F46)) ->  | E29: =IF(C29="","",SUM(Calculator!E45:E46)) -> 
A30: 17 | B30: =IF(ISNA(VLOOKUP(Calculator!B47,Grass_Table,2,FALSE)),"",VLOOKUP(Calculator!B47,Grass_Table,2,FALSE)) ->  | C30: =IF(ISBLANK(Calculator!B47),"",Calculator!B47) ->  | D30: =IF(C30="","",SUM(Calculator!F47:F48)) ->  | E30: =IF(C30="","",SUM(Calculator!E47:E48)) -> 
A31: 18 | B31: =IF(ISNA(VLOOKUP(Calculator!B49,Grass_Table,2,FALSE)),"",VLOOKUP(Calculator!B49,Grass_Table,2,FALSE)) ->  | C31: =IF(ISBLANK(Calculator!B49),"",Calculator!B49) ->  | D31: =IF(C31="","",SUM(Calculator!F49:F50)) ->  | E31: =IF(C31="","",SUM(Calculator!E49:E50)) -> 
A32: 19 | B32: =IF(ISNA(VLOOKUP(Calculator!B51,Grass_Table,2,FALSE)),"",VLOOKUP(Calculator!B51,Grass_Table,2,FALSE)) ->  | C32: =IF(ISBLANK(Calculator!B51),"",Calculator!B51) ->  | D32: =IF(C32="","",SUM(Calculator!F51:F52)) ->  | E32: =IF(C32="","",SUM(Calculator!E51:E52)) -> 
A33: 20 | B33: =IF(ISNA(VLOOKUP(Calculator!B53,Grass_Table,2,FALSE)),"",VLOOKUP(Calculator!B53,Grass_Table,2,FALSE)) ->  | C33: =IF(ISBLANK(Calculator!B53),"",Calculator!B53) ->  | D33: =IF(C33="","",SUM(Calculator!F53:F54)) ->  | E33: =IF(C33="","",SUM(Calculator!E53:E54)) -> 
A34: 21 | B34: =IF(ISNA(VLOOKUP(Calculator!B55,Grass_Table,2,FALSE)),"",VLOOKUP(Calculator!B55,Grass_Table,2,FALSE)) ->  | C34: =IF(ISBLANK(Calculator!B55),"",Calculator!B55) ->  | D34: =IF(C34="","",SUM(Calculator!F55:F56)) ->  | E34: =IF(C34="","",SUM(Calculator!E55:E56)) -> 
A35: 22 | B35: =IF(ISNA(VLOOKUP(Calculator!B57,Grass_Table,2,FALSE)),"",VLOOKUP(Calculator!B57,Grass_Table,2,FALSE)) ->  | C35: =IF(ISBLANK(Calculator!B57),"",Calculator!B57) ->  | D35: =IF(C35="","",SUM(Calculator!F57:F58)) ->  | E35: =IF(C35="","",SUM(Calculator!E57:E58)) -> 
A36: 23 | B36: =IF(ISNA(VLOOKUP(Calculator!B59,Grass_Table,2,FALSE)),"",VLOOKUP(Calculator!B59,Grass_Table,2,FALSE)) ->  | C36: =IF(ISBLANK(Calculator!B59),"",Calculator!B59) ->  | D36: =IF(C36="","",SUM(Calculator!F59:F60)) ->  | E36: =IF(C36="","",SUM(Calculator!E59:E60)) -> 
A37: 24 | B37: =IF(ISNA(VLOOKUP(Calculator!B61,Grass_Table,2,FALSE)),"",VLOOKUP(Calculator!B61,Grass_Table,2,FALSE)) ->  | C37: =IF(ISBLANK(Calculator!B61),"",Calculator!B61) ->  | D37: =IF(C37="","",SUM(Calculator!F61:F62)) ->  | E37: =IF(C37="","",SUM(Calculator!E61:E62)) -> 
A38: 25 | B38: =IF(ISNA(VLOOKUP(Calculator!B63,Grass_Table,2,FALSE)),"",VLOOKUP(Calculator!B63,Grass_Table,2,FALSE)) ->  | C38: =IF(ISBLANK(Calculator!B63),"",Calculator!B63) ->  | D38: =IF(C38="","",SUM(Calculator!F63:F64)) ->  | E38: =IF(C38="","",SUM(Calculator!E63:E64)) -> 
A39: 26 | B39: =IF(ISNA(VLOOKUP(Calculator!B65,Grass_Table,2,FALSE)),"",VLOOKUP(Calculator!B65,Grass_Table,2,FALSE)) ->  | C39: =IF(ISBLANK(Calculator!B65),"",Calculator!B65) ->  | D39: =IF(C39="","",SUM(Calculator!F65:F66)) ->  | E39: =IF(C39="","",SUM(Calculator!E65:E66)) -> 
A40: 27 | B40: =IF(ISNA(VLOOKUP(Calculator!B67,Grass_Table,2,FALSE)),"",VLOOKUP(Calculator!B67,Grass_Table,2,FALSE)) ->  | C40: =IF(ISBLANK(Calculator!B67),"",Calculator!B67) ->  | D40: =IF(C40="","",SUM(Calculator!F67:F68)) ->  | E40: =IF(C40="","",SUM(Calculator!E67:E68)) -> 
A41: 28 | B41: =IF(ISNA(VLOOKUP(Calculator!B69,Grass_Table,2,FALSE)),"",VLOOKUP(Calculator!B69,Grass_Table,2,FALSE)) ->  | C41: =IF(ISBLANK(Calculator!B69),"",Calculator!B69) ->  | D41: =IF(C41="","",SUM(Calculator!F69:F70)) ->  | E41: =IF(C41="","",SUM(Calculator!E69:E70)) -> 
A42: 29 | B42: =IF(ISNA(VLOOKUP(Calculator!B71,Grass_Table,2,FALSE)),"",VLOOKUP(Calculator!B71,Grass_Table,2,FALSE)) ->  | C42: =IF(ISBLANK(Calculator!B71),"",Calculator!B71) ->  | D42: =IF(C42="","",SUM(Calculator!F71:F72)) ->  | E42: =IF(C42="","",SUM(Calculator!E71:E72)) -> 
A43: 30 | B43: =IF(ISNA(VLOOKUP(Calculator!B73,Grass_Table,2,FALSE)),"",VLOOKUP(Calculator!B73,Grass_Table,2,FALSE)) ->  | C43: =IF(ISBLANK(Calculator!B73),"",Calculator!B73) ->  | D43: =IF(C43="","",SUM(Calculator!F73:F74)) ->  | E43: =IF(C43="","",SUM(Calculator!E73:E74)) -> 
C45: SUBTOTAL GRASSES | D45: =SUM(D14:D43) -> 0 | E45: =SUM(E14:E43) -> 0 | F45: =SUM(F14:F43) -> 0
A46: Forbs/Legumes | B46: Scientific Name | C46: Common Name | D46: Seeds/Ft2 | E46: PLS Lbs/Acre | F46: PLS Lbs Total
A47: 1 | B47: =IF(ISNA(VLOOKUP(Calculator!B83,Forb_Table,2,FALSE)),"",VLOOKUP(Calculator!B83,Forb_Table,2,FALSE)) ->  | C47: =IF(ISBLANK(Calculator!B83),"",Calculator!B83) ->  | D47: =IF(C47="","",SUM(Calculator!F83:F84)) ->  | E47: =IF(C47="","",SUM(Calculator!E83:E84)) ->  | F47: =IF(E47<>"",E47*$E$9,"") ->  | H47: =IF(LEN(B47)>1,VALUE("1"),"") -> 
A48: 2 | B48: =IF(ISNA(VLOOKUP(Calculator!B85,Forb_Table,2,FALSE)),"",VLOOKUP(Calculator!B85,Forb_Table,2,FALSE)) ->  | C48: =IF(ISBLANK(Calculator!B85),"",Calculator!B85) ->  | D48: =IF(C48="","",SUM(Calculator!F85:F86)) ->  | E48: =IF(C48="","",SUM(Calculator!E85:E86)) ->  | H48: =IF(LEN(B48)>1,VALUE("1"),"") -> 
A49: 3 | B49: =IF(ISNA(VLOOKUP(Calculator!B87,Forb_Table,2,FALSE)),"",VLOOKUP(Calculator!B87,Forb_Table,2,FALSE)) ->  | C49: =IF(ISBLANK(Calculator!B87),"",Calculator!B87) ->  | D49: =IF(C49="","",SUM(Calculator!F87:F88)) ->  | E49: =IF(C49="","",SUM(Calculator!E87:E88)) -> 
A50: 4 | B50: =IF(ISNA(VLOOKUP(Calculator!B89,Forb_Table,2,FALSE)),"",VLOOKUP(Calculator!B89,Forb_Table,2,FALSE)) ->  | C50: =IF(ISBLANK(Calculator!B89),"",Calculator!B89) ->  | D50: =IF(C50="","",SUM(Calculator!F89:F90)) ->  | E50: =IF(C50="","",SUM(Calculator!E89:E90)) -> 
A51: 5 | B51: =IF(ISNA(VLOOKUP(Calculator!B91,Forb_Table,2,FALSE)),"",VLOOKUP(Calculator!B91,Forb_Table,2,FALSE)) ->  | C51: =IF(ISBLANK(Calculator!B91),"",Calculator!B91) ->  | D51: =IF(C51="","",SUM(Calculator!F91:F92)) ->  | E51: =IF(C51="","",SUM(Calculator!E91:E92)) -> 
A52: 6 | B52: =IF(ISNA(VLOOKUP(Calculator!B93,Forb_Table,2,FALSE)),"",VLOOKUP(Calculator!B93,Forb_Table,2,FALSE)) ->  | C52: =IF(ISBLANK(Calculator!B93),"",Calculator!B93) ->  | D52: =IF(C52="","",SUM(Calculator!F93:F94)) ->  | E52: =IF(C52="","",SUM(Calculator!E93:E94)) -> 
A53: 7 | B53: =IF(ISNA(VLOOKUP(Calculator!B95,Forb_Table,2,FALSE)),"",VLOOKUP(Calculator!B95,Forb_Table,2,FALSE)) ->  | C53: =IF(ISBLANK(Calculator!B95),"",Calculator!B95) ->  | D53: =IF(C53="","",SUM(Calculator!F95:F96)) ->  | E53: =IF(C53="","",SUM(Calculator!E95:E96)) -> 
A54: 8 | B54: =IF(ISNA(VLOOKUP(Calculator!B97,Forb_Table,2,FALSE)),"",VLOOKUP(Calculator!B97,Forb_Table,2,FALSE)) ->  | C54: =IF(ISBLANK(Calculator!B97),"",Calculator!B97) ->  | D54: =IF(C54="","",SUM(Calculator!F97:F98)) ->  | E54: =IF(C54="","",SUM(Calculator!E97:E98)) -> 
A55: 9 | B55: =IF(ISNA(VLOOKUP(Calculator!B99,Forb_Table,2,FALSE)),"",VLOOKUP(Calculator!B99,Forb_Table,2,FALSE)) ->  | C55: =IF(ISBLANK(Calculator!B99),"",Calculator!B99) ->  | D55: =IF(C55="","",SUM(Calculator!F99:F100)) ->  | E55: =IF(C55="","",SUM(Calculator!E99:E100)) -> 
A56: 10 | B56: =IF(ISNA(VLOOKUP(Calculator!B101,Forb_Table,2,FALSE)),"",VLOOKUP(Calculator!B101,Forb_Table,2,FALSE)) ->  | C56: =IF(ISBLANK(Calculator!B101),"",Calculator!B101) ->  | D56: =IF(C56="","",SUM(Calculator!F101:F102)) ->  | E56: =IF(C56="","",SUM(Calculator!E101:E102)) -> 
A57: 11 | B57: =IF(ISNA(VLOOKUP(Calculator!B103,Forb_Table,2,FALSE)),"",VLOOKUP(Calculator!B103,Forb_Table,2,FALSE)) ->  | C57: =IF(ISBLANK(Calculator!B103),"",Calculator!B103) ->  | D57: =IF(C57="","",SUM(Calculator!F103:F104)) ->  | E57: =IF(C57="","",SUM(Calculator!E103:E104)) -> 
A58: 12 | B58: =IF(ISNA(VLOOKUP(Calculator!B105,Forb_Table,2,FALSE)),"",VLOOKUP(Calculator!B105,Forb_Table,2,FALSE)) ->  | C58: =IF(ISBLANK(Calculator!B105),"",Calculator!B105) ->  | D58: =IF(C58="","",SUM(Calculator!F105:F106)) ->  | E58: =IF(C58="","",SUM(Calculator!E105:E106)) -> 
A59: 13 | B59: =IF(ISNA(VLOOKUP(Calculator!B107,Forb_Table,2,FALSE)),"",VLOOKUP(Calculator!B107,Forb_Table,2,FALSE)) ->  | C59: =IF(ISBLANK(Calculator!B107),"",Calculator!B107) ->  | D59: =IF(C59="","",SUM(Calculator!F107:F108)) ->  | E59: =IF(C59="","",SUM(Calculator!E107:E108)) -> 
A60: 14 | B60: =IF(ISNA(VLOOKUP(Calculator!B109,Forb_Table,2,FALSE)),"",VLOOKUP(Calculator!B109,Forb_Table,2,FALSE)) ->  | C60: =IF(ISBLANK(Calculator!B109),"",Calculator!B109) ->  | D60: =IF(C60="","",SUM(Calculator!F109:F110)) ->  | E60: =IF(C60="","",SUM(Calculator!E109:E110)) -> 
A61: 15 | B61: =IF(ISNA(VLOOKUP(Calculator!B111,Forb_Table,2,FALSE)),"",VLOOKUP(Calculator!B111,Forb_Table,2,FALSE)) ->  | C61: =IF(ISBLANK(Calculator!B111),"",Calculator!B111) ->  | D61: =IF(C61="","",SUM(Calculator!F111:F112)) ->  | E61: =IF(C61="","",SUM(Calculator!E111:E112)) -> 
A62: 16 | B62: =IF(ISNA(VLOOKUP(Calculator!B113,Forb_Table,2,FALSE)),"",VLOOKUP(Calculator!B113,Forb_Table,2,FALSE)) ->  | C62: =IF(ISBLANK(Calculator!B113),"",Calculator!B113) ->  | D62: =IF(C62="","",SUM(Calculator!F113:F114)) ->  | E62: =IF(C62="","",SUM(Calculator!E113:E114)) -> 
A63: 17 | B63: =IF(ISNA(VLOOKUP(Calculator!B115,Forb_Table,2,FALSE)),"",VLOOKUP(Calculator!B115,Forb_Table,2,FALSE)) ->  | C63: =IF(ISBLANK(Calculator!B115),"",Calculator!B115) ->  | D63: =IF(C63="","",SUM(Calculator!F115:F116)) ->  | E63: =IF(C63="","",SUM(Calculator!E115:E116)) -> 
A64: 18 | B64: =IF(ISNA(VLOOKUP(Calculator!B117,Forb_Table,2,FALSE)),"",VLOOKUP(Calculator!B117,Forb_Table,2,FALSE)) ->  | C64: =IF(ISBLANK(Calculator!B117),"",Calculator!B117) ->  | D64: =IF(C64="","",SUM(Calculator!F117:F118)) ->  | E64: =IF(C64="","",SUM(Calculator!E117:E118)) -> 
A65: 19 | B65: =IF(ISNA(VLOOKUP(Calculator!B119,Forb_Table,2,FALSE)),"",VLOOKUP(Calculator!B119,Forb_Table,2,FALSE)) ->  | C65: =IF(ISBLANK(Calculator!B119),"",Calculator!B119) ->  | D65: =IF(C65="","",SUM(Calculator!F119:F120)) ->  | E65: =IF(C65="","",SUM(Calculator!E119:E120)) -> 
A66: 20 | B66: =IF(ISNA(VLOOKUP(Calculator!B121,Forb_Table,2,FALSE)),"",VLOOKUP(Calculator!B121,Forb_Table,2,FALSE)) ->  | C66: =IF(ISBLANK(Calculator!B121),"",Calculator!B121) ->  | D66: =IF(C66="","",SUM(Calculator!F121:F122)) ->  | E66: =IF(C66="","",SUM(Calculator!E121:E122)) -> 
A67: 21 | B67: =IF(ISNA(VLOOKUP(Calculator!B123,Forb_Table,2,FALSE)),"",VLOOKUP(Calculator!B123,Forb_Table,2,FALSE)) ->  | C67: =IF(ISBLANK(Calculator!B123),"",Calculator!B123) ->  | D67: =IF(C67="","",SUM(Calculator!F123:F124)) ->  | E67: =IF(C67="","",SUM(Calculator!E123:E124)) -> 
A68: 22 | B68: =IF(ISNA(VLOOKUP(Calculator!B125,Forb_Table,2,FALSE)),"",VLOOKUP(Calculator!B125,Forb_Table,2,FALSE)) ->  | C68: =IF(ISBLANK(Calculator!B125),"",Calculator!B125) ->  | D68: =IF(C68="","",SUM(Calculator!F125:F126)) ->  | E68: =IF(C68="","",SUM(Calculator!E125:E126)) -> 
A69: 23 | B69: =IF(ISNA(VLOOKUP(Calculator!B127,Forb_Table,2,FALSE)),"",VLOOKUP(Calculator!B127,Forb_Table,2,FALSE)) ->  | C69: =IF(ISBLANK(Calculator!B127),"",Calculator!B127) ->  | D69: =IF(C69="","",SUM(Calculator!F127:F128)) ->  | E69: =IF(C69="","",SUM(Calculator!E127:E128)) -> 
A70: 24 | B70: =IF(ISNA(VLOOKUP(Calculator!B129,Forb_Table,2,FALSE)),"",VLOOKUP(Calculator!B129,Forb_Table,2,FALSE)) ->  | C70: =IF(ISBLANK(Calculator!B129),"",Calculator!B129) ->  | D70: =IF(C70="","",SUM(Calculator!F129:F130)) ->  | E70: =IF(C70="","",SUM(Calculator!E129:E130)) -> 
A71: 25 | B71: =IF(ISNA(VLOOKUP(Calculator!B131,Forb_Table,2,FALSE)),"",VLOOKUP(Calculator!B131,Forb_Table,2,FALSE)) ->  | C71: =IF(ISBLANK(Calculator!B131),"",Calculator!B131) ->  | D71: =IF(C71="","",SUM(Calculator!F131:F132)) ->  | E71: =IF(C71="","",SUM(Calculator!E131:E132)) -> 
A72: 26 | B72: =IF(ISNA(VLOOKUP(Calculator!B133,Forb_Table,2,FALSE)),"",VLOOKUP(Calculator!B133,Forb_Table,2,FALSE)) ->  | C72: =IF(ISBLANK(Calculator!B133),"",Calculator!B133) ->  | D72: =IF(C72="","",SUM(Calculator!F133:F134)) ->  | E72: =IF(C72="","",SUM(Calculator!E133:E134)) -> 
A73: 27 | B73: =IF(ISNA(VLOOKUP(Calculator!B135,Forb_Table,2,FALSE)),"",VLOOKUP(Calculator!B135,Forb_Table,2,FALSE)) ->  | C73: =IF(ISBLANK(Calculator!B135),"",Calculator!B135) ->  | D73: =IF(C73="","",SUM(Calculator!F135:F136)) ->  | E73: =IF(C73="","",SUM(Calculator!E135:E136)) -> 
A74: 28 | B74: =IF(ISNA(VLOOKUP(Calculator!B137,Forb_Table,2,FALSE)),"",VLOOKUP(Calculator!B137,Forb_Table,2,FALSE)) ->  | C74: =IF(ISBLANK(Calculator!B137),"",Calculator!B137) ->  | D74: =IF(C74="","",SUM(Calculator!F137:F138)) ->  | E74: =IF(C74="","",SUM(Calculator!E137:E138)) -> 
A75: 29 | B75: =IF(ISNA(VLOOKUP(Calculator!B139,Forb_Table,2,FALSE)),"",VLOOKUP(Calculator!B139,Forb_Table,2,FALSE)) ->  | C75: =IF(ISBLANK(Calculator!B139),"",Calculator!B139) ->  | D75: =IF(C75="","",SUM(Calculator!F139:F140)) ->  | E75: =IF(C75="","",SUM(Calculator!E139:E140)) -> 
A76: 30 | B76: =IF(ISNA(VLOOKUP(Calculator!B141,Forb_Table,2,FALSE)),"",VLOOKUP(Calculator!B141,Forb_Table,2,FALSE)) ->  | C76: =IF(ISBLANK(Calculator!B141),"",Calculator!B141) ->  | D76: =IF(C76="","",SUM(Calculator!F141:F142)) ->  | E76: =IF(C76="","",SUM(Calculator!E141:E142)) -> 
A77: 31 | B77: =IF(ISNA(VLOOKUP(Calculator!B143,Forb_Table,2,FALSE)),"",VLOOKUP(Calculator!B143,Forb_Table,2,FALSE)) ->  | C77: =IF(ISBLANK(Calculator!B143),"",Calculator!B143) ->  | D77: =IF(C77="","",SUM(Calculator!F143:F144)) ->  | E77: =IF(C77="","",SUM(Calculator!E143:E144)) -> 
A78: 32 | B78: =IF(ISNA(VLOOKUP(Calculator!B145,Forb_Table,2,FALSE)),"",VLOOKUP(Calculator!B145,Forb_Table,2,FALSE)) ->  | C78: =IF(ISBLANK(Calculator!B145),"",Calculator!B145) ->  | D78: =IF(C78="","",SUM(Calculator!F145:F146)) ->  | E78: =IF(C78="","",SUM(Calculator!E145:E146)) -> 
A79: 33 | B79: =IF(ISNA(VLOOKUP(Calculator!B147,Forb_Table,2,FALSE)),"",VLOOKUP(Calculator!B147,Forb_Table,2,FALSE)) ->  | C79: =IF(ISBLANK(Calculator!B147),"",Calculator!B147) ->  | D79: =IF(C79="","",SUM(Calculator!F147:F148)) ->  | E79: =IF(C79="","",SUM(Calculator!E147:E148)) -> 
A80: 34 | B80: =IF(ISNA(VLOOKUP(Calculator!B149,Forb_Table,2,FALSE)),"",VLOOKUP(Calculator!B149,Forb_Table,2,FALSE)) ->  | C80: =IF(ISBLANK(Calculator!B149),"",Calculator!B149) ->  | D80: =IF(C80="","",SUM(Calculator!F149:F150)) ->  | E80: =IF(C80="","",SUM(Calculator!E149:E150)) -> 
A81: 35 | B81: =IF(ISNA(VLOOKUP(Calculator!B151,Forb_Table,2,FALSE)),"",VLOOKUP(Calculator!B151,Forb_Table,2,FALSE)) ->  | C81: =IF(ISBLANK(Calculator!B151),"",Calculator!B151) ->  | D81: =IF(C81="","",SUM(Calculator!F151:F152)) ->  | E81: =IF(C81="","",SUM(Calculator!E151:E152)) -> 
A82: 36 | B82: =IF(ISNA(VLOOKUP(Calculator!B153,Forb_Table,2,FALSE)),"",VLOOKUP(Calculator!B153,Forb_Table,2,FALSE)) ->  | C82: =IF(ISBLANK(Calculator!B153),"",Calculator!B153) ->  | D82: =IF(C82="","",SUM(Calculator!F153:F154)) ->  | E82: =IF(C82="","",SUM(Calculator!E153:E154)) -> 
A83: 37 | B83: =IF(ISNA(VLOOKUP(Calculator!B155,Forb_Table,2,FALSE)),"",VLOOKUP(Calculator!B155,Forb_Table,2,FALSE)) ->  | C83: =IF(ISBLANK(Calculator!B155),"",Calculator!B155) ->  | D83: =IF(C83="","",SUM(Calculator!F155:F156)) ->  | E83: =IF(C83="","",SUM(Calculator!E155:E156)) -> 
A84: 38 | B84: =IF(ISNA(VLOOKUP(Calculator!B157,Forb_Table,2,FALSE)),"",VLOOKUP(Calculator!B157,Forb_Table,2,FALSE)) ->  | C84: =IF(ISBLANK(Calculator!B157),"",Calculator!B157) ->  | D84: =IF(C84="","",SUM(Calculator!F157:F158)) ->  | E84: =IF(C84="","",SUM(Calculator!E157:E158)) -> 
A85: 39 | B85: =IF(ISNA(VLOOKUP(Calculator!B159,Forb_Table,2,FALSE)),"",VLOOKUP(Calculator!B159,Forb_Table,2,FALSE)) ->  | C85: =IF(ISBLANK(Calculator!B159),"",Calculator!B159) ->  | D85: =IF(C85="","",SUM(Calculator!F159:F160)) ->  | E85: =IF(C85="","",SUM(Calculator!E159:E160)) -> 
A86: 40 | B86: =IF(ISNA(VLOOKUP(Calculator!B161,Forb_Table,2,FALSE)),"",VLOOKUP(Calculator!B161,Forb_Table,2,FALSE)) ->  | C86: =IF(ISBLANK(Calculator!B161),"",Calculator!B161) ->  | D86: =IF(C86="","",SUM(Calculator!F161:F162)) ->  | E86: =IF(C86="","",SUM(Calculator!E161:E162)) ->  | F86: =IF(E86<>"",E86*$E$9,"") -> 
A87: 41 | B87: =IF(ISNA(VLOOKUP(Calculator!B163,Forb_Table,2,FALSE)),"",VLOOKUP(Calculator!B163,Forb_Table,2,FALSE)) ->  | C87: =IF(ISBLANK(Calculator!B163),"",Calculator!B163) ->  | D87: =IF(C87="","",SUM(Calculator!F163:F164)) ->  | E87: =IF(C87="","",SUM(Calculator!E163:E164)) ->  | F87: =IF(E87<>"",E87*$E$9,"") -> 
A88: 42 | B88: =IF(ISNA(VLOOKUP(Calculator!B165,Forb_Table,2,FALSE)),"",VLOOKUP(Calculator!B165,Forb_Table,2,FALSE)) ->  | C88: =IF(ISBLANK(Calculator!B165),"",Calculator!B165) ->  | D88: =IF(C88="","",SUM(Calculator!F165:F166)) ->  | E88: =IF(C88="","",SUM(Calculator!E165:E166)) -> 
A89: 43 | B89: =IF(ISNA(VLOOKUP(Calculator!B167,Forb_Table,2,FALSE)),"",VLOOKUP(Calculator!B167,Forb_Table,2,FALSE)) ->  | C89: =IF(ISBLANK(Calculator!B167),"",Calculator!B167) ->  | D89: =IF(C89="","",SUM(Calculator!F167:F168)) ->  | E89: =IF(C89="","",SUM(Calculator!E167:E168)) -> 
A90: 44 | B90: =IF(ISNA(VLOOKUP(Calculator!B169,Forb_Table,2,FALSE)),"",VLOOKUP(Calculator!B169,Forb_Table,2,FALSE)) ->  | C90: =IF(ISBLANK(Calculator!B169),"",Calculator!B169) ->  | D90: =IF(C90="","",SUM(Calculator!F169:F170)) ->  | E90: =IF(C90="","",SUM(Calculator!E169:E170)) -> 
A91: 45 | B91: =IF(ISNA(VLOOKUP(Calculator!B171,Forb_Table,2,FALSE)),"",VLOOKUP(Calculator!B171,Forb_Table,2,FALSE)) ->  | C91: =IF(ISBLANK(Calculator!B171),"",Calculator!B171) ->  | D91: =IF(C91="","",SUM(Calculator!F171:F172)) ->  | E91: =IF(C91="","",SUM(Calculator!E171:E172)) -> 
A92: 46 | B92: =IF(ISNA(VLOOKUP(Calculator!B173,Forb_Table,2,FALSE)),"",VLOOKUP(Calculator!B173,Forb_Table,2,FALSE)) ->  | C92: =IF(ISBLANK(Calculator!B173),"",Calculator!B173) ->  | D92: =IF(C92="","",SUM(Calculator!F173:F174)) ->  | E92: =IF(C92="","",SUM(Calculator!E173:E174)) -> 
A93: 47 | B93: =IF(ISNA(VLOOKUP(Calculator!B175,Forb_Table,2,FALSE)),"",VLOOKUP(Calculator!B175,Forb_Table,2,FALSE)) ->  | C93: =IF(ISBLANK(Calculator!B175),"",Calculator!B175) ->  | D93: =IF(C93="","",SUM(Calculator!F175:F176)) ->  | E93: =IF(C93="","",SUM(Calculator!E175:E176)) -> 
A94: 48 | B94: =IF(ISNA(VLOOKUP(Calculator!B177,Forb_Table,2,FALSE)),"",VLOOKUP(Calculator!B177,Forb_Table,2,FALSE)) ->  | C94: =IF(ISBLANK(Calculator!B177),"",Calculator!B177) ->  | D94: =IF(C94="","",SUM(Calculator!F177:F178)) ->  | E94: =IF(C94="","",SUM(Calculator!E177:E178)) -> 
A95: 49 | B95: =IF(ISNA(VLOOKUP(Calculator!B179,Forb_Table,2,FALSE)),"",VLOOKUP(Calculator!B179,Forb_Table,2,FALSE)) ->  | C95: =IF(ISBLANK(Calculator!B179),"",Calculator!B179) ->  | D95: =IF(C95="","",SUM(Calculator!F179:F180)) ->  | E95: =IF(C95="","",SUM(Calculator!E179:E180)) -> 
A96: 50 | B96: =IF(ISNA(VLOOKUP(Calculator!B181,Forb_Table,2,FALSE)),"",VLOOKUP(Calculator!B181,Forb_Table,2,FALSE)) ->  | C96: =IF(ISBLANK(Calculator!B181),"",Calculator!B181) ->  | D96: =IF(C96="","",SUM(Calculator!F181:F182)) ->  | E96: =IF(C96="","",SUM(Calculator!E181:E182)) -> 
A97: 51 | B97: =IF(ISNA(VLOOKUP(Calculator!B183,Forb_Table,2,FALSE)),"",VLOOKUP(Calculator!B183,Forb_Table,2,FALSE)) ->  | C97: =IF(ISBLANK(Calculator!B183),"",Calculator!B183) ->  | D97: =IF(C97="","",SUM(Calculator!F183:F184)) ->  | E97: =IF(C97="","",SUM(Calculator!E183:E184)) -> 
A98: 52 | B98: =IF(ISNA(VLOOKUP(Calculator!B185,Forb_Table,2,FALSE)),"",VLOOKUP(Calculator!B185,Forb_Table,2,FALSE)) ->  | C98: =IF(ISBLANK(Calculator!B185),"",Calculator!B185) ->  | D98: =IF(C98="","",SUM(Calculator!F185:F186)) ->  | E98: =IF(C98="","",SUM(Calculator!E185:E186)) -> 
A99: 53 | B99: =IF(ISNA(VLOOKUP(Calculator!B187,Forb_Table,2,FALSE)),"",VLOOKUP(Calculator!B187,Forb_Table,2,FALSE)) ->  | C99: =IF(ISBLANK(Calculator!B187),"",Calculator!B187) ->  | D99: =IF(C99="","",SUM(Calculator!F187:F188)) ->  | E99: =IF(C99="","",SUM(Calculator!E187:E188)) -> 
A100: 54 | B100: =IF(ISNA(VLOOKUP(Calculator!B189,Forb_Table,2,FALSE)),"",VLOOKUP(Calculator!B189,Forb_Table,2,FALSE)) ->  | C100: =IF(ISBLANK(Calculator!B189),"",Calculator!B189) ->  | D100: =IF(C100="","",SUM(Calculator!F189:F190)) ->  | E100: =IF(C100="","",SUM(Calculator!E189:E190)) -> 
A101: 55 | B101: =IF(ISNA(VLOOKUP(Calculator!B191,Forb_Table,2,FALSE)),"",VLOOKUP(Calculator!B191,Forb_Table,2,FALSE)) ->  | C101: =IF(ISBLANK(Calculator!B191),"",Calculator!B191) ->  | D101: =IF(C101="","",SUM(Calculator!F191:F192)) ->  | E101: =IF(C101="","",SUM(Calculator!E191:E192)) -> 
A102: 56 | B102: =IF(ISNA(VLOOKUP(Calculator!B193,Forb_Table,2,FALSE)),"",VLOOKUP(Calculator!B193,Forb_Table,2,FALSE)) ->  | C102: =IF(ISBLANK(Calculator!B193),"",Calculator!B193) ->  | D102: =IF(C102="","",SUM(Calculator!F193:F194)) ->  | E102: =IF(C102="","",SUM(Calculator!E193:E194)) -> 
A103: 57 | B103: =IF(ISNA(VLOOKUP(Calculator!B195,Forb_Table,2,FALSE)),"",VLOOKUP(Calculator!B195,Forb_Table,2,FALSE)) ->  | C103: =IF(ISBLANK(Calculator!B195),"",Calculator!B195) ->  | D103: =IF(C103="","",SUM(Calculator!F195:F196)) ->  | E103: =IF(C103="","",SUM(Calculator!E195:E196)) -> 
A104: 58 | B104: =IF(ISNA(VLOOKUP(Calculator!B197,Forb_Table,2,FALSE)),"",VLOOKUP(Calculator!B197,Forb_Table,2,FALSE)) ->  | C104: =IF(ISBLANK(Calculator!B197),"",Calculator!B197) ->  | D104: =IF(C104="","",SUM(Calculator!F197:F198)) ->  | E104: =IF(C104="","",SUM(Calculator!E197:E198)) -> 
A105: 59 | B105: =IF(ISNA(VLOOKUP(Calculator!B199,Forb_Table,2,FALSE)),"",VLOOKUP(Calculator!B199,Forb_Table,2,FALSE)) ->  | C105: =IF(ISBLANK(Calculator!B199),"",Calculator!B199) ->  | D105: =IF(C105="","",SUM(Calculator!F199:F200)) ->  | E105: =IF(C105="","",SUM(Calculator!E199:E200)) -> 
A106: 60 | B106: =IF(ISNA(VLOOKUP(Calculator!B201,Forb_Table,2,FALSE)),"",VLOOKUP(Calculator!B201,Forb_Table,2,FALSE)) ->  | C106: =IF(ISBLANK(Calculator!B201),"",Calculator!B201) ->  | D106: =IF(C106="","",SUM(Calculator!F201:F202)) ->  | E106: =IF(C106="","",SUM(Calculator!E201:E202)) -> 
A107: 61 | B107: =IF(ISNA(VLOOKUP(Calculator!B203,Forb_Table,2,FALSE)),"",VLOOKUP(Calculator!B203,Forb_Table,2,FALSE)) ->  | C107: =IF(ISBLANK(Calculator!B203),"",Calculator!B203) ->  | D107: =IF(C107="","",SUM(Calculator!F203:F204)) ->  | E107: =IF(C107="","",SUM(Calculator!E203:E204)) -> 
A108: 62 | B108: =IF(ISNA(VLOOKUP(Calculator!B205,Forb_Table,2,FALSE)),"",VLOOKUP(Calculator!B205,Forb_Table,2,FALSE)) ->  | C108: =IF(ISBLANK(Calculator!B205),"",Calculator!B205) ->  | D108: =IF(C108="","",SUM(Calculator!F205:F206)) ->  | E108: =IF(C108="","",SUM(Calculator!E205:E206)) -> 
A109: 63 | B109: =IF(ISNA(VLOOKUP(Calculator!B207,Forb_Table,2,FALSE)),"",VLOOKUP(Calculator!B207,Forb_Table,2,FALSE)) ->  | C109: =IF(ISBLANK(Calculator!B207),"",Calculator!B207) ->  | D109: =IF(C109="","",SUM(Calculator!F207:F208)) ->  | E109: =IF(C109="","",SUM(Calculator!E207:E208)) -> 
A110: 64 | B110: =IF(ISNA(VLOOKUP(Calculator!B209,Forb_Table,2,FALSE)),"",VLOOKUP(Calculator!B209,Forb_Table,2,FALSE)) ->  | C110: =IF(ISBLANK(Calculator!B209),"",Calculator!B209) ->  | D110: =IF(C110="","",SUM(Calculator!F209:F210)) ->  | E110: =IF(C110="","",SUM(Calculator!E209:E210)) -> 
A111: 65 | B111: =IF(ISNA(VLOOKUP(Calculator!B211,Forb_Table,2,FALSE)),"",VLOOKUP(Calculator!B211,Forb_Table,2,FALSE)) ->  | C111: =IF(ISBLANK(Calculator!B211),"",Calculator!B211) ->  | D111: =IF(C111="","",SUM(Calculator!F211:F212)) ->  | E111: =IF(C111="","",SUM(Calculator!E211:E212)) -> 
A112: 66 | B112: =IF(ISNA(VLOOKUP(Calculator!B213,Forb_Table,2,FALSE)),"",VLOOKUP(Calculator!B213,Forb_Table,2,FALSE)) ->  | C112: =IF(ISBLANK(Calculator!B213),"",Calculator!B213) ->  | D112: =IF(C112="","",SUM(Calculator!F213:F214)) ->  | E112: =IF(C112="","",SUM(Calculator!E213:E214)) ->  | H112: =IF(LEN(B112)>1,VALUE("1"),"") -> 
A113: 67 | B113: =IF(ISNA(VLOOKUP(Calculator!B215,Forb_Table,2,FALSE)),"",VLOOKUP(Calculator!B215,Forb_Table,2,FALSE)) ->  | C113: =IF(ISBLANK(Calculator!B215),"",Calculator!B215) ->  | D113: =IF(C113="","",SUM(Calculator!F215:F216)) ->  | E113: =IF(C113="","",SUM(Calculator!E215:E216)) -> 
A114: 68 | B114: =IF(ISNA(VLOOKUP(Calculator!B217,Forb_Table,2,FALSE)),"",VLOOKUP(Calculator!B217,Forb_Table,2,FALSE)) ->  | C114: =IF(ISBLANK(Calculator!B217),"",Calculator!B217) ->  | D114: =IF(C114="","",SUM(Calculator!F217:F218)) ->  | E114: =IF(C114="","",SUM(Calculator!E217:E218)) -> 
A115: 69 | B115: =IF(ISNA(VLOOKUP(Calculator!B219,Forb_Table,2,FALSE)),"",VLOOKUP(Calculator!B219,Forb_Table,2,FALSE)) ->  | C115: =IF(ISBLANK(Calculator!B219),"",Calculator!B219) ->  | D115: =IF(C115="","",SUM(Calculator!F219:F220)) ->  | E115: =IF(C115="","",SUM(Calculator!E219:E220)) -> 
A116: 70 | B116: =IF(ISNA(VLOOKUP(Calculator!B221,Forb_Table,2,FALSE)),"",VLOOKUP(Calculator!B221,Forb_Table,2,FALSE)) ->  | C116: =IF(ISBLANK(Calculator!B221),"",Calculator!B221) ->  | D116: =IF(C116="","",SUM(Calculator!F221:F222)) ->  | E116: =IF(C116="","",SUM(Calculator!E221:E222)) -> 
A117: 71 | B117: =IF(ISNA(VLOOKUP(Calculator!B223,Forb_Table,2,FALSE)),"",VLOOKUP(Calculator!B223,Forb_Table,2,FALSE)) ->  | C117: =IF(ISBLANK(Calculator!B223),"",Calculator!B223) ->  | D117: =IF(C117="","",SUM(Calculator!F223:F224)) ->  | E117: =IF(C117="","",SUM(Calculator!E223:E224)) -> 
A118: 72 | B118: =IF(ISNA(VLOOKUP(Calculator!B225,Forb_Table,2,FALSE)),"",VLOOKUP(Calculator!B225,Forb_Table,2,FALSE)) ->  | C118: =IF(ISBLANK(Calculator!B225),"",Calculator!B225) ->  | D118: =IF(C118="","",SUM(Calculator!F225:F226)) ->  | E118: =IF(C118="","",SUM(Calculator!E225:E226)) -> 
A119: 73 | B119: =IF(ISNA(VLOOKUP(Calculator!B227,Forb_Table,2,FALSE)),"",VLOOKUP(Calculator!B227,Forb_Table,2,FALSE)) ->  | C119: =IF(ISBLANK(Calculator!B227),"",Calculator!B227) ->  | D119: =IF(C119="","",SUM(Calculator!F227:F228)) ->  | E119: =IF(C119="","",SUM(Calculator!E227:E228)) -> 
A120: 74 | B120: =IF(ISNA(VLOOKUP(Calculator!B229,Forb_Table,2,FALSE)),"",VLOOKUP(Calculator!B229,Forb_Table,2,FALSE)) ->  | C120: =IF(ISBLANK(Calculator!B229),"",Calculator!B229) ->  | D120: =IF(C120="","",SUM(Calculator!F229:F230)) ->  | E120: =IF(C120="","",SUM(Calculator!E229:E230)) -> 
A121: 75 | B121: =IF(ISNA(VLOOKUP(Calculator!B231,Forb_Table,2,FALSE)),"",VLOOKUP(Calculator!B231,Forb_Table,2,FALSE)) ->  | C121: =IF(ISBLANK(Calculator!B231),"",Calculator!B231) ->  | D121: =IF(C121="","",SUM(Calculator!F231:F232)) ->  | E121: =IF(C121="","",SUM(Calculator!E231:E232)) -> 
A122: 76 | B122: =IF(ISNA(VLOOKUP(Calculator!B233,Forb_Table,2,FALSE)),"",VLOOKUP(Calculator!B233,Forb_Table,2,FALSE)) ->  | C122: =IF(ISBLANK(Calculator!B233),"",Calculator!B233) ->  | D122: =IF(C122="","",SUM(Calculator!F233:F234)) ->  | E122: =IF(C122="","",SUM(Calculator!E233:E234)) -> 
A123: 77 | B123: =IF(ISNA(VLOOKUP(Calculator!B235,Forb_Table,2,FALSE)),"",VLOOKUP(Calculator!B235,Forb_Table,2,FALSE)) ->  | C123: =IF(ISBLANK(Calculator!B235),"",Calculator!B235) ->  | D123: =IF(C123="","",SUM(Calculator!F235:F236)) ->  | E123: =IF(C123="","",SUM(Calculator!E235:E236)) -> 
A124: 78 | B124: =IF(ISNA(VLOOKUP(Calculator!B237,Forb_Table,2,FALSE)),"",VLOOKUP(Calculator!B237,Forb_Table,2,FALSE)) ->  | C124: =IF(ISBLANK(Calculator!B237),"",Calculator!B237) ->  | D124: =IF(C124="","",SUM(Calculator!F237:F238)) ->  | E124: =IF(C124="","",SUM(Calculator!E237:E238)) -> 
A125: 79 | B125: =IF(ISNA(VLOOKUP(Calculator!B239,Forb_Table,2,FALSE)),"",VLOOKUP(Calculator!B239,Forb_Table,2,FALSE)) ->  | C125: =IF(ISBLANK(Calculator!B239),"",Calculator!B239) ->  | D125: =IF(C125="","",SUM(Calculator!F239:F240)) ->  | E125: =IF(C125="","",SUM(Calculator!E239:E240)) -> 
A126: 80 | B126: =IF(ISNA(VLOOKUP(Calculator!B241,Forb_Table,2,FALSE)),"",VLOOKUP(Calculator!B241,Forb_Table,2,FALSE)) ->  | C126: =IF(ISBLANK(Calculator!B241),"",Calculator!B241) ->  | D126: =IF(C126="","",SUM(Calculator!F241:F242)) ->  | E126: =IF(C126="","",SUM(Calculator!E241:E242)) -> 
A127: 81 | B127: =IF(ISNA(VLOOKUP(Calculator!B243,Forb_Table,2,FALSE)),"",VLOOKUP(Calculator!B243,Forb_Table,2,FALSE)) ->  | C127: =IF(ISBLANK(Calculator!B243),"",Calculator!B243) ->  | D127: =IF(C127="","",SUM(Calculator!F243:F244)) ->  | E127: =IF(C127="","",SUM(Calculator!E243:E244)) -> 
A128: 82 | B128: =IF(ISNA(VLOOKUP(Calculator!B245,Forb_Table,2,FALSE)),"",VLOOKUP(Calculator!B245,Forb_Table,2,FALSE)) ->  | C128: =IF(ISBLANK(Calculator!B245),"",Calculator!B245) ->  | D128: =IF(C128="","",SUM(Calculator!F245:F246)) ->  | E128: =IF(C128="","",SUM(Calculator!E245:E246)) -> 
A129: 83 | B129: =IF(ISNA(VLOOKUP(Calculator!B247,Forb_Table,2,FALSE)),"",VLOOKUP(Calculator!B247,Forb_Table,2,FALSE)) ->  | C129: =IF(ISBLANK(Calculator!B247),"",Calculator!B247) ->  | D129: =IF(C129="","",SUM(Calculator!F247:F248)) ->  | E129: =IF(C129="","",SUM(Calculator!E247:E248)) -> 
A130: 84 | B130: =IF(ISNA(VLOOKUP(Calculator!B249,Forb_Table,2,FALSE)),"",VLOOKUP(Calculator!B249,Forb_Table,2,FALSE)) ->  | C130: =IF(ISBLANK(Calculator!B249),"",Calculator!B249) ->  | D130: =IF(C130="","",SUM(Calculator!F249:F250)) ->  | E130: =IF(C130="","",SUM(Calculator!E249:E250)) -> 
A131: 85 | B131: =IF(ISNA(VLOOKUP(Calculator!B251,Forb_Table,2,FALSE)),"",VLOOKUP(Calculator!B251,Forb_Table,2,FALSE)) ->  | C131: =IF(ISBLANK(Calculator!B251),"",Calculator!B251) ->  | D131: =IF(C131="","",SUM(Calculator!F251:F252)) ->  | E131: =IF(C131="","",SUM(Calculator!E251:E252)) -> 
A132: 86 | B132: =IF(ISNA(VLOOKUP(Calculator!B253,Forb_Table,2,FALSE)),"",VLOOKUP(Calculator!B253,Forb_Table,2,FALSE)) ->  | C132: =IF(ISBLANK(Calculator!B253),"",Calculator!B253) ->  | D132: =IF(C132="","",SUM(Calculator!F253:F254)) ->  | E132: =IF(C132="","",SUM(Calculator!E253:E254)) -> 
A133: 87 | B133: =IF(ISNA(VLOOKUP(Calculator!B255,Forb_Table,2,FALSE)),"",VLOOKUP(Calculator!B255,Forb_Table,2,FALSE)) ->  | C133: =IF(ISBLANK(Calculator!B255),"",Calculator!B255) ->  | D133: =IF(C133="","",SUM(Calculator!F255:F256)) ->  | E133: =IF(C133="","",SUM(Calculator!E255:E256)) -> 
A134: 88 | B134: =IF(ISNA(VLOOKUP(Calculator!B257,Forb_Table,2,FALSE)),"",VLOOKUP(Calculator!B257,Forb_Table,2,FALSE)) ->  | C134: =IF(ISBLANK(Calculator!B257),"",Calculator!B257) ->  | D134: =IF(C134="","",SUM(Calculator!F257:F258)) ->  | E134: =IF(C134="","",SUM(Calculator!E257:E258)) -> 
A135: 89 | B135: =IF(ISNA(VLOOKUP(Calculator!B259,Forb_Table,2,FALSE)),"",VLOOKUP(Calculator!B259,Forb_Table,2,FALSE)) ->  | C135: =IF(ISBLANK(Calculator!B259),"",Calculator!B259) ->  | D135: =IF(C135="","",SUM(Calculator!F259:F260)) ->  | E135: =IF(C135="","",SUM(Calculator!E259:E260)) -> 
A136: 90 | B136: =IF(ISNA(VLOOKUP(Calculator!B261,Forb_Table,2,FALSE)),"",VLOOKUP(Calculator!B261,Forb_Table,2,FALSE)) ->  | C136: =IF(ISBLANK(Calculator!B261),"",Calculator!B261) ->  | D136: =IF(C136="","",SUM(Calculator!F261:F262)) ->  | E136: =IF(C136="","",SUM(Calculator!E261:E262)) -> 
C138: SUBTOTAL FORBS | D138: =SUM(D47:D136) -> 0 | E138: =SUM(E47:E136) -> 0 | F138: =SUM(F47:F136) -> 0
A140: Woody | B140: Scientific Name | C140: Common Name | D140: Seeds/Ft2 | E140: PLS Lbs/Acre | F140: PLS Lbs Total
A141: 1 | B141: =IF(ISNA(VLOOKUP(Calculator!B271,Woody_Table,2,FALSE)),"",VLOOKUP(Calculator!B271,Woody_Table,2,FALSE)) ->  | C141: =IF(ISBLANK(Calculator!B271),"",Calculator!B271) ->  | D141: =IF(C141="","",SUM(Calculator!F271:F272)) ->  | E141: =IF(C141="","",SUM(Calculator!E271:E272)) ->  | F141: =IF(E141<>"",E141*$E$9,"") ->  | H141: =IF(LEN(B141)>1,VALUE("1"),"") -> 
A142: 2 | B142: =IF(ISNA(VLOOKUP(Calculator!B273,Woody_Table,2,FALSE)),"",VLOOKUP(Calculator!B273,Woody_Table,2,FALSE)) ->  | C142: =IF(ISBLANK(Calculator!B273),"",Calculator!B273) ->  | D142: =IF(C142="","",SUM(Calculator!F273:F274)) ->  | E142: =IF(C142="","",SUM(Calculator!E273:E274)) ->  | F142: =IF(E142<>"",E142*$E$9,"") ->  | H142: =IF(LEN(B142)>1,VALUE("1"),"") -> 
A143: 3 | B143: =IF(ISNA(VLOOKUP(Calculator!B275,Woody_Table,2,FALSE)),"",VLOOKUP(Calculator!B275,Woody_Table,2,FALSE)) ->  | C143: =IF(ISBLANK(Calculator!B275),"",Calculator!B275) ->  | D143: =IF(C143="","",SUM(Calculator!F275:F276)) ->  | E143: =IF(C143="","",SUM(Calculator!E275:E276)) ->  | F143: =IF(E143<>"",E143*$E$9,"") -> 
A144: 4 | B144: =IF(ISNA(VLOOKUP(Calculator!B277,Woody_Table,2,FALSE)),"",VLOOKUP(Calculator!B277,Woody_Table,2,FALSE)) ->  | C144: =IF(ISBLANK(Calculator!B277),"",Calculator!B277) ->  | D144: =IF(C144="","",SUM(Calculator!F277:F278)) ->  | E144: =IF(C144="","",SUM(Calculator!E277:E278)) ->  | F144: =IF(E144<>"",E144*$E$9,"") -> 
A145: 5 | B145: =IF(ISNA(VLOOKUP(Calculator!B279,Woody_Table,2,FALSE)),"",VLOOKUP(Calculator!B279,Woody_Table,2,FALSE)) ->  | C145: =IF(ISBLANK(Calculator!B279),"",Calculator!B279) ->  | D145: =IF(C145="","",SUM(Calculator!F279:F280)) ->  | E145: =IF(C145="","",SUM(Calculator!E279:E280)) ->  | F145: =IF(E145<>"",E145*$E$9,"") -> 
C147: SUBTOTAL VINES/WOODY | D147: =SUM(D141:D145) -> 0 | E147: =SUM(E141:E145) -> 0 | F147: =SUM(F141:F145) -> 0
C150: TOTAL | D150: =SUM(D14:D43,D47:D136,D141:D145) -> 0 | E150: =SUM(E14:E43,E47:E136,E141:E145) -> 0 | F150: =SUM(F14:F43,F47:F136,F141:F145) -> 0
B152: Estimated Cost/Acre | F152: Estimated Total Cost | G152: =E9*C152 -> 
D154: Total Needed
C155: Soil Test Information | D155: lbs
A156: Lime (ECCE) (Actual Lime)
A157: Nitrogen
A158: Phosphate (P205)
A159: Potash (K20)
A161: Seeding Dates: | C161: =IF(ISBLANK('Supplement to Seed Plan'!I37)=TRUE,"",'Supplement to Seed Plan'!I37) ->  | K161: Spring (April 1 - July 1)
K162: Dormant (November 15 - March 31)
A163: Additional Seeding Criteria: | K163: Frost* (February 1 - March 31)
K164: Other:
A167: Seeding was completed by | C167: according to the above requirements.
B168: (Date)
A171: (Producer's Signature) | D171: (Date)
A173: Field Office | C173: Certified by
D174: (NRCS Representative)
A176: When seeding is completed, return seeding plan to the Natural Resources Conservation Services.
A177: For CRP cost-share, return receipts to Farm Service Agency.
A178: For all other cost-share projects, attach seed tags and receipts for seed, fertilizer, lime, etc.

Sheet 327ConservationCoverCheckSheet
B2: Iowa NRCS 327 Conservation Cover Criteria for Grass Forb Mixes
B3: Requirement | C3: Criteria | D3: Mix or Component | E3: Criteria Met
B4: All Sites
B5: Grass Seeds/ft2, Range | C5: 10 to 30 | D5: =Calculator!F77 -> 0 | E5: =IF(AND(D5>=9.5,D5<=31),"Meets Criteria","Does Not Meet Criteria") -> Does Not Meet Criteria
B6: Forb & Sub-shrub Seeds/ft2, Range | C6: 30 to 10 | D6: =Calculator!F265+SUMIF(Calculator!M271:M280,"*sub-shrub*",Calculator!F271:F280)+SUMIF(Calculator!M271:M280,"*vine*",Calculator!F271:F280) -> 0 | E6: =IF(AND(D6>=9.5,D6<=31),"Meets Criteria","Does Not Meet Criteria") -> Does Not Meet Criteria
B7: Total Seeds/ft2, Minimum | C7: 40 | D7: =Calculator!F285 -> 0 | E7: =IF(D7>=C7,"Meets Criteria","Does Not Meet Criteria") -> Does Not Meet Criteria
B9: % Annual and Biennial Forbs, (of Forb Component) | C9: 0-20% | D9: =(SUMIF(Calculator!M83:M262,"*annual*",Calculator!F83:F262)+SUMIF(Calculator!M83:M262,"*biennial*",Calculator!F83:F262))/Calculator!F265 ->  | E9: =IF(D9<=0.2,"Meets Criteria","Does Not Meet Criteria") -> 
B11: % Introduced Forbs Seeds/ft2, (of Total Mix) | C11: 0-20% | D11: =SUMIF(Calculator!M83:M262,"*Introduced Forb*",Calculator!F83:F262)/Calculator!F285 ->  | E11: =IF(D11<=0.2,"Meets Criteria","Does Not Meet Criteria") -> 
B12: -%Alfalfa Seeds/ft2, (single species) | C12: 0-10% | D12: =SUMIF(Calculator!B83:B262,"Alfalfa*",Calculator!K83:K262) -> 0 | E12: =IF(D12<=0.1,"Meets Criteria","Does Not Meet Criteria") -> Meets Criteria
B13: -%Alsike Seeds/ft2, (single species) | C13: 0-10% | D13: =SUMIF(Calculator!B83:B262,"Alsike*",Calculator!K83:K262) -> 0 | E13: =IF(D13<=0.1,"Meets Criteria","Does Not Meet Criteria") -> Meets Criteria
B14: -%Kura Clover Seeds/ft2, (single species) | C14: 0-10% | D14: =SUMIF(Calculator!B83:B262,"Kura*",Calculator!K83:K262) -> 0 | E14: =IF(D14<=0.1,"Meets Criteria","Does Not Meet Criteria") -> Meets Criteria
B15: -%Red Clover Seeds/ft2, (single species) | C15: 0-10% | D15: =SUMIF(Calculator!B83:B262,"Red Clover*",Calculator!K83:K262) -> 0 | E15: =IF(D15<=0.1,"Meets Criteria","Does Not Meet Criteria") -> Meets Criteria
B16: -%White Clover Seeds/ft2, (single species) | C16: 0-10% | D16: =SUMIF(Calculator!B83:B262,"White Clover*",Calculator!K83:K262) -> 0 | E16: =IF(D16<=0.1,"Meets Criteria","Does Not Meet Criteria") -> Meets Criteria
B18: *Long-term Plantings (>15 years) or plantings within 1-mile of remnants must be seeded with local ecotype or source identified seed. As defined by Iowa Agronomy Technical Note #28.
B19: Additional Requirements for seeding sites on >5% slope
B20: Grass Seeds/ft2 | C20: > 20 | D20: =Calculator!F77 -> 0 | E20: =IF(D20<=20,"Requires Nurse Crop or No-till Planting","Meets Criteria") -> Requires Nurse Crop or No-till Planting
B21: Additional Requirements for Wildlife Plantings
B22: Switchgrass Seeds/ft2, Maximum | C22: < 4 | D22: =SUMIF(Calculator!B15:B74,"Switchgrass",Calculator!F15:F74) -> 0 | E22: =IF(D22<=4,"Meets Criteria","Does Not Meet Criteria") -> Meets Criteria
B23: Canada Wildrye Seeds/ft2, Maximum | C23: < 8 | D23: =SUMIF(Calculator!B15:B74,"Canada Wildrye",Calculator!F15:F74) -> 0 | E23: =IF(D23<=8,"Meets Criteria","Does Not Meet Criteria") -> Meets Criteria
B24: Additional Requirements for diverse prairie restorations of 10 species or more
B25: Diverse mix of 10 or more species (number) | C25: 10 | D25: =Calculator!I285 -> 0 | E25: =IF(D25>=C25,"Meets Criteria","Does Not Meet Criteria") -> Does Not Meet Criteria
B26: % Single Grass Species, (of Total Mix) | C26: 0-20% | D26: =COUNTIF(Calculator!K15:K74,">=.201") -> 0 | E26: =IF(D26=0,"Meets Criteria","Does Not Meet Criteria") -> Meets Criteria
B27: % Single Forb Species, (of Total Mix) | C27: 0-10% | D27: =COUNTIF(Calculator!K83:K262,">=.101")+COUNTIF(Calculator!K271:K280,">=.101") -> 0 | E27: =IF(D27=0,"Meets Criteria","Does Not Meet Criteria") -> Meets Criteria
B28: % Early successional species: CC < 3, (of Total Mix) | C28: 0-33% | D28: =(SUMIF(Calculator!G15:G74,"<=3",Calculator!F15:F74)+SUMIF(Calculator!G83:G262,"<=3",Calculator!F83:F262)+SUMIF(Calculator!G271:G280,"<=3",Calculator!F271:F280))/Calculator!F285 ->  | E28: =IF(D28<=0.333,"Meets Criteria","Does Not Meet Criteria") -> 
B29: Additional Requirements for Pollinator Habitat including CP42
B30: Spring Blooming Forbs & Shrubs, Minimum | C30: 3 | D30: =COUNTIFS(Calculator!C83:C262,"*spring*",Calculator!F83:F262,">=.0001")+COUNTIFS(Calculator!C271:C280,"*spring*",Calculator!F271:F280,">=.0001")+COUNTIFS(Calculator!C83:C262,"*spring*",Calculator!E83:E262,">=.0001")+COUNTIFS(Calculator!C271:C280,"*spring*",Calculator!E271:E280,">=.0001") -> 0 | E30: =IF(D30>=C30,"Meets Criteria","Does Not Meet Criteria") -> Does Not Meet Criteria
B31: Summer Blooming Forbs & Shrubs, Minimum | C31: 3 | D31: =COUNTIFS(Calculator!C83:C262,"*summer*",Calculator!F83:F262,">=.0001")+COUNTIFS(Calculator!C271:C280,"*summer*",Calculator!F271:F280,">=.0001")+COUNTIFS(Calculator!C83:C262,"*summer*",Calculator!E83:E262,">=.0001")+COUNTIFS(Calculator!C271:C280,"*summer*",Calculator!E271:E280,">=.0001") -> 0 | E31: =IF(D31>=C31,"Meets Criteria","Does Not Meet Criteria") -> Does Not Meet Criteria
B32: Fall Blooming Forbs & Shrubs, Minimum | C32: 3 | D32: =COUNTIFS(Calculator!C83:C262,"*fall*",Calculator!F83:F262,">=.0001")+COUNTIFS(Calculator!C271:C280,"*fall*",Calculator!F271:F280,">=.0001")+COUNTIFS(Calculator!C83:C262,"*fall*",Calculator!E83:E262,">=.0001")+COUNTIFS(Calculator!C271:C280,"*fall*",Calculator!E271:E280,">=.0001") -> 0 | E32: Does Not Meet Criteria
B33: Legume, Minimum | C33: 1 | D33: =COUNTIFS(Calculator!M83:M262,"Introduced*",Calculator!F83:F262,">.0001")+COUNTIFS(Calculator!M83:M262,"*legume*",Calculator!F83:F262,">.0001")+COUNTIFS(Calculator!M271:M280,"*legume*",Calculator!F271:F280,">.0001") -> 0 | E33: Does Not Meet Criteria
B34: Bunch grass or sedge, Minimum | C34: 1 | D34: =COUNTIFS(Calculator!C15:C74,"*bunch*",Calculator!F15:F74,">.0001")+COUNTIFS(Calculator!C15:C74,"*bunch*",Calculator!E15:E74,">.0001") -> 0 | E34: Does Not Meet Criteria
B35: Number of Species, Minimum | C35: 10 | D35: =Calculator!I285 -> 0 | E35: Does Not Meet Criteria
B36: Grass Seeds/ft2, Range | C36: 10 to 20 | D36: =Calculator!F77 -> 0 | E36: =IF(AND(D36>=9.5,D36<=21),"Meets Criteria","Does Not Meet Criteria") -> Does Not Meet Criteria
B37: Forb & Sub-shrub Seeds/ft2, Range | C37: 30 to 20 | D37: =Calculator!F265+SUMIF(Calculator!M271:M280,"*sub-shrub*",Calculator!F271:F280)+SUMIF(Calculator!M271:M280,"*vine*",Calculator!F271:F280) -> 0 | E37: =IF(AND(D37>=9.5,D37<=31),"Meets Criteria","Does Not Meet Criteria") -> Does Not Meet Criteria
B38: Additional Requirements for Prairie Strips including CP43
B39: Spring Blooming Forbs & Shrubs, Minimum | C39: 2 | D39: =COUNTIFS(Calculator!C83:C262,"*spring*",Calculator!F83:F262,">=.0001")+COUNTIFS(Calculator!C271:C280,"*spring*",Calculator!F271:F280,">=.0001")+COUNTIFS(Calculator!C83:C262,"*spring*",Calculator!E83:E262,">=.0001")+COUNTIFS(Calculator!C271:C280,"*spring*",Calculator!E271:E280,">=.0001") -> 0 | E39: =IF(D39>=C39,"Meets Criteria","Does Not Meet Criteria") -> Does Not Meet Criteria
B40: Summer Blooming Forbs & Shrubs, Minimum | C40: 2 | D40: =COUNTIFS(Calculator!C83:C262,"*summer*",Calculator!F83:F262,">=.0001")+COUNTIFS(Calculator!C271:C280,"*summer*",Calculator!F271:F280,">=.0001")+COUNTIFS(Calculator!C83:C262,"*summer*",Calculator!E83:E262,">=.0001")+COUNTIFS(Calculator!C271:C280,"*summer*",Calculator!E271:E280,">=.0001") -> 0 | E40: Does Not Meet Criteria
B41: Fall Blooming Forbs & Shrubs, Minimum | C41: 2 | D41: =COUNTIFS(Calculator!C83:C262,"*fall*",Calculator!F83:F262,">=.0001")+COUNTIFS(Calculator!C271:C280,"*fall*",Calculator!F271:F280,">=.0001")+COUNTIFS(Calculator!C83:C262,"*fall*",Calculator!E83:E262,">=.0001")+COUNTIFS(Calculator!C271:C280,"*fall*",Calculator!E271:E280,">=.0001") -> 0 | E41: Does Not Meet Criteria
B42: Number of Flowering Species, Minimum | C42: 10 | D42: =SUM(D39:D41) -> 0 | E42: =IF(D42>=C42,"Meets Criteria","Does Not Meet Criteria") -> Does Not Meet Criteria
B43: Number of Species, Minimum | C43: 10 | D43: =Calculator!I285 -> 0 | E43: Does Not Meet Criteria
B44: % Introduced Forb Seeds/ft2, None Allowed | C44: 0 | D44: =SUMIF(Calculator!M83:M262,"*Introduced Forb*",Calculator!F83:F262)/Calculator!F265 ->  | E44: =IF(D44=C44,"Meets Criteria","Does Not Meet Criteria") -> 
B45: Grass Seeds/ft2 | C45: 20 | D45: =Calculator!F77 -> 0 | E45: =IF(AND(D45>=19.5,D45<=21),"Meets Criteria","Does Not Meet Criteria") -> Does Not Meet Criteria
B46: Forb & Sub-shrub Seeds/ft2 | C46: 20 | D46: =Calculator!F265+SUMIF(Calculator!M271:M280,"*sub-shrub*",Calculator!F271:F280)+SUMIF(Calculator!M271:M280,"*vine*",Calculator!F271:F280) -> 0 | E46: =IF(AND(D46>=19.5,D46<=21),"Meets Criteria","Does Not Meet Criteria") -> Does Not Meet Criteria
B47: Additional Requirements for Monarch Habitat Mix
B48: Priority Milkweed, Minimum (% of total mix) | C48: 0.015 | D48: =(SUMIF(Calculator!B83:B262,"Butterfly Weed",Calculator!F83:F262)+SUMIF(Calculator!B83:B262,"Common Milkweed",Calculator!F83:F262)+SUMIF(Calculator!B83:B262,"Sullivant's Milkweed",Calculator!F83:F262)+SUMIF(Calculator!B83:B262,"Swamp Milkweed",Calculator!F83:F262)+SUMIF(Calculator!B83:B262,"Whorled Milkweed",Calculator!F83:F262)+SUMIF(Calculator!B83:B262,"Asclepias tuberosa",Calculator!F83:F262)+SUMIF(Calculator!B83:B262,"Asclepias syriaca",Calculator!F83:F262)+SUMIF(Calculator!B83:B262,"Asclepias sullivantii",Calculator!F83:F262)+SUMIF(Calculator!B83:B262,"Asclepias incarnata",Calculator!F83:F262)+SUMIF(Calculator!B83:B262,"Asclepias verticillata",Calculator!F83:F262))/Calculator!F285 ->  | E48: =IF(D48>=C48,"Meets Criteria","Does Not Meet Criteria") -> 
B49: High Value Forbs, Minimum (% of total forbs) | C49: 0.6 | D49: =((SUMIF(Calculator!N83:N262,"1",Calculator!F83:F262))+(SUMIF(Calculator!N271:N280,"1",Calculator!F271:F280)))/Calculator!F265 ->  | E49: =IF(D49>=C49,"Meets Criteria","Does Not Meet Criteria") -> 
B50: % Introduced Forb Seeds/ft2, None Allowed | C50: 0 | D50: =SUMIF(Calculator!M83:M262,"*Introduced Forb*",Calculator!F83:F262)/Calculator!F265 ->  | E50: =IF(D50=C50,"Meets Criteria","Does Not Meet Criteria") -> 
B51: Big Bluestem Seeds/ft2, Maximum | C51: 1 | D51: =SUMIF(Calculator!B15:B74,"Big Bluestem",Calculator!F15:F74) -> 0 | E51: =IF(D51<=C51,"Meets Criteria","Does Not Meet Criteria") -> Meets Criteria
B52: Switchgrass Seeds/ft2, Maximum | C52: 1 | D52: =SUMIF(Calculator!B15:B74,"Switchgrass",Calculator!F15:F74) -> 0 | E52: =IF(D52<=C52,"Meets Criteria","Does Not Meet Criteria") -> Meets Criteria
B53: Indiangrass Seeds/ft2, Maximum | C53: 1.3 | D53: =SUMIF(Calculator!B15:B74,"Indiangrass",Calculator!F15:F74) -> 0 | E53: =IF(D53<=C53,"Meets Criteria","Does Not Meet Criteria") -> Meets Criteria

Sheet Grasses
D1: Moisture Regime | G1: Habitat | L1: REGION
A2: Plant Type | B2: Common Name | C2: Scientific Name | D2: Dry | E2: Medium | F2: Wet | G2: Prairie | H2: Savanna | I2: Wetland | J2: Woodland | K2: Short-term Program (Y = < $0.0017) | L2: All | M2: C | N2: EC | O2: NC | P2: NE | Q2: NW | R2: SC | S2: SE | T2: SW | U2: WC | V2: Pure Stand Seeding Rate PLS lbs/acre | W2: Seeding Rate Oz/ac PLS | X2: Seeds/sq foot | Y2: Estimated Cost/oz | Z2: Estimated Cost/lb | AA2: Seeds/oz | AB2: Seeds/sq ft @ 1oz/ac | AC2: Seeds/sq ft @ 16oz/ac | AD2: % of Mixture | AE2: Growth Form | AF2: Coefficient of Conservatism | AG2: Functional Group | AH2: Germination
A3: Leave this row blank | D3: X | E3: X | F3: X | G3: X | H3: X | I3: X | J3: X | K3: 1e-05 | L3: X | M3: X | N3: X | O3: X | P3: X | Q3: X | R3: X | S3: X | T3: X | U3: X
A4: Grass | B4: American Beakgrain | C4: Diarrhena americana | D4: X | E4: X | F4: X | J4: X | K4: 0.0001 | M4: X | N4: X | P4: X | R4: X | S4: X | T4: X | V4: =35/AC4 -> 38.115 | AA4: 2500 | AB4: =AA4/43560 -> 0.05739210285 | AC4: =AB4*16 -> 0.9182736455 | AE4: Rhizomatous | AF4: 6 | AG4: Perennial Warm Season Grass | AH4: ,CM,
A5: Grass | B5: American Mannagrass | C5: Glyceria grandis | F5: X | G5: X | I5: X | K5: 0.0001 | M5: X | N5: X | O5: X | P5: X | Q5: X | U5: X | V5: 1.19109375 | AA5: 80000 | AB5: 1.836547291 | AC5: 29.38475666 | AE5: Rhizomatous | AF5: 7 | AG5: Perennial Cool Season Grass | AH5: ,CD,LI
A6: Grass | B6: American Sloughgrass | C6: Beckmannia syzigachne | F6: X | G6: X | H6: X | I6: X | K6: 0.0001 | Q6: X | V6: 1.90575 | AA6: 50000 | AB6: 1.147842057 | AC6: 18.36547291 | AE6: Bunch | AF6: 8 | AG6: Annual Cool Season Grass | AH6: ,CD,
A7: Grass | B7: Arctic Brome | C7: Bromus kalmii | D7: X | E7: X | G7: X | H7: X | J7: X | K7: 0.0001 | M7: X | N7: X | P7: X | Q7: X | S7: X | V7: 11.9109375 | AA7: 8000 | AB7: 0.1836547291 | AC7: 2.938475666 | AE7: Bunch | AF7: 10 | AG7: Perennial Cool Season Grass | AH7: ,CD,
A8: Grass | B8: Bald Spikerush | C8: Eleocharis erythropoda | F8: X | G8: X | H8: X | I8: X | K8: 0.0001 | L8: X | M8: X | N8: X | O8: X | P8: X | Q8: X | R8: X | S8: X | T8: X | U8: X | V8: 1.221634615 | AA8: 78000 | AB8: 1.790633609 | AC8: 28.65013774 | AE8: Rhizomatous | AF8: 4 | AG8: Perennial Cool Season Sedge
A9: Grass | B9: Baltic Rush | C9: Juncus arcticus ssp. littoralis | E9: X | F9: X | G9: X | I9: X | K9: 0.0001 | L9: X | M9: X | N9: X | O9: X | P9: X | Q9: X | R9: X | S9: X | T9: X | U9: X | V9: 0.5082 | AA9: 187500 | AB9: 4.304407713 | AC9: 68.87052342 | AE9: Rhizomatous | AF9: 6 | AG9: Perennial Cool Season Sedge | AH9: ,CM,LI
A10: Grass | B10: Bebb's Sedge | C10: Carex bebbii | E10: X | F10: X | G10: X | H10: X | I10: X | J10: X | K10: 0.0001 | L10: X | M10: X | N10: X | O10: X | P10: X | Q10: X | R10: X | S10: X | T10: X | U10: X | V10: 2.802573529 | AA10: 34000 | AB10: 0.7805325987 | AC10: 12.48852158 | AE10: Bunch | AF10: 8 | AG10: Perennial Cool Season Sedge | AH10: ,CM,LI
A11: Grass | B11: Bicknell's Sedge | C11: Carex bicknellii | D11: X | E11: X | F11: X | G11: X | H11: X | I11: X | K11: 0.0001 | L11: X | M11: X | N11: X | O11: X | P11: X | Q11: X | R11: X | S11: X | T11: X | U11: X | V11: 5.605147059 | AA11: 17000 | AB11: 0.3902662994 | AC11: 6.24426079 | AE11: Bunch | AF11: 7 | AG11: Perennial Cool Season Sedge | AH11: ,CM,LI
A12: Grass | B12: Big Bluestem | C12: Andropogon gerardii | D12: X | E12: X | F12: X | G12: X | H12: X | K12: 0.0001 | L12: X | M12: X | N12: X | O12: X | P12: X | Q12: X | R12: X | S12: X | T12: X | U12: X | V12: 9.52875 | AA12: 10000 | AB12: 0.2295684114 | AC12: 3.673094582 | AE12: Bunch | AF12: 6 | AG12: Perennial Warm Season Grass | AH12: ,CD,
A13: Grass | B13: Blister Sedge | C13: Carex vesicaria | E13: X | F13: X | G13: X | I13: X | J13: X | K13: 0.0001 | L13: X | M13: X | N13: X | O13: X | P13: X | Q13: X | R13: X | S13: X | T13: X | U13: X | V13: 7.940625 | AA13: 12000 | AB13: 0.2754820937 | AC13: 4.407713499 | AE13: Rhizomatous | AF13: 7 | AG13: Perennial Cool Season Sedge | AH13: ,CM,LI
A14: Grass | B14: Blue Grama | C14: Bouteloua gracilis | D14: X | G14: X | H14: X | K14: 0.0001 | M14: X | Q14: X | T14: X | U14: X | V14: 2.3821875 | AA14: 40000 | AB14: 0.9182736455 | AC14: 14.69237833 | AE14: Bunch | AF14: 8 | AG14: Perennial Warm Season Grass | AH14: ,CD,
A15: Grass | B15: Bluejoint | C15: Calamagrostis canadensis | E15: X | F15: X | G15: X | H15: X | I15: X | K15: 0.0001 | L15: X | M15: X | N15: X | O15: X | P15: X | Q15: X | R15: X | S15: X | T15: X | U15: X | V15: 0.3403125 | AA15: 280000 | AB15: 6.427915519 | AC15: 102.8466483 | AE15: Rhizomatous | AF15: 6 | AG15: Perennial Cool Season Grass | AH15: ,CD,LI
A16: Grass | B16: Blunt Broom Sedge | C16: Carex tribuloides | F16: X | G16: X | H16: X | I16: X | K16: 0.0001 | L16: X | M16: X | N16: X | O16: X | P16: X | Q16: X | R16: X | S16: X | T16: X | U16: X | V16: 0.7940625 | AA16: 120000 | AB16: 2.754820937 | AC16: 44.07713499 | AE16: Bunch | AF16: 3 | AG16: Perennial Cool Season Sedge | AH16: ,CM,LI
A17: Grass | B17: Blunt Spikerush | C17: Eleocharis obtusa | F17: X | G17: X | I17: X | K17: 0.0001 | L17: X | M17: X | N17: X | O17: X | P17: X | Q17: X | R17: X | S17: X | T17: X | U17: X | V17: 0.952875 | AA17: 100000 | AB17: 2.295684114 | AC17: 36.73094582 | AE17: Rhizomatous | AF17: 3 | AG17: Annual Cool Season Sedge | AH17: ,CM,LI
A18: Grass | B18: Bottlebrush Grass | C18: Elymus hystrix | D18: X | E18: X | H18: X | J18: X | K18: 0.0001 | L18: X | M18: X | N18: X | O18: X | P18: X | Q18: X | R18: X | S18: X | T18: X | U18: X | V18: 12.53782895 | AA18: 7600 | AB18: 0.1744719927 | AC18: 2.791551882 | AE18: Bunch | AF18: 6 | AG18: Perennial Cool Season Grass | AH18: ,CD,
A19: Grass | B19: Bristlystalked Sedge | C19: Carex leptalea | F19: X | G19: X | I19: X | J19: X | K19: 0.0001 | N19: X | P19: X | Q19: X | V19: 2.3821875 | AA19: 40000 | AB19: 0.9182736455 | AC19: 14.69237833 | AE19: Rhizomatous | AF19: 10 | AG19: Perennial Cool Season Sedge
A20: Grass | B20: Broom Sedge | C20: Carex scoparia | E20: X | F20: X | G20: X | I20: X | K20: 0.0001 | L20: X | M20: X | N20: X | O20: X | P20: X | Q20: X | R20: X | S20: X | T20: X | U20: X | V20: 1.134375 | AA20: 84000 | AB20: 1.928374656 | AC20: 30.85399449 | AE20: Bunch | AF20: 5 | AG20: Perennial Cool Season Sedge | AH20: ,CM,LI
A21: Grass | B21: Broomsedge Bluestem | C21: Andropogon virginicus | E21: X | G21: X | K21: 0.0001 | R21: X | S21: X | T21: X | V21: 1.90575 | AA21: 50000 | AB21: 1.147842057 | AC21: 18.36547291 | AE21: Bunch | AF21: 2 | AG21: Perennial Warm Season Grass
A22: Grass | B22: Burr Reed Sedge | C22: Carex sparganioides | D22: X | E22: X | F22: X | H22: X | I22: X | J22: X | K22: 0.0001 | L22: X | M22: X | N22: X | O22: X | P22: X | Q22: X | R22: X | S22: X | T22: X | U22: X | V22: 5.015131579 | AA22: 19000 | AB22: 0.4361799816 | AC22: 6.978879706 | AE22: Bunch | AF22: 6 | AG22: Perennial Cool Season Sedge | AH22: ,CM,LI
A23: Grass | B23: Buxbaum's Sedge | C23: Carex buxbaumii | F23: X | G23: X | H23: X | I23: X | K23: 0.0001 | M23: X | N23: X | O23: X | P23: X | R23: X | S23: X | U23: X | V23: 6.571551724 | AA23: 14500 | AB23: 0.3328741965 | AC23: 5.325987144 | AF23: 8 | AG23: Perennial Cool Season Sedge | AH23: CM
A24: Grass | B24: Canada Wildrye | C24: Elymus canadensis | D24: X | E24: X | F24: X | G24: X | H24: X | J24: X | K24: 0.0001 | L24: X | M24: X | N24: X | O24: X | P24: X | Q24: X | R24: X | S24: X | T24: X | U24: X | V24: 18.32451923 | AA24: 5200 | AB24: 0.1193755739 | AC24: 1.910009183 | AE24: Bunch | AF24: 5 | AG24: Perennial Cool Season Grass | AH24: ,CD,
A25: Grass | B25: Canadian Rush | C25: Juncus canadensis | E25: X | F25: X | G25: X | I25: X | K25: 0.0001 | M25: X | N25: X | P25: X | R25: X | S25: X | V25: 0.12705 | AA25: 750000 | AB25: 17.21763085 | AC25: 275.4820937 | AE25: Bunch | AF25: 7 | AG25: Perennial Cool Season Rush | AH25: ,CM,LI
A26: Grass | B26: Catchfly Grass | C26: Leersia lenticularis | E26: X | F26: X | J26: X | K26: 0.0001 | N26: X | P26: X | S26: X | V26: 17.97877358 | AA26: 5300 | AB26: 0.121671258 | AC26: 1.946740129 | AE26: Rhizomatous | AF26: 7 | AG26: Perennial Cool Season Grass
A27: Grass | B27: Cattail Sedge | C27: Carex typhina | F27: X | I27: X | J27: X | K27: 0.0001 | M27: X | N27: X | R27: X | S27: X | V27: 6.80625 | AA27: 14000 | AB27: 0.3213957759 | AC27: 5.142332415 | AE27: Bunch | AF27: 8 | AG27: Perennial Cool Season Sedge | AH27: ,CM,LI
A28: Grass | B28: Clustered Field Sedge | C28: Carex praegracilis | E28: X | F28: X | G28: X | H28: X | K28: 0.0001 | M28: X | O28: X | Q28: X | R28: X | T28: X | U28: X | V28: 2.575337838 | AA28: 37000 | AB28: 0.8494031221 | AC28: 13.59044995 | AE28: Rhizomatous | AF28: 5 | AG28: Perennial Cool Season Sedge | AH28: CM
A29: Grass | B29: Common Rivergrass | C29: Scolochloa festucacea | F29: X | G29: X | I29: X | K29: 0.0001 | O29: X | Q29: X | V29: 5.015131579 | AA29: 19000 | AB29: 0.4361799816 | AC29: 6.978879706 | AE29: Rhizomatous | AF29: 8 | AG29: Perennial Cool Season Grass | AH29: CM
A30: Grass | B30: Common Rush | C30: Juncus effusus | F30: X | G30: X | I30: X | J30: X | K30: 0.0001 | M30: X | N30: X | P30: X | S30: X | V30: 0.0952875 | AA30: 1000000 | AB30: 22.95684114 | AC30: 367.3094582 | AE30: Bunch | AF30: 5 | AG30: Perennial Cool Season Rush | AH30: ,CM,LI
A31: Grass | B31: Common Spikerush | C31: Eleocharis palustris | F31: X | G31: X | I31: X | K31: 0.0001 | M31: X | N31: X | O31: X | P31: X | R31: X | S31: X | V31: 1.868382353 | AA31: 51000 | AB31: 1.170798898 | AC31: 18.73278237 | AE31: Rhizomatous | AF31: 6 | AG31: Perennial Cool Season Sedge | AH31: ,CM,LI
A32: Grass | B32: Common Threesquare | C32: Schoenoplectus pungens | F32: X | I32: X | K32: 0.0001 | M32: X | O32: X | Q32: X | R32: X | T32: X | U32: X | V32: 7.940625 | AA32: 12000 | AB32: 0.2754820937 | AC32: 4.407713499 | AE32: Rhizomatous | AF32: 8 | AG32: Perennial Cool Season Sedge | AH32: ,CM,LI
A33: Grass | B33: Composite Dropseed | C33: Sporobolus clandestinus | D33: X | G33: X | H33: X | K33: 0.0001 | L33: X | M33: X | N33: X | O33: X | P33: X | Q33: X | R33: X | S33: X | T33: X | U33: X | V33: 3.17625 | AA33: 30000 | AB33: 0.6887052342 | AC33: 11.01928375 | AE33: Bunch | AF33: 5 | AG33: Perennial Warm Season Grass | AH33: CD
A34: Grass | B34: Crested Sedge | C34: Carex cristatella | E34: X | F34: X | G34: X | I34: X | J34: X | K34: 0.0001 | M34: X | Q34: X | R34: X | S34: X | T34: X | V34: 1.642887931 | AA34: 58000 | AB34: 1.331496786 | AC34: 21.30394858 | AE34: Bunch | AF34: 4 | AG34: Perennial Cool Season Sedge | AH34: ,CM,LI
A35: Grass | B35: Dark Green Bulrush | C35: Scirpus atrovirens | E35: X | F35: X | G35: X | I35: X | J35: X | K35: 0.0001 | L35: X | M35: X | N35: X | O35: X | P35: X | Q35: X | R35: X | S35: X | T35: X | U35: X | V35: 0.2071467391 | AA35: 460000 | AB35: 10.56014692 | AC35: 168.9623508 | AE35: Bunch | AF35: 3 | AG35: Perennial Cool Season Sedge | AH35: ,CM,LI
A36: Grass | B36: Dioecious Sedge | C36: Carex sterilis | F36: X | G36: X | I36: X | K36: 0.0001 | M36: X | P36: X | V36: 1.465961538 | AA36: 65000 | AB36: =AA36/43560 -> 1.492194674 | AC36: =AB36*16 -> 23.87511478 | AE36: Bunch | AF36: 10 | AG36: Perennial Cool Season Sedge | AH36: ,CM,LI
A37: Grass | B37: Dudley's Rush | C37: Juncus dudleyi | E37: X | F37: X | G37: X | I37: X | K37: 0.0001 | L37: X | M37: X | N37: X | O37: X | P37: X | Q37: X | R37: X | S37: X | T37: X | U37: X | V37: 0.02977734375 | AA37: 3200000 | AB37: 73.46189164 | AC37: 1175.390266 | AF37: 4 | AG37: Perennial Cool Season Rush | AH37: ,CM,LI
A38: Grass | B38: Eastern Gamagrass | C38: Tripsacum dactyloides | E38: X | F38: X | G38: X | H38: X | I38: X | K38: 0.0001 | M38: X | R38: X | S38: X | T38: X | V38: 7.36 | AA38: 370 | AB38: 0.008494031221 | AC38: 0.1359044995 | AE38: Bunch | AF38: 5 | AG38: Perennial Warm Season Grass | AH38: ,CM,
A39: Grass | B39: Eastern Narrowleaf Sedge | C39: Carex amphibola | E39: X | F39: X | H39: X | J39: X | K39: 0.0001 | L39: X | M39: X | N39: X | O39: X | P39: X | Q39: X | R39: X | S39: X | T39: X | U39: X | V39: =35/AC39 -> 15.88125 | AA39: 6000 | AB39: 0.1377410468 | AC39: 2.203856749 | AE39: Bunch | AF39: 4 | AG39: Perennial Cool Season Sedge | AH39: CM
A40: Grass | B40: Eastern Woodland Sedge | C40: Carex blanda | D40: X | E40: X | G40: X | H40: X | I40: X | J40: X | K40: 0.0001 | L40: X | M40: X | N40: X | O40: X | P40: X | Q40: X | R40: X | S40: X | T40: X | U40: X | V40: 7.623 | AA40: 12500 | AB40: 0.2869605142 | AC40: 4.591368228 | AE40: Bunch | AF40: 3 | AG40: Perennial Cool Season Sedge | AH40: CM
A41: Grass | B41: Floating Mannagrass | C41: Glyceria septentrionalis | F41: X | I41: X | J41: X | K41: 0.0001 | M41: X | P41: X | S41: X | V41: 2.165625 | AA41: 44000 | AB41: 1.01010101 | AC41: 16.16161616 | AF41: 7 | AG41: Perennial Cool Season Grass | AH41: LI
A42: Grass | B42: Fowl Bluegrass | C42: Poa palustris | E42: X | F42: X | G42: X | H42: X | I42: X | K42: 0.0001 | L42: X | M42: X | N42: X | O42: X | P42: X | Q42: X | R42: X | S42: X | T42: X | U42: X | V42: 0.7329807692 | AA42: 130000 | AB42: 2.984389348 | AC42: 47.75022957 | AE42: Bunch | AF42: 7 | AG42: Perennial Cool Season Grass | AH42: CD,LI
A43: Grass | B43: Fowl Mannagrass | C43: Glyceria striata | E43: X | F43: X | G43: X | I43: X | J43: X | K43: 0.0001 | L43: X | M43: X | N43: X | O43: X | P43: X | Q43: X | R43: X | S43: X | T43: X | U43: X | V43: 0.595546875 | AA43: 160000 | AB43: 3.673094582 | AC43: 58.76951331 | AE43: Rhizomatous | AF43: 6 | AG43: Perennial Cool Season Grass | AH43: ,CD,LI
A44: Grass | B44: Fox Sedge | C44: Carex vulpinoidea | E44: X | F44: X | G44: X | I44: X | J44: X | K44: 0.0001 | L44: X | M44: X | N44: X | O44: X | P44: X | Q44: X | R44: X | S44: X | T44: X | U44: X | V44: 0.952875 | AA44: 100000 | AB44: 2.295684114 | AC44: 36.73094582 | AE44: Bunch | AF44: 3 | AG44: Perennial Cool Season Sedge | AH44: ,CM,LI
A45: Grass | B45: Foxtail Barley | C45: Hordeum jubatum | D45: X | E45: X | F45: X | G45: X | I45: X | K45: 0.0001 | L45: X | M45: X | N45: X | O45: X | P45: X | Q45: X | R45: X | S45: X | T45: X | U45: X | V45: 7.940625 | AA45: 12000 | AB45: 0.2754820937 | AC45: 4.407713499 | AE45: Bunch | AF45: 2 | AG45: Perennial Cool Season Grass
A46: Grass | B46: Frank's Sedge | C46: Carex frankii | F46: X | G46: X | I46: X | J46: X | K46: 0.0001 | M46: X | R46: X | S46: X | V46: 5.605147059 | AA46: 17000 | AB46: 0.3902662994 | AC46: 6.24426079 | AE46: Rhizomatous | AF46: 5 | AG46: Perennial Cool Season Sedge | AH46: ,CM,LI
A47: Grass | B47: Fringed Brome | C47: Bromus ciliatus | E47: X | F47: X | G47: X | I47: X | J47: X | K47: 0.0001 | M47: X | N47: X | O47: X | Q47: X | R47: X | S47: X | T47: X | U47: X | V47: 9.52875 | AA47: 10000 | AB47: 0.2295684114 | AC47: 3.673094582 | AE47: Bunch | AF47: 10 | AG47: Perennial Cool Season Grass | AH47: none
A48: Grass | B48: Fringed Sedge | C48: Carex crinita | E48: X | F48: X | H48: X | J48: X | K48: 0.0001 | M48: X | N48: X | S48: X | V48: 4.142934783 | AA48: 23000 | AB48: 0.5280073462 | AC48: 8.448117539 | AE48: Bunch | AF48: 10 | AG48: Perennial Cool Season Sedge | AH48: ,CM,LI
A49: Grass | B49: Fuzzy Wuzzy Sedge | C49: Carex hirsutella | D49: X | E49: X | H49: X | J49: X | K49: 0.0001 | M49: X | R49: X | S49: X | V49: 5.29375 | AA49: 18000 | AB49: 0.4132231405 | AC49: 6.611570248 | AE49: Rhizomatous | AF49: 5 | AG49: Perennial Cool Season Sedge | AH49: ,CM,LI
A50: Grass | B50: Graceful Sedge | C50: Carex gracillima | E50: X | J50: X | K50: 0.0001 | M50: X | O50: X | P50: X | Q50: X | V50: 0.9341911765 | AA50: 102000 | AB50: 2.341597796 | AC50: 37.46556474 | AE50: Bunch | AF50: 8 | AG50: Perennial Cool Season Sedge | AH50: ,CM,LI
A51: Grass | B51: Gray's Sedge | C51: Carex grayi | E51: X | F51: X | I51: X | J51: X | K51: 0.0001 | M51: X | N51: X | P51: X | R51: X | S51: X | V51: 79.40625 | AA51: 1200 | AB51: 0.02754820937 | AC51: 0.4407713499 | AE51: Bunch | AF51: 7 | AG51: Perennial Cool Season Sedge | AH51: ,CD,
A52: Grass | B52: Great Plains Flatsedge | C52: Cyperus lupulinus | D52: X | E52: X | G52: X | H52: X | K52: 0.0001 | L52: X | M52: X | N52: X | O52: X | P52: X | Q52: X | R52: X | S52: X | T52: X | U52: X | V52: 3.285775862 | AA52: 29000 | AB52: 0.665748393 | AC52: 10.65197429 | AF52: 8 | AG52: Annual Cool Season Sedge | AH52: ,CM,LI
A53: Grass | B53: Greater Straw Sedge | C53: Carex normalis | E53: X | F53: X | G53: X | H53: X | J53: X | K53: 0.0001 | L53: X | M53: X | N53: X | O53: X | P53: X | Q53: X | R53: X | S53: X | T53: X | U53: X | V53: 3.8115 | AA53: 25000 | AB53: 0.5739210285 | AC53: 9.182736455 | AE53: Bunch | AF53: 5 | AG53: Perennial Cool Season Sedge | AH53: ,CM,LI
A54: Grass | B54: Green Needlegrass | C54: Nassella viridula | D54: X | E54: X | G54: X | H54: X | K54: 0.0001 | Q54: X | V54: 12.705 | AA54: 7500 | AB54: 0.1721763085 | AC54: 2.754820937 | AE54: Bunch | AF54: 5 | AG54: Perennial Cool Season Grass | AH54: ,CM,
A55: Grass | B55: Hairy Grama | C55: Bouteloua hirsuta | D55: X | G55: X | H55: X | K55: 0.0001 | M55: X | P55: X | Q55: X | S55: X | T55: X | U55: X | V55: 1.36125 | AA55: 70000 | AB55: 1.60697888 | AC55: 25.71166208 | AE55: Colonizing | AF55: 8 | AG55: Perennial Warm Season Grass | AH55: ,CD,
A56: Grass | B56: Hairy Sedge | C56: Carex lacustris | F56: X | G56: X | I56: X | J56: X | K56: 0.0001 | M56: X | N56: X | O56: X | P56: X | Q56: X | R56: X | S56: X | V56: 2.977734375 | AA56: 32000 | AB56: 0.7346189164 | AC56: 11.75390266 | AE56: Rhizomatous | AF56: 9 | AG56: Perennial Cool Season Sedge | AH56: ,CM,LI
A57: Grass | B57: Hairy Wildrye | C57: Elymus villosus | E57: X | F57: X | H57: X | J57: X | K57: 0.0001 | L57: X | M57: X | N57: X | O57: X | P57: X | Q57: X | R57: X | S57: X | T57: X | U57: X | V57: 17.325 | AA57: 5500 | AB57: 0.1262626263 | AC57: 2.02020202 | AF57: 5 | AG57: Perennial Cool Season Grass | AH57: ,CD,
A58: Grass | B58: Hairy Woodland Brome | C58: Bromus pubescens | D58: X | E58: X | J58: X | K58: 0.0001 | L58: X | M58: X | N58: X | O58: X | P58: X | Q58: X | R58: X | S58: X | T58: X | U58: X | V58: 12.53782895 | AA58: 7600 | AB58: 0.1744719927 | AC58: 2.791551882 | AF58: 7 | AG58: Perennial Cool Season Grass
A59: Grass | B59: Hairyfruit Sedge | C59: Carex trichocarpa | E59: X | F59: X | G59: X | I59: X | K59: 0.0001 | L59: X | M59: X | N59: X | O59: X | P59: X | Q59: X | R59: X | S59: X | T59: X | U59: X | V59: 5.29375 | AA59: 18000 | AB59: 0.4132231405 | AC59: 6.611570248 | AE59: Bunch | AF59: 6 | AG59: Perennial Cool Season Sedge | AH59: ,CM,LI
A60: Grass | B60: Hardstem Bulrush | C60: Schoenoplectus acutus | F60: X | I60: X | K60: 0.0001 | L60: X | M60: X | N60: X | O60: X | P60: X | Q60: X | R60: X | S60: X | T60: X | U60: X | V60: 7.386627907 | AA60: 12900 | AB60: 0.2961432507 | AC60: 4.738292011 | AE60: Rhizomatous | AF60: 6 | AG60: Perennial Cool Season Sedge | AH60: ,CM,LI
A61: Grass | B61: Hayden's Sedge | C61: Carex haydenii | F61: X | G61: X | I61: X | K61: 0.0001 | L61: X | M61: X | N61: X | O61: X | P61: X | Q61: X | R61: X | S61: X | T61: X | U61: X | V61: 2.507565789 | AA61: 38000 | AB61: 0.8723599633 | AC61: 13.95775941 | AE61: Bunch | AF61: 7 | AG61: Perennial Cool Season Sedge
A62: Grass | B62: Heavy Sedge | C62: Carex gravida | D62: X | E62: X | G62: X | H62: X | J62: X | K62: 0.0001 | L62: X | M62: X | N62: X | O62: X | P62: X | Q62: X | R62: X | S62: X | T62: X | U62: X | V62: 7.940625 | AA62: 12000 | AB62: 0.2754820937 | AC62: 4.407713499 | AE62: Rhizomatous | AF62: 3 | AG62: Perennial Cool Season Sedge | AH62: ,CM,LI
A63: Grass | B63: Hop Sedge | C63: Carex lupulina | E63: X | F63: X | G63: X | I63: X | J63: X | K63: 0.0001 | L63: X | M63: X | N63: X | O63: X | P63: X | Q63: X | R63: X | S63: X | T63: X | U63: X | V63: 28.875 | AA63: 3300 | AB63: 0.07575757576 | AC63: 1.212121212 | AE63: Bunch | AF63: 5 | AG63: Perennial Cool Season Sedge | AH63: ,CD,
A64: Grass | B64: Indian Woodoats | C64: Chasmanthium latifolium | E64: X | F64: X | H64: X | J64: X | K64: 0.0001 | S64: X | V64: 23.821875 | AA64: 4000 | AB64: 0.09182736455 | AC64: 1.469237833 | AE64: Rhizomatous | AF64: 6 | AG64: Perennial Warm Season Grass | AH64: ,CM,
A65: Grass | B65: Indiangrass | C65: Sorghastrum nutans | D65: X | E65: X | F65: X | G65: X | H65: X | K65: 0.0001 | L65: X | M65: X | N65: X | O65: X | P65: X | Q65: X | R65: X | S65: X | T65: X | U65: X | V65: 7.940625 | AA65: 12000 | AB65: 0.2754820937 | AC65: 4.407713499 | AE65: Bunch | AF65: 6 | AG65: Perennial Warm Season Grass | AH65: CD
A66: Grass | B66: Inflated Narrow-Leaf Sedge | C66: Carex grisea | E66: X | F66: X | H66: X | J66: X | K66: 0.0001 | L66: X | M66: X | N66: X | O66: X | P66: X | Q66: X | R66: X | S66: X | T66: X | U66: X | V66: 10.5875 | AA66: 9000 | AB66: 0.2066115702 | AC66: 3.305785124 | AE66: Rhizomatous | AF66: 4 | AG66: Perennial Cool Season Sedge | AH66: ,CD,
A67: Grass | B67: Inland Rush | C67: Juncus interior | E67: X | F67: X | G67: X | J67: X | K67: 0.0001 | L67: X | M67: X | N67: X | O67: X | P67: X | Q67: X | R67: X | S67: X | T67: X | U67: X | V67: 0.03403125 | AA67: 2800000 | AB67: 64.27915519 | AC67: 1028.466483 | AE67: Bunch | AF67: 4 | AG67: Perennial Cool Season Rush | AH67: ,CM,LI
A68: Grass | B68: Inland Sedge | C68: Carex interior | F68: X | G68: X | H68: X | I68: X | K68: 0.0001 | M68: X | N68: X | O68: X | P68: X | R68: X | S68: X | V68: 2.443269231 | AA68: 39000 | AB68: =AA68/43560 -> 0.8953168044 | AC68: =AB68*16 -> 14.32506887 | AE68: Bunch | AF68: 9 | AG68: Perennial Cool Season Sedge | AH68: ,CM,LI
A69: Grass | B69: James Sedge | C69: Carex jamesii | E69: X | H69: X | J69: X | K69: 0.0001 | M69: X | N69: X | O69: X | P69: X | R69: X | S69: X | V69: 7.623 | AA69: 12500 | AB69: 0.2869605142 | AC69: 4.591368228 | AF69: 4 | AG69: Perennial Cool Season Sedge | AH69: CM
A70: Grass | B70: Junegrass | C70: Koeleria macrantha | D70: X | E70: X | G70: X | H70: X | K70: 0.0001 | L70: X | M70: X | N70: X | O70: X | P70: X | Q70: X | R70: X | S70: X | T70: X | U70: X | V70: 0.4764375 | AA70: 200000 | AB70: 4.591368228 | AC70: 73.46189164 | AE70: Bunch | AF70: 8 | AG70: Perennial Cool Season Grass | AH70: CD,LI
A71: Grass | B71: Knotsheath Sedge | C71: Carex retrorsa | E71: X | F71: X | H71: X | J71: X | K71: 0.0001 | M71: X | O71: X | P71: X | V71: =35/AC71 -> 8.6625 | AA71: 11000 | AB71: 0.2525252525 | AC71: 4.04040404 | AE71: Bunch | AF71: 8 | AG71: Perennial Cool Season Sedge | AH71: ,CM,LI
A72: Grass | B72: Knotted Rush | C72: Juncus nodosus | E72: X | F72: X | G72: X | I72: X | K72: 0.0001 | L72: X | M72: X | N72: X | O72: X | P72: X | Q72: X | R72: X | S72: X | T72: X | U72: X | V72: 0.05147893031 | AA72: 1851000 | AB72: 42.49311295 | AC72: 679.8898072 | AE72: Single Stem | AF72: 6 | AG72: Perennial Cool Season Rush | AH72: ,CM,LI
A73: Grass | B73: Lesser Panicled Sedge | C73: Carex diandra | F73: X | G73: X | H73: X | I73: X | K73: 0.0001 | M73: X | N73: X | O73: X | Q73: X | V73: 2.215988372 | AA73: 43000 | AB73: 0.987144169 | AC73: 15.7943067 | AE73: Bunch | AF73: 10 | AG73: Perennial Cool Season Sedge | AH73: ,CM,LI
A74: Grass | B74: Limestone Meadow Sedge | C74: Carex granularis | E74: X | J74: X | K74: 0.0001 | M74: X | N74: X | O74: X | P74: X | R74: X | S74: X | V74: 5.95546875 | AA74: 16000 | AB74: 0.3673094582 | AC74: 5.876951331 | AE74: Bunch | AF74: 3 | AG74: Perennial Cool Season Sedge | AH74: ,CM,LI
A75: Grass | B75: Little Bluestem | C75: Schizachyrium scoparium | D75: X | E75: X | G75: X | H75: X | K75: 0.0001 | L75: X | M75: X | N75: X | O75: X | P75: X | Q75: X | R75: X | S75: X | T75: X | U75: X | V75: 6.3525 | AA75: 15000 | AB75: 0.3443526171 | AC75: 5.509641873 | AE75: Bunch | AF75: 7 | AG75: Perennial Warm Season Grass | AH75: ,CD,
A76: Grass | B76: Longhair Sedge | C76: Carex comosa | F76: X | G76: X | H76: X | K76: 0.0001 | P76: X | Q76: X | V76: 3.17625 | AA76: 30000 | AB76: 0.6887052342 | AC76: 11.01928375 | AE76: Rhizomatous | AF76: 7 | AG76: Perennial Cool Season Sedge | AH76: ,CM,LI
A77: Grass | B77: Lurid Sedge | C77: Carex lurida | F77: X | G77: X | I77: X | K77: 0.0001 | S77: X | V77: 7.940625 | AA77: 12000 | AB77: 0.2754820937 | AC77: 4.407713499 | AE77: Bunch | AF77: 6 | AG77: Perennial Cool Season Sedge | AH77: ,CM,LI
A78: Grass | B78: Marsh Muhly | C78: Muhlenbergia racemosa | E78: X | F78: X | G78: X | H78: X | K78: 0.0001 | L78: X | M78: X | N78: X | O78: X | P78: X | Q78: X | R78: X | S78: X | T78: X | U78: X | V78: 1.19109375 | AA78: 80000 | AB78: 1.836547291 | AC78: 29.38475666 | AE78: Rhizomatous | AF78: 4 | AG78: Perennial Warm Season Grass | AH78: CD,LI
A79: Grass | B79: Mexican Muhly | C79: Muhlenbergia mexicana | F79: X | G79: X | H79: X | I79: X | J79: X | K79: 0.0001 | L79: X | M79: X | N79: X | O79: X | P79: X | Q79: X | R79: X | S79: X | T79: X | U79: X | V79: 0.5445 | AA79: 175000 | AB79: 4.017447199 | AC79: 64.27915519 | AE79: Rhizomatous | AF79: 5 | AG79: Perennial Warm Season Grass | AH79: CD,LI
A80: Grass | B80: Muhlenberg's Sedge | C80: Carex muehlenbergii | D80: X | G80: X | H80: X | J80: X | K80: 0.0001 | N80: X | P80: X | S80: X | V80: 7.940625 | AA80: 12000 | AB80: 0.2754820937 | AC80: 4.407713499 | AF80: 7 | AG80: Perennial Cool Season Sedge | AH80: ,CM,LI
A81: Grass | B81: Muskingum Sedge | C81: Carex muskingumensis | F81: X | H81: X | J81: X | K81: 0.0001 | L81: X | M81: X | N81: X | O81: X | P81: X | Q81: X | R81: X | S81: X | T81: X | U81: X | V81: 12.705 | AA81: 7500 | AB81: 0.1721763085 | AC81: 2.754820937 | AE81: Bunch | AF81: 8 | AG81: Perennial Cool Season Sedge
A82: Grass | B82: Needle And Thread | C82: Hesperostipa comata | D82: X | G82: X | H82: X | K82: 0.0001 | M82: X | Q82: X | U82: X | V82: 5.95546875 | AA82: 16000 | AB82: 0.3673094582 | AC82: 5.876951331 | AE82: Thicket Forming | AF82: 8 | AG82: Perennial Cool Season Grass | AH82: ,CM,
A83: Grass | B83: Needle Spikerush | C83: Eleocharis acicularis | F83: X | G83: X | I83: X | K83: 0.0001 | L83: X | M83: X | N83: X | O83: X | P83: X | Q83: X | R83: X | S83: X | T83: X | U83: X | V83: 1.36125 | AA83: 70000 | AB83: 1.60697888 | AC83: 25.71166208 | AE83: Rhizomatous | AF83: 4 | AG83: Perennial Cool Season Sedge | AH83: ,CM,
A84: Grass | B84: Nodding Fescue | C84: Festuca subverticillata | E84: X | H84: X | J84: X | K84: 0.0001 | L84: X | M84: X | N84: X | O84: X | P84: X | Q84: X | R84: X | S84: X | T84: X | U84: X | V84: 4.764375 | AA84: 20000 | AB84: 0.4591368228 | AC84: 7.346189164 | AE84: Bunch | AF84: 6 | AG84: Perennial Cool Season Grass | AH84: ,CM,
A85: Grass | B85: Northwest Territory Sedge | C85: Carex utriculata | F85: X | G85: X | I85: X | K85: 0.0001 | L85: X | M85: X | N85: X | O85: X | P85: X | Q85: X | R85: X | S85: X | T85: X | U85: X | V85: 9.52875 | AA85: 10000 | AB85: 0.2295684114 | AC85: 3.673094582 | AE85: Rhizomatous | AF85: 8 | AG85: Perennial Cool Season Sedge | AH85: ,CM,LI
A86: Grass | B86: Owlfruit Sedge | C86: Carex stipata | E86: X | F86: X | G86: X | I86: X | J86: X | K86: 0.0001 | L86: X | M86: X | N86: X | O86: X | P86: X | Q86: X | R86: X | S86: X | T86: X | U86: X | V86: 2.802573529 | AA86: 34000 | AB86: 0.7805325987 | AC86: 12.48852158 | AE86: Bunch | AF86: 4 | AG86: Perennial Cool Season Sedge | AH86: ,CM,LI
A87: Grass | B87: Panicled Bulrush | C87: Scirpus microcarpus | F87: X | I87: X | K87: 0.0001 | M87: X | O87: X | P87: X | S87: X | V87: 0.2071467391 | AA87: 460000 | AB87: 10.56014692 | AC87: 168.9623508 | AE87: Rhizomatous | AF87: 8 | AG87: Annual Cool Season Sedge | AH87: ,CM,LI
A88: Grass | B88: Pennsylvania Sedge | C88: Carex pensylvanica | D88: X | E88: X | H88: X | J88: X | K88: 0.0001 | L88: X | M88: X | N88: X | O88: X | P88: X | Q88: X | R88: X | S88: X | T88: X | U88: X | V88: 3.17625 | AA88: 30000 | AB88: 0.6887052342 | AC88: 11.01928375 | AE88: Rhizomatous | AF88: 5 | AG88: Perennial Cool Season Sedge | AH88: Clone
A89: Grass | B89: Plains Muhly | C89: Muhlenbergia cuspidata | D89: X | G89: X | K89: 0.0001 | M89: X | N89: X | O89: X | P89: X | Q89: X | T89: X | U89: X | V89: 0.529375 | AA89: 180000 | AB89: 4.132231405 | AC89: 66.11570248 | AE89: Bunch | AF89: 9 | AG89: Perennial Warm Season Grass | AH89: CD LI
A90: Grass | B90: Porcupine Sedge | C90: Carex hystericina | F90: X | G90: X | I90: X | K90: 0.0001 | L90: X | M90: X | N90: X | O90: X | P90: X | Q90: X | R90: X | S90: X | T90: X | U90: X | V90: 3.17625 | AA90: 30000 | AB90: 0.6887052342 | AC90: 11.01928375 | AE90: Rhizomatous | AF90: 4 | AG90: Perennial Cool Season Sedge | AH90: ,CM,LI
A91: Grass | B91: Porcupinegrass | C91: Hesperostipa spartea | D91: X | E91: X | G91: X | H91: X | K91: 0.0001 | L91: X | M91: X | N91: X | O91: X | P91: X | Q91: X | R91: X | S91: X | T91: X | U91: X | V91: 140.1286765 | AA91: 680 | AB91: 0.01561065197 | AC91: 0.2497704316 | AE91: Bunch | AF91: 7 | AG91: Perennial Cool Season Grass | AH91: ,CM,
A92: Grass | B92: Poverty Oatgrass | C92: Danthonia spicata | D92: X | H92: X | J92: X | K92: 0.0001 | L92: X | M92: X | N92: X | O92: X | P92: X | Q92: X | R92: X | S92: X | T92: X | U92: X | V92: 3.8115 | AA92: 25000 | AB92: 0.5739210285 | AC92: 9.182736455 | AE92: Bunch | AF92: 7 | AG92: Perennial Cool Season Grass | AH92: none
A93: Grass | B93: Poverty Rush | C93: Juncus tenuis | E93: X | F93: X | G93: X | H93: X | J93: X | K93: 0.0001 | L93: X | M93: X | N93: X | O93: X | P93: X | Q93: X | R93: X | S93: X | T93: X | U93: X | V93: 0.0952875 | AA93: 1000000 | AB93: 22.95684114 | AC93: 367.3094582 | AE93: Bunch | AF93: 2 | AG93: Perennial Cool Season Rush | AH93: ,CM,LI
A94: Grass | B94: Prairie Cordgrass | C94: Spartina pectinata | F94: X | G94: X | I94: X | K94: 0.0001 | L94: X | M94: X | N94: X | O94: X | P94: X | Q94: X | R94: X | S94: X | T94: X | U94: X | V94: 14.4375 | AA94: 6600 | AB94: 0.1515151515 | AC94: 2.424242424 | AE94: Rhizomatous | AF94: 6 | AG94: Perennial Warm Season Grass | AH94: CD
A95: Grass | B95: Prairie Dropseed | C95: Sporobolus heterolepis | D95: X | E95: X | G95: X | H95: X | K95: 0.0001 | L95: X | M95: X | N95: X | O95: X | P95: X | Q95: X | R95: X | S95: X | T95: X | U95: X | V95: 5.95546875 | AA95: 16000 | AB95: 0.3673094582 | AC95: 5.876951331 | AE95: Bunch | AF95: 9 | AG95: Perennial Warm Season Grass | AH95: CD
A96: Grass | B96: Prairie Oval Sedge | C96: Carex brevior | D96: X | E96: X | F96: X | G96: X | H96: X | J96: X | K96: 0.0001 | L96: X | M96: X | N96: X | O96: X | P96: X | Q96: X | R96: X | S96: X | T96: X | U96: X | V96: =35/AC91 -> 140.1286765 | AA96: 29000 | AB96: 0.665748393 | AC96: 10.65197429 | AE96: Bunch | AF96: 4 | AG96: Perennial Cool Season Sedge | AH96: ,CM,LI
A97: Grass | B97: Prairie Sandreed | C97: Calamovilfa longifolia | D97: X | G97: X | H97: X | K97: 0.0001 | L97: X | M97: X | N97: X | O97: X | P97: X | Q97: X | R97: X | S97: X | T97: X | U97: X | V97: =35/AC97 -> 5.564233577 | AA97: 17125 | AB97: 0.3931359045 | AC97: 6.290174472 | AE97: Rhizomatous | AF97: 7 | AG97: Perennial Warm Season Grass | AH97: ,CD,
A98: Grass | B98: Prairie Sedge | C98: Carex prairea | F98: X | G98: X | I98: X | K98: 0.0001 | M98: X | N98: X | P98: X | Q98: X | S98: X | V98: 1.134375 | AA98: 84000 | AB98: 1.928374656 | AC98: 30.85399449 | AE98: Bunch | AF98: 10 | AG98: Perennial Cool Season Sedge | AH98: ,CM,LI
A99: Grass | B99: Prairie Straw Sedge | C99: Carex suberecta | F99: X | G99: X | H99: X | I99: X | K99: 0.0001 | M99: X | O99: X | P99: X | S99: X | T99: X | V99: 1.344463414 | AA99: 70874 | AB99: 1.627043159 | AC99: 26.03269054 | AF99: 7 | AG99: Perennial Cool Season Sedge
A100: Grass | B100: Prairie Wedgescale | C100: Sphenopholis obtusata | D100: X | E100: X | G100: X | H100: X | J100: X | K100: 0.0001 | L100: X | M100: X | N100: X | O100: X | P100: X | Q100: X | R100: X | S100: X | T100: X | U100: X | V100: 0.4356 | AA100: 218750 | AB100: =AA100/43560 -> 5.021808999 | AC100: =AB100*16 -> 80.34894399 | AE100: Bunch | AF100: 6 | AG100: Perennial Cool Season Grass
A101: Grass | B101: Purple Lovegrass | C101: Eragrostis spectabilis | D101: X | E101: X | G101: X | H101: X | K101: 0.0001 | L101: X | M101: X | N101: X | O101: X | P101: X | Q101: X | R101: X | S101: X | T101: X | U101: X | V101: 0.3403125 | AA101: 280000 | AB101: 6.427915519 | AC101: 102.8466483 | AE101: Rhizomatous | AF101: 4 | AG101: Perennial Warm Season Grass | AH101: ,CD,LI
A102: Grass | B102: Purple Top | C102: Tridens flavus | D102: X | E102: X | G102: X | H102: X | J102: X | K102: 0.0001 | M102: X | P102: X | R102: X | S102: X | T102: X | V102: 3.664903846 | AA102: 26000 | AB102: 0.5968778696 | AC102: 9.550045914 | AE102: Bunch | AF102: 2 | AG102: Perennial Warm Season Grass | AH102: ,CM,
A103: Grass | B103: Quill Sedge | C103: Carex tenera | E103: X | F103: X | G103: X | H103: X | I103: X | J103: X | K103: 0.0001 | L103: X | M103: X | N103: X | O103: X | P103: X | Q103: X | R103: X | S103: X | T103: X | U103: X | V103: 4.764375 | AA103: 20000 | AB103: 0.4591368228 | AC103: 7.346189164 | AE103: Bunch | AF103: 8 | AG103: Perennial Cool Season Sedge | AH103: ,CM,LI
A104: Grass | B104: Ravenfoot Sedge | C104: Carex crus-corvi | F104: X | H104: X | I104: X | J104: X | K104: 0.0001 | M104: X | Q104: X | R104: X | S104: X | T104: X | V104: 7.329807692 | AA104: 13000 | AB104: 0.2984389348 | AC104: 4.775022957 | AE104: Bunch | AF104: 9 | AG104: Perennial Cool Season Sedge | AH104: ,CM,LI
A105: Grass | B105: Rice Cutgrass | C105: Leersia oryzoides | F105: X | G105: X | I105: X | J105: X | K105: 0.0001 | L105: X | M105: X | N105: X | O105: X | P105: X | Q105: X | R105: X | S105: X | T105: X | U105: X | V105: 2.802573529 | AA105: 34000 | AB105: 0.7805325987 | AC105: 12.48852158 | AE105: Rhizomatous | AF105: 6 | AG105: Perennial Cool Season Grass | AH105: CD
A106: Grass | B106: River Bulrush | C106: Schoenoplectus fluviatilis | F106: X | I106: X | K106: 0.0001 | L106: X | M106: X | N106: X | O106: X | P106: X | Q106: X | R106: X | S106: X | T106: X | U106: X | V106: 22.15988372 | AA106: 4300 | AB106: 0.0987144169 | AC106: 1.57943067 | AE106: Rhizomatous | AF106: 5 | AG106: Perennial Cool Season Sedge | AH106: CM
A107: Grass | B107: Riverbank Wildrye | C107: Elymus riparius | E107: X | H107: X | J107: X | K107: 0.0001 | M107: X | N107: X | P107: X | V107: 32.85775862 | AA107: 2900 | AB107: 0.0665748393 | AC107: 1.065197429 | AE107: Bunch | AF107: 6 | AG107: Perennial Cool Season Grass | AH107: ,CD,
A108: Grass | B108: Rosy Sedge | C108: Carex rosea | D108: X | E108: X | F108: X | J108: X | K108: 0.0001 | M108: X | N108: X | P108: X | Q108: X | R108: X | S108: X | T108: X | V108: 1.797877358 | AA108: 53000 | AB108: 1.21671258 | AC108: 19.46740129 | AF108: 6 | AG108: Perennial Cool Season Sedge | AH108: ,CM,LI
A109: Grass | B109: Rough Dropseed | C109: Sporobolus compositus | D109: X | E109: X | G109: X | H109: X | K109: 0.0001 | L109: X | M109: X | N109: X | O109: X | P109: X | Q109: X | R109: X | S109: X | T109: X | U109: X | V109: 3.17625 | AA109: 30000 | AB109: 0.6887052342 | AC109: 11.01928375 | AE109: Bunch | AF109: 4 | AG109: Perennial Warm Season Grass
A110: Grass | B110: Rufous Bulrush | C110: Scirpus pendulus | E110: X | F110: X | I110: X | J110: X | K110: 0.0001 | M110: X | N110: X | P110: X | R110: X | S110: X | T110: X | V110: 0.3073790323 | AA110: 310000 | AB110: 7.116620753 | AC110: 113.865932 | AE110: Rhizomatous | AF110: 4 | AG110: Perennial Cool Season Sedge
A111: Grass | B111: Sand Dropseed | C111: Sporobolus cryptandrus | D111: X | E111: X | G111: X | H111: X | K111: 0.0001 | L111: X | M111: X | N111: X | O111: X | P111: X | Q111: X | R111: X | S111: X | T111: X | U111: X | V111: 0.2722461108 | AA111: 350005 | AB111: 8.035009183 | AC111: 128.5601469 | AE111: Bunch | AF111: 7 | AG111: Perennial Warm Season Grass | AH111: none
A112: Grass | B112: Sand Lovegrass | C112: Eragrostis trichodes | D112: X | E112: X | G112: X | H112: X | K112: 0.0001 | M112: X | N112: X | R112: X | S112: X | T112: X | U112: X | V112: 1.05875 | AA112: 90000 | AB112: 2.066115702 | AC112: 33.05785124 | AE112: Bunch | AF112: 4 | AG112: Perennial Warm Season Grass | AH112: ,CD,LI
A113: Grass | B113: Sartwell's Sedge | C113: Carex sartwellii | F113: X | G113: X | H113: X | I113: X | K113: 0.0001 | L113: X | M113: X | N113: X | O113: X | P113: X | Q113: X | R113: X | S113: X | T113: X | U113: X | V113: 2.324085366 | AA113: 41000 | AB113: 0.9412304867 | AC113: 15.05968779 | AE113: Rhizomatous | AF113: 7 | AG113: Perennial Cool Season Sedge | AH113: CM
A114: Grass | B114: Schweinitz's Flatsedge | C114: Cyperus schweinitzii | D114: X | G114: X | H114: X | K114: 0.0001 | M114: X | N114: X | O114: X | P114: X | S114: X | V114: 4.142934783 | AA114: 23000 | AB114: 0.5280073462 | AC114: 8.448117539 | AE114: Rhizomatous | AF114: 5 | AG114: Perennial Cool Season Sedge | AH114: ,CM,LI
A115: Grass | B115: Scribner's Rosette Grass | C115: Dichanthelium oligosanthes var. scribnerianum | D115: X | G115: X | H115: X | K115: 0.0001 | L115: X | M115: X | N115: X | O115: X | P115: X | Q115: X | R115: X | S115: X | T115: X | U115: X | V115: 10.5875 | AA115: 9000 | AB115: 0.2066115702 | AC115: 3.305785124 | AF115: 5 | AG115: Perennial Cool Season Grass | AH115: CD
A116: Grass | B116: Short's Sedge | C116: Carex shortiana | E116: X | F116: X | G116: X | J116: X | K116: 0.0001 | M116: X | P116: X | R116: X | S116: X | V116: 5.605147059 | AA116: 17000 | AB116: 0.3902662994 | AC116: 6.24426079 | AE116: Bunch | AF116: 8 | AG116: Perennial Cool Season Sedge | AH116: ,CM,LI
A117: Grass | B117: Sideoats Grama | C117: Bouteloua curtipendula | D117: X | E117: X | G117: X | H117: X | K117: 0.0001 | L117: X | M117: X | N117: X | O117: X | P117: X | Q117: X | R117: X | S117: X | T117: X | U117: X | V117: 15.88125 | AA117: 6000 | AB117: 0.1377410468 | AC117: 2.203856749 | AE117: Rhizomatous | AF117: 7 | AG117: Perennial Warm Season Grass | AH117: ,CD,
A118: Grass | B118: Slender Looseflower Sedge | C118: Carex gracilescens | D118: X | J118: X | K118: 0.0001 | S118: X | V118: 8.285869565 | AA118: 11500 | AB118: 0.2640036731 | AC118: 4.22405877 | AF118: 10 | AG118: Perennial Cool Season Sedge | AH118: CM
A119: Grass | B119: Slender Wheatgrass | C119: Elymus trachycaulus | D119: X | E119: X | G119: X | H119: X | J119: X | K119: 0.0001 | M119: X | O119: X | P119: X | Q119: X | R119: X | S119: X | V119: 13.80978261 | AA119: 6900 | AB119: 0.1584022039 | AC119: 2.534435262 | AE119: Bunch | AF119: 6 | AG119: Perennial Cool Season Grass | AH119: ,CD,
A120: Grass | B120: Smoothcone Sedge | C120: Carex laeviconica | F120: X | G120: X | H120: X | I120: X | K120: 0.0001 | L120: X | M120: X | N120: X | O120: X | P120: X | Q120: X | R120: X | S120: X | T120: X | U120: X | V120: 7.940625 | AA120: 12000 | AB120: 0.2754820937 | AC120: 4.407713499 | AE120: Rhizomatous | AF120: 5 | AG120: Perennial Cool Season Sedge | AH120: ,CM,LI
A121: Grass | B121: Soft Fox Sedge | C121: Carex conjuncta | E121: X | F121: X | G121: X | H121: X | J121: X | K121: 0.0001 | L121: X | M121: X | N121: X | O121: X | P121: X | Q121: X | R121: X | S121: X | T121: X | U121: X | V121: 4.33125 | AA121: 22000 | AB121: 0.5050505051 | AC121: 8.080808081 | AF121: 5 | AG121: Perennial Cool Season Sedge | AH121: CM
A122: Grass | B122: Softstem Bulrush | C122: Schoenoplectus tabernaemontani | F122: X | I122: X | K122: 0.0001 | L122: X | M122: X | N122: X | O122: X | P122: X | Q122: X | R122: X | S122: X | T122: X | U122: X | V122: 3.073790323 | AA122: 31000 | AB122: 0.7116620753 | AC122: 11.3865932 | AE122: Rhizomatous | AF122: 4 | AG122: Perennial Cool Season Sedge | AH122: ,CM,LI
A123: Grass | B123: Spiked Muhly | C123: Muhlenbergia glomerata | E123: X | F123: X | G123: X | H123: X | I123: X | K123: 0.0001 | M123: X | N123: X | O123: X | P123: X | Q123: X | S123: X | V123: 0.4235 | AA123: 225000 | AB123: 5.165289256 | AC123: 82.6446281 | AE123: Rhizomatous | AF123: 10 | AG123: Perennial Warm Season Grass | AH123: CD LI
A124: Grass | B124: Sprengel's Sedge | C124: Carex sprengelii | E124: X | F124: X | H124: X | I124: X | J124: X | K124: 0.0001 | L124: X | M124: X | N124: X | O124: X | P124: X | Q124: X | R124: X | S124: X | T124: X | U124: X | V124: 9.52875 | AA124: 10000 | AB124: 0.2295684114 | AC124: 3.673094582 | AE124: Rhizomatous | AF124: 5 | AG124: Perennial Cool Season Sedge | AH124: ,CM,LI
A125: Grass | B125: Squarrose Sedge | C125: Carex squarrosa | E125: X | F125: X | G125: X | I125: X | J125: X | K125: 0.0001 | S125: X | V125: 4.764375 | AA125: 20000 | AB125: 0.4591368228 | AC125: 7.346189164 | AE125: Bunch | AF125: 9 | AG125: Perennial Cool Season Sedge | AH125: ,CM,LI
A126: Grass | B126: Star Sedge | C126: Carex echinata | F126: X | I126: X | K126: 0.0001 | N126: X | O126: X | P126: X | V126: 1.944642857 | AA126: 49000 | AB126: 1.124885216 | AC126: 17.99816345 | AE126: Bunch | AF126: 7 | AG126: Perennial Cool Season Sedge | AH126: CM
A127: Grass | B127: Sweetgrass | C127: Hierochloe odorata | E127: X | F127: X | G127: X | H127: X | I127: X | K127: 0.0001 | M127: X | N127: X | O127: X | P127: X | Q127: X | U127: X | V127: 4.764375 | AA127: 20000 | AB127: 0.4591368228 | AC127: 7.346189164 | AE127: Rhizomatous | AF127: 8 | AG127: Perennial Cool Season Grass | AH127: LI
A128: Grass | B128: Switchgrass | C128: Panicum virgatum | D128: X | E128: X | F128: X | G128: X | H128: X | I128: X | K128: 0.0001 | L128: X | M128: X | N128: X | O128: X | P128: X | Q128: X | R128: X | S128: X | T128: X | U128: X | V128: 4 | AA128: 14000 | AB128: 0.3213957759 | AC128: 5.142332415 | AE128: Rhizomatous | AF128: 7 | AG128: Perennial Warm Season Grass | AH128: CD
A129: Grass | B129: Thin Paspalum | C129: Paspalum setaceum | D129: X | G129: X | K129: 0.0001 | L129: X | M129: X | N129: X | O129: X | P129: X | Q129: X | R129: X | S129: X | T129: X | U129: X | V129: =35/AC129 -> 2.7225 | AA129: 35000 | AB129: 0.8034894399 | AC129: 12.85583104 | AF129: 5 | AG129: Perennial Cool Season Grass | AH129: CD
A130: Grass | B130: Thinleaf Sedge | C130: Carex cephaloidea | D130: X | E130: X | J130: X | K130: 0.0001 | M130: X | N130: X | O130: X | P130: X | R130: X | S130: X | V130: 2.977734375 | AA130: 32000 | AB130: 0.7346189164 | AC130: 11.75390266 | AF130: 6 | AG130: Perennial Cool Season Sedge | AH130: ,CM,LI
A131: Grass | B131: Threeway Sedge | C131: Dulichium arundinaceum | F131: X | I131: X | K131: 0.0001 | M131: X | N131: X | O131: X | P131: X | R131: X | S131: X | V131: 2.443269231 | AA131: 39000 | AB131: 0.8953168044 | AC131: 14.32506887 | AE131: Rhizomatous | AF131: 9 | AG131: Perennial Cool Season Sedge | AH131: CM
A132: Grass | B132: Torrey's Rush | C132: Juncus torreyi | F132: X | G132: X | I132: X | K132: 0.0001 | L132: X | M132: X | N132: X | O132: X | P132: X | Q132: X | R132: X | S132: X | T132: X | U132: X | V132: 0.0595546875 | AA132: 1600000 | AB132: =AA132/43560 -> 36.73094582 | AC132: =AB132*16 -> 587.6951331 | AE132: Rhizomatous | AF132: 5 | AG132: Perennial Cool Season Rush | AH132: ,CM,LI
A133: Grass | B133: Troublesome Sedge | C133: Carex molesta | D133: X | E133: X | F133: X | G133: X | H133: X | I133: X | J133: X | K133: 0.0001 | M133: X | N133: X | O133: X | P133: X | Q133: X | R133: X | S133: X | T133: X | V133: 3.8115 | AA133: 25000 | AB133: 0.5739210285 | AC133: 9.182736455 | AE133: Bunch | AF133: 3 | AG133: Perennial Cool Season Sedge | AH133: ,CM,LI
A134: Grass | B134: Tuckerman's Sedge | C134: Carex tuckermanii | F134: X | G134: X | I134: X | K134: 0.0001 | M134: X | V134: 119.109375 | AA134: 800 | AB134: 0.01836547291 | AC134: 0.2938475666 | AF134: 7 | AG134: Perennial Cool Season Sedge | AH134: ,CM,LI
A135: Grass | B135: Upright Sedge | C135: Carex stricta | E135: X | F135: X | G135: X | I135: X | K135: 0.0001 | L135: X | M135: X | N135: X | O135: X | P135: X | Q135: X | R135: X | S135: X | T135: X | U135: X | V135: 1.797877358 | AA135: 53000 | AB135: 1.21671258 | AC135: 19.46740129 | AE135: Bunch | AF135: 6 | AG135: Perennial Cool Season Sedge | AH135: ,CM,LI
A136: Grass | B136: Virginia Wildrye | C136: Elymus virginicus | E136: X | F136: X | G136: X | H136: X | I136: X | J136: X | K136: 0.0001 | L136: X | M136: X | N136: X | O136: X | P136: X | Q136: X | R136: X | S136: X | T136: X | U136: X | V136: 22.6875 | AA136: 4200 | AB136: 0.09641873278 | AC136: 1.542699725 | AE136: Bunch | AF136: 4 | AG136: Perennial Cool Season Grass | AH136: ,CD,
A137: Grass | B137: Water Sedge | C137: Carex aquatilis | F137: X | G137: X | I137: X | K137: 0.0001 | M137: X | Q137: X | V137: 2.215988372 | AA137: 43000 | AB137: 0.987144169 | AC137: 15.7943067 | AE137: Bunch | AF137: 10 | AG137: Perennial Cool Season Sedge | AH137: CM
A138: Grass | B138: Western Wheatgrass | C138: Pascopyrum smithii | D138: X | E138: X | G138: X | H138: X | K138: 0.0001 | L138: X | M138: X | N138: X | O138: X | P138: X | Q138: X | R138: X | S138: X | T138: X | U138: X | V138: 13.25646912 | AA138: 7188 | AB138: 0.1650137741 | AC138: 2.640220386 | AE138: Rhizomatous | AF138: 2 | AG138: Perennial Cool Season Grass
A139: Grass | B139: Wheat Sedge | C139: Carex atherodes | F139: X | G139: X | H139: X | I139: X | K139: 0.0001 | L139: X | M139: X | N139: X | O139: X | P139: X | Q139: X | R139: X | S139: X | T139: X | U139: X | V139: 3.285775862 | AA139: 29000 | AB139: 0.665748393 | AC139: 10.65197429 | AE139: Rhizomatous | AF139: 8 | AG139: Perennial Cool Season Sedge | AH139: ,CM,LI
A140: Grass | B140: Woolgrass | C140: Scirpus cyperinus | E140: X | F140: X | G140: X | I140: X | K140: 0.0001 | M140: X | N140: X | P140: X | R140: X | S140: X | T140: X | V140: 0.05605147059 | AA140: 1700000 | AB140: 39.02662994 | AC140: 624.426079 | AE140: Bunch | AF140: 6 | AG140: Perennial Cool Season Sedge | AH140: ,CM,LI
A141: Grass | B141: Woolly Sedge | C141: Carex pellita | E141: X | F141: X | G141: X | I141: X | K141: 0.0001 | L141: X | M141: X | N141: X | O141: X | P141: X | Q141: X | R141: X | S141: X | T141: X | U141: X | V141: 3.403125 | AA141: 28000 | AB141: 0.6427915519 | AC141: 10.28466483 | AE141: Rhizomatous | AF141: 3 | AG141: Perennial Cool Season Sedge | AH141: ,CM,LI
A142: Grass | B142: Woollyfruit Sedge | C142: Carex lasiocarpa | F142: X | G142: X | I142: X | K142: 0.0001 | M142: X | N142: X | P142: X | Q142: X | S142: X | V142: 6.80625 | AA142: 14000 | AB142: 0.3213957759 | AC142: 5.142332415 | AE142: Rhizomatous | AF142: 10 | AG142: Perennial Cool Season Sedge | AH142: ,CM,LI
A143: Grass | B143: Yellow Fox Sedge | C143: Carex annectens | D143: X | E143: X | F143: X | G143: X | I143: X | K143: 0.0001 | M143: X | N143: X | P143: X | R143: X | T143: X | U143: X | V143: 1.05875 | AA143: 90000 | AB143: 2.066115702 | AC143: 33.05785124 | AF143: 5 | AG143: Perennial Cool Season Sedge | AH143: ,CM,LI
A150: Plant Type | B150: Common Name | C150: Scientific Name | D150: Dry | E150: Medium | F150: Wet | G150: Prairie | H150: Savanna | I150: Wetland | J150: Woodland | K150: Short-term Program (Y = < $0.0017) | L150: All | M150: C | N150: EC | O150: NC | P150: NE | Q150: NW | R150: SC | S150: SE | T150: SW | U150: WC
D151: =IF(Calculator!$A$4=1,"X","") ->  | E151: =IF(Calculator!$A$4=2,"X","") ->  | F151: =IF(Calculator!$A$4=3,"X","") ->  | G151: =IF(Calculator!$A$6=1,"X","") ->  | H151: =IF(Calculator!$A$6=2,"X","") ->  | I151: =IF(Calculator!$A$6=3,"X","") ->  | J151: =IF(Calculator!$A$6=4,"X","") ->  | K151: =IF(Calculator!$A$8=2,"<.0069",">0") -> >0 | L151: =IF(Calculator!$C$2="ALL","X","") ->  | M151: =IF(Calculator!$C$2="C","X","") ->  | N151: =IF(Calculator!$C$2="EC","X","") ->  | O151: =IF(Calculator!$C$2="NC","X","") ->  | P151: =IF(Calculator!$C$2="NE","X","") ->  | Q151: =IF(Calculator!$C$2="NW","X","") ->  | R151: =IF(Calculator!$C$2="SC","X","") ->  | S151: =IF(Calculator!$C$2="SE","X","") ->  | T151: =IF(Calculator!$C$2="SW","X","") ->  | U151: =IF(Calculator!$C$2="WC","X","") -> 
A152: Plant Type | B152: Common Name | C152: Scientific Name | D152: Dry | E152: Medium | F152: Wet | G152: Prairie | H152: Savanna | I152: Wetland | J152: Woodland | K152: Short-term Program (Y = < $0.0017) | L152: All | M152: C | N152: EC | O152: NC | P152: NE | Q152: NW | R152: SC | S152: SE | T152: SW | U152: WC
A153: Leave this row blank | D153: X | E153: X | F153: X | G153: X | H153: X | I153: X | J153: X | K153: 1e-05 | L153: X | M153: X | N153: X | O153: X | P153: X | Q153: X | R153: X | S153: X | T153: X | U153: X
A154: Grass | B154: American Beakgrain | C154: Diarrhena americana | D154: X | E154: X | F154: X | J154: X | K154: 0.0001 | M154: X | N154: X | P154: X | R154: X | S154: X | T154: X
A155: Grass | B155: American Mannagrass | C155: Glyceria grandis | F155: X | G155: X | I155: X | K155: 0.0001 | M155: X | N155: X | O155: X | P155: X | Q155: X | U155: X
A156: Grass | B156: American Sloughgrass | C156: Beckmannia syzigachne | F156: X | G156: X | H156: X | I156: X | K156: 0.0001 | Q156: X
A157: Grass | B157: Arctic Brome | C157: Bromus kalmii | D157: X | E157: X | G157: X | H157: X | J157: X | K157: 0.0001 | M157: X | N157: X | P157: X | Q157: X | S157: X
A158: Grass | B158: Bald Spikerush | C158: Eleocharis erythropoda | F158: X | G158: X | H158: X | I158: X | K158: 0.0001 | L158: X | M158: X | N158: X | O158: X | P158: X | Q158: X | R158: X | S158: X | T158: X | U158: X
A159: Grass | B159: Baltic Rush | C159: Juncus arcticus ssp. littoralis | E159: X | F159: X | G159: X | I159: X | K159: 0.0001 | L159: X | M159: X | N159: X | O159: X | P159: X | Q159: X | R159: X | S159: X | T159: X | U159: X
A160: Grass | B160: Bebb's Sedge | C160: Carex bebbii | E160: X | F160: X | G160: X | H160: X | I160: X | J160: X | K160: 0.0001 | L160: X | M160: X | N160: X | O160: X | P160: X | Q160: X | R160: X | S160: X | T160: X | U160: X
A161: Grass | B161: Bicknell's Sedge | C161: Carex bicknellii | D161: X | E161: X | F161: X | G161: X | H161: X | I161: X | K161: 0.0001 | L161: X | M161: X | N161: X | O161: X | P161: X | Q161: X | R161: X | S161: X | T161: X | U161: X
A162: Grass | B162: Big Bluestem | C162: Andropogon gerardii | D162: X | E162: X | F162: X | G162: X | H162: X | K162: 0.0001 | L162: X | M162: X | N162: X | O162: X | P162: X | Q162: X | R162: X | S162: X | T162: X | U162: X
A163: Grass | B163: Blister Sedge | C163: Carex vesicaria | E163: X | F163: X | G163: X | I163: X | J163: X | K163: 0.0001 | L163: X | M163: X | N163: X | O163: X | P163: X | Q163: X | R163: X | S163: X | T163: X | U163: X
A164: Grass | B164: Blue Grama | C164: Bouteloua gracilis | D164: X | G164: X | H164: X | K164: 0.0001 | M164: X | Q164: X | T164: X | U164: X
A165: Grass | B165: Bluejoint | C165: Calamagrostis canadensis | E165: X | F165: X | G165: X | H165: X | I165: X | K165: 0.0001 | L165: X | M165: X | N165: X | O165: X | P165: X | Q165: X | R165: X | S165: X | T165: X | U165: X
A166: Grass | B166: Blunt Broom Sedge | C166: Carex tribuloides | F166: X | G166: X | H166: X | I166: X | K166: 0.0001 | L166: X | M166: X | N166: X | O166: X | P166: X | Q166: X | R166: X | S166: X | T166: X | U166: X
A167: Grass | B167: Blunt Spikerush | C167: Eleocharis obtusa | F167: X | G167: X | I167: X | K167: 0.0001 | L167: X | M167: X | N167: X | O167: X | P167: X | Q167: X | R167: X | S167: X | T167: X | U167: X
A168: Grass | B168: Bottlebrush Grass | C168: Elymus hystrix | D168: X | E168: X | H168: X | J168: X | K168: 0.0001 | L168: X | M168: X | N168: X | O168: X | P168: X | Q168: X | R168: X | S168: X | T168: X | U168: X
A169: Grass | B169: Bristlystalked Sedge | C169: Carex leptalea | F169: X | G169: X | I169: X | J169: X | K169: 0.0001 | N169: X | P169: X | Q169: X
A170: Grass | B170: Broom Sedge | C170: Carex scoparia | E170: X | F170: X | G170: X | I170: X | K170: 0.0001 | L170: X | M170: X | N170: X | O170: X | P170: X | Q170: X | R170: X | S170: X | T170: X | U170: X
A171: Grass | B171: Broomsedge Bluestem | C171: Andropogon virginicus | E171: X | G171: X | K171: 0.0001 | R171: X | S171: X | T171: X
A172: Grass | B172: Burr Reed Sedge | C172: Carex sparganioides | D172: X | E172: X | F172: X | H172: X | I172: X | J172: X | K172: 0.0001 | L172: X | M172: X | N172: X | O172: X | P172: X | Q172: X | R172: X | S172: X | T172: X | U172: X
A173: Grass | B173: Buxbaum's Sedge | C173: Carex buxbaumii | F173: X | G173: X | H173: X | I173: X | K173: 0.0001 | M173: X | N173: X | O173: X | P173: X | R173: X | S173: X | U173: X
A174: Grass | B174: Canada Wildrye | C174: Elymus canadensis | D174: X | E174: X | F174: X | G174: X | H174: X | J174: X | K174: 0.0001 | L174: X | M174: X | N174: X | O174: X | P174: X | Q174: X | R174: X | S174: X | T174: X | U174: X
A175: Grass | B175: Canadian Rush | C175: Juncus canadensis | E175: X | F175: X | G175: X | I175: X | K175: 0.0001 | M175: X | N175: X | P175: X | R175: X | S175: X
A176: Grass | B176: Catchfly Grass | C176: Leersia lenticularis | E176: X | F176: X | J176: X | K176: 0.0001 | N176: X | P176: X | S176: X
A177: Grass | B177: Cattail Sedge | C177: Carex typhina | F177: X | I177: X | J177: X | K177: 0.0001 | M177: X | N177: X | R177: X | S177: X
A178: Grass | B178: Clustered Field Sedge | C178: Carex praegracilis | E178: X | F178: X | G178: X | H178: X | K178: 0.0001 | M178: X | O178: X | Q178: X | R178: X | T178: X | U178: X
A179: Grass | B179: Common Rivergrass | C179: Scolochloa festucacea | F179: X | G179: X | I179: X | K179: 0.0001 | O179: X | Q179: X
A180: Grass | B180: Common Rush | C180: Juncus effusus | F180: X | G180: X | I180: X | J180: X | K180: 0.0001 | M180: X | N180: X | P180: X | S180: X
A181: Grass | B181: Common Spikerush | C181: Eleocharis palustris | F181: X | G181: X | I181: X | K181: 0.0001 | M181: X | N181: X | O181: X | P181: X | R181: X | S181: X
A182: Grass | B182: Common Threesquare | C182: Schoenoplectus pungens | F182: X | I182: X | K182: 0.0001 | M182: X | O182: X | Q182: X | R182: X | T182: X | U182: X
A183: Grass | B183: Composite Dropseed | C183: Sporobolus clandestinus | D183: X | G183: X | H183: X | K183: 0.0001 | L183: X | M183: X | N183: X | O183: X | P183: X | Q183: X | R183: X | S183: X | T183: X | U183: X
A184: Grass | B184: Crested Sedge | C184: Carex cristatella | E184: X | F184: X | G184: X | I184: X | J184: X | K184: 0.0001 | M184: X | Q184: X | R184: X | S184: X | T184: X
A185: Grass | B185: Dark Green Bulrush | C185: Scirpus atrovirens | E185: X | F185: X | G185: X | I185: X | J185: X | K185: 0.0001 | L185: X | M185: X | N185: X | O185: X | P185: X | Q185: X | R185: X | S185: X | T185: X | U185: X
A186: Grass | B186: Dioecious Sedge | C186: Carex sterilis | F186: X | G186: X | I186: X | K186: 0.0001 | M186: X | P186: X
A187: Grass | B187: Dudley's Rush | C187: Juncus dudleyi | E187: X | F187: X | G187: X | I187: X | K187: 0.0001 | L187: X | M187: X | N187: X | O187: X | P187: X | Q187: X | R187: X | S187: X | T187: X | U187: X
A188: Grass | B188: Eastern Gamagrass | C188: Tripsacum dactyloides | E188: X | F188: X | G188: X | H188: X | I188: X | K188: 0.0001 | M188: X | R188: X | S188: X | T188: X
A189: Grass | B189: Eastern Narrowleaf Sedge | C189: Carex amphibola | E189: X | F189: X | H189: X | J189: X | K189: 0.0001 | L189: X | M189: X | N189: X | O189: X | P189: X | Q189: X | R189: X | S189: X | T189: X | U189: X
A190: Grass | B190: Eastern Woodland Sedge | C190: Carex blanda | D190: X | E190: X | G190: X | H190: X | I190: X | J190: X | K190: 0.0001 | L190: X | M190: X | N190: X | O190: X | P190: X | Q190: X | R190: X | S190: X | T190: X | U190: X
A191: Grass | B191: Floating Mannagrass | C191: Glyceria septentrionalis | F191: X | I191: X | J191: X | K191: 0.0001 | M191: X | P191: X | S191: X
A192: Grass | B192: Fowl Bluegrass | C192: Poa palustris | E192: X | F192: X | G192: X | H192: X | I192: X | K192: 0.0001 | L192: X | M192: X | N192: X | O192: X | P192: X | Q192: X | R192: X | S192: X | T192: X | U192: X
A193: Grass | B193: Fowl Mannagrass | C193: Glyceria striata | E193: X | F193: X | G193: X | I193: X | J193: X | K193: 0.0001 | L193: X | M193: X | N193: X | O193: X | P193: X | Q193: X | R193: X | S193: X | T193: X | U193: X
A194: Grass | B194: Fox Sedge | C194: Carex vulpinoidea | E194: X | F194: X | G194: X | I194: X | J194: X | K194: 0.0001 | L194: X | M194: X | N194: X | O194: X | P194: X | Q194: X | R194: X | S194: X | T194: X | U194: X
A195: Grass | B195: Foxtail Barley | C195: Hordeum jubatum | D195: X | E195: X | F195: X | G195: X | I195: X | K195: 0.0001 | L195: X | M195: X | N195: X | O195: X | P195: X | Q195: X | R195: X | S195: X | T195: X | U195: X
A196: Grass | B196: Frank's Sedge | C196: Carex frankii | F196: X | G196: X | I196: X | J196: X | K196: 0.0001 | M196: X | R196: X | S196: X
A197: Grass | B197: Fringed Brome | C197: Bromus ciliatus | E197: X | F197: X | G197: X | I197: X | J197: X | K197: 0.0001 | M197: X | N197: X | O197: X | Q197: X | R197: X | S197: X | T197: X | U197: X
A198: Grass | B198: Fringed Sedge | C198: Carex crinita | E198: X | F198: X | H198: X | J198: X | K198: 0.0001 | M198: X | N198: X | S198: X
A199: Grass | B199: Fuzzy Wuzzy Sedge | C199: Carex hirsutella | D199: X | E199: X | H199: X | J199: X | K199: 0.0001 | M199: X | R199: X | S199: X
A200: Grass | B200: Graceful Sedge | C200: Carex gracillima | E200: X | J200: X | K200: 0.0001 | M200: X | O200: X | P200: X | Q200: X
A201: Grass | B201: Gray's Sedge | C201: Carex grayi | E201: X | F201: X | I201: X | J201: X | K201: 0.0001 | M201: X | N201: X | P201: X | R201: X | S201: X
A202: Grass | B202: Great Plains Flatsedge | C202: Cyperus lupulinus | D202: X | E202: X | G202: X | H202: X | K202: 0.0001 | L202: X | M202: X | N202: X | O202: X | P202: X | Q202: X | R202: X | S202: X | T202: X | U202: X
A203: Grass | B203: Greater Straw Sedge | C203: Carex normalis | E203: X | F203: X | G203: X | H203: X | J203: X | K203: 0.0001 | L203: X | M203: X | N203: X | O203: X | P203: X | Q203: X | R203: X | S203: X | T203: X | U203: X
A204: Grass | B204: Green Needlegrass | C204: Nassella viridula | D204: X | E204: X | G204: X | H204: X | K204: 0.0001 | Q204: X
A205: Grass | B205: Hairy Grama | C205: Bouteloua hirsuta | D205: X | G205: X | H205: X | K205: 0.0001 | M205: X | P205: X | Q205: X | S205: X | T205: X | U205: X
A206: Grass | B206: Hairy Sedge | C206: Carex lacustris | F206: X | G206: X | I206: X | J206: X | K206: 0.0001 | M206: X | N206: X | O206: X | P206: X | Q206: X | R206: X | S206: X
... 100 more rows

Sheet ForbsLegumes
D1: Moisture Regime | G1: Habitat | L1: REGION
A2: Plant Type | B2: Common Name | C2: Scientific Name | D2: Dry | E2: Medium | F2: Wet | G2: Prairie | H2: Savanna | I2: Wetland | J2: Woodland | K2: Short-term Program (Y = < $0.0069) | L2: All | M2: C | N2: EC | O2: NC | P2: NE | Q2: NW | R2: SC | S2: SE | T2: SW | U2: WC | V2: Pure Stand Seeding Rate PLS lbs/acre | W2: Seeding Rate Oz/ac PLS | X2: Seeds/sq foot | Y2: Estimated Cost/oz | Z2: Estimated Cost/lb | AA2: Seeds/oz | AB2: Seeds/sq ft @ 1oz/ac | AC2: Seeds/sq ft @ 16oz/ac | AD2: % of Mixture | AE2: Flowering Period | AF2: Coefficient of Conservatism | AG2: Functional Group | AH2: Germination | AI2: monarch
A3: Leave this row blank | D3: X | E3: X | F3: X | G3: X | H3: X | I3: X | J3: X | K3: 1e-05 | L3: X | M3: X | N3: X | O3: X | P3: X | Q3: X | R3: X | S3: X | T3: X | U3: X
A4: Forb | B4: Alfalfa (Intro. Forb) | C4: Medicago sativa L. | D4: X | E4: X | G4: X | H4: X | K4: 0.0001 | L4: X | M4: X | N4: X | O4: X | P4: X | Q4: X | R4: X | S4: X | T4: X | U4: X | V4: =35/AC4 -> 6.775759084 | AA4: 14063 | AB4: =(AA4/43560) -> 0.3228420569 | AC4: =AB4*16 -> 5.165472911 | AE4: Spring | AF4: 0 | AG4: Introduced Forb, Perennial
A5: Forb | B5: Alsike Clover (Intro. Forb) | C5: Trifolium hybridum L. | D5: X | E5: X | G5: X | H5: X | K5: 0.0001 | L5: X | M5: X | N5: X | O5: X | P5: X | Q5: X | R5: X | S5: X | T5: X | U5: X | V5: 2.209565217 | AA5: 43125 | AB5: 0.9900137741 | AC5: 15.84022039 | AE5: Spring | AF5: 0 | AG5: Introduced Forb, Perennial
A6: Forb | B6: Alumroot | C6: Heuchera richardsonii | D6: X | E6: X | G6: X | H6: X | J6: X | K6: 0.0001 | L6: X | M6: X | N6: X | O6: X | P6: X | Q6: X | R6: X | S6: X | T6: X | U6: X | V6: 0.136125 | AA6: 700000 | AB6: 16.0697888 | AC6: 257.1166208 | AE6: Spring, Summer | AF6: 8 | AG6: Perennial Forb | AH6: Dry cold storage, Light required for germination or cold moist stratification
A7: Forb | B7: American Germander | C7: Teucrium canadense | F7: X | G7: X | H7: X | I7: X | J7: X | K7: 0.0001 | L7: X | M7: X | N7: X | O7: X | P7: X | Q7: X | R7: X | S7: X | T7: X | U7: X | V7: 4.764375 | AA7: 20000 | AB7: 0.4591368228 | AC7: 7.346189164 | AE7: Summer, Fall | AF7: 4 | AG7: Perennial Forb | AH7: Cold moist stratification
A8: Forb | B8: American Vetch | C8: Vicia americana | G8: X | K8: 0.0001 | L8: X | M8: X | N8: X | O8: X | P8: X | Q8: X | R8: X | S8: X | T8: X | U8: X | V8: 46.43640351 | AA8: 2052 | AB8: 0.04710743802 | AC8: 0.7537190083 | AE8: Spring | AF8: 6 | AG8: Perennial Forb, Legume
A9: Forb | B9: Aromatic Aster | C9: Symphyotrichum oblongifolium | D9: X | G9: X | H9: X | K9: 0.0001 | L9: X | M9: X | N9: X | O9: X | P9: X | Q9: X | R9: X | S9: X | T9: X | U9: X | V9: 1.868382353 | AA9: 51000 | AB9: 1.170798898 | AC9: 18.73278237 | AE9: Summer, Fall | AF9: 8 | AG9: Perennial Forb | AH9: Dry cold storage | AI9: 1
A10: Forb | B10: Arumleaf Arrowhead | C10: Sagittaria cuneata | F10: X | I10: X | K10: 0.0001 | O10: X | P10: X | Q10: X | V10: 1.5125 | AA10: 63000 | AB10: 1.446280992 | AC10: 23.14049587 | AE10: Summer, Fall | AF10: 8 | AG10: Perennial Forb | AH10: Cold moist stratification
A11: Forb | B11: Baldwin's Ironweed | C11: Vernonia baldwinii | D11: X | E11: X | G11: X | J11: X | K11: 0.0001 | R11: X | S11: X | T11: X | V11: 3.9703125 | AA11: 24000 | AB11: 0.5509641873 | AC11: 8.815426997 | AE11: Summer, Fall | AF11: 2 | AG11: Perennial Forb | AH11: Cold moist => warm moist => cold moist sequence | AI11: 1
A12: Forb | B12: Bastard Toadflax | C12: Comandra umbellata | D12: X | E12: X | G12: X | H12: X | J12: X | K12: 0.0001 | L12: X | M12: X | N12: X | O12: X | P12: X | Q12: X | R12: X | S12: X | T12: X | U12: X | V12: 8.5078125 | AA12: 11200 | AB12: 0.2571166208 | AC12: 4.113865932 | AE12: Summer | AF12: 8 | AG12: Perennial Forb, Hemiparasite | AH12: Parasitic-requires a host plant
A13: Forb | B13: Bearded Beggarticks | C13: Bidens aristosa | E13: X | F13: X | G13: X | H13: X | I13: X | K13: 0.0001 | M13: X | R13: X | S13: X | V13: 11.07994186 | AA13: 8600 | AB13: 0.1974288338 | AC13: 3.158861341 | AE13: Summer, Fall | AF13: 3 | AG13: Annual Forb | AH13: Cold moist stratification, Light required for germination | AI13: 1
A14: Forb | B14: Biennial Gaura | C14: Gaura biennis | D14: X | E14: X | G14: X | H14: X | K14: 0.0001 | M14: X | N14: X | P14: X | Q14: X | R14: X | S14: X | T14: X | U14: X | V14: 35.29166667 | AA14: 2700 | AB14: 0.06198347107 | AC14: 0.9917355372 | AE14: Summer, Fall | AF14: 3 | AG14: Biennial Forb | AH14: Cold moist stratification
A15: Forb | B15: Bigleaf Aster | C15: Eurybia macrophylla | D15: X | E15: X | H15: X | J15: X | K15: 0.0001 | P15: X | V15: 3.529166667 | AA15: 27000 | AB15: 0.6198347107 | AC15: 9.917355372 | AE15: Summer, Fall | AF15: 7 | AG15: Perennial Forb | AH15: Cold Moist stratification
A16: Forb | B16: Bishop's Cap, Miterwort | C16: Mitella diphylla | E16: X | F16: X | H16: X | J16: X | K16: 0.0001 | M16: X | N16: X | O16: X | P16: X | R16: X | S16: X | V16: 1.7015625 | AA16: 56000 | AB16: 1.285583104 | AC16: 20.56932966 | AE16: Spring, Summer | AF16: 9 | AG16: Perennial Forb | AH16: Cold moist stratification
A17: Forb | B17: Black-eyed Susan | C17: Rudbeckia hirta | D17: X | E17: X | G17: X | H17: X | K17: 0.0001 | L17: X | M17: X | N17: X | O17: X | P17: X | Q17: X | R17: X | S17: X | T17: X | U17: X | V17: 1.035733696 | AA17: 92000 | AB17: 2.112029385 | AC17: 33.79247016 | AE17: Summer, Fall | AF17: 3 | AG17: Biennial Forb | AH17: Cold moist stratification or Dry cold storage | AI17: 1
A18: Forb | B18: Blacksamson Echinacea | C18: Echinacea angustifolia | D18: X | G18: X | H18: X | K18: 0.0001 | M18: X | O18: X | Q18: X | R18: X | T18: X | U18: X | V18: 13.6125 | AA18: 7000 | AB18: 0.160697888 | AC18: 2.571166208 | AE18: Summer | AF18: 7 | AG18: Perennial Forb | AH18: Cold moist stratification(90),Light required for germination Fall plant | AI18: 1
A19: Forb | B19: Bloodroot | C19: Sanguinaria canadensis | D19: X | E19: X | J19: X | K19: 0.0001 | L19: X | M19: X | N19: X | O19: X | P19: X | Q19: X | R19: X | S19: X | T19: X | U19: X | V19: 56.05147059 | AA19: 1700 | AB19: 0.03902662994 | AC19: 0.624426079 | AE19: Spring | AF19: 5 | AG19: Perennial Forb | AH19: Plant fresh seed, Cold moist => warm moist => cold moist sequence
A20: Forb | B20: Blue Cohosh | C20: Caulophyllum thalictroides | E20: X | J20: X | K20: 0.0001 | M20: X | N20: X | O20: X | P20: X | Q20: X | R20: X | S20: X | T20: X | V20: 1361.25 | AA20: 70 | AB20: 0.00160697888 | AC20: 0.02571166208 | AE20: Spring | AF20: 9 | AG20: Perennial Forb | AH20: Fall Plant
A21: Forb | B21: Blue Flag Iris | C21: Iris shrevei | F21: X | G21: X | H21: X | I21: X | J21: X | K21: 0.0001 | L21: X | M21: X | N21: X | O21: X | P21: X | Q21: X | R21: X | S21: X | T21: X | U21: X | V21: 95.2875 | AA21: 1000 | AB21: 0.02295684114 | AC21: 0.3673094582 | AE21: Spring, Summer | AF21: 6 | AG21: Perennial Forb | AH21: Fall plant Cold moist stratification(120)
A22: Forb | B22: Blue Giant Hyssop | C22: Agastache foeniculum | D22: X | E22: X | G22: X | H22: X | J22: X | K22: 0.0001 | M22: X | N22: X | O22: X | P22: X | Q22: X | V22: 1.05875 | AA22: 90000 | AB22: 2.066115702 | AC22: 33.05785124 | AE22: Summer | AF22: 10 | AG22: Perennial Forb | AH22: Cold moist stratification or Dry cold storage, Light required for germination | AI22: 1
A23: Forb | B23: Blue Sky Aster | C23: Symphyotrichum oolentangiense | D23: X | E23: X | G23: X | H23: X | J23: X | K23: 0.0001 | L23: X | M23: X | N23: X | O23: X | P23: X | Q23: X | R23: X | S23: X | T23: X | U23: X | V23: 1.19109375 | AA23: 80000 | AB23: 1.836547291 | AC23: 29.38475666 | AE23: Summer, Fall | AF23: 8 | AG23: Perennial Forb | AH23: Dry cold storage | AI23: 1
A24: Forb | B24: Blue Vervain | C24: Verbena hastata | E24: X | F24: X | G24: X | H24: X | I24: X | K24: 0.0001 | L24: X | M24: X | N24: X | O24: X | P24: X | Q24: X | R24: X | S24: X | T24: X | U24: X | V24: 1.024596774 | AA24: 93000 | AB24: 2.134986226 | AC24: 34.15977961 | AE24: Summer, Fall | AF24: 4 | AG24: Perennial Forb | AH24: Cold moist stratification(30),Light required for germination | AI24: 1
A25: Forb | B25: Blue Wild Indigo | C25: Baptisia australis | D25: X | E25: X | G25: X | H25: X | K25: 0.0001 | P25: X | R25: X | T25: X | V25: 63.525 | AA25: 1500 | AB25: 0.03443526171 | AC25: 0.5509641873 | AE25: Spring, Summer | AF25: 5 | AG25: Perennial Forb, Legume | AH25: Cold moist stratification(10),Requires scarification, Legume-requires inoculation
A26: Forb | B26: Bluebell | C26: Mertensia virginica | E26: X | J26: X | K26: 0.0001 | L26: X | M26: X | N26: X | O26: X | P26: X | Q26: X | R26: X | S26: X | T26: X | U26: X | V26: 9.823453608 | AA26: 9700 | AB26: 0.222681359 | AC26: 3.562901745 | AE26: Spring | AF26: 5 | AG26: Perennial Forb | AH26: Cold moist stratification | AI26: 1
A27: Forb | B27: Boneset | C27: Eupatorium perfoliatum | E27: X | F27: X | G27: X | H27: X | I27: X | K27: 0.0001 | L27: X | M27: X | N27: X | O27: X | P27: X | Q27: X | R27: X | S27: X | T27: X | U27: X | V27: 0.595546875 | AA27: 160000 | AB27: 3.673094582 | AC27: 58.76951331 | AE27: Summer, Fall | AF27: 6 | AG27: Perennial Forb | AH27: Dry cold storage or Cold moist stratification, Light required for germination | AI27: 1
A28: Forb | B28: Bottle Gentian, Closed Gentian | C28: Gentiana andrewsii | E28: X | F28: X | G28: X | H28: X | I28: X | K28: 0.0001 | L28: X | M28: X | N28: X | O28: X | P28: X | Q28: X | R28: X | S28: X | T28: X | U28: X | V28: 0.3403125 | AA28: 280000 | AB28: 6.427915519 | AC28: 102.8466483 | AE28: Summer, Fall | AF28: 7 | AG28: Perennial Forb | AH28: Cold moist stratification, Light required for germination
A29: Forb | B29: Bristly Crowfoot | C29: Ranunculus pensylvanicus | F29: X | G29: X | I29: X | K29: 0.0001 | M29: X | N29: X | O29: X | P29: X | Q29: X | V29: 60.96449136 | AA29: 1563 | AB29: 0.0358815427 | AC29: 0.5741046832 | AE29: Summer | AF29: 6 | AG29: Annual Forb | AH29: Cold moist stratification
A30: Forb | B30: Brown-eyed Susan | C30: Rudbeckia triloba | E30: X | F30: X | G30: X | H30: X | I30: X | J30: X | K30: 0.0001 | M30: X | N30: X | O30: X | P30: X | R30: X | S30: X | T30: X | V30: 2.802573529 | AA30: 34000 | AB30: 0.7805325987 | AC30: 12.48852158 | AE30: Summer, Fall | AF30: 4 | AG30: Biennial Forb | AH30: Cold moist stratification or Dry cold storage | AI30: 1
A31: Forb | B31: Bunch-Flower | C31: Veratrum virginicum | E31: X | F31: X | G31: X | H31: X | K31: 0.0001 | M31: X | P31: X | R31: X | S31: X | V31: 10.5875 | AA31: 9000 | AB31: 0.2066115702 | AC31: 3.305785124 | AE31: Summer | AF31: 9 | AG31: Perennial Forb | AH31: Cold moist stratification
A32: Forb | B32: Bush's Poppymallow | C32: Callirhoe bushii | D32: X | G32: X | H32: X | J32: X | K32: 0.0001 | T32: X | V32: 23.821875 | AA32: 4000 | AB32: 0.09182736455 | AC32: 1.469237833 | AE32: Summer | AF32: 8 | AG32: Perennial Forb | AH32: Cold moist stratification
A33: Forb | B33: Butterfly Weed | C33: Asclepias tuberosa | D33: X | E33: X | G33: X | H33: X | K33: 0.0001 | L33: X | M33: X | N33: X | O33: X | P33: X | Q33: X | R33: X | S33: X | T33: X | U33: X | V33: 22.15988372 | AA33: 4300 | AB33: 0.0987144169 | AC33: 1.57943067 | AE33: Summer | AF33: 7 | AG33: Perennial Forb | AH33: Cold moist stratification or Dry cold storage | AI33: 1
A34: Forb | B34: Calico Aster | C34: Symphyotrichum lateriflorum | D34: X | E34: X | H34: X | J34: X | K34: 0.0001 | M34: X | N34: X | P34: X | Q34: X | S34: X | T34: X | V34: 0.38115 | AA34: 250000 | AB34: 5.739210285 | AC34: 91.82736455 | AE34: Summer, Fall | AF34: 4 | AG34: Perennial Forb | AI34: 1
A35: Forb | B35: Canada Anemone | C35: Anemone canadensis | E35: X | F35: X | G35: X | H35: X | I35: X | K35: 0.0001 | L35: X | M35: X | N35: X | O35: X | P35: X | Q35: X | R35: X | S35: X | T35: X | U35: X | V35: 11.9109375 | AA35: 8000 | AB35: 0.1836547291 | AC35: 2.938475666 | AE35: Spring, Summer | AF35: 4 | AG35: Perennial Forb | AH35: Cold moist => warm moist => cold moist sequence
A36: Forb | B36: Canadian Lousewort | C36: Pedicularis canadensis | D36: X | E36: X | G36: X | H36: X | J36: X | K36: 0.0001 | L36: X | M36: X | N36: X | O36: X | P36: X | Q36: X | R36: X | S36: X | T36: X | U36: X | V36: =35/AC36 -> 2.8875 | AA36: 33000 | AB36: 0.7575757576 | AC36: 12.12121212 | AE36: Spring | AF36: 8 | AG36: Perennial Forb, Hemiparasite | AH36: Cold moist stratification(30),Parasitic-requires a host plant
A37: Forb | B37: Canadian Milkvetch | C37: Astragalus canadensis | D37: X | E37: X | F37: X | G37: X | H37: X | K37: 0.0001 | L37: X | M37: X | N37: X | O37: X | P37: X | Q37: X | R37: X | S37: X | T37: X | U37: X | V37: 5.605147059 | AA37: 17000 | AB37: 0.3902662994 | AC37: 6.24426079 | AE37: Summer | AF37: 5 | AG37: Perennial Forb, Legume | AH37: Cold moist stratification(10),Requires scarification, Legume-requires inoculation
A38: Forb | B38: Canadian Wildginger | C38: Asarum canadense | E38: X | J38: X | K38: 0.0001 | M38: X | N38: X | O38: X | P38: X | Q38: X | R38: X | S38: X | V38: 21.65625 | AA38: 4400 | AB38: 0.101010101 | AC38: 1.616161616 | AE38: Spring, Summer | AF38: 6 | AG38: Perennial Forb | AH38: Plant fresh seed
A39: Forb | B39: Cardinal Flower | C39: Lobelia cardinalis | E39: X | F39: X | G39: X | H39: X | I39: X | J39: X | K39: 0.0001 | L39: X | M39: X | N39: X | O39: X | P39: X | R39: X | S39: X | V39: 0.23821875 | AA39: 400000 | AB39: 9.182736455 | AC39: 146.9237833 | AE39: Summer, Fall | AF39: 6 | AG39: Perennial Forb | AH39: Cold moist stratification, Light required for germination | AI39: 1
A40: Forb | B40: Clammy Weed | C40: Polanisia dodecandra | D40: X | E40: X | G40: X | K40: 0.0001 | L40: X | M40: X | N40: X | O40: X | P40: X | Q40: X | R40: X | S40: X | T40: X | U40: X | V40: 14.65961538 | AA40: 6500 | AB40: 0.1492194674 | AC40: 2.387511478 | AE40: Summer, Fall | AF40: 3 | AG40: Annual Forb | AH40: Cold moist stratification or Dry cold storage
A41: Forb | B41: Clasping Milkweed | C41: Asclepias amplexicaulis | D41: X | E41: X | G41: X | H41: X | K41: 0.0001 | M41: X | N41: X | P41: X | S41: X | V41: 39.703125 | AA41: 2400 | AB41: 0.05509641873 | AC41: 0.8815426997 | AE41: Spring, Summer | AF41: 6 | AG41: Perennial Forb | AH41: Cold moist stratification | AI41: 1
A42: Forb | B42: Cliff Goldenrod | C42: Solidago sciaphila | D42: X | E42: X | G42: X | H42: X | K42: 0.0001 | M42: X | N42: X | O42: X | P42: X | R42: X | S42: X | T42: X | V42: 1.19109375 | AA42: 80000 | AB42: 1.836547291 | AC42: 29.38475666 | AE42: Summer, Fall | AF42: 10 | AG42: Perennial Forb | AH42: Cold moist stratification, Light required for germination
A43: Forb | B43: Cobaea Beardtongue | C43: Penstemon cobaea | D43: X | G43: X | H43: X | K43: 0.0001 | T43: X | V43: 7.940625 | AA43: 12000 | AB43: 0.2754820937 | AC43: 4.407713499 | AE43: Spring, Summer | AF43: 8 | AG43: Perennial Forb | AH43: COLD MOIST STRATIFICATION
A44: Forb | B44: Columbine | C44: Aquilegia canadensis | D44: X | E44: X | H44: X | J44: X | K44: 0.0001 | L44: X | M44: X | N44: X | O44: X | P44: X | Q44: X | R44: X | S44: X | T44: X | U44: X | V44: 2.507565789 | AA44: 38000 | AB44: 0.8723599633 | AC44: 13.95775941 | AE44: Spring, Summer | AF44: 6 | AG44: Perennial Forb | AH44: Cold moist stratification
A45: Forb | B45: Common Arrowhead | C45: Sagittaria latifolia | F45: X | I45: X | K45: 0.0001 | L45: X | M45: X | N45: X | O45: X | P45: X | Q45: X | R45: X | S45: X | T45: X | U45: X | V45: 1.562090164 | AA45: 61000 | AB45: 1.400367309 | AC45: 22.40587695 | AE45: Summer, Fall | AF45: 5 | AG45: Perennial Forb | AH45: Cold moist stratification
A46: Forb | B46: Common Blue Wood Aster | C46: Symphyotrichum cordifolium | D46: X | E46: X | H46: X | J46: X | K46: 0.0001 | M46: X | N46: X | O46: X | P46: X | R46: X | S46: X | T46: X | V46: 0.680625 | AA46: 140000 | AB46: 3.213957759 | AC46: 51.42332415 | AE46: Fall | AF46: 7 | AG46: Perennial Forb | AH46: Cold moist stratification | AI46: 1
A47: Forb | B47: Common Bur Reed | C47: Sparganium eurycarpum | F47: X | I47: X | K47: 0.0001 | L47: X | M47: X | N47: X | O47: X | P47: X | Q47: X | R47: X | S47: X | T47: X | U47: X | V47: 190.575 | AA47: 500 | AB47: 0.01147842057 | AC47: 0.1836547291 | AE47: Summer | AF47: 6 | AG47: Perennial Forb | AH47: Cold moist => warm moist => cold moist sequence
A48: Forb | B48: Common Evening Primrose | C48: Oenothera biennis | D48: X | E48: X | F48: X | G48: X | H48: X | K48: 0.0001 | L48: X | M48: X | N48: X | O48: X | P48: X | Q48: X | R48: X | S48: X | T48: X | U48: X | V48: 1.05875 | AA48: 90000 | AB48: 2.066115702 | AC48: 33.05785124 | AE48: Summer, Fall | AF48: 2 | AG48: Biennial Forb | AH48: Dry cold storage, Prefers cool soil, Light required for germination
A49: Forb | B49: Common Goldstar | C49: Hypoxis hirsuta | D49: X | E49: X | F49: X | G49: X | H49: X | I49: X | J49: X | K49: 0.0001 | L49: X | M49: X | N49: X | O49: X | P49: X | Q49: X | R49: X | S49: X | T49: X | U49: X | V49: 1.19109375 | AA49: 80000 | AB49: 1.836547291 | AC49: 29.38475666 | AE49: Spring, Summer | AF49: 7 | AG49: Perennial Forb | AH49: Cold moist stratification, Light required for germination
A50: Forb | B50: Common Milkweed | C50: Asclepias syriaca | D50: X | E50: X | F50: X | G50: X | H50: X | J50: X | K50: 0.0001 | L50: X | M50: X | N50: X | O50: X | P50: X | Q50: X | R50: X | S50: X | T50: X | U50: X | V50: 22.23226785 | AA50: 4286 | AB50: 0.09839302112 | AC50: 1.574288338 | AE50: Summer | AF50: 1 | AG50: Perennial Forb | AH50: Cold moist stratification (30) | AI50: 1
A51: Forb | B51: Common Yarrow | C51: Achillea millefolium | D51: X | E51: X | G51: X | H51: X | K51: 0.0001 | L51: X | M51: X | N51: X | O51: X | P51: X | Q51: X | R51: X | S51: X | T51: X | U51: X | V51: 0.53457223 | AA51: 178250 | AB51: 4.092056933 | AC51: 65.47291093 | AE51: Summer | AF51: 2 | AG51: Perennial Forb
A52: Forb | B52: Compass Plant | C52: Silphium laciniatum | D52: X | E52: X | G52: X | H52: X | K52: 0.0001 | L52: X | M52: X | N52: X | O52: X | P52: X | Q52: X | R52: X | S52: X | T52: X | U52: X | V52: 144.375 | AA52: 660 | AB52: 0.01515151515 | AC52: 0.2424242424 | AE52: Summer, Fall | AF52: 7 | AG52: Perennial Forb | AH52: Cold moist stratification | AI52: 1
A53: Forb | B53: Cottonweed | C53: Froelichia floridana | D53: X | G53: X | K53: 0.0001 | M53: X | N53: X | P53: X | S53: X | V53: 4.142934783 | AA53: 23000 | AB53: 0.5280073462 | AC53: 8.448117539 | AE53: Summer, Fall | AF53: 8 | AG53: Annual Forb | AH53: Cold moist stratification
A54: Forb | B54: Cow Parsnip | C54: Heracleum maximum | E54: X | F54: X | G54: X | H54: X | J54: X | K54: 0.0001 | M54: X | O54: X | Q54: X | R54: X | T54: X | U54: X | V54: 36.64903846 | AA54: 2600 | AB54: 0.05968778696 | AC54: 0.9550045914 | AE54: Summer | AF54: 5 | AG54: Biennial Forb | AH54: Fall plant, Cold moist => warm moist => cold moist sequence
A55: Forb | B55: Cowbane | C55: Oxypolis rigidior | F55: X | G55: X | H55: X | I55: X | K55: 0.0001 | L55: X | M55: X | N55: X | O55: X | P55: X | Q55: X | R55: X | S55: X | T55: X | U55: X | V55: 6.526541096 | AA55: 14600 | AB55: 0.3351698806 | AC55: 5.36271809 | AE55: Summer, Fall | AF55: 9 | AG55: Perennial Forb
A56: Forb | B56: Cream False Indigo | C56: Baptisia bracteata | D56: X | E56: X | G56: X | H56: X | K56: 0.0001 | L56: X | M56: X | N56: X | O56: X | P56: X | Q56: X | R56: X | S56: X | T56: X | U56: X | V56: 68.0625 | AA56: 1400 | AB56: 0.03213957759 | AC56: 0.5142332415 | AE56: Spring, Summer | AF56: 8 | AG56: Perennial Forb, Legume | AH56: Cold moist stratification(10),Requires scarification, Legume-requires inoculation
A57: Forb | B57: Cream Gentian | C57: Gentiana alba | D57: X | E57: X | G57: X | H57: X | J57: X | K57: 0.0001 | L57: X | M57: X | N57: X | O57: X | P57: X | R57: X | S57: X | T57: X | U57: X | V57: 0.680625 | AA57: 140000 | AB57: 3.213957759 | AC57: 51.42332415 | AE57: Summer, Fall | AF57: 5 | AG57: Perennial Forb | AH57: Cold moist stratification, Light required for germination
A58: Forb | B58: Crookedstem Aster | C58: Symphyotrichum prenanthoides | E58: X | F58: X | H58: X | J58: X | K58: 0.0001 | M58: X | N58: X | O58: X | P58: X | R58: X | S58: X | V58: 0.7940625 | AA58: 120000 | AB58: 2.754820937 | AC58: 44.07713499 | AE58: Summer, Fall | AF58: 7 | AG58: Perennial Forb | AH58: Cold moist stratification, Light required for germination | AI58: 1
A59: Forb | B59: Culver's Root | C59: Veronicastrum virginicum | E59: X | F59: X | G59: X | H59: X | I59: X | K59: 0.0001 | L59: X | M59: X | N59: X | O59: X | P59: X | Q59: X | R59: X | S59: X | T59: X | U59: X | V59: 0.119109375 | AA59: 800000 | AB59: 18.36547291 | AC59: 293.8475666 | AE59: Summer | AF59: 6 | AG59: Perennial Forb | AH59: Dry cold storage, Light required for germination | AI59: 1
A60: Forb | B60: Cup Plant | C60: Silphium perfoliatum | E60: X | F60: X | G60: X | H60: X | I60: X | J60: X | K60: 0.0001 | L60: X | M60: X | N60: X | O60: X | P60: X | Q60: X | R60: X | S60: X | T60: X | U60: X | V60: 68.0625 | AA60: 1400 | AB60: 0.03213957759 | AC60: 0.5142332415 | AE60: Summer, Fall | AF60: 2 | AG60: Perennial Forb | AH60: Cold moist stratification | AI60: 1
A61: Forb | B61: Devil's Beggartick | C61: Bidens frondosa | E61: X | F61: X | G61: X | H61: X | I61: X | K61: 0.0001 | M61: X | N61: X | O61: X | P61: X | R61: X | S61: X | V61: 19.0575 | AA61: 5000 | AB61: 0.1147842057 | AC61: 1.836547291 | AE61: Summer, Fall | AF61: 2 | AG61: Annual Forb | AH61: Cold moist stratification
A62: Forb | B62: Ditch Stonecrop | C62: Penthorum sedoides | F62: X | G62: X | H62: X | I62: X | K62: 0.0001 | L62: X | M62: X | N62: X | O62: X | P62: X | Q62: X | R62: X | S62: X | T62: X | U62: X | V62: 0.07329807692 | AA62: 1300000 | AB62: 29.84389348 | AC62: 477.5022957 | AE62: Summer, Fall | AF62: 3 | AG62: Perennial Forb | AH62: Cold moist stratification, Light required for germination
A63: Forb | B63: Dotted Blazing Star | C63: Liatris punctata | D63: X | E63: X | G63: X | H63: X | K63: 0.0001 | M63: X | O63: X | Q63: X | T63: X | U63: X | V63: 13.6125 | AA63: 7000 | AB63: 0.160697888 | AC63: 2.571166208 | AE63: Summer, Fall | AF63: 8 | AG63: Perennial Forb | AH63: Cold moist stratification | AI63: 1
A64: Forb | B64: Downy Gentian | C64: Gentiana puberulenta | D64: X | E64: X | G64: X | H64: X | J64: X | K64: 0.0001 | L64: X | M64: X | N64: X | O64: X | P64: X | Q64: X | R64: X | S64: X | T64: X | U64: X | V64: 0.2190517241 | AA64: 435000 | AB64: 9.986225895 | AC64: 159.7796143 | AE64: Summer, Fall | AF64: 9 | AG64: Perennial Forb | AH64: Cold moist stratification, Light required for germination
A65: Forb | B65: Downy Pagoda-plant | C65: Blephilia ciliata | D65: X | E65: X | G65: X | H65: X | J65: X | K65: 0.0001 | P65: X | R65: X | S65: X | V65: 0.23821875 | AA65: 400000 | AB65: 9.182736455 | AC65: 146.9237833 | AE65: Summer | AF65: 5 | AG65: Perennial Forb | AH65: Cold moist stratification, Light required for germination | AI65: 1
A66: Forb | B66: Downy Painted Cup | C66: Castilleja sessiliflora | D66: X | G66: X | K66: 0.0001 | M66: X | N66: X | O66: X | P66: X | Q66: X | T66: X | U66: X | V66: 0.4764375 | AA66: 200000 | AB66: 4.591368228 | AC66: 73.46189164 | AE66: Spring, Summer | AF66: 10 | AG66: Perennial Forb, Hemiparasite | AH66: Cold moist stratification, Parasitic-requires a host plant, Light required for germination
A67: Forb | B67: Downy Sunflower | C67: Helianthus mollis | D67: X | E67: X | G67: X | H67: X | K67: 0.0001 | M67: X | R67: X | S67: X | V67: 13.6125 | AA67: 7000 | AB67: 0.160697888 | AC67: 2.571166208 | AE67: Summer, Fall | AF67: 6 | AG67: Perennial Forb | AH67: Cold moist stratification or Dry cold storage | AI67: 1
A68: Forb | B68: Downy Yellow Violet | C68: Viola pubescens | E68: X | F68: X | J68: X | K68: 0.0001 | M68: X | N68: X | O68: X | P68: X | R68: X | S68: X | T68: X | U68: X | V68: =35/AC68 -> 11.21029412 | AA68: 8500 | AB68: =(AA68/43560) -> 0.1951331497 | AC68: =AB68*16 -> 3.122130395 | AE68: Spring, Summer, Fall | AF68: 5 | AG68: Perennial Forb | AH68: COLD MOIST STRATIFICATION
A69: Forb | B69: Drummond's Aster | C69: Symphyotrichum drummondii | D69: X | E69: X | H69: X | J69: X | K69: 0.0001 | M69: X | N69: X | P69: X | S69: X | T69: X | V69: 1.19109375 | AA69: 80000 | AB69: 1.836547291 | AC69: 29.38475666 | AE69: Fall | AF69: 5 | AG69: Perennial Forb | AH69: Dry cold storage | AI69: 1
A70: Forb | B70: Dutchman's Breeches | C70: Dicentra cucullaria | E70: X | H70: X | J70: X | K70: 0.0001 | L70: X | M70: X | N70: X | O70: X | P70: X | Q70: X | R70: X | S70: X | T70: X | U70: X | V70: 5.445 | AA70: 17500 | AB70: 0.4017447199 | AC70: 6.427915519 | AE70: Spring | AF70: 7 | AG70: Perennial Forb | AI70: 1
A71: Forb | B71: Dwark Larkspur | C71: Delphinium tricorne | E71: X | F71: X | J71: X | K71: 0.0001 | M71: X | R71: X | S71: X | T71: X | U71: X | V71: 4.33125 | AA71: 22000 | AB71: 0.5050505051 | AC71: 8.080808081 | AE71: Spring, Summer | AF71: 7 | AG71: Perennial Forb | AI71: 1
A72: Forb | B72: Early Buttercup | C72: Ranunculus fascicularis | D72: X | E72: X | G72: X | H72: X | K72: 0.0001 | M72: X | N72: X | O72: X | P72: X | Q72: X | R72: X | S72: X | V72: 9.52875 | AA72: 10000 | AB72: 0.2295684114 | AC72: 3.673094582 | AE72: Spring, Fall | AF72: 7 | AG72: Perennial Forb | AH72: Cold moist stratification
A73: Forb | B73: Early Figwort | C73: Scrophularia lanceolata | D73: X | E73: X | F73: X | G73: X | H73: X | J73: X | K73: 0.0001 | M73: X | N73: X | O73: X | P73: X | Q73: X | S73: X | U73: X | V73: 0.5150675676 | AA73: 185000 | AB73: 4.247015611 | AC73: 67.95224977 | AE73: Spring, Summer | AF73: 5 | AG73: Perennial Forb | AH73: Cold moist stratification, Light required for germination
A74: Forb | B74: Early Meadow-Rue | C74: Thalictrum dioicum | E74: X | J74: X | K74: 0.0001 | M74: X | N74: X | O74: X | P74: X | Q74: X | R74: X | S74: X | U74: X | V74: 13.05308219 | AA74: 7300 | AB74: 0.1675849403 | AC74: 2.681359045 | AE74: Spring | AF74: 7 | AG74: Perennial Forb | AH74: Cold moist stratification
A75: Forb | B75: Eastern Camass | C75: Camassia scilloides | E75: X | F75: X | G75: X | H75: X | J75: X | K75: 0.0001 | M75: X | R75: X | S75: X | T75: X | V75: 22.6875 | AA75: 4200 | AB75: 0.09641873278 | AC75: 1.542699725 | AE75: Spring, Summer | AF75: 9 | AG75: Perennial Forb | AH75: Cold moist stratification
A76: Forb | B76: Eastern Pasqueflower | C76: Pulsatilla patens | D76: X | G76: X | H76: X | K76: 0.0001 | L76: X | M76: X | N76: X | O76: X | P76: X | Q76: X | R76: X | S76: X | T76: X | U76: X | V76: 5.29375 | AA76: 18000 | AB76: 0.4132231405 | AC76: 6.611570248 | AE76: Spring | AF76: 8 | AG76: Perennial Forb | AH76: Cold moist stratification
A77: Forb | B77: Elm-leaved Goldenrod | C77: Solidago ulmifolia | D77: X | E77: X | H77: X | J77: X | K77: 0.0001 | L77: X | M77: X | N77: X | O77: X | P77: X | Q77: X | R77: X | S77: X | T77: X | U77: X | V77: 0.7329807692 | AA77: 130000 | AB77: 2.984389348 | AC77: 47.75022957 | AE77: Summer, Fall | AF77: 6 | AG77: Perennial Forb | AH77: Cold moist stratification, Light required for germination | AI77: 1
A78: Forb | B78: Everlasting | C78: Gnaphalium obtusifolium | D78: X | G78: X | H78: X | K78: 0.0001 | M78: X | N78: X | O78: X | P78: X | R78: X | S78: X | V78: 0.190575 | AA78: 500000 | AB78: 11.47842057 | AC78: 183.6547291 | AE78: Summer, Fall | AF78: 1 | AG78: Biennial Forb | AH78: Cold moist stratification, Light required for germination
A79: Forb | B79: False Boneset | C79: Brickellia eupatorioides | D79: X | E79: X | G79: X | H79: X | K79: 0.0001 | L79: X | M79: X | N79: X | O79: X | P79: X | Q79: X | R79: X | S79: X | T79: X | U79: X | V79: 2.977734375 | AA79: 32000 | AB79: 0.7346189164 | AC79: 11.75390266 | AE79: Summer, Fall | AF79: 4 | AG79: Perennial Forb | AH79: Dry cold storage | AI79: 1
A80: Forb | B80: False Dragonhead | C80: Physostegia parviflora | E80: X | F80: X | G80: X | H80: X | I80: X | J80: X | K80: 0.0001 | L80: X | M80: X | N80: X | O80: X | P80: X | Q80: X | R80: X | S80: X | T80: X | U80: X | V80: 8.6625 | AA80: 11000 | AB80: 0.2525252525 | AC80: 4.04040404 | AE80: Summer, Fall | AF80: 6 | AG80: Perennial Forb | AH80: Cold moist stratification | AI80: 1
A81: Forb | B81: False Indian Plantain | C81: Hasteola suaveolens | F81: X | G81: X | I81: X | J81: X | K81: 0.0001 | M81: X | N81: X | O81: X | P81: X | R81: X | S81: X | T81: X | V81: 6.80625 | AA81: 14000 | AB81: 0.3213957759 | AC81: 5.142332415 | AE81: Summer, Fall | AF81: 7 | AG81: Perennial Forb | AH81: Cold moist stratification
A82: Forb | B82: False Rue Anemone | C82: Isopyrum biternatum | E82: X | F82: X | J82: X | K82: 0.0001 | L82: X | M82: X | N82: X | O82: X | P82: X | Q82: X | R82: X | S82: X | T82: X | U82: X | V82: 8.6625 | AA82: 11000 | AB82: 0.2525252525 | AC82: 4.04040404 | AE82: Spring, Summer | AF82: 5 | AG82: Perennial Forb | AH82: Cold moist stratification
A83: Forb | B83: False Solomon's Seal | C83: Maianthemum racemosum | E83: X | H83: X | J83: X | K83: 0.0001 | L83: X | M83: X | N83: X | O83: X | P83: X | Q83: X | R83: X | S83: X | T83: X | U83: X | V83: 238.21875 | AA83: 400 | AB83: 0.009182736455 | AC83: 0.1469237833 | AE83: Spring, Summer | AF83: 5 | AG83: Perennial Forb | AH83: Plant fresh seed, Cold moist => warm moist => cold moist sequence, Clone
A84: Forb | B84: Field Sagewort | C84: Artemisia campestris | D84: X | G84: X | H84: X | K84: 0.0001 | L84: X | M84: X | N84: X | O84: X | P84: X | Q84: X | R84: X | S84: X | T84: X | U84: X | V84: 0.38115 | AA84: 250000 | AB84: 5.739210285 | AC84: 91.82736455 | AE84: Summer, Fall | AF84: 4 | AG84: Biennial Forb
A85: Forb | B85: Fireweed | C85: Epilobium angustifolium | E85: X | F85: X | G85: X | H85: X | K85: 0.0001 | M85: X | O85: X | P85: X | R85: X | T85: X | V85: 0.190575 | AA85: 500000 | AB85: 11.47842057 | AC85: 183.6547291 | AE85: Summer | AF85: 1 | AG85: Perennial Forb | AH85: Cold moist stratification, Light required for germination
A86: Forb | B86: Flat-Topped Aster, White Aster | C86: Doellingeria umbellata | F86: X | G86: X | H86: X | I86: X | K86: 0.0001 | L86: X | M86: X | N86: X | O86: X | P86: X | Q86: X | R86: X | S86: X | T86: X | U86: X | V86: 1.422201493 | AA86: 67000 | AB86: 1.538108356 | AC86: 24.6097337 | AE86: Summer, Fall | AF86: 8 | AG86: Perennial Forb | AH86: Cold moist stratification | AI86: 1
A87: Forb | B87: Flowering Spurge | C87: Euphorbia corollata | D87: X | E87: X | G87: X | H87: X | K87: 0.0001 | L87: X | M87: X | N87: X | O87: X | P87: X | Q87: X | R87: X | S87: X | T87: X | U87: X | V87: 11.9109375 | AA87: 8000 | AB87: 0.1836547291 | AC87: 2.938475666 | AE87: Summer | AF87: 5 | AG87: Perennial Forb | AH87: Cold moist stratification(30)
A88: Forb | B88: Foxglove Beardtongue | C88: Penstemon digitalis | D88: X | E88: X | G88: X | H88: X | K88: 0.0001 | M88: X | N88: X | O88: X | P88: X | R88: X | S88: X | T88: X | U88: X | V88: 0.7329807692 | AA88: 130000 | AB88: 2.984389348 | AC88: 47.75022957 | AE88: Summer | AF88: 5 | AG88: Perennial Forb | AH88: Cold moist stratification(30),Prefers cool soil, Light required for germination
A89: Forb | B89: French-grass | C89: Orbexilum onobrychis | E89: X | H89: X | J89: X | K89: 0.0001 | S89: X | V89: 79.40625 | AA89: 1200 | AB89: 0.02754820937 | AC89: 0.4407713499 | AE89: Summer | AF89: 7 | AG89: Perennial Forb, Legume | AH89: Cold moist stratification, Scarification
A90: Forb | B90: Fringed Gentian | C90: Gentianopsis crinita | E90: X | F90: X | G90: X | I90: X | J90: X | K90: 0.0001 | M90: X | O90: X | P90: X | Q90: X | V90: 0.4764375 | AA90: 200000 | AB90: 4.591368228 | AC90: 73.46189164 | AE90: Summer, Fall | AF90: 8 | AG90: Biennial Forb | AH90: Cold moist stratification, Light required for germination
A91: Forb | B91: Fringed Loosestrife | C91: Lysimachia ciliata | F91: X | G91: X | H91: X | I91: X | J91: X | K91: 0.0001 | L91: X | M91: X | N91: X | O91: X | P91: X | Q91: X | R91: X | S91: X | T91: X | U91: X | V91: 2.443269231 | AA91: 39000 | AB91: 0.8953168044 | AC91: 14.32506887 | AE91: Summer | AF91: 5 | AG91: Perennial Forb | AH91: Cold moist stratification
A92: Forb | B92: Glade Mallow | C92: Napaea dioica | F92: X | H92: X | J92: X | K92: 0.0001 | M92: X | O92: X | P92: X | V92: 17.97877358 | AA92: 5300 | AB92: 0.121671258 | AC92: 1.946740129 | AE92: Summer | AF92: 7 | AG92: Perennial Forb | AH92: Cold moist stratification
A93: Forb | B93: Goat's-rue | C93: Tephrosia virginiana | D93: X | E93: X | G93: X | H93: X | K93: 0.0001 | M93: X | N93: X | P93: X | S93: X | V93: 38.115 | AA93: 2500 | AB93: 0.05739210285 | AC93: 0.9182736455 | AE93: Summer | AF93: 7 | AG93: Perennial Forb, Legume | AH93: Cold moist stratification(10),Requires scarification
A94: Forb | B94: Golden Alexander's | C94: Zizia aurea | D94: X | E94: X | F94: X | G94: X | H94: X | J94: X | K94: 0.0001 | L94: X | M94: X | N94: X | O94: X | P94: X | Q94: X | R94: X | S94: X | T94: X | U94: X | V94: 8.6625 | AA94: 11000 | AB94: 0.2525252525 | AC94: 4.04040404 | AE94: Spring, Summer | AF94: 7 | AG94: Perennial Forb | AH94: Fall plant/Cold moist stratification(120),Prefers cool soil
A95: Forb | B95: Golden Ragwort | C95: Packera aurea | D95: X | E95: X | G95: X | H95: X | J95: X | K95: 0.0001 | M95: X | O95: X | P95: X | Q95: X | V95: 1.305308219 | AA95: 73000 | AB95: 1.675849403 | AC95: 26.81359045 | AE95: Spring | AF95: 4 | AG95: Perennial Forb | AH95: Cold moist stratification | AI95: 1
A96: Forb | B96: Golden Seal | C96: Hydrastis canadensis | E96: X | J96: X | K96: 0.0001 | M96: X | N96: X | P96: X | V96: 36.64903846 | AA96: 2600 | AB96: 0.05968778696 | AC96: 0.9550045914 | AE96: Spring | AF96: 7 | AG96: Perennial Forb | AH96: Plant fresh seed, Cold moist => warm moist => cold moist sequence
A97: Forb | B97: Grass Of Parnassus | C97: Parnassia glauca | F97: X | G97: X | I97: X | K97: 0.0001 | M97: X | O97: X | P97: X | V97: 0.317625 | AA97: 300000 | AB97: 6.887052342 | AC97: 110.1928375 | AE97: Summer, Fall | AF97: 8 | AG97: Perennial Forb | AH97: Light required for germination
A98: Forb | B98: Grass-leaved Goldenrod | C98: Euthamia graminifolia | E98: X | F98: X | G98: X | I98: X | K98: 0.0001 | L98: X | M98: X | N98: X | O98: X | P98: X | Q98: X | R98: X | S98: X | T98: X | U98: X | V98: 0.27225 | AA98: 350000 | AB98: 8.034894399 | AC98: 128.5583104 | AE98: Summer, Fall | AF98: 6 | AG98: Perennial Forb | AH98: Cold moist stratification, Light required for germination | AI98: 1
A99: Forb | B99: Gray-headed Coneflower | C99: Ratibida pinnata | D99: X | E99: X | G99: X | H99: X | K99: 0.0001 | L99: X | M99: X | N99: X | O99: X | P99: X | Q99: X | R99: X | S99: X | T99: X | U99: X | V99: 3.17625 | AA99: 30000 | AB99: 0.6887052342 | AC99: 11.01928375 | AE99: Summer, Fall | AF99: 4 | AG99: Perennial Forb | AH99: Cold moist stratification or Dry cold storage
A100: Forb | B100: Great Blue Lobelia | C100: Lobelia siphilitica | E100: X | F100: X | G100: X | H100: X | I100: X | J100: X | K100: 0.0001 | L100: X | M100: X | N100: X | O100: X | P100: X | Q100: X | R100: X | S100: X | T100: X | U100: X | V100: =35/AC100 -> 0.190575 | AA100: 500000 | AB100: 11.47842057 | AC100: 183.6547291 | AE100: Summer, Fall | AF100: 4 | AG100: Perennial Forb | AH100: Cold moist stratification, Requires light for germination | AI100: 1
A101: Forb | B101: Great Indian Plaintain | C101: Arnoglossum reniforme | E101: X | F101: X | H101: X | J101: X | K101: 0.0001 | M101: X | R101: X | S101: X | T101: X | V101: 23.821875 | AA101: 4000 | AB101: 0.09182736455 | AC101: 1.469237833 | AE101: Summer, Fall | AF101: 8 | AG101: Perennial Forb | AH101: Cold moist stratification
A102: Forb | B102: Great St. John's Wort | C102: Hypericum ascyron | F102: X | G102: X | H102: X | I102: X | K102: 0.0001 | L102: X | M102: X | N102: X | O102: X | P102: X | Q102: X | R102: X | S102: X | T102: X | U102: X | V102: 0.5015131579 | AA102: 190000 | AB102: 4.361799816 | AC102: 69.78879706 | AE102: Summer | AF102: 6 | AG102: Perennial Forb | AH102: Cold moist stratification, Light required for germination
A103: Forb | B103: Great Water Dock | C103: Rumex orbiculatus | F103: X | G103: X | H103: X | I103: X | K103: 0.0001 | L103: X | M103: X | N103: X | O103: X | P103: X | Q103: X | R103: X | S103: X | T103: X | U103: X | V103: 8.007352941 | AA103: 11900 | AB103: 0.2731864096 | AC103: 4.370982553 | AE103: Summer | AF103: 9 | AG103: Perennial Forb | AH103: Cold moist stratification
A104: Forb | B104: Great Waterleaf | C104: Hydrophyllum appendiculatum | E104: X | J104: X | K104: 0.0001 | M104: X | N104: X | P104: X | R104: X | S104: X | T104: X | V104: 95.2875 | AA104: 1000 | AB104: 0.02295684114 | AC104: 0.3673094582 | AE104: Spring, Summer | AF104: 7 | AG104: Biennial Forb | AH104: Plant fresh seed or Warm moist => cool moist sequence
A105: Forb | B105: Green Comet Milkweed | C105: Asclepias viridiflora | D105: X | G105: X | K105: 0.0001 | M105: X | O105: X | P105: X | Q105: X | R105: X | S105: X | T105: X | U105: X | V105: 26.46875 | AA105: 3600 | AB105: 0.0826446281 | AC105: 1.32231405 | AE105: Summer | AF105: 7 | AG105: Perennial Forb | AH105: Cold moist stratification | AI105: 1
A106: Forb | B106: Greenhead Coneflower | C106: Rudbeckia laciniata | E106: X | F106: X | H106: X | I106: X | J106: X | K106: 0.0001 | L106: X | M106: X | N106: X | O106: X | P106: X | Q106: X | R106: X | S106: X | T106: X | U106: X | V106: 6.80625 | AA106: 14000 | AB106: 0.3213957759 | AC106: 5.142332415 | AE106: Summer, Fall | AF106: 4 | AG106: Perennial Forb | AH106: Cold moist stratification or Dry cold storage | AI106: 1
A107: Forb | B107: Groovestem Indian Plaintain | C107: Arnoglossum plantagineum | E107: X | F107: X | G107: X | K107: 0.0001 | L107: X | M107: X | N107: X | O107: X | P107: X | Q107: X | R107: X | S107: X | T107: X | U107: X | V107: 20.27393617 | AA107: 4700 | AB107: 0.1078971534 | AC107: 1.726354454 | AE107: Summer | AF107: 7 | AG107: Perennial Forb | AH107: Cold moist stratification
A108: Forb | B108: Groundplum Milkvetch | C108: Astragalus crassicarpus | D108: X | E108: X | G108: X | H108: X | K108: 0.0001 | M108: X | O108: X | P108: X | Q108: X | R108: X | S108: X | T108: X | U108: X | V108: 18.32451923 | AA108: 5200 | AB108: 0.1193755739 | AC108: 1.910009183 | AE108: Spring, Summer | AF108: 9 | AG108: Perennial Forb, Legume | AH108: Cold moist stratification(10),Requires scarification, Legume-requires inoculation
A109: Forb | B109: Hairy Aster | C109: Symphyotrichum pilosum | D109: X | E109: X | G109: X | H109: X | K109: 0.0001 | L109: X | M109: X | N109: X | O109: X | P109: X | Q109: X | R109: X | S109: X | T109: X | U109: X | V109: 0.680625 | AA109: 140000 | AB109: 3.213957759 | AC109: 51.42332415 | AE109: Fall | AF109: 1 | AG109: Perennial Forb | AH109: Cold moist stratification, Light required for germination | AI109: 1
A110: Forb | B110: Hairy False Goldenaster | C110: Heterotheca villosa | D110: X | G110: X | H110: X | K110: 0.0001 | M110: X | N110: X | P110: X | Q110: X | V110: 1.36125 | AA110: 70000 | AB110: 1.60697888 | AC110: 25.71166208 | AE110: summer, Fall | AF110: 5 | AG110: Perennial Forb | AH110: Cold moist stratification
A111: Forb | B111: Hairy Mountain Mint | C111: Pycnanthemum pilosum | D111: X | E111: X | G111: X | H111: X | J111: X | K111: 0.0001 | M111: X | N111: X | R111: X | S111: X | V111: 0.5150675676 | AA111: 185000 | AB111: 4.247015611 | AC111: 67.95224977 | AE111: Summer | AF111: 5 | AG111: Perennial Forb | AH111: Dry cold storage, Light required for germination | AI111: 1
A112: Forb | B112: Hairy Pagoda-plant | C112: Blephilia hirsuta | E112: X | H112: X | J112: X | K112: 0.0001 | M112: X | N112: X | P112: X | S112: X | V112: 0.39703125 | AA112: 240000 | AB112: 5.509641873 | AC112: 88.15426997 | AE112: Summer, Fall | AF112: 6 | AG112: Perennial Forb | AH112: Cold moist stratification, Light required for germination | AI112: 1
A113: Forb | B113: Hairy Rockcress | C113: Arabis hirsuta | D113: X | G113: X | H113: X | J113: X | K113: 0.0001 | L113: X | M113: X | N113: X | O113: X | P113: X | Q113: X | R113: X | S113: X | T113: X | U113: X | V113: 0.3664903846 | AA113: 260000 | AB113: 5.968778696 | AC113: 95.50045914 | AE113: Spring, Summer | AF113: 7 | AG113: Biennial Forb | AH113: Cold moist stratification, Light required for germination
A114: Forb | B114: Halberd-leaved Rose Mallow | C114: Hibiscus laevis | F114: X | I114: X | K114: 0.0001 | M114: X | N114: X | O114: X | P114: X | R114: X | S114: X | T114: X | V114: 34.03125 | AA114: 2800 | AB114: 0.06427915519 | AC114: 1.028466483 | AE114: Summer, Fall | AF114: 6 | AG114: Perennial Forb | AH114: Cold moist stratification
A115: Forb | B115: Harebell | C115: Campanula rotundifolia | D115: X | E115: X | G115: X | H115: X | K115: 0.0001 | M115: X | N115: X | P115: X | S115: X | V115: 0.105875 | AA115: 900000 | AB115: 20.66115702 | AC115: 330.5785124 | AE115: Summer, Fall | AF115: 10 | AG115: Perennial Forb | AH115: Cold moist stratification or Dry cold storage, Light required for germination
A116: Forb | B116: Hawkweed | C116: Hieracium canadense | D116: X | E116: X | G116: X | H116: X | J116: X | K116: 0.0001 | M116: X | N116: X | P116: X | V116: 1.05875 | AA116: 90000 | AB116: 2.066115702 | AC116: 33.05785124 | AE116: Summer, Fall | AF116: 10 | AG116: Perennial Forb | AH116: Cold moist stratification, Light required for germination
A117: Forb | B117: Heartleaf Alexander | C117: Zizia aptera | D117: X | E117: X | G117: X | H117: X | J117: X | K117: 0.0001 | M117: X | N117: X | O117: X | P117: X | Q117: X | R117: X | U117: X | V117: 7.940625 | AA117: 12000 | AB117: 0.2754820937 | AC117: 4.407713499 | AE117: Spring | AF117: 8 | AG117: Perennial Forb | AH117: Fall plant/Cold moist stratification(120),Prefers cool soil
A118: Forb | B118: Heart-leaved Skullcap | C118: Scutellaria ovata | D118: X | E118: X | H118: X | J118: X | K118: 0.0001 | M118: X | N118: X | P118: X | S118: X | V118: 3.8115 | AA118: 25000 | AB118: 0.5739210285 | AC118: 9.182736455 | AE118: Summer | AF118: 8 | AG118: Perennial Forb | AH118: Cold moist stratification
A119: Forb | B119: Heath Aster | C119: Symphyotrichum ericoides | D119: X | E119: X | G119: X | H119: X | K119: 0.0001 | L119: X | M119: X | N119: X | O119: X | P119: X | Q119: X | R119: X | S119: X | T119: X | U119: X | V119: 0.4764375 | AA119: 200000 | AB119: 4.591368228 | AC119: 73.46189164 | AE119: Summer, Fall | AF119: 5 | AG119: Perennial Forb | AH119: Dry cold storage, Light required for germination | AI119: 1
A120: Forb | B120: Hemlock Water Parsnip | C120: Sium suave | F120: X | I120: X | K120: 0.0001 | L120: X | M120: X | N120: X | O120: X | P120: X | Q120: X | R120: X | S120: X | T120: X | U120: X | V120: 1.90575 | AA120: 50000 | AB120: 1.147842057 | AC120: 18.36547291 | AE120: Summer, Fall | AF120: 8 | AG120: Perennial Forb | AH120: Cold moist stratification | AI120: 1
A121: Forb | B121: Hoary Puccoon | C121: Lithospermum canescens | D121: X | E121: X | G121: X | H121: X | K121: 0.0001 | L121: X | M121: X | N121: X | O121: X | P121: X | Q121: X | R121: X | S121: X | T121: X | U121: X | V121: 95.2875 | AA121: 1000 | AB121: 0.02295684114 | AC121: 0.3673094582 | AE121: Spring | AF121: 8 | AG121: Perennial Forb, Hemiparasite | AI121: 1
A122: Forb | B122: Hoary Skullcap | C122: Scutellaria incana | D122: X | H122: X | J122: X | K122: 0.0001 | S122: X | V122: 7.058333333 | AA122: 13500 | AB122: 0.3099173554 | AC122: 4.958677686 | AE122: Summer, Fall | AF122: 5 | AG122: Perennial Forb
A123: Forb | B123: Hoary Vervain | C123: Verbena stricta | D123: X | E123: X | G123: X | H123: X | K123: 0.0001 | L123: X | M123: X | N123: X | O123: X | P123: X | Q123: X | R123: X | S123: X | T123: X | U123: X | V123: 3.403125 | AA123: 28000 | AB123: 0.6427915519 | AC123: 10.28466483 | AE123: Summer, Fall | AF123: 2 | AG123: Perennial Forb | AH123: Cold moist stratification, Light required for germination | AI123: 1
A124: Forb | B124: Honewort | C124: Cryptotaenia canadensis | E124: X | J124: X | K124: 0.0001 | L124: X | M124: X | N124: X | O124: X | P124: X | Q124: X | R124: X | S124: X | T124: X | U124: X | V124: 13.6125 | AA124: 7000 | AB124: 0.160697888 | AC124: 2.571166208 | AE124: Summer, Fall | AF124: 2 | AG124: Perennial Forb | AH124: Cold moist stratification
A125: Forb | B125: Horseflyweed | C125: Baptisia tinctoria | D125: X | H125: X | J125: X | K125: 0.0001 | R125: X | V125: 19.0575 | AA125: 5000 | AB125: 0.1147842057 | AC125: 1.836547291 | AE125: Summer | AF125: ** | AG125: Perennial Forb, Legume | AH125: Cold moist stratification(10),Requires scarification, Legume-requires inoculation
A126: Forb | B126: Illinois Bundle Flower | C126: Desmanthus illinoensis | D126: X | E126: X | G126: X | K126: 0.0001 | L126: X | M126: X | N126: X | O126: X | P126: X | Q126: X | R126: X | S126: X | T126: X | U126: X | V126: 22.6875 | AA126: 4200 | AB126: 0.09641873278 | AC126: 1.542699725 | AE126: Summer | AF126: 5 | AG126: Perennial Forb, Legume | AH126: Dry cold storage, Requires scarification, Legume-requires inoculation
A127: Forb | B127: Illinois Ticktrefoil | C127: Desmodium illinoense | D127: X | E127: X | G127: X | H127: X | K127: 0.0001 | L127: X | M127: X | N127: X | O127: X | P127: X | Q127: X | R127: X | S127: X | T127: X | U127: X | V127: 22.15988372 | AA127: 4300 | AB127: 0.0987144169 | AC127: 1.57943067 | AE127: Summer | AF127: 6 | AG127: Perennial Forb, Legume | AH127: Dry cold storage, Legume-requires inoculation
A128: Forb | B128: Indian Hemp | C128: Apocynum cannabinum | E128: X | F128: X | G128: X | H128: X | K128: 0.0001 | L128: X | M128: X | N128: X | O128: X | P128: X | Q128: X | R128: X | S128: X | T128: X | U128: X | V128: 4.764375 | AA128: 20000 | AB128: 0.4591368228 | AC128: 7.346189164 | AE128: Summer | AF128: 2 | AG128: Perennial Forb | AI128: 1
A129: Forb | B129: Indian Paintbrush | C129: Castilleja coccinea | D129: X | E129: X | G129: X | H129: X | K129: 0.0001 | N129: X | O129: X | P129: X | Q129: X | V129: 0.317625 | AA129: 300000 | AB129: 6.887052342 | AC129: 110.1928375 | AE129: Spring, Summer, Fall | AF129: 9 | AG129: Annual Forb, Hemiparasite | AH129: Cold moist stratification, Parasitic-requires a host plant, Light required for germination
A130: Forb | B130: Indian Tobacco | C130: Lobelia inflata | D130: X | E130: X | H130: X | J130: X | K130: 0.0001 | M130: X | N130: X | P130: X | Q130: X | R130: X | S130: X | T130: X | U130: X | V130: 0.190575 | AA130: 500000 | AB130: 11.47842057 | AC130: 183.6547291 | AE130: Summer, Fall | AF130: 4 | AG130: Annual Forb | AH130: Cold moist stratification, Light required for germination
A131: Forb | B131: Ironweed | C131: Vernonia fasciculata | D131: X | E131: X | F131: X | G131: X | H131: X | I131: X | K131: 0.0001 | L131: X | M131: X | N131: X | O131: X | P131: X | Q131: X | R131: X | S131: X | T131: X | U131: X | V131: 3.9703125 | AA131: 24000 | AB131: 0.5509641873 | AC131: 8.815426997 | AE131: Summer, Fall | AF131: 4 | AG131: Perennial Forb | AH131: Cold moist stratification | AI131: 1
A132: Forb | B132: Jack In The Pulpit | C132: Arisaema triphyllum | E132: X | F132: X | H132: X | J132: X | K132: 0.0001 | L132: X | M132: X | N132: X | O132: X | P132: X | Q132: X | R132: X | S132: X | T132: X | U132: X | V132: =35/AC132 -> 190.575 | AA132: 500 | AB132: =(AA132/43560) -> 0.01147842057 | AC132: =AB132*16 -> 0.1836547291 | AE132: Spring, Summer | AF132: 5 | AG132: Perennial Forb | AH132: Plant fresh seed, Cold moist => warm moist => cold moist sequence
A133: Forb | B133: Jacob's Ladder | C133: Polemonium reptans | E133: X | H133: X | J133: X | K133: 0.0001 | M133: X | N133: X | O133: X | P133: X | R133: X | S133: X | V133: 5.29375 | AA133: 18000 | AB133: 0.4132231405 | AC133: 6.611570248 | AE133: Spring, Summer | AF133: 6 | AG133: Perennial Forb | AH133: Cold moist stratification
A134: Forb | B134: Jerusalem Artichoke | C134: Helianthus tuberosus | E134: X | F134: X | G134: X | J134: X | K134: 0.0001 | L134: X | M134: X | N134: X | O134: X | P134: X | Q134: X | R134: X | S134: X | T134: X | U134: X | V134: 20.1496088 | AA134: 4729 | AB134: 0.1085629017 | AC134: 1.737006428 | AE134: Summer, Fall | AF134: 0 | AG134: Perennial Forb | AH134: Warm-moist followed by cold moist stratification | AI134: 1
A135: Forb | B135: Jumpseed | C135: Polygonum virginianum | E135: X | H135: X | J135: X | K135: 0.0001 | L135: X | M135: X | N135: X | O135: X | P135: X | Q135: X | R135: X | S135: X | T135: X | U135: X | V135: 27.225 | AA135: 3500 | AB135: 0.08034894399 | AC135: 1.285583104 | AE135: Summer, Fall | AF135: 5 | AG135: Perennial Forb | AH135: COLD MOIST STRATIFICATION
A136: Forb | B136: Kura Clover (Intro. Forb) | C136: Trifolium ambiguum M.Bieb. | D136: X | E136: X | G136: X | H136: X | K136: 0.0001 | L136: X | M136: X | N136: X | O136: X | P136: X | Q136: X | R136: X | S136: X | T136: X | U136: X | V136: 6.980769231 | AA136: 13650 | AB136: 0.3133608815 | AC136: 5.013774105 | AE136: Summer | AF136: 0 | AG136: Introduced Forb, Perennial
A137: Forb | B137: Large Indian Breadroot | C137: Pediomelum esculentum | D137: X | G137: X | K137: 0.0001 | M137: X | O137: X | Q137: X | R137: X | T137: X | U137: X | V137: 86.625 | AA137: 1100 | AB137: 0.02525252525 | AC137: 0.404040404 | AE137: Spring, Summer | AF137: 8 | AG137: Perennial Forb, Legume | AH137: COLD MOIST STRATIFICATION
A138: Forb | B138: Large-flowered Beardtongue | C138: Penstemon grandiflorus | D138: X | E138: X | G138: X | H138: X | K138: 0.0001 | M138: X | N138: X | P138: X | Q138: X | S138: X | T138: X | U138: X | V138: 6.80625 | AA138: 14000 | AB138: 0.3213957759 | AC138: 5.142332415 | AE138: Spring, Summer | AF138: 7 | AG138: Perennial Forb | AH138: Cold moist stratification(30),Prefers cool soil
A139: Forb | B139: Late Figwort | C139: Scrophularia marilandica | E139: X | F139: X | H139: X | J139: X | K139: 0.0001 | L139: X | M139: X | N139: X | O139: X | P139: X | Q139: X | R139: X | S139: X | T139: X | U139: X | V139: 0.5605147059 | AA139: 170000 | AB139: 3.902662994 | AC139: 62.4426079 | AE139: Summer, Fall | AF139: 4 | AG139: Perennial Forb | AH139: Cold moist stratification, Light required for germination
A140: Forb | B140: Late Horse Gentian | C140: Triosteum perfoliatum | E140: X | H140: X | J140: X | K140: 0.0001 | L140: X | M140: X | N140: X | O140: X | P140: X | Q140: X | R140: X | S140: X | T140: X | U140: X | V140: 211.75 | AA140: 450 | AB140: 0.01033057851 | AC140: 0.1652892562 | AE140: Spring, Summer | AF140: 4 | AG140: Perennial Forb
A141: Forb | B141: Leonard's Skullcap | C141: Scutellaria parvula var. missouriensis | D141: X | E141: X | G141: X | H141: X | J141: X | K141: 0.0001 | L141: X | M141: X | N141: X | O141: X | P141: X | Q141: X | R141: X | S141: X | T141: X | U141: X | V141: 1.465961538 | AA141: 65000 | AB141: 1.492194674 | AC141: 23.87511478 | AE141: Spring, Summer | AF141: 7 | AG141: Perennial Forb | AH141: Cold moist stratification
A142: Forb | B142: Limestone Wild Petunia | C142: Ruellia strepens | E142: X | F142: X | H142: X | J142: X | K142: 0.0001 | M142: X | N142: X | R142: X | S142: X | T142: X | U142: X | V142: 14.01286765 | AA142: 6800 | AB142: 0.1561065197 | AC142: 2.497704316 | AE142: Spring, Summer, Fall | AF142: 8 | AG142: Perennial Forb | AH142: COLD MOIST STRATIFICATION
A143: Forb | B143: Locoweed, Lambert's Crazy Weed | C143: Oxytropis lambertii | D143: X | G143: X | K143: 0.0001 | M143: X | Q143: X | T143: X | U143: X | V143: 7.940625 | AA143: 12000 | AB143: 0.2754820937 | AC143: 4.407713499 | AE143: Spring, Summer | AF143: 8 | AG143: Perennial Forb, Legume | AH143: Dry cold storage
A144: Forb | B144: Long-headed Coneflower | C144: Ratibida columnifera | D144: X | E144: X | G144: X | K144: 0.0001 | M144: X | P144: X | Q144: X | T144: X | U144: X | V144: 2.26875 | AA144: 42000 | AB144: 0.9641873278 | AC144: 15.42699725 | AE144: Summer | AF144: 5 | AG144: Biennial Forb | AH144: Cold moist stratification or Dry cold storage
A145: Forb | B145: Lopseed | C145: Phryma leptostachya | E145: X | F145: X | J145: X | K145: 0.0001 | L145: X | M145: X | N145: X | O145: X | P145: X | Q145: X | R145: X | S145: X | T145: X | U145: X | V145: 23.821875 | AA145: 4000 | AB145: 0.09182736455 | AC145: 1.469237833 | AE145: Summer | AF145: 4 | AG145: Perennial Forb | AH145: Cold moist stratification
A146: Forb | B146: Mad-dog Skullcap | C146: Scutellaria lateriflora | F146: X | G146: X | H146: X | I146: X | K146: 0.0001 | M146: X | N146: X | O146: X | P146: X | R146: X | S146: X | T146: X | V146: 1.465961538 | AA146: 65000 | AB146: 1.492194674 | AC146: 23.87511478 | AE146: Summer, Fall | AF146: 6 | AG146: Perennial Forb | AH146: Cold moist stratification
A147: Forb | B147: Marsh Cinquefoil | C147: Potentilla palustris | F147: X | I147: X | K147: 0.0001 | O147: X | P147: X | V147: 13.234375 | AA147: 7200 | AB147: 0.1652892562 | AC147: 2.644628099 | AE147: Summer | AF147: 9 | AG147: Perennial Forb | AH147: Cold moist stratification, Light required for germination
A148: Forb | B148: Marsh Fleabane | C148: Senecio congestus | F148: X | G148: X | I148: X | K148: 0.0001 | M148: X | O148: X | P148: X | V148: 9.52875 | AA148: 10000 | AB148: 0.2295684114 | AC148: 3.673094582 | AE148: Summer | AF148: 10 | AG148: Annual Forb | AH148: Cold moist stratification
A149: Forb | B149: Marsh Marigold | C149: Caltha palustris | F149: X | G149: X | H149: X | I149: X | J149: X | K149: 0.0001 | M149: X | N149: X | O149: X | P149: X | Q149: X | S149: X | T149: X | V149: 3.664903846 | AA149: 26000 | AB149: 0.5968778696 | AC149: 9.550045914 | AE149: Spring, Summer | AF149: 8 | AG149: Perennial Forb | AH149: Warm moist => cold moist sequence, Plant fresh seed
A150: Forb | B150: Marsh St. Johnswort | C150: Triadenum fraseri | F150: X | G150: X | H150: X | I150: X | K150: 0.0001 | M150: X | N150: X | O150: X | P150: X | Q150: X | S150: X | V150: 0.4142934783 | AA150: 230000 | AB150: 5.280073462 | AC150: 84.48117539 | AE150: Summer, Fall | AF150: 9 | AG150: Perennial Forb | AH150: Light required for germination
A151: Forb | B151: Maryland Senna | C151: Senna marilandica | D151: X | E151: X | H151: X | J151: X | K151: 0.0001 | M151: X | N151: X | O151: X | P151: X | R151: X | S151: X | T151: X | V151: 56.05147059 | AA151: 1700 | AB151: 0.03902662994 | AC151: 0.624426079 | AE151: Summer | AF151: 6 | AG151: Perennial Forb, Legume | AH151: Cold moist stratification(10),Requires scarification, Legume-requires inoculation
A152: Forb | B152: Maximilian's Sunflower | C152: Helianthus maximiliani | D152: X | E152: X | G152: X | H152: X | K152: 0.0001 | M152: X | O152: X | P152: X | Q152: X | R152: X | T152: X | U152: X | V152: 7.329807692 | AA152: 13000 | AB152: 0.2984389348 | AC152: 4.775022957 | AE152: Summer, Fall | AF152: 5 | AG152: Perennial Forb | AH152: Cold moist stratification or Dry cold storage | AI152: 1
A153: Forb | B153: Mayapple | C153: Podophyllum peltatum | E153: X | H153: X | J153: X | K153: 0.0001 | M153: X | N153: X | O153: X | P153: X | R153: X | S153: X | V153: PLUGS ONLY | AA153: 903.1386787 | AB153: 0.02073321117 | AC153: 0.3317313788 | AE153: Spring, Summer | AF153: 5 | AG153: Perennial Forb | AH153: Cold moist stratification
A154: Forb | B154: Meadow Blazing Star | C154: Liatris ligulistylis | D154: X | E154: X | F154: X | G154: X | H154: X | K154: 0.0001 | M154: X | O154: X | P154: X | U154: X | V154: =35/AC154 -> 9.52875 | AA154: 10000 | AB154: 0.2295684114 | AC154: 3.673094582 | AE154: Summer, Fall | AF154: 8 | AG154: Perennial Forb | AH154: Cold moist stratification | AI154: 1
A155: Forb | B155: Meadow Evening Primrose | C155: Oenothera pilosella | E155: X | G155: X | H155: X | I155: X | K155: 0.0001 | M155: X | N155: X | R155: X | S155: X | T155: X | U155: X | V155: 0.3582236842 | AA155: 266000 | AB155: 6.106519743 | AC155: 97.70431589 | AE155: Spring, Summer | AF155: 7 | AG155: Perennial Forb
A156: Forb | B156: Michigan Lily | C156: Lilium michiganense | F156: X | G156: X | H156: X | I156: X | K156: 0.0001 | L156: X | M156: X | N156: X | O156: X | P156: X | Q156: X | R156: X | S156: X | T156: X | U156: X | V156: 9.52875 | AA156: 10000 | AB156: 0.2295684114 | AC156: 3.673094582 | AE156: Summer | AF156: 7 | AG156: Perennial Forb | AH156: Warm moist => cold moist sequence
A157: Forb | B157: Missouri Ironweed | C157: Vernonia missurica | E157: X | F157: X | G157: X | H157: X | I157: X | K157: 0.0001 | O157: X | Q157: X | S157: X | T157: X | V157: 4.33125 | AA157: 22000 | AB157: 0.5050505051 | AC157: 8.080808081 | AE157: Summer, Fall | AF157: 4 | AG157: Perennial Forb | AH157: Cold moist stratification | AI157: 1
A158: Forb | B158: Narrowleaf Pinweed | C158: Lechea tenuifolia | D158: X | G158: X | H158: X | J158: X | K158: 0.0001 | M158: X | O158: X | P158: X | R158: X | S158: X | V158: 2.165625 | AA158: 44000 | AB158: 1.01010101 | AC158: 16.16161616 | AE158: Summer | AF158: 7 | AG158: Perennial Forb | AH158: COLD MOIST STRATIFICATION
A159: Forb | B159: Narrow-leaved Loosestrife | C159: Lysimachia quadriflora | F159: X | G159: X | H159: X | I159: X | K159: 0.0001 | M159: X | N159: X | O159: X | P159: X | Q159: X | R159: X | S159: X | U159: X | V159: 1.05875 | AA159: 90000 | AB159: 2.066115702 | AC159: 33.05785124 | AE159: Summer | AF159: 7 | AG159: Perennial Forb | AH159: Cold moist stratification, Light required for germination
A160: Forb | B160: New England Aster | C160: Symphyotrichum novae-angliae | E160: X | F160: X | G160: X | H160: X | I160: X | K160: 0.0001 | L160: X | M160: X | N160: X | O160: X | P160: X | Q160: X | R160: X | S160: X | T160: X | U160: X | V160: 1.44375 | AA160: 66000 | AB160: 1.515151515 | AC160: 24.24242424 | AE160: Summer, Fall | AF160: 4 | AG160: Perennial Forb | AH160: Cold moist stratification | AI160: 1
A161: Forb | B161: Nodding Bur Marigold | C161: Bidens cernua | E161: X | F161: X | G161: X | H161: X | I161: X | K161: 0.0001 | L161: X | M161: X | N161: X | O161: X | P161: X | Q161: X | R161: X | S161: X | T161: X | U161: X | V161: 4.5375 | AA161: 21000 | AB161: 0.4820936639 | AC161: 7.713498623 | AE161: Summer, Fall | AF161: 2 | AG161: Annual Forb | AH161: SM,MF, SEM | AI161: 1
A162: Forb | B162: Northern Bedstraw | C162: Galium boreale | E162: X | F162: X | G162: X | H162: X | I162: X | K162: 0.0001 | L162: X | M162: X | N162: X | O162: X | P162: X | Q162: X | R162: X | S162: X | T162: X | U162: X | V162: 1.36125 | AA162: 70000 | AB162: 1.60697888 | AC162: 25.71166208 | AE162: Summer | AF162: 8 | AG162: Perennial Forb | AH162: Dry cold storage
A163: Forb | B163: Northern Water Plantain | C163: Alisma triviale | F163: X | G163: X | H163: X | I163: X | K163: 0.0001 | L163: X | M163: X | N163: X | O163: X | P163: X | Q163: X | R163: X | S163: X | T163: X | U163: X | V163: 1.44375 | AA163: 66000 | AB163: 1.515151515 | AC163: 24.24242424 | AE163: Summer | AF163: 5 | AG163: Perennial Forb | AH163: Cold moist stratification
A164: Forb | B164: Northern Willow Herb | C164: Epilobium ciliatum | F164: X | G164: X | H164: X | I164: X | K164: 0.0001 | L164: X | M164: X | N164: X | O164: X | P164: X | Q164: X | R164: X | S164: X | T164: X | U164: X | V164: 1.588125 | AA164: 60000 | AB164: 1.377410468 | AC164: 22.03856749 | AE164: Summer, Fall | AF164: 6 | AG164: Perennial Forb | AH164: Cold moist stratification, Light required for germination
A165: Forb | B165: Obedient Plant | C165: Physostegia virginiana | E165: X | F165: X | G165: X | H165: X | I165: X | K165: 0.0001 | M165: X | N165: X | O165: X | P165: X | R165: X | S165: X | T165: X | V165: 4.33125 | AA165: 22000 | AB165: 0.5050505051 | AC165: 8.080808081 | AE165: Summer, Fall | AF165: 6 | AG165: Perennial Forb | AH165: Cold moist stratification
A166: Forb | B166: Ohio Spiderwort | C166: Tradescantia ohiensis | D166: X | E166: X | F166: X | G166: X | H166: X | K166: 0.0001 | L166: X | M166: X | N166: X | O166: X | P166: X | Q166: X | R166: X | S166: X | T166: X | U166: X | V166: 11.9109375 | AA166: 8000 | AB166: 0.1836547291 | AC166: 2.938475666 | AE166: Spring, Summer | AF166: 4 | AG166: Perennial Forb | AH166: Fall plant/Cold moist stratification(120),Prefers cool soil
A167: Forb | B167: Old Field Goldenrod | C167: Solidago nemoralis | D167: X | E167: X | G167: X | H167: X | K167: 0.0001 | L167: X | M167: X | N167: X | O167: X | P167: X | Q167: X | R167: X | S167: X | T167: X | U167: X | V167: 0.317625 | AA167: 300000 | AB167: 6.887052342 | AC167: 110.1928375 | AE167: Summer, Fall | AF167: 5 | AG167: Perennial Forb | AH167: Cold moist stratification, Light required for germination | AI167: 1
A168: Forb | B168: Ontario Blazing Star | C168: Liatris cylindracea | D168: X | E168: X | G168: X | H168: X | K168: 0.0001 | N168: X | P168: X | Q168: X | V168: 6.80625 | AA168: 14000 | AB168: 0.3213957759 | AC168: 5.142332415 | AE168: Summer, Fall | AF168: 9 | AG168: Perennial Forb | AH168: Cold moist stratification | AI168: 1
A169: Forb | B169: Oval-leaf Milkweed | C169: Asclepias ovalifolia | D169: X | G169: X | K169: 0.0001 | O169: X | P169: X | Q169: X | V169: 19.8515625 | AA169: 4800 | AB169: 0.1101928375 | AC169: 1.763085399 | AE169: Summer | AF169: 6 | AG169: Perennial Forb | AH169: Cold moist stratification | AI169: 1
A170: Forb | B170: Oxeye, False Sunflower | C170: Heliopsis helianthoides | D170: X | E170: X | F170: X | G170: X | H170: X | K170: 0.0001 | L170: X | M170: X | N170: X | O170: X | P170: X | Q170: X | R170: X | S170: X | T170: X | U170: X | V170: 15.125 | AA170: 6300 | AB170: 0.1446280992 | AC170: 2.314049587 | AE170: Summer, Fall | AF170: 4 | AG170: Perennial Forb | AH170: Cold moist stratification or Dry cold storage | AI170: 1
A171: Forb | B171: Pale Beardtongue | C171: Penstemon pallidus | D171: X | E171: X | G171: X | H171: X | J171: X | K171: 0.0001 | M171: X | N171: X | P171: X | R171: X | S171: X | T171: X | V171: 0.529375 | AA171: 180000 | AB171: 4.132231405 | AC171: 66.11570248 | AE171: Spring, Summer | AF171: 6 | AG171: Perennial Forb | AH171: Cold moist stratification(30),Prefers cool soil, Light required for germination
A172: Forb | B172: Pale Dock | C172: Rumex altissimus | E172: X | F172: X | G172: X | H172: X | K172: 0.0001 | L172: X | M172: X | N172: X | O172: X | P172: X | Q172: X | R172: X | S172: X | T172: X | U172: X | V172: 18.32451923 | AA172: 5200 | AB172: 0.1193755739 | AC172: 1.910009183 | AE172: Summer | AF172: 2 | AG172: Perennial Forb | AH172: Dry cold storage
A173: Forb | B173: Pale Indian Plaintain | C173: Arnoglossum atriplicifolium | D173: X | E173: X | G173: X | H173: X | J173: X | K173: 0.0001 | M173: X | N173: X | Q173: X | R173: X | S173: X | T173: X | U173: X | V173: 15.88125 | AA173: 6000 | AB173: 0.1377410468 | AC173: 2.203856749 | AE173: Summer, Fall | AF173: 4 | AG173: Perennial Forb | AH173: Cold moist stratification
A174: Forb | B174: Pale Purple Coneflower | C174: Echinacea pallida | D174: X | E174: X | G174: X | H174: X | J174: X | K174: 0.0001 | L174: X | M174: X | N174: X | O174: X | P174: X | Q174: X | R174: X | S174: X | T174: X | U174: X | V174: 18.32451923 | AA174: 5200 | AB174: 0.1193755739 | AC174: 1.910009183 | AE174: Summer | AF174: 7 | AG174: Perennial Forb | AH174: Cold moist stratification(90),Light required for germination Fall plant | AI174: 1
A175: Forb | B175: Pale Spiked Lobelia | C175: Lobelia spicata | D175: X | E175: X | F175: X | G175: X | H175: X | J175: X | K175: 0.0001 | L175: X | M175: X | N175: X | O175: X | P175: X | Q175: X | R175: X | S175: X | T175: X | U175: X | V175: 0.105875 | AA175: 900000 | AB175: 20.66115702 | AC175: 330.5785124 | AE175: Summer | AF175: 6 | AG175: Perennial Forb | AH175: Cold moist stratification, light required for germination
A176: Forb | B176: Pale Touch-Me-Not, Jewel Weed | C176: Impatiens pallida | E176: X | F176: X | H176: X | J176: X | K176: 0.0001 | L176: X | M176: X | N176: X | O176: X | P176: X | Q176: X | R176: X | S176: X | T176: X | U176: X | V176: 59.5546875 | AA176: 1600 | AB176: 0.03673094582 | AC176: 0.5876951331 | AE176: Summer, Fall | AF176: 4 | AG176: Annual Forb | AH176: Plant fresh seed, Fall plant or Cold moist => warm moist => cold moist sequence
A177: Forb | B177: Paleleaf Woodland Sunflower | C177: Helianthus strumosus | D177: X | G177: X | H177: X | J177: X | K177: 0.0001 | L177: X | M177: X | N177: X | O177: X | P177: X | Q177: X | R177: X | S177: X | T177: X | U177: X | V177: 22.6875 | AA177: 4200 | AB177: 0.09641873278 | AC177: 1.542699725 | AE177: Summer, Fall | AF177: 4 | AG177: Perennial Forb | AH177: COLD MOIST STRATIFICATION | AI177: 1
A178: Forb | B178: Panicledleaf Ticktrefoil | C178: Desmodium paniculatum | D178: X | E178: X | H178: X | J178: X | K178: 0.0001 | M178: X | N178: X | O178: X | P178: X | Q178: X | R178: X | S178: X | T178: X | V178: 19.44642857 | AA178: 4900 | AB178: 0.1124885216 | AC178: 1.799816345 | AE178: Summer, Fall | AF178: 7 | AG178: Perennial Forb, Legume | AH178: Dry cold storage, Legume-requires inoculation
A179: Forb | B179: Partridge Pea | C179: Chamaecrista fasciculata | D179: X | E179: X | G179: X | H179: X | K179: 0.0001 | L179: X | M179: X | N179: X | O179: X | P179: X | Q179: X | R179: X | S179: X | T179: X | U179: X | V179: 35.29166667 | AA179: 2700 | AB179: 0.06198347107 | AC179: 0.9917355372 | AE179: Summer, Fall | AF179: 3 | AG179: Annual Forb, Legume | AH179: Cold moist stratification(10),Requires scarification, Legume-requires inoculation
A180: Forb | B180: Pennsylvania Smartweed | C180: Polygonum pensylvanicum | F180: X | G180: X | H180: X | I180: X | K180: 0.0001 | L180: X | M180: X | N180: X | O180: X | P180: X | Q180: X | R180: X | S180: X | T180: X | U180: X | V180: 7.329807692 | AA180: 13000 | AB180: 0.2984389348 | AC180: 4.775022957 | AE180: Summer, Fall | AF180: 1 | AG180: Annual Forb | AH180: Cold moist stratification, Light required for germination | AI180: 1
A181: Forb | B181: Pickerel-weed | C181: Pontederia cordata | F181: X | I181: X | K181: 0.0001 | L181: X | M181: X | N181: X | O181: X | P181: X | Q181: X | R181: X | S181: X | T181: X | U181: X | V181: 305.4086538 | AA181: 312 | AB181: 0.007162534435 | AC181: 0.114600551 | AE181: Summer, Fall | AF181: 8 | AG181: Perennial Forb
A182: Forb | B182: Pitcher's Sage | C182: Salvia azurea | D182: X | G182: X | H182: X | K182: 0.0001 | M182: X | N182: X | Q182: X | T182: X | U182: X | V182: 13.6125 | AA182: 7000 | AB182: 0.160697888 | AC182: 2.571166208 | AE182: Summer, Fall | AF182: 0 | AG182: Perennial Forb | AH182: Dry cold storage
A183: Forb | B183: Pointed Ticktrefoil | C183: Desmodium glutinosum | E183: X | H183: X | J183: X | K183: 0.0001 | L183: X | M183: X | N183: X | O183: X | P183: X | Q183: X | R183: X | S183: X | T183: X | U183: X | V183: 113.4375 | AA183: 840 | AB183: 0.01928374656 | AC183: 0.3085399449 | AE183: Summer | AF183: 6 | AG183: Perennial Forb, Legume | AH183: Cold moist stratification(10)Legume-requires inoculation
